Workbook

Sheet ModelingExercise
B2: Instructions:
B4: 1 | C4: Use the Assumptions in the section below to build a model in "Model" sheet. Complete the model for entire duration of Constrution and Operations for the given project. Add rows wherever required on "Model" tab to complete the model.
B5: =B4+1 -> 2 | C5: The model frequency should be "Monthly", i.e., each column in the model represents a month.
B6: =B5+1 -> 3 | C6: Calculate Equity IRR (FCFE)
B7: =B6+1 -> 4 | C7: Calculate Project IRR (FCFF)
B8: =B7+1 -> 5 | C8: Calculate Unlevered IRR (Pre-Tax) & Unlevered IRR (Post-Tax)
B9: =B8+1 -> 6 | C9: Conduct Euity IRR and Project IRR sensitivity analysis for the following scenarios:
B10: a | C10: Change in EPC Cost of +10% and -10%
B11: b | C11: Change in O&M Cost of +10% and -10%
B12: c | C12: Change in Debt % from 70% to 50% (show impact only on Equity IRR)
B13: d | C13: Change in P50 Yield of +5% and -5%
B14: =B9+1 -> 7 | C14: Calculate the Enterprise Value as on 31 December 2022 assuming a discount rate of 5% for equity cash flows
B15: =B14+1 -> 8 | C15: If the project was sold to a new investor on 31 December 2023 at a discount rate of 4.5% (equity cash flow basis), what is the equity IRR to the promoters (i.e., original equity investors) on exit? What is the enterprise value on the day of exit? What is the cash-on-cash multiple to the promoter on exit?
B16: 9 | C16: What is the total Interest During Construction?
B17: 10 | C17: What is quantum of Debt that can be raised if the Lender requires Average DSCR of 1.35 during the life of the loan?
B18: 11 | C18: Add a functionality in the model to allow for calculating year-on-year % increase in "Electricity Tariff". Currently the model assumes a fixed price for the duration of project, we need to add an option to add annual price escalation in %. Once the functionality is built, use 1.5% as escalation and re-calculated Project IRR and Equity IRR
B19: 12 | C19: Calcualte Deferred Tax assuming that Accounting Depreciation is allowed on only 90% of Asset Value
B20: 13 | C20: Add a summary table (could be in a new sheet/tab), showing the 3 Financial Statements (Income Statement, Balance Sheet, Cash Flows) on Annual Basis (1 column per year).
B21: 14 | C21: Is there any tax benefit if the equity is invested in the form of a Shareholder Loan? If yes, then how much impact does it have on the Equity IRR and Project IRR
C22: You have 180 minutes (3 Hours) to complete this exercise. Please submit your work when the alloted time is over.
B25: Key Assumptions: [10MWp Solar Power Plant]
E26: Units | F26: Value
C27: Project Details | H27: 1MWh | I27: = | J27: 1000 kWh
C28: Project Size | E28: MWp | F28: 10 | H28: 1MWp | I28: = | J28: 1000 kWp
C29: P50 Yield | E29: kWh/kWp/Year | F29: 1000
C30: Electricity Production in First Year of Operation | E30: MWh | F30: =F28*F29 -> 10000
C31: Annual Panel Degradation | E31: %p.a. | F31: 0.003 | G31: use straight line degradation (y-o-y decrease of 0.30% in capacity)
C32: Panel degradation per period | E32: % per period | F32: =F31/12 -> 0.00025
C33: Project Operating Life | E33: Years | F33: 10
C34: Production per period | E34: MWh | F34: =F30/12 -> 833.3333333
C35: =C57 -> COD | F35: =F57 -> 2023-03-01
C36: End of ops | F36: =EOMONTH(F35,12*F33) -> 2033-03-31
C38: Monetary unit | F38: k EUR
C39: 1000
C41: Revenue Assumptions
C42: Electricity Tariff | E42: EUR/MWh | F42: 60
C45: Capex Assumptions
C46: EPC Cost | E46: EUR/MWp | F46: 400000 | G46: Capitalize and depreciate
C47: Other Costs | E47: EUR/MWp | F47: 5000 | G47: Capitalize and depreciate
C48: Total Capex | E48: EUR/MWp | F48: =SUM(F46:F47)*MWp -> 4050000
C53: Capex Phasing
C54: Construction Start Date | E54: Date | F54: 2022-06-01
C55: Construction Duration | E55: Months | F55: 9
C56: construction end | E56: Date | F56: =EOMONTH(F54,F55-1) -> 2023-02-28
C57: COD | F57: =F56+1 -> 2023-03-01
F59: 1 | G59: =F59+1 -> 2 | H59: =G59+1 -> 3 | I59: 4 | J59: =I59+1 -> 5 | K59: =J59+1 -> 6 | L59: =K59+1 -> 7 | M59: =L59+1 -> 8 | N59: =M59+1 -> 9
C60: Capex Phasing | E60: % | F60: =1/$F$55 -> 0.1111111111 | G60: =1/$F$55 -> 0.1111111111 | H60: 0.1111111111 | I60: 0.1111111111 | J60: 0.1111111111 | K60: 0.1111111111 | L60: 0.1111111111 | M60: 0.1111111111 | N60: 0.1111111111
C61: Periodic Capital Expenditures | F61: =F60*$F$48 -> 450000 | G61: =G60*$F$48 -> 450000 | H61: 450000 | I61: 450000 | J61: 450000 | K61: 450000 | L61: 450000 | M61: 450000 | N61: 450000
C63: Opex Assumptions
C64: O&M Costs | E64: EUR/MWp/Year | F64: 5000
C65: Annual Escalation in O&M Costs | E65: % p.a. | F65: 0.02
C66: Land Lease | E66: EUR/MWp/Year | F66: 1000
F67: =F66*10*10/1000 -> 100
C68: Capital Structure
C69: Equity | E69: % | F69: 0.3
C70: Debt | E70: % | F70: =1-F69 -> 0.7
C71: Debt Equity Injection Basis | F71: Equity First
C73: Debt quantum - leverage method | F73: =F70*F48/k -> 2835
C77: Debt Tenor (excluding construction period) | E77: Years | F77: 8
C78: Repayment Frequency | E78: Frequency | F78: Quarterly
C79: Repayment Type | E79: Repayment | F79: Sculpting | G79: Assume DSCR to be maintained at 1.20x
C80: Debt interest Rate During Construction | E80: % p.a. | F80: 0.025 | G80: Use Circular Reference where required
C81: Debt interest Rate During Operations | E81: % p.a. | F81: 0.015
C84: Debt repayment start date | F84: =F35 -> 2023-03-01
C85: Debt repayment end date | F85: =DATE(YEAR(F84)+F77,MONTH(F84),DAY(F84)) -> 2031-03-01
C90: Months in which debt is repayd | E90: months | F90: 3
E91: months | F91: 6
E92: months | F92: 9
E93: months | F93: 12
C97: Tax & Accounting Assumptions
C98: Financial Year End | E98: Month | F98: December | G98: Assume Jan-Dec Financial year
C99: Corporate Tax Rate | E99: % | F99: 0.25
C101: Accounting Depreciation | E101: Depreciation | F101: Straight Line | G101: Depreciate 100% of asset during operating/useful life of project
C102: Tax Depreciation | E102: Depreciation | F102: Straight Line | G102: Depreciate 100% of asset during operating/useful life of project
C103: Useful Life | E103: Years | F103: =F33 -> 10
C106: Note: For Working Capital, assume there are no payable or receivable days (i.e., 0 Days)

Sheet Instructions with Notes
B2: Instructions:
C3: Notes
B4: 1 | E4: Use the Assumptions in the section below to build a model in "Model" sheet. Complete the model for entire duration of Constrution and Operations for the given project. Add rows wherever required on "Model" tab to complete the model.
B5: =B4+1 -> 2 | E5: The model frequency should be "Monthly", i.e., each column in the model represents a month.
B6: =B5+1 -> 3 | C6: ok | E6: Calculate Equity IRR (FCFE)
B7: =B6+1 -> 4 | C7: ok | E7: Calculate Project IRR (FCFF)
B8: =B7+1 -> 5 | C8: PR IRR vs Unlevered? | E8: Calculate Unlevered IRR (Pre-Tax) & Unlevered IRR (Post-Tax)
B9: =B8+1 -> 6 | E9: Conduct Euity IRR and Project IRR sensitivity analysis for the following scenarios:
B10: a | C10: Flex Input Page | E10: Change in EPC Cost of +10% and -10%
B11: b | C11: Flex Input Page | E11: Change in O&M Cost of +10% and -10%
B12: c | C12: Flex Input Page | E12: Change in Debt % from 70% to 50% (show impact only on Equity IRR)
B13: d | C13: Flex Input Page | E13: Change in P50 Yield of +5% and -5%
B14: =B9+1 -> 7 | C14: ok | E14: Calculate the Enterprise Value as on 31 December 2022 assuming a discount rate of 5% for equity cash flows
B15: =B14+1 -> 8 | C15: Use Montly Discount Rate | E15: If the project was sold to a new investor on 31 December 2023 at a discount rate of 4.5% (equity cash flow basis), what is the equity IRR to the promoters (i.e., original equity investors) on exit? What is the enterprise value on the day of exit? What is the cash-on-cash multiple to the promoter on exit?
B16: 9 | C16: Circular | E16: What is the total Interest During Construction?
B17: 10 | C17: Sculpting with quarterly | E17: What is quantum of Debt that can be raised if the Lender requires Average DSCR of 1.35 during the life of the loan?
B18: 11 | C18: Flag and Index | E18: Add a functionality in the model to allow for calculating year-on-year % increase in "Electricity Tariff". Currently the model assumes a fixed price for the duration of project, we need to add an option to add annual price escalation in %. Once the functionality is built, use 1.5% as escalation and re-calculated Project IRR and Equity IRR
B19: 12 | C19: Why when tax = book | E19: Calcualte Deferred Tax assuming that Accounting Depreciation is allowed on only 90% of Asset Value
B20: 13 | C20: ok | E20: Add a summary table (could be in a new sheet/tab), showing the 3 Financial Statements (Income Statement, Balance Sheet, Cash Flows) on Annual Basis (1 column per year).
B21: 14 | C21: depends | E21: Is there any tax benefit if the equity is invested in the form of a Shareholder Loan? If yes, then how much impact does it have on the Equity IRR and Project IRR
E22: You have 180 minutes (3 Hours) to complete this exercise. Please submit your work when the alloted time is over.
C25: Complications
C27: 1. Quarterly Repayment
C28: 2. IDC Circular Reference

Sheet Step by Step
C2: Make Investments with Good IRR
D3: Fix and Format Inputs
D4: Careful with time Lines
D5: Compute Project IRR before Any Debt
C9: Read through the Inputs and make notes
C11: Fix the Input sheet and add scenario with INDEX
C13: Fix the Period Degradation
C15: Put in a repayment type -- DSCR for Sculpting

Sheet Input
C1: Scenario Number | E1: 1
B3: Key Assumptions: [10MWp Solar Power Plant]
E4: Units | F4: =INDEX(H4:M4,$E$1) -> Base Case | H4: Base Case | I4: EPC + 10% | J4: EPC - 10% | K4: 50% Debt | L4: Scupting | M4: PPA Escalaction
B5: Dates
C6: Construction Start Date | E6: [Date] | F6: =INDEX(H6:M6,$E$1) -> 2022-06-01 | H6: 2022-06-01 | I6: 2022-06-01 | J6: 2022-06-01 | K6: 2022-06-01 | L6: 2022-06-01 | M6: 2022-06-01
C7: =C12 -> COD | E7: [Date] | F7: =INDEX(H7:M7,$E$1) -> 2023-03-01 | H7: =H12 -> 2023-03-01 | I7: 2023-03-01 | J7: 2023-03-01 | K7: 2023-03-01 | L7: 2023-03-01 | M7: 2023-03-01
C8: Project Hoding Period | E8: Year | F8: =INDEX(H8:M8,$E$1) -> 10 | H8: 10 | I8: 10 | J8: 10 | K8: 10 | L8: 10 | M8: 10
C9: End of ops | F9: =INDEX(H9:M9,$E$1) -> 2033-02-28 | H9: =EOMONTH(H7,12*H8-1) -> 2033-02-28 | I9: =EOMONTH(I7,12*I8-1) -> 2033-02-28 | J9: 2033-02-28 | K9: 2033-02-28 | L9: 2033-02-28 | M9: 2033-02-28
C10: Construction Duration | E10: [Months] | F10: =INDEX(H10:M10,$E$1) -> 9 | H10: 9 | I10: 9 | J10: 9 | K10: 9 | L10: 9 | M10: 9
C11: construction end | E11: [Date] | F11: =INDEX(H11:M11,$E$1) -> 2023-02-28 | H11: =EOMONTH(H6,H10-1) -> 2023-02-28 | I11: 2023-02-28 | J11: 2023-02-28 | K11: 2023-02-28 | L11: 2023-02-28 | M11: 2023-02-28
C12: COD | F12: =INDEX(H12:M12,$E$1) -> 2023-03-01 | H12: =H11+1 -> 2023-03-01 | I12: 2023-03-01 | J12: 2023-03-01 | K12: 2023-03-01 | L12: 2023-03-01 | M12: 2023-03-01
B14: Production
C15: Project Size | E15: [MWp] | F15: =INDEX(H15:M15,$E$1) -> 10 | H15: 10 | I15: 10 | J15: 10 | K15: 10 | L15: 10 | M15: 10
C16: P50 Yield | E16: [kWh/kWp/Year] | F16: =INDEX(H16:M16,$E$1) -> 1000 | H16: 1000 | I16: 1000 | J16: 1000 | K16: 1000 | L16: 1000 | M16: 1000
C17: Electricity Production in First Year of Operation | E17: [MWh] | F17: =INDEX(H17:M17,$E$1) -> 10000 | H17: =H15*H16 -> 10000 | I17: 10000 | J17: 10000 | K17: 10000 | L17: 10000 | M17: 10000
C18: Annual Panel Degradation | E18: [%p.a.] | F18: =INDEX(H18:M18,$E$1) -> 0.003 | H18: 0.003 | I18: 0.003 | J18: 0.003 | K18: 0.003 | L18: 0.003 | M18: 0.003 | S18: use straight line degradation (y-o-y decrease of 0.30% in capacity)
C19: Panel degradation per period | E19: [% per period] | F19: =INDEX(H19:M19,$E$1) -> 0.0002496569074 | H19: =(1+H18)^(1/12)-1 -> 0.0002496569074 | I19: =(1+I18)^(1/12)-1 -> 0.0002496569074 | J19: 0.0002496569074 | K19: 0.0002496569074 | L19: 0.0002496569074 | M19: 0.0002496569074
C20: Production per period | E20: [MWh] | F20: =INDEX(H20:M20,$E$1) -> 833.3333333 | H20: =H17/12 -> 833.3333333 | I20: 833.3333333 | J20: 833.3333333 | K20: 833.3333333 | L20: 833.3333333 | M20: 833.3333333
B22: Free Cash Flow
C23: Electricity Tariff | E23: [EUR/MWh] | F23: =INDEX(H23:M23,$E$1) -> 60 | H23: 60 | I23: 60 | J23: 60 | K23: 60 | L23: 60 | M23: 60
C24: Apply Price Escalation | E24: [Flag] | F24: =INDEX(H24:M24,$E$1) -> FALSE | H24: FALSE | I24: FALSE | J24: FALSE | K24: FALSE | L24: FALSE | M24: FALSE
C25: Escalation | E25: [%] | F25: =INDEX(H25:M25,$E$1) -> 0 | H25: 0 | I25: 0 | J25: 0 | K25: 0 | L25: 0 | M25: 0
C27: Capex Assumptions
C28: EPC Cost | E28: [EUR/MWp] | F28: =INDEX(H28:M28,$E$1) -> 400000 | H28: 400000 | I28: =H28*1.1 -> 440000 | J28: =H28*0.9 -> 360000 | K28: 400000 | L28: 400000 | M28: 400000 | S28: Capitalize and depreciate
C29: Other Costs | E29: [EUR/MWp] | F29: =INDEX(H29:M29,$E$1) -> 5000 | H29: 5000 | I29: 5000 | J29: 5000 | K29: 5000 | L29: 5000 | M29: 5000 | S29: Capitalize and depreciate
C30: Total Capex | E30: [EUR/MWp] | F30: =INDEX(H30:M30,$E$1) -> 4050000 | H30: =SUM(H28:H29)*MWp -> 4050000 | I30: 4450000 | J30: 3650000 | K30: 4050000 | L30: 4050000 | M30: 4050000
C32: Opex Assumptions
C33: O&M Costs | E33: [EUR/MWp/Year] | F33: =INDEX(H33:M33,$E$1) -> 5000 | H33: 5000 | I33: 5000 | J33: 5000 | K33: 5000 | L33: 5000 | M33: 5000
C34: Annual Escalation in O&M Costs | E34: [% p.a.] | F34: =INDEX(H34:M34,$E$1) -> 0.02 | H34: 0.02 | I34: 0.02 | J34: 0.02 | K34: 0.02 | L34: 0.02 | M34: 0.02
C35: Land Lease | E35: [EUR/MWp/Year] | F35: =INDEX(H35:M35,$E$1) -> 1000 | H35: 1000 | I35: 1000 | J35: 1000 | K35: 1000 | L35: 1000 | M35: 1000
F36: =F35*10*10/1000 -> 100 | H36: =H35*10*10/1000 -> 100 | I36: 100 | J36: 100 | K36: 100 | L36: 100 | M36: 100
B37: Tax & Accounting Assumptions
C38: Financial Year End | E38: [Month] | F38: December | H38: December | I38: December | J38: December | K38: December | L38: December | M38: December | S38: Assume Jan-Dec Financial year
C39: Corporate Tax Rate | E39: [%] | F39: =INDEX(H39:M39,$E$1) -> 0.25 | H39: 0.25 | I39: 0.25 | J39: 0.25 | K39: 0.25 | L39: 0.25 | M39: 0.25
C41: Accounting Depreciation | E41: [Depreciation] | F41: =INDEX(H41:M41,$E$1) -> Straight Line | H41: Straight Line | I41: Straight Line | J41: Straight Line | K41: Straight Line | L41: Straight Line | M41: Straight Line | S41: Depreciate 100% of asset during operating/useful life of project
C42: Tax Depreciation | E42: [Depreciation] | F42: =INDEX(H42:M42,$E$1) -> Straight Line | H42: Straight Line | I42: Straight Line | J42: Straight Line | K42: Straight Line | L42: Straight Line | M42: Straight Line | S42: Depreciate 100% of asset during operating/useful life of project
C43: Useful Life | E43: [Years] | F43: =INDEX(H43:M43,$E$1) -> 10 | H43: =H8 -> 10 | I43: 10 | J43: 10 | K43: 10 | L43: 10 | M43: 10
B45: Capital Structure
C46: Debt Size from Sculpting | E46: [Flag] | F46: =INDEX(H46:M46,$E$1) -> FALSE | H46: FALSE | I46: FALSE | J46: FALSE | K46: FALSE | L46: TRUE | M46: FALSE
C47: Equity | E47: [%] | F47: =INDEX(H47:M47,$E$1) -> 0.3 | H47: 0.3 | I47: 0.3 | J47: 0.3 | K47: 0.3 | L47: 0.3 | M47: 0.3
C48: Debt | E48: [%] | F48: =INDEX(H48:M48,$E$1) -> 0.7 | H48: =1-H47 -> 0.7 | I48: =1-I47 -> 0.7 | J48: =1-J47 -> 0.7 | K48: 0.5 | L48: 0 | M48: =1-M47 -> 0.7
C49: Debt Equity Injection Basis | F49: =INDEX(H49:M49,$E$1) -> Equity First | H49: Equity First | I49: Equity First | J49: Equity First | K49: Equity First | L49: Equity First | M49: Equity First
C51: Debt quantum - leverage method | F51: =INDEX(H51:M51,$E$1) -> 2835 | H51: =H48*H30/k -> 2835 | I51: 3115 | J51: 2555 | K51: 2025 | L51: 0 | M51: 2835
C53: Debt Tenor (excluding construction period) | E53: [Years] | F53: =INDEX(H53:M53,$E$1) -> 8 | H53: 8 | I53: 8 | J53: 8 | K53: 8 | L53: 8 | M53: 8
C55: Repayment Frequency | E55: [Frequency] | F55: =INDEX(H55:M55,$E$1) -> Quarterly | H55: Quarterly | I55: Quarterly | J55: Quarterly | K55: Quarterly | L55: Quarterly | M55: Quarterly
C56: Repayment Type | E56: [Repayment] | F56: =INDEX(H56:M56,$E$1) -> Sculpting | H56: Sculpting | I56: Sculpting | J56: Sculpting | K56: Sculpting | L56: Sculpting | M56: Sculpting | S56: Assume DSCR to be maintained at 1.20x
C58: DSCR for Repayment | E58: [x] | F58: =INDEX(H58:M58,$E$1) -> 1.35 | H58: 1.35 | I58: 1.35 | J58: 1.35 | K58: 1.35 | L58: 1.35 | M58: 1.35
C60: Debt interest Rate During Construction | E60: [% p.a.] | F60: =INDEX(H60:M60,$E$1) -> 0.025 | H60: 0.025 | I60: 0.025 | J60: 0.025 | K60: 0.025 | L60: 0.025 | M60: 0.025 | S60: Use Circular Reference where required
C61: Debt interest Rate During Operations | E61: [% p.a.] | F61: =INDEX(H61:M61,$E$1) -> 0.015 | H61: 0.015 | I61: 0.015 | J61: 0.015 | K61: 0.015 | L61: 0.015 | M61: 0.015
C64: Debt repayment start date | F64: =INDEX(H64:M64,$E$1) -> 2023-03-01 | H64: =H7 -> 2023-03-01 | I64: 2023-03-01 | J64: 2023-03-01 | K64: 2023-03-01 | L64: 2023-03-01 | M64: 2023-03-01
C65: Debt repayment end date | F65: =INDEX(H65:M65,$E$1) -> 2031-03-01 | H65: =EDATE(H64,H53*12) -> 2031-03-01 | I65: =EDATE(I64,I53*12) -> 2031-03-01 | J65: 2031-03-01 | K65: 2031-03-01 | L65: 2031-03-01 | M65: 2031-03-01
C67: Months in which debt is repayd | E67: [months] | F67: =INDEX(H67:M67,$E$1) -> 3 | H67: 3 | I67: 3 | J67: 3 | K67: 3 | L67: 3 | M67: 3
E68: [months] | F68: =INDEX(H68:M68,$E$1) -> 6 | H68: 6 | I68: 6 | J68: 6 | K68: 6 | L68: 6 | M68: 6
E69: [months] | F69: =INDEX(H69:M69,$E$1) -> 9 | H69: 9 | I69: 9 | J69: 9 | K69: 9 | L69: 9 | M69: 9
E70: [months] | F70: =INDEX(H70:M70,$E$1) -> 12 | H70: 12 | I70: 12 | J70: 12 | K70: 12 | L70: 12 | M70: 12
C74: Sale Date | E74: [Date] | F74: 2023-12-01
C75: Equity Discount Rate | E75: [%] | F75: 0.045 | G75: =(1+F75)^(1/12)-1 -> 0.0036748094
C77: Enterprise Value Date | E77: [Date] | F77: 2022-12-01
C78: Cost of Capital for Enterprise Value | E78: [%] | F78: 0.05 | G78: =(1+F78)^(1/12)-1 -> 0.004074123784
F80: 1 | G80: =S80+1 -> 1 | H80: =G80+1 -> 2 | I80: 3 | J80: 4 | K80: 5 | L80: 6 | M80: =K80+1 -> 6 | N80: 7 | O80: 10
C81: Capex Phasing | E81: [%] | F81: =1/$F$10 -> 0.1111111111 | G81: 0.1111111111 | H81: 0.1111111111 | I81: 0.1111111111 | J81: 0.1111111111 | K81: 0.1111111111 | L81: 0.1111111111 | M81: 0.1111111111 | N81: 0.1111111111 | O81: 0
C82: Periodic Capital Expenditures | F82: =F81*$F$30 -> 450000 | G82: =G81*$F$30 -> 450000 | H82: 450000 | I82: 450000 | J82: 450000 | K82: 450000 | L82: 450000 | M82: 450000 | N82: 450000 | O82: 0
C84: Note: For Working Capital, assume there are no payable or receivable days (i.e., 0 Days)
E85: [1MWh] | F85: = | S85: 1000 kWh
E86: [1MWp] | F86: = | S86: 1000 kWp
C89: Monetary unit | F89: k EUR
C90: Thousands | F90: 1000

Sheet Model
E2: driver 1 | F2: driver 2 | G2: Total
C3: Counter | J3: 1 | K3: =J3+1 -> 2 | L3: =K3+1 -> 3 | M3: 4 | N3: 5 | O3: 6 | P3: 7 | Q3: 8 | R3: 9 | S3: 10 | T3: 11 | U3: 12 | V3: =U3+1 -> 13 | W3: =V3+1 -> 14 | X3: =W3+1 -> 15 | Y3: =X3+1 -> 16 | Z3: =Y3+1 -> 17 | AA3: =Z3+1 -> 18 | AB3: =AA3+1 -> 19 | AC3: =AB3+1 -> 20 | AD3: =AC3+1 -> 21 | AE3: =AD3+1 -> 22 | AF3: =AE3+1 -> 23 | AG3: =AF3+1 -> 24 | AH3: =AG3+1 -> 25 | AI3: =AH3+1 -> 26 | AJ3: =AI3+1 -> 27 | AK3: =AJ3+1 -> 28 | AL3: =AK3+1 -> 29 | AM3: =AL3+1 -> 30 | AN3: =AM3+1 -> 31 | AO3: =AN3+1 -> 32 | AP3: =AO3+1 -> 33 | AQ3: =AP3+1 -> 34 | AR3: =AQ3+1 -> 35 | AS3: =AR3+1 -> 36 | AT3: =AS3+1 -> 37 | AU3: =AT3+1 -> 38 | AV3: =AU3+1 -> 39 | AW3: =AV3+1 -> 40 | AX3: =AW3+1 -> 41 | AY3: =AX3+1 -> 42 | AZ3: =AY3+1 -> 43 | BA3: =AZ3+1 -> 44 | BB3: =BA3+1 -> 45 | BC3: =BB3+1 -> 46 | BD3: =BC3+1 -> 47 | BE3: =BD3+1 -> 48 | BF3: =BE3+1 -> 49 | BG3: =BF3+1 -> 50 | BH3: =BG3+1 -> 51 | BI3: =BH3+1 -> 52 | BJ3: =BI3+1 -> 53 | BK3: =BJ3+1 -> 54 | BL3: =BK3+1 -> 55 | BM3: =BL3+1 -> 56 | BN3: =BM3+1 -> 57 | BO3: =BN3+1 -> 58 | BP3: =BO3+1 -> 59 | BQ3: =BP3+1 -> 60 | BR3: =BQ3+1 -> 61 | BS3: =BR3+1 -> 62 | BT3: =BS3+1 -> 63 | BU3: =BT3+1 -> 64 | BV3: =BU3+1 -> 65 | BW3: =BV3+1 -> 66 | BX3: =BW3+1 -> 67 | BY3: =BX3+1 -> 68 | BZ3: =BY3+1 -> 69 | CA3: =BZ3+1 -> 70 | CB3: =CA3+1 -> 71 | CC3: =CB3+1 -> 72 | CD3: =CC3+1 -> 73 | CE3: =CD3+1 -> 74 | CF3: =CE3+1 -> 75 | CG3: =CF3+1 -> 76 | CH3: =CG3+1 -> 77 | CI3: =CH3+1 -> 78 | CJ3: =CI3+1 -> 79 | CK3: =CJ3+1 -> 80 | CL3: =CK3+1 -> 81 | CM3: =CL3+1 -> 82 | CN3: =CM3+1 -> 83 | CO3: =CN3+1 -> 84 | CP3: =CO3+1 -> 85 | CQ3: =CP3+1 -> 86 | CR3: =CQ3+1 -> 87 | CS3: =CR3+1 -> 88 | CT3: =CS3+1 -> 89 | CU3: =CT3+1 -> 90 | CV3: =CU3+1 -> 91 | CW3: =CV3+1 -> 92 | CX3: =CW3+1 -> 93 | CY3: =CX3+1 -> 94 | CZ3: =CY3+1 -> 95 | DA3: =CZ3+1 -> 96 | DB3: =DA3+1 -> 97 | DC3: =DB3+1 -> 98 | DD3: =DC3+1 -> 99 | DE3: =DD3+1 -> 100 | DF3: =DE3+1 -> 101 | DG3: =DF3+1 -> 102 | DH3: =DG3+1 -> 103 | DI3: =DH3+1 -> 104 | DJ3: =DI3+1 -> 105 | DK3: =DJ3+1 -> 106 | DL3: =DK3+1 -> 107 | DM3: =DL3+1 -> 108 | DN3: =DM3+1 -> 109 | DO3: =DN3+1 -> 110 | DP3: =DO3+1 -> 111 | DQ3: =DP3+1 -> 112 | DR3: 113 | DS3: =DR3+1 -> 114 | DT3: =DS3+1 -> 115 | DU3: =DT3+1 -> 116 | DV3: =DU3+1 -> 117 | DW3: =DV3+1 -> 118 | DX3: =DW3+1 -> 119 | DY3: =DX3+1 -> 120 | DZ3: =DY3+1 -> 121 | EA3: =DZ3+1 -> 122 | EB3: =EA3+1 -> 123 | EC3: =EB3+1 -> 124 | ED3: =EC3+1 -> 125 | EE3: =ED3+1 -> 126 | EF3: =EE3+1 -> 127 | EG3: =EF3+1 -> 128 | EH3: =EG3+1 -> 129
C4: Month Start | J4: =ModelingExercise!F54 -> 2022-06-01 | K4: =J5+1 -> 2022-07-01 | L4: =K5+1 -> 2022-08-01 | M4: 2022-09-01 | N4: 2022-10-01 | O4: 2022-11-01 | P4: 2022-12-01 | Q4: 2023-01-01 | R4: 2023-02-01 | S4: 2023-03-01 | T4: 2023-04-01 | U4: 2023-05-01 | V4: 2023-06-01 | W4: 2023-07-01 | X4: 2023-08-01 | Y4: 2023-09-01 | Z4: 2023-10-01 | AA4: 2023-11-01 | AB4: 2023-12-01 | AC4: 2024-01-01 | AD4: 2024-02-01 | AE4: 2024-03-01 | AF4: 2024-04-01 | AG4: 2024-05-01 | AH4: 2024-06-01 | AI4: 2024-07-01 | AJ4: 2024-08-01 | AK4: 2024-09-01 | AL4: 2024-10-01 | AM4: 2024-11-01 | AN4: 2024-12-01 | AO4: 2025-01-01 | AP4: 2025-02-01 | AQ4: 2025-03-01 | AR4: 2025-04-01 | AS4: 2025-05-01 | AT4: 2025-06-01 | AU4: 2025-07-01 | AV4: 2025-08-01 | AW4: 2025-09-01 | AX4: 2025-10-01 | AY4: 2025-11-01 | AZ4: 2025-12-01 | BA4: 2026-01-01 | BB4: 2026-02-01 | BC4: 2026-03-01 | BD4: 2026-04-01 | BE4: 2026-05-01 | BF4: 2026-06-01 | BG4: 2026-07-01 | BH4: 2026-08-01 | BI4: 2026-09-01 | BJ4: 2026-10-01 | BK4: 2026-11-01 | BL4: 2026-12-01 | BM4: 2027-01-01 | BN4: 2027-02-01 | BO4: 2027-03-01 | BP4: 2027-04-01 | BQ4: 2027-05-01 | BR4: 2027-06-01 | BS4: 2027-07-01 | BT4: 2027-08-01 | BU4: 2027-09-01 | BV4: 2027-10-01 | BW4: 2027-11-01 | BX4: =BW5+1 -> 2027-12-01 | BY4: 2028-01-01 | BZ4: 2028-02-01 | CA4: 2028-03-01 | CB4: 2028-04-01 | CC4: 2028-05-01 | CD4: 2028-06-01 | CE4: 2028-07-01 | CF4: 2028-08-01 | CG4: 2028-09-01 | CH4: 2028-10-01 | CI4: 2028-11-01 | CJ4: 2028-12-01 | CK4: 2029-01-01 | CL4: 2029-02-01 | CM4: 2029-03-01 | CN4: 2029-04-01 | CO4: 2029-05-01 | CP4: 2029-06-01 | CQ4: 2029-07-01 | CR4: 2029-08-01 | CS4: 2029-09-01 | CT4: 2029-10-01 | CU4: 2029-11-01 | CV4: 2029-12-01 | CW4: 2030-01-01 | CX4: 2030-02-01 | CY4: 2030-03-01 | CZ4: 2030-04-01 | DA4: 2030-05-01 | DB4: 2030-06-01 | DC4: 2030-07-01 | DD4: 2030-08-01 | DE4: 2030-09-01 | DF4: 2030-10-01 | DG4: 2030-11-01 | DH4: 2030-12-01 | DI4: 2031-01-01 | DJ4: 2031-02-01 | DK4: 2031-03-01 | DL4: 2031-04-01 | DM4: 2031-05-01 | DN4: 2031-06-01 | DO4: 2031-07-01 | DP4: 2031-08-01 | DQ4: 2031-09-01 | DR4: 2031-10-01 | DS4: 2031-11-01 | DT4: 2031-12-01 | DU4: 2032-01-01 | DV4: 2032-02-01 | DW4: 2032-03-01 | DX4: 2032-04-01 | DY4: 2032-05-01 | DZ4: 2032-06-01 | EA4: 2032-07-01 | EB4: 2032-08-01 | EC4: 2032-09-01 | ED4: 2032-10-01 | EE4: 2032-11-01 | EF4: 2032-12-01 | EG4: 2033-01-01 | EH4: 2033-02-01
C5: Month End | J5: =EOMONTH(J4,0) -> 2022-06-30 | K5: =EOMONTH(K4,0) -> 2022-07-31 | L5: =EOMONTH(L4,0) -> 2022-08-31 | M5: =EOMONTH(M4,0) -> 2022-09-30 | N5: =EOMONTH(N4,0) -> 2022-10-31 | O5: =EOMONTH(O4,0) -> 2022-11-30 | P5: =EOMONTH(P4,0) -> 2022-12-31 | Q5: =EOMONTH(Q4,0) -> 2023-01-31 | R5: =EOMONTH(R4,0) -> 2023-02-28 | S5: =EOMONTH(S4,0) -> 2023-03-31 | T5: =EOMONTH(T4,0) -> 2023-04-30 | U5: =EOMONTH(U4,0) -> 2023-05-31 | V5: =EOMONTH(V4,0) -> 2023-06-30 | W5: =EOMONTH(W4,0) -> 2023-07-31 | X5: =EOMONTH(X4,0) -> 2023-08-31 | Y5: =EOMONTH(Y4,0) -> 2023-09-30 | Z5: =EOMONTH(Z4,0) -> 2023-10-31 | AA5: =EOMONTH(AA4,0) -> 2023-11-30 | AB5: =EOMONTH(AB4,0) -> 2023-12-31 | AC5: =EOMONTH(AC4,0) -> 2024-01-31 | AD5: =EOMONTH(AD4,0) -> 2024-02-29 | AE5: =EOMONTH(AE4,0) -> 2024-03-31 | AF5: =EOMONTH(AF4,0) -> 2024-04-30 | AG5: =EOMONTH(AG4,0) -> 2024-05-31 | AH5: =EOMONTH(AH4,0) -> 2024-06-30 | AI5: =EOMONTH(AI4,0) -> 2024-07-31 | AJ5: =EOMONTH(AJ4,0) -> 2024-08-31 | AK5: =EOMONTH(AK4,0) -> 2024-09-30 | AL5: =EOMONTH(AL4,0) -> 2024-10-31 | AM5: =EOMONTH(AM4,0) -> 2024-11-30 | AN5: =EOMONTH(AN4,0) -> 2024-12-31 | AO5: =EOMONTH(AO4,0) -> 2025-01-31 | AP5: =EOMONTH(AP4,0) -> 2025-02-28 | AQ5: =EOMONTH(AQ4,0) -> 2025-03-31 | AR5: =EOMONTH(AR4,0) -> 2025-04-30 | AS5: =EOMONTH(AS4,0) -> 2025-05-31 | AT5: =EOMONTH(AT4,0) -> 2025-06-30 | AU5: =EOMONTH(AU4,0) -> 2025-07-31 | AV5: =EOMONTH(AV4,0) -> 2025-08-31 | AW5: =EOMONTH(AW4,0) -> 2025-09-30 | AX5: =EOMONTH(AX4,0) -> 2025-10-31 | AY5: =EOMONTH(AY4,0) -> 2025-11-30 | AZ5: =EOMONTH(AZ4,0) -> 2025-12-31 | BA5: =EOMONTH(BA4,0) -> 2026-01-31 | BB5: =EOMONTH(BB4,0) -> 2026-02-28 | BC5: =EOMONTH(BC4,0) -> 2026-03-31 | BD5: =EOMONTH(BD4,0) -> 2026-04-30 | BE5: =EOMONTH(BE4,0) -> 2026-05-31 | BF5: =EOMONTH(BF4,0) -> 2026-06-30 | BG5: =EOMONTH(BG4,0) -> 2026-07-31 | BH5: =EOMONTH(BH4,0) -> 2026-08-31 | BI5: =EOMONTH(BI4,0) -> 2026-09-30 | BJ5: =EOMONTH(BJ4,0) -> 2026-10-31 | BK5: =EOMONTH(BK4,0) -> 2026-11-30 | BL5: =EOMONTH(BL4,0) -> 2026-12-31 | BM5: =EOMONTH(BM4,0) -> 2027-01-31 | BN5: =EOMONTH(BN4,0) -> 2027-02-28 | BO5: =EOMONTH(BO4,0) -> 2027-03-31 | BP5: =EOMONTH(BP4,0) -> 2027-04-30 | BQ5: =EOMONTH(BQ4,0) -> 2027-05-31 | BR5: =EOMONTH(BR4,0) -> 2027-06-30 | BS5: =EOMONTH(BS4,0) -> 2027-07-31 | BT5: =EOMONTH(BT4,0) -> 2027-08-31 | BU5: =EOMONTH(BU4,0) -> 2027-09-30 | BV5: =EOMONTH(BV4,0) -> 2027-10-31 | BW5: =EOMONTH(BW4,0) -> 2027-11-30 | BX5: =EOMONTH(BX4,0) -> 2027-12-31 | BY5: =EOMONTH(BY4,0) -> 2028-01-31 | BZ5: =EOMONTH(BZ4,0) -> 2028-02-29 | CA5: =EOMONTH(CA4,0) -> 2028-03-31 | CB5: =EOMONTH(CB4,0) -> 2028-04-30 | CC5: =EOMONTH(CC4,0) -> 2028-05-31 | CD5: =EOMONTH(CD4,0) -> 2028-06-30 | CE5: =EOMONTH(CE4,0) -> 2028-07-31 | CF5: =EOMONTH(CF4,0) -> 2028-08-31 | CG5: =EOMONTH(CG4,0) -> 2028-09-30 | CH5: =EOMONTH(CH4,0) -> 2028-10-31 | CI5: =EOMONTH(CI4,0) -> 2028-11-30 | CJ5: =EOMONTH(CJ4,0) -> 2028-12-31 | CK5: =EOMONTH(CK4,0) -> 2029-01-31 | CL5: =EOMONTH(CL4,0) -> 2029-02-28 | CM5: =EOMONTH(CM4,0) -> 2029-03-31 | CN5: =EOMONTH(CN4,0) -> 2029-04-30 | CO5: =EOMONTH(CO4,0) -> 2029-05-31 | CP5: =EOMONTH(CP4,0) -> 2029-06-30 | CQ5: =EOMONTH(CQ4,0) -> 2029-07-31 | CR5: =EOMONTH(CR4,0) -> 2029-08-31 | CS5: =EOMONTH(CS4,0) -> 2029-09-30 | CT5: =EOMONTH(CT4,0) -> 2029-10-31 | CU5: =EOMONTH(CU4,0) -> 2029-11-30 | CV5: =EOMONTH(CV4,0) -> 2029-12-31 | CW5: =EOMONTH(CW4,0) -> 2030-01-31 | CX5: =EOMONTH(CX4,0) -> 2030-02-28 | CY5: =EOMONTH(CY4,0) -> 2030-03-31 | CZ5: =EOMONTH(CZ4,0) -> 2030-04-30 | DA5: =EOMONTH(DA4,0) -> 2030-05-31 | DB5: =EOMONTH(DB4,0) -> 2030-06-30 | DC5: =EOMONTH(DC4,0) -> 2030-07-31 | DD5: =EOMONTH(DD4,0) -> 2030-08-31 | DE5: =EOMONTH(DE4,0) -> 2030-09-30 | DF5: =EOMONTH(DF4,0) -> 2030-10-31 | DG5: =EOMONTH(DG4,0) -> 2030-11-30 | DH5: =EOMONTH(DH4,0) -> 2030-12-31 | DI5: =EOMONTH(DI4,0) -> 2031-01-31 | DJ5: =EOMONTH(DJ4,0) -> 2031-02-28 | DK5: =EOMONTH(DK4,0) -> 2031-03-31 | DL5: =EOMONTH(DL4,0) -> 2031-04-30 | DM5: =EOMONTH(DM4,0) -> 2031-05-31 | DN5: =EOMONTH(DN4,0) -> 2031-06-30 | DO5: =EOMONTH(DO4,0) -> 2031-07-31 | DP5: =EOMONTH(DP4,0) -> 2031-08-31 | DQ5: =EOMONTH(DQ4,0) -> 2031-09-30 | DR5: =EOMONTH(DR4,0) -> 2031-10-31 | DS5: =EOMONTH(DS4,0) -> 2031-11-30 | DT5: =EOMONTH(DT4,0) -> 2031-12-31 | DU5: =EOMONTH(DU4,0) -> 2032-01-31 | DV5: =EOMONTH(DV4,0) -> 2032-02-29 | DW5: =EOMONTH(DW4,0) -> 2032-03-31 | DX5: =EOMONTH(DX4,0) -> 2032-04-30 | DY5: =EOMONTH(DY4,0) -> 2032-05-31 | DZ5: =EOMONTH(DZ4,0) -> 2032-06-30 | EA5: =EOMONTH(EA4,0) -> 2032-07-31 | EB5: =EOMONTH(EB4,0) -> 2032-08-31 | EC5: =EOMONTH(EC4,0) -> 2032-09-30 | ED5: =EOMONTH(ED4,0) -> 2032-10-31 | EE5: =EOMONTH(EE4,0) -> 2032-11-30 | EF5: =EOMONTH(EF4,0) -> 2032-12-31 | EG5: =EOMONTH(EG4,0) -> 2033-01-31 | EH5: =EOMONTH(EH4,0) -> 2033-02-28
C6: Year | J6: =YEAR(J5) -> 2022 | K6: =YEAR(K5) -> 2022 | L6: =YEAR(L5) -> 2022 | M6: =YEAR(M5) -> 2022 | N6: =YEAR(N5) -> 2022 | O6: =YEAR(O5) -> 2022 | P6: =YEAR(P5) -> 2022 | Q6: =YEAR(Q5) -> 2023 | R6: =YEAR(R5) -> 2023 | S6: =YEAR(S5) -> 2023 | T6: =YEAR(T5) -> 2023 | U6: =YEAR(U5) -> 2023 | V6: =YEAR(V5) -> 2023 | W6: =YEAR(W5) -> 2023 | X6: =YEAR(X5) -> 2023 | Y6: =YEAR(Y5) -> 2023 | Z6: =YEAR(Z5) -> 2023 | AA6: =YEAR(AA5) -> 2023 | AB6: =YEAR(AB5) -> 2023 | AC6: =YEAR(AC5) -> 2024 | AD6: =YEAR(AD5) -> 2024 | AE6: =YEAR(AE5) -> 2024 | AF6: =YEAR(AF5) -> 2024 | AG6: =YEAR(AG5) -> 2024 | AH6: =YEAR(AH5) -> 2024 | AI6: =YEAR(AI5) -> 2024 | AJ6: =YEAR(AJ5) -> 2024 | AK6: =YEAR(AK5) -> 2024 | AL6: =YEAR(AL5) -> 2024 | AM6: =YEAR(AM5) -> 2024 | AN6: =YEAR(AN5) -> 2024 | AO6: =YEAR(AO5) -> 2025 | AP6: =YEAR(AP5) -> 2025 | AQ6: =YEAR(AQ5) -> 2025 | AR6: =YEAR(AR5) -> 2025 | AS6: =YEAR(AS5) -> 2025 | AT6: =YEAR(AT5) -> 2025 | AU6: =YEAR(AU5) -> 2025 | AV6: =YEAR(AV5) -> 2025 | AW6: =YEAR(AW5) -> 2025 | AX6: =YEAR(AX5) -> 2025 | AY6: =YEAR(AY5) -> 2025 | AZ6: =YEAR(AZ5) -> 2025 | BA6: =YEAR(BA5) -> 2026 | BB6: =YEAR(BB5) -> 2026 | BC6: =YEAR(BC5) -> 2026 | BD6: =YEAR(BD5) -> 2026 | BE6: =YEAR(BE5) -> 2026 | BF6: =YEAR(BF5) -> 2026 | BG6: =YEAR(BG5) -> 2026 | BH6: =YEAR(BH5) -> 2026 | BI6: =YEAR(BI5) -> 2026 | BJ6: =YEAR(BJ5) -> 2026 | BK6: =YEAR(BK5) -> 2026 | BL6: =YEAR(BL5) -> 2026 | BM6: =YEAR(BM5) -> 2027 | BN6: =YEAR(BN5) -> 2027 | BO6: =YEAR(BO5) -> 2027 | BP6: =YEAR(BP5) -> 2027 | BQ6: =YEAR(BQ5) -> 2027 | BR6: =YEAR(BR5) -> 2027 | BS6: =YEAR(BS5) -> 2027 | BT6: =YEAR(BT5) -> 2027 | BU6: =YEAR(BU5) -> 2027 | BV6: =YEAR(BV5) -> 2027 | BW6: =YEAR(BW5) -> 2027 | BX6: =YEAR(BX5) -> 2027 | BY6: =YEAR(BY5) -> 2028 | BZ6: =YEAR(BZ5) -> 2028 | CA6: =YEAR(CA5) -> 2028 | CB6: =YEAR(CB5) -> 2028 | CC6: =YEAR(CC5) -> 2028 | CD6: =YEAR(CD5) -> 2028 | CE6: =YEAR(CE5) -> 2028 | CF6: =YEAR(CF5) -> 2028 | CG6: =YEAR(CG5) -> 2028 | CH6: =YEAR(CH5) -> 2028 | CI6: =YEAR(CI5) -> 2028 | CJ6: =YEAR(CJ5) -> 2028 | CK6: =YEAR(CK5) -> 2029 | CL6: =YEAR(CL5) -> 2029 | CM6: =YEAR(CM5) -> 2029 | CN6: =YEAR(CN5) -> 2029 | CO6: =YEAR(CO5) -> 2029 | CP6: =YEAR(CP5) -> 2029 | CQ6: =YEAR(CQ5) -> 2029 | CR6: =YEAR(CR5) -> 2029 | CS6: =YEAR(CS5) -> 2029 | CT6: =YEAR(CT5) -> 2029 | CU6: =YEAR(CU5) -> 2029 | CV6: =YEAR(CV5) -> 2029 | CW6: =YEAR(CW5) -> 2030 | CX6: =YEAR(CX5) -> 2030 | CY6: =YEAR(CY5) -> 2030 | CZ6: =YEAR(CZ5) -> 2030 | DA6: =YEAR(DA5) -> 2030 | DB6: =YEAR(DB5) -> 2030 | DC6: =YEAR(DC5) -> 2030 | DD6: =YEAR(DD5) -> 2030 | DE6: =YEAR(DE5) -> 2030 | DF6: =YEAR(DF5) -> 2030 | DG6: =YEAR(DG5) -> 2030 | DH6: =YEAR(DH5) -> 2030 | DI6: =YEAR(DI5) -> 2031 | DJ6: =YEAR(DJ5) -> 2031 | DK6: =YEAR(DK5) -> 2031 | DL6: =YEAR(DL5) -> 2031 | DM6: =YEAR(DM5) -> 2031 | DN6: =YEAR(DN5) -> 2031 | DO6: =YEAR(DO5) -> 2031 | DP6: =YEAR(DP5) -> 2031 | DQ6: =YEAR(DQ5) -> 2031 | DR6: =YEAR(DR5) -> 2031 | DS6: =YEAR(DS5) -> 2031 | DT6: =YEAR(DT5) -> 2031 | DU6: =YEAR(DU5) -> 2032 | DV6: =YEAR(DV5) -> 2032 | DW6: =YEAR(DW5) -> 2032 | DX6: =YEAR(DX5) -> 2032 | DY6: =YEAR(DY5) -> 2032 | DZ6: =YEAR(DZ5) -> 2032 | EA6: =YEAR(EA5) -> 2032 | EB6: =YEAR(EB5) -> 2032 | EC6: =YEAR(EC5) -> 2032 | ED6: =YEAR(ED5) -> 2032 | EE6: =YEAR(EE5) -> 2032 | EF6: =YEAR(EF5) -> 2032 | EG6: =YEAR(EG5) -> 2033 | EH6: =YEAR(EH5) -> 2033
C7: Construction flag | E7: =ModelingExercise!$F$54 -> 2022-06-01 | F7: =ModelingExercise!$F$56 -> 2023-02-28 | G7: =SUM(J7:EH7) -> 9 | J7: =IF(AND(J4>=$E$7,J5<=$F$7),1,0) -> 1 | K7: 1 | L7: 1 | M7: 1 | N7: 1 | O7: 1 | P7: 1 | Q7: 1 | R7: 1 | S7: 0 | T7: 0 | U7: 0 | V7: 0 | W7: 0 | X7: 0 | Y7: 0 | Z7: 0 | AA7: 0 | AB7: 0 | AC7: 0 | AD7: 0 | AE7: 0 | AF7: 0 | AG7: 0 | AH7: 0 | AI7: 0 | AJ7: 0 | AK7: 0 | AL7: 0 | AM7: 0 | AN7: 0 | AO7: 0 | AP7: =IF(AND(AP4>=$E$7,AP5<=$F$7),1,0) -> 0 | AQ7: 0 | AR7: 0 | AS7: 0 | AT7: 0 | AU7: 0 | AV7: 0 | AW7: 0 | AX7: 0 | AY7: 0 | AZ7: 0 | BA7: 0 | BB7: 0 | BC7: 0 | BD7: 0 | BE7: 0 | BF7: 0 | BG7: 0 | BH7: 0 | BI7: 0 | BJ7: 0 | BK7: 0 | BL7: 0 | BM7: 0 | BN7: 0 | BO7: 0 | BP7: 0 | BQ7: 0 | BR7: 0 | BS7: 0 | BT7: 0 | BU7: 0 | BV7: =IF(AND(BV4>=$E$7,BV5<=$F$7),1,0) -> 0 | BW7: 0 | BX7: 0 | BY7: 0 | BZ7: 0 | CA7: 0 | CB7: 0 | CC7: 0 | CD7: 0 | CE7: 0 | CF7: 0 | CG7: 0 | CH7: 0 | CI7: 0 | CJ7: 0 | CK7: 0 | CL7: 0 | CM7: 0 | CN7: 0 | CO7: 0 | CP7: 0 | CQ7: 0 | CR7: 0 | CS7: 0 | CT7: 0 | CU7: 0 | CV7: 0 | CW7: 0 | CX7: 0 | CY7: 0 | CZ7: 0 | DA7: 0 | DB7: =IF(AND(DB4>=$E$7,DB5<=$F$7),1,0) -> 0 | DC7: 0 | DD7: 0 | DE7: 0 | DF7: 0 | DG7: 0 | DH7: 0 | DI7: 0 | DJ7: 0 | DK7: 0 | DL7: 0 | DM7: 0 | DN7: 0 | DO7: 0 | DP7: 0 | DQ7: 0 | DR7: 0 | DS7: 0 | DT7: 0 | DU7: 0 | DV7: 0 | DW7: 0 | DX7: 0 | DY7: 0 | DZ7: 0 | EA7: 0 | EB7: 0 | EC7: 0 | ED7: 0 | EE7: 0 | EF7: 0 | EG7: 0 | EH7: 0
C8: Last period of construction flag | E8: =ModelingExercise!$F$56 -> 2023-02-28 | G8: 1 | J8: =IF(J5=$E$8,1,0) -> 0 | K8: 0 | L8: 0 | M8: 0 | N8: 0 | O8: 0 | P8: 0 | Q8: 0 | R8: 1 | S8: 0 | T8: 0 | U8: 0 | V8: 0 | W8: 0 | X8: 0 | Y8: 0 | Z8: 0 | AA8: 0 | AB8: 0 | AC8: 0 | AD8: 0 | AE8: 0 | AF8: 0 | AG8: 0 | AH8: 0 | AI8: 0 | AJ8: 0 | AK8: 0 | AL8: 0 | AM8: 0 | AN8: 0 | AO8: 0 | AP8: =IF(AP5=$E$8,1,0) -> 0 | AQ8: 0 | AR8: 0 | AS8: 0 | AT8: 0 | AU8: 0 | AV8: 0 | AW8: 0 | AX8: 0 | AY8: 0 | AZ8: 0 | BA8: 0 | BB8: 0 | BC8: 0 | BD8: 0 | BE8: 0 | BF8: 0 | BG8: 0 | BH8: 0 | BI8: 0 | BJ8: 0 | BK8: 0 | BL8: 0 | BM8: 0 | BN8: 0 | BO8: 0 | BP8: 0 | BQ8: 0 | BR8: 0 | BS8: 0 | BT8: 0 | BU8: 0 | BV8: =IF(BV5=$E$8,1,0) -> 0 | BW8: 0 | BX8: 0 | BY8: 0 | BZ8: 0 | CA8: 0 | CB8: 0 | CC8: 0 | CD8: 0 | CE8: 0 | CF8: 0 | CG8: 0 | CH8: 0 | CI8: 0 | CJ8: 0 | CK8: 0 | CL8: 0 | CM8: 0 | CN8: 0 | CO8: 0 | CP8: 0 | CQ8: 0 | CR8: 0 | CS8: 0 | CT8: 0 | CU8: 0 | CV8: 0 | CW8: 0 | CX8: 0 | CY8: 0 | CZ8: 0 | DA8: 0 | DB8: =IF(DB5=$E$8,1,0) -> 0 | DC8: 0 | DD8: 0 | DE8: 0 | DF8: 0 | DG8: 0 | DH8: 0 | DI8: 0 | DJ8: 0 | DK8: 0 | DL8: 0 | DM8: 0 | DN8: 0 | DO8: 0 | DP8: 0 | DQ8: 0 | DR8: 0 | DS8: 0 | DT8: 0 | DU8: 0 | DV8: 0 | DW8: 0 | DX8: 0 | DY8: 0 | DZ8: 0 | EA8: 0 | EB8: 0 | EC8: 0 | ED8: 0 | EE8: 0 | EF8: 0 | EG8: 0 | EH8: 0
C9: Ops flag | E9: =ModelingExercise!$F$35 -> 2023-03-01 | F9: =ModelingExercise!$F$36 -> 2033-03-31 | G9: 120 | J9: =IF(AND(J5>=$E$9,J6<=$F$9),1,0) -> 0 | K9: 0 | L9: 0 | M9: 0 | N9: 0 | O9: 0 | P9: 0 | Q9: 0 | R9: 0 | S9: 1 | T9: 1 | U9: 1 | V9: 1 | W9: 1 | X9: 1 | Y9: 1 | Z9: 1 | AA9: 1 | AB9: 1 | AC9: 1 | AD9: 1 | AE9: 1 | AF9: 1 | AG9: 1 | AH9: 1 | AI9: 1 | AJ9: 1 | AK9: 1 | AL9: 1 | AM9: 1 | AN9: 1 | AO9: 1 | AP9: =IF(AND(AP5>=$E$9,AP6<=$F$9),1,0) -> 1 | AQ9: 1 | AR9: 1 | AS9: 1 | AT9: 1 | AU9: 1 | AV9: 1 | AW9: 1 | AX9: 1 | AY9: 1 | AZ9: 1 | BA9: 1 | BB9: 1 | BC9: 1 | BD9: 1 | BE9: 1 | BF9: 1 | BG9: 1 | BH9: 1 | BI9: 1 | BJ9: 1 | BK9: 1 | BL9: 1 | BM9: 1 | BN9: 1 | BO9: 1 | BP9: 1 | BQ9: 1 | BR9: 1 | BS9: 1 | BT9: 1 | BU9: 1 | BV9: =IF(AND(BV5>=$E$9,BV6<=$F$9),1,0) -> 1 | BW9: 1 | BX9: 1 | BY9: 1 | BZ9: 1 | CA9: 1 | CB9: 1 | CC9: 1 | CD9: 1 | CE9: 1 | CF9: 1 | CG9: 1 | CH9: 1 | CI9: 1 | CJ9: 1 | CK9: 1 | CL9: 1 | CM9: 1 | CN9: 1 | CO9: 1 | CP9: 1 | CQ9: 1 | CR9: 1 | CS9: 1 | CT9: 1 | CU9: 1 | CV9: 1 | CW9: 1 | CX9: 1 | CY9: 1 | CZ9: 1 | DA9: 1 | DB9: =IF(AND(DB5>=$E$9,DB6<=$F$9),1,0) -> 1 | DC9: 1 | DD9: 1 | DE9: 1 | DF9: 1 | DG9: 1 | DH9: 1 | DI9: 1 | DJ9: 1 | DK9: 1 | DL9: 1 | DM9: 1 | DN9: 1 | DO9: 1 | DP9: 1 | DQ9: 1 | DR9: 1 | DS9: 1 | DT9: 1 | DU9: 1 | DV9: 1 | DW9: 1 | DX9: 1 | DY9: 1 | DZ9: 1 | EA9: 1 | EB9: 1 | EC9: 1 | ED9: 1 | EE9: 1 | EF9: 1 | EG9: 1 | EH9: 1
C10: First ops period | E10: =ModelingExercise!$F$35 -> 2023-03-01 | G10: 1 | J10: =IF(J4=$E$10,1,0) -> 0 | K10: 0 | L10: 0 | M10: 0 | N10: 0 | O10: 0 | P10: 0 | Q10: 0 | R10: 0 | S10: 1 | T10: 0 | U10: 0 | V10: 0 | W10: 0 | X10: 0 | Y10: 0 | Z10: 0 | AA10: 0 | AB10: 0 | AC10: 0 | AD10: 0 | AE10: 0 | AF10: 0 | AG10: 0 | AH10: 0 | AI10: 0 | AJ10: 0 | AK10: 0 | AL10: 0 | AM10: 0 | AN10: 0 | AO10: 0 | AP10: =IF(AP4=$E$10,1,0) -> 0 | AQ10: 0 | AR10: 0 | AS10: 0 | AT10: 0 | AU10: 0 | AV10: 0 | AW10: 0 | AX10: 0 | AY10: 0 | AZ10: 0 | BA10: 0 | BB10: 0 | BC10: 0 | BD10: 0 | BE10: 0 | BF10: 0 | BG10: 0 | BH10: 0 | BI10: 0 | BJ10: 0 | BK10: 0 | BL10: 0 | BM10: 0 | BN10: 0 | BO10: 0 | BP10: 0 | BQ10: 0 | BR10: 0 | BS10: 0 | BT10: 0 | BU10: 0 | BV10: =IF(BV4=$E$10,1,0) -> 0 | BW10: 0 | BX10: 0 | BY10: 0 | BZ10: 0 | CA10: 0 | CB10: 0 | CC10: 0 | CD10: 0 | CE10: 0 | CF10: 0 | CG10: 0 | CH10: 0 | CI10: 0 | CJ10: 0 | CK10: 0 | CL10: 0 | CM10: 0 | CN10: 0 | CO10: 0 | CP10: 0 | CQ10: 0 | CR10: 0 | CS10: 0 | CT10: 0 | CU10: 0 | CV10: 0 | CW10: 0 | CX10: 0 | CY10: 0 | CZ10: 0 | DA10: 0 | DB10: =IF(DB4=$E$10,1,0) -> 0 | DC10: 0 | DD10: 0 | DE10: 0 | DF10: 0 | DG10: 0 | DH10: 0 | DI10: 0 | DJ10: 0 | DK10: 0 | DL10: 0 | DM10: 0 | DN10: 0 | DO10: 0 | DP10: 0 | DQ10: 0 | DR10: 0 | DS10: 0 | DT10: 0 | DU10: 0 | DV10: 0 | DW10: 0 | DX10: 0 | DY10: 0 | DZ10: 0 | EA10: 0 | EB10: 0 | EC10: 0 | ED10: 0 | EE10: 0 | EF10: 0 | EG10: 0 | EH10: 0
C11: Counter from COD | J11: =I11+J9 -> 0 | K11: 0 | L11: 0 | M11: 0 | N11: 0 | O11: 0 | P11: 0 | Q11: 0 | R11: 0 | S11: 1 | T11: 2 | U11: 3 | V11: 4 | W11: 5 | X11: 6 | Y11: 7 | Z11: 8 | AA11: 9 | AB11: 10 | AC11: 11 | AD11: 12 | AE11: 13 | AF11: 14 | AG11: 15 | AH11: 16 | AI11: 17 | AJ11: 18 | AK11: 19 | AL11: 20 | AM11: 21 | AN11: 22 | AO11: 23 | AP11: =AO11+AP9 -> 24 | AQ11: 25 | AR11: 26 | AS11: 27 | AT11: 28 | AU11: 29 | AV11: 30 | AW11: 31 | AX11: 32 | AY11: 33 | AZ11: 34 | BA11: 35 | BB11: 36 | BC11: 37 | BD11: 38 | BE11: 39 | BF11: 40 | BG11: 41 | BH11: 42 | BI11: 43 | BJ11: 44 | BK11: 45 | BL11: 46 | BM11: 47 | BN11: 48 | BO11: 49 | BP11: 50 | BQ11: 51 | BR11: 52 | BS11: 53 | BT11: 54 | BU11: 55 | BV11: =BU11+BV9 -> 56 | BW11: 57 | BX11: 58 | BY11: 59 | BZ11: 60 | CA11: 61 | CB11: 62 | CC11: 63 | CD11: 64 | CE11: 65 | CF11: 66 | CG11: 67 | CH11: 68 | CI11: 69 | CJ11: 70 | CK11: 71 | CL11: 72 | CM11: 73 | CN11: 74 | CO11: 75 | CP11: 76 | CQ11: 77 | CR11: 78 | CS11: 79 | CT11: 80 | CU11: 81 | CV11: 82 | CW11: 83 | CX11: 84 | CY11: 85 | CZ11: 86 | DA11: 87 | DB11: =DA11+DB9 -> 88 | DC11: 89 | DD11: 90 | DE11: 91 | DF11: 92 | DG11: 93 | DH11: 94 | DI11: 95 | DJ11: 96 | DK11: 97 | DL11: 98 | DM11: 99 | DN11: 100 | DO11: 101 | DP11: 102 | DQ11: 103 | DR11: 104 | DS11: 105 | DT11: 106 | DU11: 107 | DV11: 108 | DW11: 109 | DX11: 110 | DY11: 111 | DZ11: 112 | EA11: 113 | EB11: 114 | EC11: 115 | ED11: 116 | EE11: 117 | EF11: 118 | EG11: 119 | EH11: 120
C12: Other repayment flag | E12: 3 | J12: =AND(MOD(J11,$E$12)=0,J9)*1 -> 0 | K12: 0 | L12: 0 | M12: 0 | N12: 0 | O12: 0 | P12: 0 | Q12: 0 | R12: 0 | S12: 0 | T12: 0 | U12: 1 | V12: 0 | W12: 0 | X12: 1 | Y12: 0 | Z12: 0 | AA12: 1 | AB12: 0 | AC12: 0 | AD12: 1 | AE12: 0 | AF12: 0 | AG12: 1 | AH12: 0 | AI12: 0 | AJ12: 1 | AK12: 0 | AL12: 0 | AM12: 1 | AN12: 0 | AO12: 0 | AP12: =AND(MOD(AP11,$E$12)=0,AP9)*1 -> 1 | AQ12: 0 | AR12: 0 | AS12: 1 | AT12: 0 | AU12: 0 | AV12: 1 | AW12: 0 | AX12: 0 | AY12: 1 | AZ12: 0 | BA12: 0 | BB12: 1 | BC12: 0 | BD12: 0 | BE12: 1 | BF12: 0 | BG12: 0 | BH12: 1 | BI12: 0 | BJ12: 0 | BK12: 1 | BL12: 0 | BM12: 0 | BN12: 1 | BO12: 0 | BP12: 0 | BQ12: 1 | BR12: 0 | BS12: 0 | BT12: 1 | BU12: 0 | BV12: =AND(MOD(BV11,$E$12)=0,BV9)*1 -> 0 | BW12: 1 | BX12: 0 | BY12: 0 | BZ12: 1 | CA12: 0 | CB12: 0 | CC12: 1 | CD12: 0 | CE12: 0 | CF12: 1 | CG12: 0 | CH12: 0 | CI12: 1 | CJ12: 0 | CK12: 0 | CL12: 1 | CM12: 0 | CN12: 0 | CO12: 1 | CP12: 0 | CQ12: 0 | CR12: 1 | CS12: 0 | CT12: 0 | CU12: 1 | CV12: 0 | CW12: 0 | CX12: 1 | CY12: 0 | CZ12: 0 | DA12: 1 | DB12: =AND(MOD(DB11,$E$12)=0,DB9)*1 -> 0 | DC12: 0 | DD12: 1 | DE12: 0 | DF12: 0 | DG12: 1 | DH12: 0 | DI12: 0 | DJ12: 1 | DK12: 0 | DL12: 0 | DM12: 1 | DN12: 0 | DO12: 0 | DP12: 1 | DQ12: 0 | DR12: 0 | DS12: 1 | DT12: 0 | DU12: 0 | DV12: 1 | DW12: 0 | DX12: 0 | DY12: 1 | DZ12: 0 | EA12: 0 | EB12: 1 | EC12: 0 | ED12: 0 | EE12: 1 | EF12: 0 | EG12: 0 | EH12: =AND(MOD(EH11,$E$12)=0,EH9)*1 -> 1
C13: Quarterly counter | J13: =I13+J12 -> 0 | K13: 0 | L13: 0 | M13: 0 | N13: 0 | O13: 0 | P13: 0 | Q13: 0 | R13: 0 | S13: 0 | T13: 0 | U13: 1 | V13: 1 | W13: 1 | X13: 2 | Y13: 2 | Z13: 2 | AA13: 3 | AB13: 3 | AC13: 3 | AD13: 4 | AE13: 4 | AF13: 4 | AG13: 5 | AH13: 5 | AI13: 5 | AJ13: 6 | AK13: 6 | AL13: 6 | AM13: 7 | AN13: 7 | AO13: 7 | AP13: =AO13+AP12 -> 8 | AQ13: 8 | AR13: 8 | AS13: 9 | AT13: 9 | AU13: 9 | AV13: 10 | AW13: 10 | AX13: 10 | AY13: 11 | AZ13: 11 | BA13: 11 | BB13: 12 | BC13: 12 | BD13: 12 | BE13: 13 | BF13: 13 | BG13: 13 | BH13: 14 | BI13: 14 | BJ13: 14 | BK13: 15 | BL13: 15 | BM13: 15 | BN13: 16 | BO13: 16 | BP13: 16 | BQ13: 17 | BR13: 17 | BS13: 17 | BT13: 18 | BU13: 18 | BV13: =BU13+BV12 -> 18 | BW13: 19 | BX13: 19 | BY13: 19 | BZ13: 20 | CA13: 20 | CB13: 20 | CC13: 21 | CD13: 21 | CE13: 21 | CF13: 22 | CG13: 22 | CH13: 22 | CI13: 23 | CJ13: 23 | CK13: 23 | CL13: 24 | CM13: 24 | CN13: 24 | CO13: 25 | CP13: 25 | CQ13: 25 | CR13: 26 | CS13: 26 | CT13: 26 | CU13: 27 | CV13: 27 | CW13: 27 | CX13: 28 | CY13: 28 | CZ13: 28 | DA13: 29 | DB13: =DA13+DB12 -> 29 | DC13: 29 | DD13: 30 | DE13: 30 | DF13: 30 | DG13: 31 | DH13: 31 | DI13: 31 | DJ13: 32 | DK13: 32 | DL13: 32 | DM13: 33 | DN13: 33 | DO13: 33 | DP13: 34 | DQ13: 34 | DR13: 34 | DS13: 35 | DT13: 35 | DU13: 35 | DV13: 36 | DW13: 36 | DX13: 36 | DY13: 37 | DZ13: 37 | EA13: 37 | EB13: 38 | EC13: 38 | ED13: 38 | EE13: 39 | EF13: 39 | EG13: 39 | EH13: =EG13+EH12 -> 40
C14: Debt tenor flag | E14: =ModelingExercise!$F$35 -> 2023-03-01 | F14: =DATE(YEAR(E14)+8,MONTH(E14),DAY(E14)) -> 2031-03-01 | G14: =SUM(J14:EH14) -> 96 | J14: =IF(AND(J4>=$E$14,J5<=$F$14),1,0) -> 0 | K14: 0 | L14: 0 | M14: 0 | N14: 0 | O14: 0 | P14: 0 | Q14: 0 | R14: 0 | S14: 1 | T14: 1 | U14: 1 | V14: 1 | W14: 1 | X14: 1 | Y14: 1 | Z14: 1 | AA14: 1 | AB14: 1 | AC14: 1 | AD14: 1 | AE14: 1 | AF14: 1 | AG14: 1 | AH14: 1 | AI14: 1 | AJ14: 1 | AK14: 1 | AL14: 1 | AM14: 1 | AN14: 1 | AO14: 1 | AP14: =IF(AND(AP4>=$E$14,AP5<=$F$14),1,0) -> 1 | AQ14: 1 | AR14: 1 | AS14: 1 | AT14: 1 | AU14: 1 | AV14: 1 | AW14: 1 | AX14: 1 | AY14: 1 | AZ14: 1 | BA14: 1 | BB14: 1 | BC14: 1 | BD14: 1 | BE14: 1 | BF14: 1 | BG14: 1 | BH14: 1 | BI14: 1 | BJ14: 1 | BK14: 1 | BL14: 1 | BM14: 1 | BN14: 1 | BO14: 1 | BP14: 1 | BQ14: 1 | BR14: 1 | BS14: 1 | BT14: 1 | BU14: 1 | BV14: =IF(AND(BV4>=$E$14,BV5<=$F$14),1,0) -> 1 | BW14: 1 | BX14: 1 | BY14: 1 | BZ14: 1 | CA14: 1 | CB14: 1 | CC14: 1 | CD14: 1 | CE14: 1 | CF14: 1 | CG14: 1 | CH14: 1 | CI14: 1 | CJ14: 1 | CK14: 1 | CL14: 1 | CM14: 1 | CN14: 1 | CO14: 1 | CP14: 1 | CQ14: 1 | CR14: 1 | CS14: 1 | CT14: 1 | CU14: 1 | CV14: 1 | CW14: 1 | CX14: 1 | CY14: 1 | CZ14: 1 | DA14: 1 | DB14: =IF(AND(DB4>=$E$14,DB5<=$F$14),1,0) -> 1 | DC14: 1 | DD14: 1 | DE14: 1 | DF14: 1 | DG14: 1 | DH14: 1 | DI14: 1 | DJ14: 1 | DK14: 0 | DL14: 0 | DM14: 0 | DN14: 0 | DO14: 0 | DP14: 0 | DQ14: 0 | DR14: 0 | DS14: 0 | DT14: 0 | DU14: 0 | DV14: 0 | DW14: 0 | DX14: 0 | DY14: 0 | DZ14: 0 | EA14: 0 | EB14: 0 | EC14: 0 | ED14: 0 | EE14: 0 | EF14: 0 | EG14: 0 | EH14: 0
C15: Debt repayment flag | G15: =SUM(J15:EH15) -> 32 | J15: =IF(OR(MONTH(J5)=ModelingExercise!$F90,OR(MONTH(J5)=ModelingExercise!$F91,OR(MONTH(J5)=ModelingExercise!$F92,OR(MONTH(J5)=ModelingExercise!$F93)))),1,0)*J14 -> 0 | K15: =IF(OR(MONTH(K5)=ModelingExercise!$F90,OR(MONTH(K5)=ModelingExercise!$F91,OR(MONTH(K5)=ModelingExercise!$F92,OR(MONTH(K5)=ModelingExercise!$F93)))),1,0)*K14 -> 0 | L15: =IF(OR(MONTH(L5)=ModelingExercise!$F90,OR(MONTH(L5)=ModelingExercise!$F91,OR(MONTH(L5)=ModelingExercise!$F92,OR(MONTH(L5)=ModelingExercise!$F93)))),1,0)*L14 -> 0 | M15: =IF(OR(MONTH(M5)=ModelingExercise!$F90,OR(MONTH(M5)=ModelingExercise!$F91,OR(MONTH(M5)=ModelingExercise!$F92,OR(MONTH(M5)=ModelingExercise!$F93)))),1,0)*M14 -> 0 | N15: =IF(OR(MONTH(N5)=ModelingExercise!$F90,OR(MONTH(N5)=ModelingExercise!$F91,OR(MONTH(N5)=ModelingExercise!$F92,OR(MONTH(N5)=ModelingExercise!$F93)))),1,0)*N14 -> 0 | O15: =IF(OR(MONTH(O5)=ModelingExercise!$F90,OR(MONTH(O5)=ModelingExercise!$F91,OR(MONTH(O5)=ModelingExercise!$F92,OR(MONTH(O5)=ModelingExercise!$F93)))),1,0)*O14 -> 0 | P15: =IF(OR(MONTH(P5)=ModelingExercise!$F90,OR(MONTH(P5)=ModelingExercise!$F91,OR(MONTH(P5)=ModelingExercise!$F92,OR(MONTH(P5)=ModelingExercise!$F93)))),1,0)*P14 -> 0 | Q15: =IF(OR(MONTH(Q5)=ModelingExercise!$F90,OR(MONTH(Q5)=ModelingExercise!$F91,OR(MONTH(Q5)=ModelingExercise!$F92,OR(MONTH(Q5)=ModelingExercise!$F93)))),1,0)*Q14 -> 0 | R15: =IF(OR(MONTH(R5)=ModelingExercise!$F90,OR(MONTH(R5)=ModelingExercise!$F91,OR(MONTH(R5)=ModelingExercise!$F92,OR(MONTH(R5)=ModelingExercise!$F93)))),1,0)*R14 -> 0 | S15: =IF(OR(MONTH(S5)=ModelingExercise!$F90,OR(MONTH(S5)=ModelingExercise!$F91,OR(MONTH(S5)=ModelingExercise!$F92,OR(MONTH(S5)=ModelingExercise!$F93)))),1,0)*S14 -> 1 | T15: =IF(OR(MONTH(T5)=ModelingExercise!$F90,OR(MONTH(T5)=ModelingExercise!$F91,OR(MONTH(T5)=ModelingExercise!$F92,OR(MONTH(T5)=ModelingExercise!$F93)))),1,0)*T14 -> 0 | U15: =IF(OR(MONTH(U5)=ModelingExercise!$F90,OR(MONTH(U5)=ModelingExercise!$F91,OR(MONTH(U5)=ModelingExercise!$F92,OR(MONTH(U5)=ModelingExercise!$F93)))),1,0)*U14 -> 0 | V15: =IF(OR(MONTH(V5)=ModelingExercise!$F90,OR(MONTH(V5)=ModelingExercise!$F91,OR(MONTH(V5)=ModelingExercise!$F92,OR(MONTH(V5)=ModelingExercise!$F93)))),1,0)*V14 -> 1 | W15: =IF(OR(MONTH(W5)=ModelingExercise!$F90,OR(MONTH(W5)=ModelingExercise!$F91,OR(MONTH(W5)=ModelingExercise!$F92,OR(MONTH(W5)=ModelingExercise!$F93)))),1,0)*W14 -> 0 | X15: =IF(OR(MONTH(X5)=ModelingExercise!$F90,OR(MONTH(X5)=ModelingExercise!$F91,OR(MONTH(X5)=ModelingExercise!$F92,OR(MONTH(X5)=ModelingExercise!$F93)))),1,0)*X14 -> 0 | Y15: =IF(OR(MONTH(Y5)=ModelingExercise!$F90,OR(MONTH(Y5)=ModelingExercise!$F91,OR(MONTH(Y5)=ModelingExercise!$F92,OR(MONTH(Y5)=ModelingExercise!$F93)))),1,0)*Y14 -> 1 | Z15: =IF(OR(MONTH(Z5)=ModelingExercise!$F90,OR(MONTH(Z5)=ModelingExercise!$F91,OR(MONTH(Z5)=ModelingExercise!$F92,OR(MONTH(Z5)=ModelingExercise!$F93)))),1,0)*Z14 -> 0 | AA15: =IF(OR(MONTH(AA5)=ModelingExercise!$F90,OR(MONTH(AA5)=ModelingExercise!$F91,OR(MONTH(AA5)=ModelingExercise!$F92,OR(MONTH(AA5)=ModelingExercise!$F93)))),1,0)*AA14 -> 0 | AB15: =IF(OR(MONTH(AB5)=ModelingExercise!$F90,OR(MONTH(AB5)=ModelingExercise!$F91,OR(MONTH(AB5)=ModelingExercise!$F92,OR(MONTH(AB5)=ModelingExercise!$F93)))),1,0)*AB14 -> 1 | AC15: =IF(OR(MONTH(AC5)=ModelingExercise!$F90,OR(MONTH(AC5)=ModelingExercise!$F91,OR(MONTH(AC5)=ModelingExercise!$F92,OR(MONTH(AC5)=ModelingExercise!$F93)))),1,0)*AC14 -> 0 | AD15: =IF(OR(MONTH(AD5)=ModelingExercise!$F90,OR(MONTH(AD5)=ModelingExercise!$F91,OR(MONTH(AD5)=ModelingExercise!$F92,OR(MONTH(AD5)=ModelingExercise!$F93)))),1,0)*AD14 -> 0 | AE15: =IF(OR(MONTH(AE5)=ModelingExercise!$F90,OR(MONTH(AE5)=ModelingExercise!$F91,OR(MONTH(AE5)=ModelingExercise!$F92,OR(MONTH(AE5)=ModelingExercise!$F93)))),1,0)*AE14 -> 1 | AF15: =IF(OR(MONTH(AF5)=ModelingExercise!$F90,OR(MONTH(AF5)=ModelingExercise!$F91,OR(MONTH(AF5)=ModelingExercise!$F92,OR(MONTH(AF5)=ModelingExercise!$F93)))),1,0)*AF14 -> 0 | AG15: =IF(OR(MONTH(AG5)=ModelingExercise!$F90,OR(MONTH(AG5)=ModelingExercise!$F91,OR(MONTH(AG5)=ModelingExercise!$F92,OR(MONTH(AG5)=ModelingExercise!$F93)))),1,0)*AG14 -> 0 | AH15: =IF(OR(MONTH(AH5)=ModelingExercise!$F90,OR(MONTH(AH5)=ModelingExercise!$F91,OR(MONTH(AH5)=ModelingExercise!$F92,OR(MONTH(AH5)=ModelingExercise!$F93)))),1,0)*AH14 -> 1 | AI15: =IF(OR(MONTH(AI5)=ModelingExercise!$F90,OR(MONTH(AI5)=ModelingExercise!$F91,OR(MONTH(AI5)=ModelingExercise!$F92,OR(MONTH(AI5)=ModelingExercise!$F93)))),1,0)*AI14 -> 0 | AJ15: =IF(OR(MONTH(AJ5)=ModelingExercise!$F90,OR(MONTH(AJ5)=ModelingExercise!$F91,OR(MONTH(AJ5)=ModelingExercise!$F92,OR(MONTH(AJ5)=ModelingExercise!$F93)))),1,0)*AJ14 -> 0 | AK15: =IF(OR(MONTH(AK5)=ModelingExercise!$F90,OR(MONTH(AK5)=ModelingExercise!$F91,OR(MONTH(AK5)=ModelingExercise!$F92,OR(MONTH(AK5)=ModelingExercise!$F93)))),1,0)*AK14 -> 1 | AL15: =IF(OR(MONTH(AL5)=ModelingExercise!$F90,OR(MONTH(AL5)=ModelingExercise!$F91,OR(MONTH(AL5)=ModelingExercise!$F92,OR(MONTH(AL5)=ModelingExercise!$F93)))),1,0)*AL14 -> 0 | AM15: =IF(OR(MONTH(AM5)=ModelingExercise!$F90,OR(MONTH(AM5)=ModelingExercise!$F91,OR(MONTH(AM5)=ModelingExercise!$F92,OR(MONTH(AM5)=ModelingExercise!$F93)))),1,0)*AM14 -> 0 | AN15: =IF(OR(MONTH(AN5)=ModelingExercise!$F90,OR(MONTH(AN5)=ModelingExercise!$F91,OR(MONTH(AN5)=ModelingExercise!$F92,OR(MONTH(AN5)=ModelingExercise!$F93)))),1,0)*AN14 -> 1 | AO15: =IF(OR(MONTH(AO5)=ModelingExercise!$F90,OR(MONTH(AO5)=ModelingExercise!$F91,OR(MONTH(AO5)=ModelingExercise!$F92,OR(MONTH(AO5)=ModelingExercise!$F93)))),1,0)*AO14 -> 0 | AP15: =IF(OR(MONTH(AP5)=ModelingExercise!$F90,OR(MONTH(AP5)=ModelingExercise!$F91,OR(MONTH(AP5)=ModelingExercise!$F92,OR(MONTH(AP5)=ModelingExercise!$F93)))),1,0)*AP14 -> 0 | AQ15: =IF(OR(MONTH(AQ5)=ModelingExercise!$F90,OR(MONTH(AQ5)=ModelingExercise!$F91,OR(MONTH(AQ5)=ModelingExercise!$F92,OR(MONTH(AQ5)=ModelingExercise!$F93)))),1,0)*AQ14 -> 1 | AR15: =IF(OR(MONTH(AR5)=ModelingExercise!$F90,OR(MONTH(AR5)=ModelingExercise!$F91,OR(MONTH(AR5)=ModelingExercise!$F92,OR(MONTH(AR5)=ModelingExercise!$F93)))),1,0)*AR14 -> 0 | AS15: =IF(OR(MONTH(AS5)=ModelingExercise!$F90,OR(MONTH(AS5)=ModelingExercise!$F91,OR(MONTH(AS5)=ModelingExercise!$F92,OR(MONTH(AS5)=ModelingExercise!$F93)))),1,0)*AS14 -> 0 | AT15: =IF(OR(MONTH(AT5)=ModelingExercise!$F90,OR(MONTH(AT5)=ModelingExercise!$F91,OR(MONTH(AT5)=ModelingExercise!$F92,OR(MONTH(AT5)=ModelingExercise!$F93)))),1,0)*AT14 -> 1 | AU15: =IF(OR(MONTH(AU5)=ModelingExercise!$F90,OR(MONTH(AU5)=ModelingExercise!$F91,OR(MONTH(AU5)=ModelingExercise!$F92,OR(MONTH(AU5)=ModelingExercise!$F93)))),1,0)*AU14 -> 0 | AV15: =IF(OR(MONTH(AV5)=ModelingExercise!$F90,OR(MONTH(AV5)=ModelingExercise!$F91,OR(MONTH(AV5)=ModelingExercise!$F92,OR(MONTH(AV5)=ModelingExercise!$F93)))),1,0)*AV14 -> 0 | AW15: =IF(OR(MONTH(AW5)=ModelingExercise!$F90,OR(MONTH(AW5)=ModelingExercise!$F91,OR(MONTH(AW5)=ModelingExercise!$F92,OR(MONTH(AW5)=ModelingExercise!$F93)))),1,0)*AW14 -> 1 | AX15: =IF(OR(MONTH(AX5)=ModelingExercise!$F90,OR(MONTH(AX5)=ModelingExercise!$F91,OR(MONTH(AX5)=ModelingExercise!$F92,OR(MONTH(AX5)=ModelingExercise!$F93)))),1,0)*AX14 -> 0 | AY15: =IF(OR(MONTH(AY5)=ModelingExercise!$F90,OR(MONTH(AY5)=ModelingExercise!$F91,OR(MONTH(AY5)=ModelingExercise!$F92,OR(MONTH(AY5)=ModelingExercise!$F93)))),1,0)*AY14 -> 0 | AZ15: =IF(OR(MONTH(AZ5)=ModelingExercise!$F90,OR(MONTH(AZ5)=ModelingExercise!$F91,OR(MONTH(AZ5)=ModelingExercise!$F92,OR(MONTH(AZ5)=ModelingExercise!$F93)))),1,0)*AZ14 -> 1 | BA15: =IF(OR(MONTH(BA5)=ModelingExercise!$F90,OR(MONTH(BA5)=ModelingExercise!$F91,OR(MONTH(BA5)=ModelingExercise!$F92,OR(MONTH(BA5)=ModelingExercise!$F93)))),1,0)*BA14 -> 0 | BB15: =IF(OR(MONTH(BB5)=ModelingExercise!$F90,OR(MONTH(BB5)=ModelingExercise!$F91,OR(MONTH(BB5)=ModelingExercise!$F92,OR(MONTH(BB5)=ModelingExercise!$F93)))),1,0)*BB14 -> 0 | BC15: =IF(OR(MONTH(BC5)=ModelingExercise!$F90,OR(MONTH(BC5)=ModelingExercise!$F91,OR(MONTH(BC5)=ModelingExercise!$F92,OR(MONTH(BC5)=ModelingExercise!$F93)))),1,0)*BC14 -> 1 | BD15: =IF(OR(MONTH(BD5)=ModelingExercise!$F90,OR(MONTH(BD5)=ModelingExercise!$F91,OR(MONTH(BD5)=ModelingExercise!$F92,OR(MONTH(BD5)=ModelingExercise!$F93)))),1,0)*BD14 -> 0 | BE15: =IF(OR(MONTH(BE5)=ModelingExercise!$F90,OR(MONTH(BE5)=ModelingExercise!$F91,OR(MONTH(BE5)=ModelingExercise!$F92,OR(MONTH(BE5)=ModelingExercise!$F93)))),1,0)*BE14 -> 0 | BF15: =IF(OR(MONTH(BF5)=ModelingExercise!$F90,OR(MONTH(BF5)=ModelingExercise!$F91,OR(MONTH(BF5)=ModelingExercise!$F92,OR(MONTH(BF5)=ModelingExercise!$F93)))),1,0)*BF14 -> 1 | BG15: =IF(OR(MONTH(BG5)=ModelingExercise!$F90,OR(MONTH(BG5)=ModelingExercise!$F91,OR(MONTH(BG5)=ModelingExercise!$F92,OR(MONTH(BG5)=ModelingExercise!$F93)))),1,0)*BG14 -> 0 | BH15: =IF(OR(MONTH(BH5)=ModelingExercise!$F90,OR(MONTH(BH5)=ModelingExercise!$F91,OR(MONTH(BH5)=ModelingExercise!$F92,OR(MONTH(BH5)=ModelingExercise!$F93)))),1,0)*BH14 -> 0 | BI15: =IF(OR(MONTH(BI5)=ModelingExercise!$F90,OR(MONTH(BI5)=ModelingExercise!$F91,OR(MONTH(BI5)=ModelingExercise!$F92,OR(MONTH(BI5)=ModelingExercise!$F93)))),1,0)*BI14 -> 1 | BJ15: =IF(OR(MONTH(BJ5)=ModelingExercise!$F90,OR(MONTH(BJ5)=ModelingExercise!$F91,OR(MONTH(BJ5)=ModelingExercise!$F92,OR(MONTH(BJ5)=ModelingExercise!$F93)))),1,0)*BJ14 -> 0 | BK15: =IF(OR(MONTH(BK5)=ModelingExercise!$F90,OR(MONTH(BK5)=ModelingExercise!$F91,OR(MONTH(BK5)=ModelingExercise!$F92,OR(MONTH(BK5)=ModelingExercise!$F93)))),1,0)*BK14 -> 0 | BL15: =IF(OR(MONTH(BL5)=ModelingExercise!$F90,OR(MONTH(BL5)=ModelingExercise!$F91,OR(MONTH(BL5)=ModelingExercise!$F92,OR(MONTH(BL5)=ModelingExercise!$F93)))),1,0)*BL14 -> 1 | BM15: =IF(OR(MONTH(BM5)=ModelingExercise!$F90,OR(MONTH(BM5)=ModelingExercise!$F91,OR(MONTH(BM5)=ModelingExercise!$F92,OR(MONTH(BM5)=ModelingExercise!$F93)))),1,0)*BM14 -> 0 | BN15: =IF(OR(MONTH(BN5)=ModelingExercise!$F90,OR(MONTH(BN5)=ModelingExercise!$F91,OR(MONTH(BN5)=ModelingExercise!$F92,OR(MONTH(BN5)=ModelingExercise!$F93)))),1,0)*BN14 -> 0 | BO15: =IF(OR(MONTH(BO5)=ModelingExercise!$F90,OR(MONTH(BO5)=ModelingExercise!$F91,OR(MONTH(BO5)=ModelingExercise!$F92,OR(MONTH(BO5)=ModelingExercise!$F93)))),1,0)*BO14 -> 1 | BP15: =IF(OR(MONTH(BP5)=ModelingExercise!$F90,OR(MONTH(BP5)=ModelingExercise!$F91,OR(MONTH(BP5)=ModelingExercise!$F92,OR(MONTH(BP5)=ModelingExercise!$F93)))),1,0)*BP14 -> 0 | BQ15: =IF(OR(MONTH(BQ5)=ModelingExercise!$F90,OR(MONTH(BQ5)=ModelingExercise!$F91,OR(MONTH(BQ5)=ModelingExercise!$F92,OR(MONTH(BQ5)=ModelingExercise!$F93)))),1,0)*BQ14 -> 0 | BR15: =IF(OR(MONTH(BR5)=ModelingExercise!$F90,OR(MONTH(BR5)=ModelingExercise!$F91,OR(MONTH(BR5)=ModelingExercise!$F92,OR(MONTH(BR5)=ModelingExercise!$F93)))),1,0)*BR14 -> 1 | BS15: =IF(OR(MONTH(BS5)=ModelingExercise!$F90,OR(MONTH(BS5)=ModelingExercise!$F91,OR(MONTH(BS5)=ModelingExercise!$F92,OR(MONTH(BS5)=ModelingExercise!$F93)))),1,0)*BS14 -> 0 | BT15: =IF(OR(MONTH(BT5)=ModelingExercise!$F90,OR(MONTH(BT5)=ModelingExercise!$F91,OR(MONTH(BT5)=ModelingExercise!$F92,OR(MONTH(BT5)=ModelingExercise!$F93)))),1,0)*BT14 -> 0 | BU15: =IF(OR(MONTH(BU5)=ModelingExercise!$F90,OR(MONTH(BU5)=ModelingExercise!$F91,OR(MONTH(BU5)=ModelingExercise!$F92,OR(MONTH(BU5)=ModelingExercise!$F93)))),1,0)*BU14 -> 1 | BV15: =IF(OR(MONTH(BV5)=ModelingExercise!$F90,OR(MONTH(BV5)=ModelingExercise!$F91,OR(MONTH(BV5)=ModelingExercise!$F92,OR(MONTH(BV5)=ModelingExercise!$F93)))),1,0)*BV14 -> 0 | BW15: =IF(OR(MONTH(BW5)=ModelingExercise!$F90,OR(MONTH(BW5)=ModelingExercise!$F91,OR(MONTH(BW5)=ModelingExercise!$F92,OR(MONTH(BW5)=ModelingExercise!$F93)))),1,0)*BW14 -> 0 | BX15: =IF(OR(MONTH(BX5)=ModelingExercise!$F90,OR(MONTH(BX5)=ModelingExercise!$F91,OR(MONTH(BX5)=ModelingExercise!$F92,OR(MONTH(BX5)=ModelingExercise!$F93)))),1,0)*BX14 -> 1 | BY15: =IF(OR(MONTH(BY5)=ModelingExercise!$F90,OR(MONTH(BY5)=ModelingExercise!$F91,OR(MONTH(BY5)=ModelingExercise!$F92,OR(MONTH(BY5)=ModelingExercise!$F93)))),1,0)*BY14 -> 0 | BZ15: =IF(OR(MONTH(BZ5)=ModelingExercise!$F90,OR(MONTH(BZ5)=ModelingExercise!$F91,OR(MONTH(BZ5)=ModelingExercise!$F92,OR(MONTH(BZ5)=ModelingExercise!$F93)))),1,0)*BZ14 -> 0 | CA15: =IF(OR(MONTH(CA5)=ModelingExercise!$F90,OR(MONTH(CA5)=ModelingExercise!$F91,OR(MONTH(CA5)=ModelingExercise!$F92,OR(MONTH(CA5)=ModelingExercise!$F93)))),1,0)*CA14 -> 1 | CB15: =IF(OR(MONTH(CB5)=ModelingExercise!$F90,OR(MONTH(CB5)=ModelingExercise!$F91,OR(MONTH(CB5)=ModelingExercise!$F92,OR(MONTH(CB5)=ModelingExercise!$F93)))),1,0)*CB14 -> 0 | CC15: =IF(OR(MONTH(CC5)=ModelingExercise!$F90,OR(MONTH(CC5)=ModelingExercise!$F91,OR(MONTH(CC5)=ModelingExercise!$F92,OR(MONTH(CC5)=ModelingExercise!$F93)))),1,0)*CC14 -> 0 | CD15: =IF(OR(MONTH(CD5)=ModelingExercise!$F90,OR(MONTH(CD5)=ModelingExercise!$F91,OR(MONTH(CD5)=ModelingExercise!$F92,OR(MONTH(CD5)=ModelingExercise!$F93)))),1,0)*CD14 -> 1 | CE15: =IF(OR(MONTH(CE5)=ModelingExercise!$F90,OR(MONTH(CE5)=ModelingExercise!$F91,OR(MONTH(CE5)=ModelingExercise!$F92,OR(MONTH(CE5)=ModelingExercise!$F93)))),1,0)*CE14 -> 0 | CF15: =IF(OR(MONTH(CF5)=ModelingExercise!$F90,OR(MONTH(CF5)=ModelingExercise!$F91,OR(MONTH(CF5)=ModelingExercise!$F92,OR(MONTH(CF5)=ModelingExercise!$F93)))),1,0)*CF14 -> 0 | CG15: =IF(OR(MONTH(CG5)=ModelingExercise!$F90,OR(MONTH(CG5)=ModelingExercise!$F91,OR(MONTH(CG5)=ModelingExercise!$F92,OR(MONTH(CG5)=ModelingExercise!$F93)))),1,0)*CG14 -> 1 | CH15: =IF(OR(MONTH(CH5)=ModelingExercise!$F90,OR(MONTH(CH5)=ModelingExercise!$F91,OR(MONTH(CH5)=ModelingExercise!$F92,OR(MONTH(CH5)=ModelingExercise!$F93)))),1,0)*CH14 -> 0 | CI15: =IF(OR(MONTH(CI5)=ModelingExercise!$F90,OR(MONTH(CI5)=ModelingExercise!$F91,OR(MONTH(CI5)=ModelingExercise!$F92,OR(MONTH(CI5)=ModelingExercise!$F93)))),1,0)*CI14 -> 0 | CJ15: =IF(OR(MONTH(CJ5)=ModelingExercise!$F90,OR(MONTH(CJ5)=ModelingExercise!$F91,OR(MONTH(CJ5)=ModelingExercise!$F92,OR(MONTH(CJ5)=ModelingExercise!$F93)))),1,0)*CJ14 -> 1 | CK15: =IF(OR(MONTH(CK5)=ModelingExercise!$F90,OR(MONTH(CK5)=ModelingExercise!$F91,OR(MONTH(CK5)=ModelingExercise!$F92,OR(MONTH(CK5)=ModelingExercise!$F93)))),1,0)*CK14 -> 0 | CL15: =IF(OR(MONTH(CL5)=ModelingExercise!$F90,OR(MONTH(CL5)=ModelingExercise!$F91,OR(MONTH(CL5)=ModelingExercise!$F92,OR(MONTH(CL5)=ModelingExercise!$F93)))),1,0)*CL14 -> 0 | CM15: =IF(OR(MONTH(CM5)=ModelingExercise!$F90,OR(MONTH(CM5)=ModelingExercise!$F91,OR(MONTH(CM5)=ModelingExercise!$F92,OR(MONTH(CM5)=ModelingExercise!$F93)))),1,0)*CM14 -> 1 | CN15: =IF(OR(MONTH(CN5)=ModelingExercise!$F90,OR(MONTH(CN5)=ModelingExercise!$F91,OR(MONTH(CN5)=ModelingExercise!$F92,OR(MONTH(CN5)=ModelingExercise!$F93)))),1,0)*CN14 -> 0 | CO15: =IF(OR(MONTH(CO5)=ModelingExercise!$F90,OR(MONTH(CO5)=ModelingExercise!$F91,OR(MONTH(CO5)=ModelingExercise!$F92,OR(MONTH(CO5)=ModelingExercise!$F93)))),1,0)*CO14 -> 0 | CP15: =IF(OR(MONTH(CP5)=ModelingExercise!$F90,OR(MONTH(CP5)=ModelingExercise!$F91,OR(MONTH(CP5)=ModelingExercise!$F92,OR(MONTH(CP5)=ModelingExercise!$F93)))),1,0)*CP14 -> 1 | CQ15: =IF(OR(MONTH(CQ5)=ModelingExercise!$F90,OR(MONTH(CQ5)=ModelingExercise!$F91,OR(MONTH(CQ5)=ModelingExercise!$F92,OR(MONTH(CQ5)=ModelingExercise!$F93)))),1,0)*CQ14 -> 0 | CR15: =IF(OR(MONTH(CR5)=ModelingExercise!$F90,OR(MONTH(CR5)=ModelingExercise!$F91,OR(MONTH(CR5)=ModelingExercise!$F92,OR(MONTH(CR5)=ModelingExercise!$F93)))),1,0)*CR14 -> 0 | CS15: =IF(OR(MONTH(CS5)=ModelingExercise!$F90,OR(MONTH(CS5)=ModelingExercise!$F91,OR(MONTH(CS5)=ModelingExercise!$F92,OR(MONTH(CS5)=ModelingExercise!$F93)))),1,0)*CS14 -> 1 | CT15: =IF(OR(MONTH(CT5)=ModelingExercise!$F90,OR(MONTH(CT5)=ModelingExercise!$F91,OR(MONTH(CT5)=ModelingExercise!$F92,OR(MONTH(CT5)=ModelingExercise!$F93)))),1,0)*CT14 -> 0 | CU15: =IF(OR(MONTH(CU5)=ModelingExercise!$F90,OR(MONTH(CU5)=ModelingExercise!$F91,OR(MONTH(CU5)=ModelingExercise!$F92,OR(MONTH(CU5)=ModelingExercise!$F93)))),1,0)*CU14 -> 0 | CV15: =IF(OR(MONTH(CV5)=ModelingExercise!$F90,OR(MONTH(CV5)=ModelingExercise!$F91,OR(MONTH(CV5)=ModelingExercise!$F92,OR(MONTH(CV5)=ModelingExercise!$F93)))),1,0)*CV14 -> 1 | CW15: =IF(OR(MONTH(CW5)=ModelingExercise!$F90,OR(MONTH(CW5)=ModelingExercise!$F91,OR(MONTH(CW5)=ModelingExercise!$F92,OR(MONTH(CW5)=ModelingExercise!$F93)))),1,0)*CW14 -> 0 | CX15: =IF(OR(MONTH(CX5)=ModelingExercise!$F90,OR(MONTH(CX5)=ModelingExercise!$F91,OR(MONTH(CX5)=ModelingExercise!$F92,OR(MONTH(CX5)=ModelingExercise!$F93)))),1,0)*CX14 -> 0 | CY15: =IF(OR(MONTH(CY5)=ModelingExercise!$F90,OR(MONTH(CY5)=ModelingExercise!$F91,OR(MONTH(CY5)=ModelingExercise!$F92,OR(MONTH(CY5)=ModelingExercise!$F93)))),1,0)*CY14 -> 1 | CZ15: =IF(OR(MONTH(CZ5)=ModelingExercise!$F90,OR(MONTH(CZ5)=ModelingExercise!$F91,OR(MONTH(CZ5)=ModelingExercise!$F92,OR(MONTH(CZ5)=ModelingExercise!$F93)))),1,0)*CZ14 -> 0 | DA15: =IF(OR(MONTH(DA5)=ModelingExercise!$F90,OR(MONTH(DA5)=ModelingExercise!$F91,OR(MONTH(DA5)=ModelingExercise!$F92,OR(MONTH(DA5)=ModelingExercise!$F93)))),1,0)*DA14 -> 0 | DB15: =IF(OR(MONTH(DB5)=ModelingExercise!$F90,OR(MONTH(DB5)=ModelingExercise!$F91,OR(MONTH(DB5)=ModelingExercise!$F92,OR(MONTH(DB5)=ModelingExercise!$F93)))),1,0)*DB14 -> 1 | DC15: =IF(OR(MONTH(DC5)=ModelingExercise!$F90,OR(MONTH(DC5)=ModelingExercise!$F91,OR(MONTH(DC5)=ModelingExercise!$F92,OR(MONTH(DC5)=ModelingExercise!$F93)))),1,0)*DC14 -> 0 | DD15: =IF(OR(MONTH(DD5)=ModelingExercise!$F90,OR(MONTH(DD5)=ModelingExercise!$F91,OR(MONTH(DD5)=ModelingExercise!$F92,OR(MONTH(DD5)=ModelingExercise!$F93)))),1,0)*DD14 -> 0 | DE15: =IF(OR(MONTH(DE5)=ModelingExercise!$F90,OR(MONTH(DE5)=ModelingExercise!$F91,OR(MONTH(DE5)=ModelingExercise!$F92,OR(MONTH(DE5)=ModelingExercise!$F93)))),1,0)*DE14 -> 1 | DF15: =IF(OR(MONTH(DF5)=ModelingExercise!$F90,OR(MONTH(DF5)=ModelingExercise!$F91,OR(MONTH(DF5)=ModelingExercise!$F92,OR(MONTH(DF5)=ModelingExercise!$F93)))),1,0)*DF14 -> 0 | DG15: =IF(OR(MONTH(DG5)=ModelingExercise!$F90,OR(MONTH(DG5)=ModelingExercise!$F91,OR(MONTH(DG5)=ModelingExercise!$F92,OR(MONTH(DG5)=ModelingExercise!$F93)))),1,0)*DG14 -> 0 | DH15: =IF(OR(MONTH(DH5)=ModelingExercise!$F90,OR(MONTH(DH5)=ModelingExercise!$F91,OR(MONTH(DH5)=ModelingExercise!$F92,OR(MONTH(DH5)=ModelingExercise!$F93)))),1,0)*DH14 -> 1 | DI15: =IF(OR(MONTH(DI5)=ModelingExercise!$F90,OR(MONTH(DI5)=ModelingExercise!$F91,OR(MONTH(DI5)=ModelingExercise!$F92,OR(MONTH(DI5)=ModelingExercise!$F93)))),1,0)*DI14 -> 0 | DJ15: =IF(OR(MONTH(DJ5)=ModelingExercise!$F90,OR(MONTH(DJ5)=ModelingExercise!$F91,OR(MONTH(DJ5)=ModelingExercise!$F92,OR(MONTH(DJ5)=ModelingExercise!$F93)))),1,0)*DJ14 -> 0 | DK15: =IF(OR(MONTH(DK5)=ModelingExercise!$F90,OR(MONTH(DK5)=ModelingExercise!$F91,OR(MONTH(DK5)=ModelingExercise!$F92,OR(MONTH(DK5)=ModelingExercise!$F93)))),1,0)*DK14 -> 0 | DL15: =IF(OR(MONTH(DL5)=ModelingExercise!$F90,OR(MONTH(DL5)=ModelingExercise!$F91,OR(MONTH(DL5)=ModelingExercise!$F92,OR(MONTH(DL5)=ModelingExercise!$F93)))),1,0)*DL14 -> 0 | DM15: =IF(OR(MONTH(DM5)=ModelingExercise!$F90,OR(MONTH(DM5)=ModelingExercise!$F91,OR(MONTH(DM5)=ModelingExercise!$F92,OR(MONTH(DM5)=ModelingExercise!$F93)))),1,0)*DM14 -> 0 | DN15: =IF(OR(MONTH(DN5)=ModelingExercise!$F90,OR(MONTH(DN5)=ModelingExercise!$F91,OR(MONTH(DN5)=ModelingExercise!$F92,OR(MONTH(DN5)=ModelingExercise!$F93)))),1,0)*DN14 -> 0 | DO15: =IF(OR(MONTH(DO5)=ModelingExercise!$F90,OR(MONTH(DO5)=ModelingExercise!$F91,OR(MONTH(DO5)=ModelingExercise!$F92,OR(MONTH(DO5)=ModelingExercise!$F93)))),1,0)*DO14 -> 0 | DP15: =IF(OR(MONTH(DP5)=ModelingExercise!$F90,OR(MONTH(DP5)=ModelingExercise!$F91,OR(MONTH(DP5)=ModelingExercise!$F92,OR(MONTH(DP5)=ModelingExercise!$F93)))),1,0)*DP14 -> 0 | DQ15: =IF(OR(MONTH(DQ5)=ModelingExercise!$F90,OR(MONTH(DQ5)=ModelingExercise!$F91,OR(MONTH(DQ5)=ModelingExercise!$F92,OR(MONTH(DQ5)=ModelingExercise!$F93)))),1,0)*DQ14 -> 0 | DR15: =IF(OR(MONTH(DR5)=ModelingExercise!$F90,OR(MONTH(DR5)=ModelingExercise!$F91,OR(MONTH(DR5)=ModelingExercise!$F92,OR(MONTH(DR5)=ModelingExercise!$F93)))),1,0)*DR14 -> 0 | DS15: =IF(OR(MONTH(DS5)=ModelingExercise!$F90,OR(MONTH(DS5)=ModelingExercise!$F91,OR(MONTH(DS5)=ModelingExercise!$F92,OR(MONTH(DS5)=ModelingExercise!$F93)))),1,0)*DS14 -> 0 | DT15: =IF(OR(MONTH(DT5)=ModelingExercise!$F90,OR(MONTH(DT5)=ModelingExercise!$F91,OR(MONTH(DT5)=ModelingExercise!$F92,OR(MONTH(DT5)=ModelingExercise!$F93)))),1,0)*DT14 -> 0 | DU15: =IF(OR(MONTH(DU5)=ModelingExercise!$F90,OR(MONTH(DU5)=ModelingExercise!$F91,OR(MONTH(DU5)=ModelingExercise!$F92,OR(MONTH(DU5)=ModelingExercise!$F93)))),1,0)*DU14 -> 0 | DV15: =IF(OR(MONTH(DV5)=ModelingExercise!$F90,OR(MONTH(DV5)=ModelingExercise!$F91,OR(MONTH(DV5)=ModelingExercise!$F92,OR(MONTH(DV5)=ModelingExercise!$F93)))),1,0)*DV14 -> 0 | DW15: =IF(OR(MONTH(DW5)=ModelingExercise!$F90,OR(MONTH(DW5)=ModelingExercise!$F91,OR(MONTH(DW5)=ModelingExercise!$F92,OR(MONTH(DW5)=ModelingExercise!$F93)))),1,0)*DW14 -> 0 | DX15: =IF(OR(MONTH(DX5)=ModelingExercise!$F90,OR(MONTH(DX5)=ModelingExercise!$F91,OR(MONTH(DX5)=ModelingExercise!$F92,OR(MONTH(DX5)=ModelingExercise!$F93)))),1,0)*DX14 -> 0 | DY15: =IF(OR(MONTH(DY5)=ModelingExercise!$F90,OR(MONTH(DY5)=ModelingExercise!$F91,OR(MONTH(DY5)=ModelingExercise!$F92,OR(MONTH(DY5)=ModelingExercise!$F93)))),1,0)*DY14 -> 0 | DZ15: =IF(OR(MONTH(DZ5)=ModelingExercise!$F90,OR(MONTH(DZ5)=ModelingExercise!$F91,OR(MONTH(DZ5)=ModelingExercise!$F92,OR(MONTH(DZ5)=ModelingExercise!$F93)))),1,0)*DZ14 -> 0 | EA15: =IF(OR(MONTH(EA5)=ModelingExercise!$F90,OR(MONTH(EA5)=ModelingExercise!$F91,OR(MONTH(EA5)=ModelingExercise!$F92,OR(MONTH(EA5)=ModelingExercise!$F93)))),1,0)*EA14 -> 0 | EB15: =IF(OR(MONTH(EB5)=ModelingExercise!$F90,OR(MONTH(EB5)=ModelingExercise!$F91,OR(MONTH(EB5)=ModelingExercise!$F92,OR(MONTH(EB5)=ModelingExercise!$F93)))),1,0)*EB14 -> 0 | EC15: =IF(OR(MONTH(EC5)=ModelingExercise!$F90,OR(MONTH(EC5)=ModelingExercise!$F91,OR(MONTH(EC5)=ModelingExercise!$F92,OR(MONTH(EC5)=ModelingExercise!$F93)))),1,0)*EC14 -> 0 | ED15: =IF(OR(MONTH(ED5)=ModelingExercise!$F90,OR(MONTH(ED5)=ModelingExercise!$F91,OR(MONTH(ED5)=ModelingExercise!$F92,OR(MONTH(ED5)=ModelingExercise!$F93)))),1,0)*ED14 -> 0 | EE15: =IF(OR(MONTH(EE5)=ModelingExercise!$F90,OR(MONTH(EE5)=ModelingExercise!$F91,OR(MONTH(EE5)=ModelingExercise!$F92,OR(MONTH(EE5)=ModelingExercise!$F93)))),1,0)*EE14 -> 0 | EF15: =IF(OR(MONTH(EF5)=ModelingExercise!$F90,OR(MONTH(EF5)=ModelingExercise!$F91,OR(MONTH(EF5)=ModelingExercise!$F92,OR(MONTH(EF5)=ModelingExercise!$F93)))),1,0)*EF14 -> 0 | EG15: =IF(OR(MONTH(EG5)=ModelingExercise!$F90,OR(MONTH(EG5)=ModelingExercise!$F91,OR(MONTH(EG5)=ModelingExercise!$F92,OR(MONTH(EG5)=ModelingExercise!$F93)))),1,0)*EG14 -> 0 | EH15: =IF(OR(MONTH(EH5)=ModelingExercise!$F90,OR(MONTH(EH5)=ModelingExercise!$F91,OR(MONTH(EH5)=ModelingExercise!$F92,OR(MONTH(EH5)=ModelingExercise!$F93)))),1,0)*EH14 -> 0
D17: Unit: EUR '000
C19: CALCS
C21: Revenues
C22: Gross Production per period | D22: MWh | E22: =ModelingExercise!$F$34 -> 833.3333333 | J22: =$E$22 * J9 -> 0 | K22: 0 | L22: 0 | M22: 0 | N22: 0 | O22: 0 | P22: 0 | Q22: 0 | R22: 0 | S22: 833.3333333 | T22: 833.3333333 | U22: 833.3333333 | V22: 833.3333333 | W22: 833.3333333 | X22: 833.3333333 | Y22: 833.3333333 | Z22: 833.3333333 | AA22: 833.3333333 | AB22: 833.3333333 | AC22: 833.3333333 | AD22: 833.3333333 | AE22: 833.3333333 | AF22: 833.3333333 | AG22: 833.3333333 | AH22: 833.3333333 | AI22: 833.3333333 | AJ22: 833.3333333 | AK22: 833.3333333 | AL22: 833.3333333 | AM22: 833.3333333 | AN22: 833.3333333 | AO22: 833.3333333 | AP22: =$E$22 * AP9 -> 833.3333333 | AQ22: 833.3333333 | AR22: 833.3333333 | AS22: 833.3333333 | AT22: 833.3333333 | AU22: 833.3333333 | AV22: 833.3333333 | AW22: 833.3333333 | AX22: 833.3333333 | AY22: 833.3333333 | AZ22: 833.3333333 | BA22: 833.3333333 | BB22: 833.3333333 | BC22: 833.3333333 | BD22: 833.3333333 | BE22: 833.3333333 | BF22: 833.3333333 | BG22: 833.3333333 | BH22: 833.3333333 | BI22: 833.3333333 | BJ22: 833.3333333 | BK22: 833.3333333 | BL22: 833.3333333 | BM22: 833.3333333 | BN22: 833.3333333 | BO22: 833.3333333 | BP22: 833.3333333 | BQ22: 833.3333333 | BR22: 833.3333333 | BS22: 833.3333333 | BT22: 833.3333333 | BU22: 833.3333333 | BV22: =$E$22 * BV9 -> 833.3333333 | BW22: 833.3333333 | BX22: 833.3333333 | BY22: 833.3333333 | BZ22: 833.3333333 | CA22: 833.3333333 | CB22: 833.3333333 | CC22: 833.3333333 | CD22: 833.3333333 | CE22: 833.3333333 | CF22: 833.3333333 | CG22: 833.3333333 | CH22: 833.3333333 | CI22: 833.3333333 | CJ22: 833.3333333 | CK22: 833.3333333 | CL22: 833.3333333 | CM22: 833.3333333 | CN22: 833.3333333 | CO22: 833.3333333 | CP22: 833.3333333 | CQ22: 833.3333333 | CR22: 833.3333333 | CS22: 833.3333333 | CT22: 833.3333333 | CU22: 833.3333333 | CV22: 833.3333333 | CW22: 833.3333333 | CX22: 833.3333333 | CY22: 833.3333333 | CZ22: 833.3333333 | DA22: 833.3333333 | DB22: =$E$22 * DB9 -> 833.3333333 | DC22: 833.3333333 | DD22: 833.3333333 | DE22: 833.3333333 | DF22: 833.3333333 | DG22: 833.3333333 | DH22: 833.3333333 | DI22: 833.3333333 | DJ22: 833.3333333 | DK22: 833.3333333 | DL22: 833.3333333 | DM22: 833.3333333 | DN22: 833.3333333 | DO22: 833.3333333 | DP22: 833.3333333 | DQ22: 833.3333333 | DR22: 833.3333333 | DS22: 833.3333333 | DT22: 833.3333333 | DU22: 833.3333333 | DV22: 833.3333333 | DW22: 833.3333333 | DX22: 833.3333333 | DY22: 833.3333333 | DZ22: 833.3333333 | EA22: 833.3333333 | EB22: 833.3333333 | EC22: 833.3333333 | ED22: 833.3333333 | EE22: 833.3333333 | EF22: 833.3333333 | EG22: 833.3333333 | EH22: 833.3333333
C23: Degradation rate | D23: % | E23: =ModelingExercise!F32 -> 0.00025 | J23: =$E$23*J9 -> 0 | K23: 0 | L23: 0 | M23: 0 | N23: 0 | O23: 0 | P23: 0 | Q23: 0 | R23: 0 | S23: 0.00025 | T23: 0.00025 | U23: 0.00025 | V23: 0.00025 | W23: 0.00025 | X23: 0.00025 | Y23: 0.00025 | Z23: 0.00025 | AA23: 0.00025 | AB23: 0.00025 | AC23: 0.00025 | AD23: 0.00025 | AE23: 0.00025 | AF23: 0.00025 | AG23: 0.00025 | AH23: 0.00025 | AI23: 0.00025 | AJ23: 0.00025 | AK23: 0.00025 | AL23: 0.00025 | AM23: 0.00025 | AN23: 0.00025 | AO23: 0.00025 | AP23: =$E$23*AP9 -> 0.00025 | AQ23: 0.00025 | AR23: 0.00025 | AS23: 0.00025 | AT23: 0.00025 | AU23: 0.00025 | AV23: 0.00025 | AW23: 0.00025 | AX23: 0.00025 | AY23: 0.00025 | AZ23: 0.00025 | BA23: 0.00025 | BB23: 0.00025 | BC23: 0.00025 | BD23: 0.00025 | BE23: 0.00025 | BF23: 0.00025 | BG23: 0.00025 | BH23: 0.00025 | BI23: 0.00025 | BJ23: 0.00025 | BK23: 0.00025 | BL23: 0.00025 | BM23: 0.00025 | BN23: 0.00025 | BO23: 0.00025 | BP23: 0.00025 | BQ23: 0.00025 | BR23: 0.00025 | BS23: 0.00025 | BT23: 0.00025 | BU23: 0.00025 | BV23: =$E$23*BV9 -> 0.00025 | BW23: 0.00025 | BX23: 0.00025 | BY23: 0.00025 | BZ23: 0.00025 | CA23: 0.00025 | CB23: 0.00025 | CC23: 0.00025 | CD23: 0.00025 | CE23: 0.00025 | CF23: 0.00025 | CG23: 0.00025 | CH23: 0.00025 | CI23: 0.00025 | CJ23: 0.00025 | CK23: 0.00025 | CL23: 0.00025 | CM23: 0.00025 | CN23: 0.00025 | CO23: 0.00025 | CP23: 0.00025 | CQ23: 0.00025 | CR23: 0.00025 | CS23: 0.00025 | CT23: 0.00025 | CU23: 0.00025 | CV23: 0.00025 | CW23: 0.00025 | CX23: 0.00025 | CY23: 0.00025 | CZ23: 0.00025 | DA23: 0.00025 | DB23: =$E$23*DB9 -> 0.00025 | DC23: 0.00025 | DD23: 0.00025 | DE23: 0.00025 | DF23: 0.00025 | DG23: 0.00025 | DH23: 0.00025 | DI23: 0.00025 | DJ23: 0.00025 | DK23: 0.00025 | DL23: 0.00025 | DM23: 0.00025 | DN23: 0.00025 | DO23: 0.00025 | DP23: 0.00025 | DQ23: 0.00025 | DR23: 0.00025 | DS23: 0.00025 | DT23: 0.00025 | DU23: 0.00025 | DV23: 0.00025 | DW23: 0.00025 | DX23: 0.00025 | DY23: 0.00025 | DZ23: 0.00025 | EA23: 0.00025 | EB23: 0.00025 | EC23: 0.00025 | ED23: 0.00025 | EE23: 0.00025 | EF23: 0.00025 | EG23: 0.00025 | EH23: 0.00025
C24: Degradation index | D24: index | J24: =IF(K10=1, 100%-J23,I24*(1-J23)) -> 0 | K24: 0 | L24: 0 | M24: 0 | N24: 0 | O24: 0 | P24: 0 | Q24: 0 | R24: 1 | S24: 0.99975 | T24: 0.9995000625 | U24: 0.9992501875 | V24: 0.9990003749 | W24: 0.9987506248 | X24: 0.9985009372 | Y24: 0.998251312 | Z24: 0.9980017491 | AA24: 0.9977522487 | AB24: 0.9975028106 | AC24: 0.9972534349 | AD24: 0.9970041216 | AE24: 0.9967548705 | AF24: 0.9965056818 | AG24: 0.9962565554 | AH24: 0.9960074913 | AI24: 0.9957584894 | AJ24: 0.9955095498 | AK24: 0.9952606724 | AL24: 0.9950118572 | AM24: 0.9947631042 | AN24: 0.9945144135 | AO24: 0.9942657849 | AP24: =IF(AQ10=1, 100%-AP23,AO24*(1-AP23)) -> 0.9940172184 | AQ24: 0.9937687141 | AR24: 0.9935202719 | AS24: 0.9932718919 | AT24: 0.9930235739 | AU24: 0.992775318 | AV24: 0.9925271242 | AW24: 0.9922789924 | AX24: 0.9920309226 | AY24: 0.9917829149 | AZ24: 0.9915349692 | BA24: 0.9912870854 | BB24: 0.9910392637 | BC24: 0.9907915039 | BD24: 0.990543806 | BE24: 0.99029617 | BF24: 0.990048596 | BG24: 0.9898010838 | BH24: 0.9895536336 | BI24: 0.9893062452 | BJ24: 0.9890589186 | BK24: 0.9888116539 | BL24: 0.9885644509 | BM24: 0.9883173098 | BN24: 0.9880702305 | BO24: 0.987823213 | BP24: 0.9875762571 | BQ24: 0.9873293631 | BR24: 0.9870825307 | BS24: 0.9868357601 | BT24: 0.9865890512 | BU24: 0.9863424039 | BV24: =IF(BW10=1, 100%-BV23,BU24*(1-BV23)) -> 0.9860958183 | BW24: 0.9858492944 | BX24: 0.985602832 | BY24: 0.9853564313 | BZ24: 0.9851100922 | CA24: 0.9848638147 | CB24: 0.9846175987 | CC24: 0.9843714443 | CD24: 0.9841253515 | CE24: 0.9838793201 | CF24: 0.9836333503 | CG24: 0.983387442 | CH24: 0.9831415951 | CI24: 0.9828958097 | CJ24: 0.9826500858 | CK24: 0.9824044232 | CL24: 0.9821588221 | CM24: 0.9819132824 | CN24: 0.9816678041 | CO24: 0.9814223872 | CP24: 0.9811770316 | CQ24: 0.9809317373 | CR24: 0.9806865044 | CS24: 0.9804413327 | CT24: 0.9801962224 | CU24: 0.9799511733 | CV24: 0.9797061856 | CW24: 0.979461259 | CX24: 0.9792163937 | CY24: 0.9789715896 | CZ24: 0.9787268467 | DA24: 0.978482165 | DB24: =IF(DC10=1, 100%-DB23,DA24*(1-DB23)) -> 0.9782375444 | DC24: 0.9779929851 | DD24: 0.9777484868 | DE24: 0.9775040497 | DF24: 0.9772596737 | DG24: 0.9770153588 | DH24: 0.9767711049 | DI24: 0.9765269121 | DJ24: 0.9762827804 | DK24: 0.9760387097 | DL24: 0.9757947 | DM24: 0.9755507514 | DN24: 0.9753068637 | DO24: 0.975063037 | DP24: 0.9748192712 | DQ24: 0.9745755664 | DR24: 0.9743319225 | DS24: 0.9740883395 | DT24: 0.9738448174 | DU24: 0.9736013562 | DV24: 0.9733579559 | DW24: 0.9731146164 | DX24: 0.9728713377 | DY24: 0.9726281199 | DZ24: 0.9723849629 | EA24: 0.9721418666 | EB24: 0.9718988312 | EC24: 0.9716558565 | ED24: 0.9714129425 | EE24: 0.9711700893 | EF24: 0.9709272967 | EG24: 0.9706845649 | EH24: =IF(EI10=1, 100%-EH23,EG24*(1-EH23)) -> 0.9704418938
C25: Net production | D25: MWh | G25: =SUM(J25:EH25) -> 98502.38899 | J25: =J22*J24 -> 0 | K25: =K22*K24 -> 0 | L25: 0 | M25: 0 | N25: 0 | O25: 0 | P25: 0 | Q25: 0 | R25: 0 | S25: 833.125 | T25: 832.9167188 | U25: 832.7084896 | V25: 832.5003124 | W25: 832.2921874 | X25: 832.0841143 | Y25: 831.8760933 | Z25: 831.6681243 | AA25: 831.4602072 | AB25: 831.2523422 | AC25: 831.0445291 | AD25: 830.836768 | AE25: 830.6290588 | AF25: 830.4214015 | AG25: 830.2137962 | AH25: 830.0062427 | AI25: 829.7987412 | AJ25: 829.5912915 | AK25: 829.3838936 | AL25: 829.1765477 | AM25: 828.9692535 | AN25: 828.7620112 | AO25: 828.5548207 | AP25: 828.347682 | AQ25: 828.1405951 | AR25: 827.9335599 | AS25: 827.7265766 | AT25: 827.5196449 | AU25: 827.312765 | AV25: 827.1059368 | AW25: 826.8991603 | AX25: 826.6924355 | AY25: 826.4857624 | AZ25: 826.279141 | BA25: 826.0725712 | BB25: 825.8660531 | BC25: 825.6595865 | BD25: 825.4531716 | BE25: 825.2468084 | BF25: 825.0404967 | BG25: 824.8342365 | BH25: 824.628028 | BI25: 824.421871 | BJ25: 824.2157655 | BK25: 824.0097116 | BL25: 823.8037091 | BM25: 823.5977582 | BN25: 823.3918588 | BO25: 823.1860108 | BP25: 822.9802143 | BQ25: 822.7744692 | BR25: 822.5687756 | BS25: 822.3631334 | BT25: 822.1575426 | BU25: 821.9520033 | BV25: 821.7465153 | BW25: =BW22*BW24 -> 821.5410786 | BX25: 821.3356934 | BY25: 821.1303594 | BZ25: 820.9250768 | CA25: 820.7198456 | CB25: 820.5146656 | CC25: 820.3095369 | CD25: 820.1044596 | CE25: 819.8994334 | CF25: 819.6944586 | CG25: 819.489535 | CH25: 819.2846626 | CI25: 819.0798414 | CJ25: 818.8750715 | CK25: 818.6703527 | CL25: 818.4656851 | CM25: 818.2610687 | CN25: 818.0565034 | CO25: 817.8519893 | CP25: 817.6475263 | CQ25: 817.4431144 | CR25: 817.2387536 | CS25: 817.0344439 | CT25: 816.8301853 | CU25: 816.6259778 | CV25: 816.4218213 | CW25: 816.2177158 | CX25: 816.0136614 | CY25: 815.809658 | CZ25: 815.6057056 | DA25: 815.4018042 | DB25: 815.1979537 | DC25: 814.9941542 | DD25: 814.7904057 | DE25: 814.5867081 | DF25: 814.3830614 | DG25: 814.1794656 | DH25: 813.9759208 | DI25: 813.7724268 | DJ25: 813.5689837 | DK25: 813.3655914 | DL25: 813.16225 | DM25: 812.9589595 | DN25: 812.7557197 | DO25: 812.5525308 | DP25: 812.3493927 | DQ25: 812.1463053 | DR25: 811.9432687 | DS25: 811.7402829 | DT25: 811.5373479 | DU25: 811.3344635 | DV25: 811.1316299 | DW25: 810.928847 | DX25: 810.7261148 | DY25: 810.5234333 | DZ25: 810.3208024 | EA25: 810.1182222 | EB25: 809.9156926 | EC25: 809.7132137 | ED25: 809.5107854 | EE25: 809.3084077 | EF25: 809.1060806 | EG25: 808.9038041 | EH25: 808.7015781
C26: Tariff | D26: EUR/MWh | E26: =ModelingExercise!F42 -> 60 | J26: =$E$26*J9 -> 0 | K26: 0 | L26: 0 | M26: 0 | N26: 0 | O26: 0 | P26: 0 | Q26: 0 | R26: 0 | S26: 60 | T26: 60 | U26: 60 | V26: 60 | W26: 60 | X26: 60 | Y26: 60 | Z26: 60 | AA26: 60 | AB26: 60 | AC26: 60 | AD26: 60 | AE26: 60 | AF26: 60 | AG26: 60 | AH26: 60 | AI26: 60 | AJ26: 60 | AK26: 60 | AL26: 60 | AM26: 60 | AN26: 60 | AO26: 60 | AP26: =$E$26*AP9 -> 60 | AQ26: 60 | AR26: 60 | AS26: 60 | AT26: 60 | AU26: 60 | AV26: 60 | AW26: 60 | AX26: 60 | AY26: 60 | AZ26: 60 | BA26: 60 | BB26: 60 | BC26: 60 | BD26: 60 | BE26: 60 | BF26: 60 | BG26: 60 | BH26: 60 | BI26: 60 | BJ26: 60 | BK26: 60 | BL26: 60 | BM26: 60 | BN26: 60 | BO26: 60 | BP26: 60 | BQ26: 60 | BR26: 60 | BS26: 60 | BT26: 60 | BU26: 60 | BV26: =$E$26*BV9 -> 60 | BW26: 60 | BX26: 60 | BY26: 60 | BZ26: 60 | CA26: 60 | CB26: 60 | CC26: 60 | CD26: 60 | CE26: 60 | CF26: 60 | CG26: 60 | CH26: 60 | CI26: 60 | CJ26: 60 | CK26: 60 | CL26: 60 | CM26: 60 | CN26: 60 | CO26: 60 | CP26: 60 | CQ26: 60 | CR26: 60 | CS26: 60 | CT26: 60 | CU26: 60 | CV26: 60 | CW26: 60 | CX26: 60 | CY26: 60 | CZ26: 60 | DA26: 60 | DB26: =$E$26*DB9 -> 60 | DC26: 60 | DD26: 60 | DE26: 60 | DF26: 60 | DG26: 60 | DH26: 60 | DI26: 60 | DJ26: 60 | DK26: 60 | DL26: 60 | DM26: 60 | DN26: 60 | DO26: 60 | DP26: 60 | DQ26: 60 | DR26: 60 | DS26: 60 | DT26: 60 | DU26: 60 | DV26: 60 | DW26: 60 | DX26: 60 | DY26: 60 | DZ26: 60 | EA26: 60 | EB26: 60 | EC26: 60 | ED26: 60 | EE26: 60 | EF26: 60 | EG26: 60 | EH26: 60
C27: Revenues | D27: =curr -> k EUR | G27: =SUM(J27:EH27) -> 5910.143339 | J27: =J26*J25/1000 -> 0 | K27: 0 | L27: 0 | M27: 0 | N27: 0 | O27: 0 | P27: 0 | Q27: 0 | R27: 0 | S27: 49.9875 | T27: 49.97500313 | U27: 49.96250937 | V27: 49.95001875 | W27: 49.93753124 | X27: 49.92504686 | Y27: 49.9125656 | Z27: 49.90008746 | AA27: 49.88761243 | AB27: 49.87514053 | AC27: 49.86267175 | AD27: 49.85020608 | AE27: 49.83774353 | AF27: 49.82528409 | AG27: 49.81282777 | AH27: 49.80037456 | AI27: 49.78792447 | AJ27: 49.77547749 | AK27: 49.76303362 | AL27: 49.75059286 | AM27: 49.73815521 | AN27: 49.72572067 | AO27: 49.71328924 | AP27: =AP26*AP25/1000 -> 49.70086092 | AQ27: 49.68843571 | AR27: 49.6760136 | AS27: 49.66359459 | AT27: 49.65117869 | AU27: 49.6387659 | AV27: 49.62635621 | AW27: 49.61394962 | AX27: 49.60154613 | AY27: 49.58914575 | AZ27: 49.57674846 | BA27: 49.56435427 | BB27: 49.55196318 | BC27: 49.53957519 | BD27: 49.5271903 | BE27: 49.5148085 | BF27: 49.5024298 | BG27: 49.49005419 | BH27: 49.47768168 | BI27: 49.46531226 | BJ27: 49.45294593 | BK27: 49.44058269 | BL27: 49.42822255 | BM27: 49.41586549 | BN27: 49.40351153 | BO27: 49.39116065 | BP27: 49.37881286 | BQ27: 49.36646815 | BR27: 49.35412654 | BS27: 49.34178801 | BT27: 49.32945256 | BU27: 49.3171202 | BV27: =BV26*BV25/1000 -> 49.30479092 | BW27: 49.29246472 | BX27: 49.2801416 | BY27: 49.26782157 | BZ27: 49.25550461 | CA27: 49.24319073 | CB27: 49.23087994 | CC27: 49.21857222 | CD27: 49.20626757 | CE27: 49.19396601 | CF27: 49.18166752 | CG27: 49.1693721 | CH27: 49.15707976 | CI27: 49.14479049 | CJ27: 49.13250429 | CK27: 49.12022116 | CL27: 49.10794111 | CM27: 49.09566412 | CN27: 49.08339021 | CO27: 49.07111936 | CP27: 49.05885158 | CQ27: 49.04658686 | CR27: 49.03432522 | CS27: 49.02206664 | CT27: 49.00981112 | CU27: 48.99755867 | CV27: 48.98530928 | CW27: 48.97306295 | CX27: 48.96081968 | CY27: 48.94857948 | CZ27: 48.93634233 | DA27: 48.92410825 | DB27: =DB26*DB25/1000 -> 48.91187722 | DC27: 48.89964925 | DD27: 48.88742434 | DE27: 48.87520248 | DF27: 48.86298368 | DG27: 48.85076794 | DH27: 48.83855525 | DI27: 48.82634561 | DJ27: 48.81413902 | DK27: 48.80193549 | DL27: 48.789735 | DM27: 48.77753757 | DN27: 48.76534318 | DO27: 48.75315185 | DP27: 48.74096356 | DQ27: 48.72877832 | DR27: 48.71659612 | DS27: 48.70441698 | DT27: 48.69224087 | DU27: 48.68006781 | DV27: 48.66789779 | DW27: 48.65573082 | DX27: 48.64356689 | DY27: 48.631406 | DZ27: 48.61924814 | EA27: 48.60709333 | EB27: 48.59494156 | EC27: 48.58279282 | ED27: 48.57064713 | EE27: 48.55850446 | EF27: 48.54636484 | EG27: 48.53422825 | EH27: =EH26*EH25/1000 -> 48.52209469
C30: OPEX
C31: O&M real | D31: =curr -> k EUR | E31: =ModelingExercise!F64 -> 5000 | J31: =$E$31*J9 -> 0 | K31: 0 | L31: 0 | M31: 0 | N31: 0 | O31: 0 | P31: 0 | Q31: 0 | R31: 0 | S31: 5000 | T31: 5000 | U31: 5000 | V31: 5000 | W31: 5000 | X31: 5000 | Y31: 5000 | Z31: 5000 | AA31: 5000 | AB31: 5000 | AC31: 5000 | AD31: 5000 | AE31: 5000 | AF31: 5000 | AG31: 5000 | AH31: 5000 | AI31: 5000 | AJ31: 5000 | AK31: 5000 | AL31: 5000 | AM31: 5000 | AN31: 5000 | AO31: 5000 | AP31: =$E$31*AP9 -> 5000 | AQ31: 5000 | AR31: 5000 | AS31: 5000 | AT31: 5000 | AU31: 5000 | AV31: 5000 | AW31: 5000 | AX31: 5000 | AY31: 5000 | AZ31: 5000 | BA31: 5000 | BB31: 5000 | BC31: 5000 | BD31: 5000 | BE31: 5000 | BF31: 5000 | BG31: 5000 | BH31: 5000 | BI31: 5000 | BJ31: 5000 | BK31: 5000 | BL31: 5000 | BM31: 5000 | BN31: 5000 | BO31: 5000 | BP31: 5000 | BQ31: 5000 | BR31: 5000 | BS31: 5000 | BT31: 5000 | BU31: 5000 | BV31: =$E$31*BV9 -> 5000 | BW31: 5000 | BX31: 5000 | BY31: 5000 | BZ31: 5000 | CA31: 5000 | CB31: 5000 | CC31: 5000 | CD31: 5000 | CE31: 5000 | CF31: 5000 | CG31: 5000 | CH31: 5000 | CI31: 5000 | CJ31: 5000 | CK31: 5000 | CL31: 5000 | CM31: 5000 | CN31: 5000 | CO31: 5000 | CP31: 5000 | CQ31: 5000 | CR31: 5000 | CS31: 5000 | CT31: 5000 | CU31: 5000 | CV31: 5000 | CW31: 5000 | CX31: 5000 | CY31: 5000 | CZ31: 5000 | DA31: 5000 | DB31: =$E$31*DB9 -> 5000 | DC31: 5000 | DD31: 5000 | DE31: 5000 | DF31: 5000 | DG31: 5000 | DH31: 5000 | DI31: 5000 | DJ31: 5000 | DK31: 5000 | DL31: 5000 | DM31: 5000 | DN31: 5000 | DO31: 5000 | DP31: 5000 | DQ31: 5000 | DR31: 5000 | DS31: 5000 | DT31: 5000 | DU31: 5000 | DV31: 5000 | DW31: 5000 | DX31: 5000 | DY31: 5000 | DZ31: 5000 | EA31: 5000 | EB31: 5000 | EC31: 5000 | ED31: 5000 | EE31: 5000 | EF31: 5000 | EG31: 5000 | EH31: 5000
C32: O&M escalation per period | D32: % | E32: =ModelingExercise!F65/12 -> 0.001666666667 | J32: =$E$32*J9 -> 0 | K32: 0 | L32: 0 | M32: 0 | N32: 0 | O32: 0 | P32: 0 | Q32: 0 | R32: 0 | S32: 0.001666666667 | T32: 0.001666666667 | U32: 0.001666666667 | V32: 0.001666666667 | W32: 0.001666666667 | X32: 0.001666666667 | Y32: 0.001666666667 | Z32: 0.001666666667 | AA32: 0.001666666667 | AB32: 0.001666666667 | AC32: 0.001666666667 | AD32: 0.001666666667 | AE32: 0.001666666667 | AF32: 0.001666666667 | AG32: 0.001666666667 | AH32: 0.001666666667 | AI32: 0.001666666667 | AJ32: 0.001666666667 | AK32: 0.001666666667 | AL32: 0.001666666667 | AM32: 0.001666666667 | AN32: 0.001666666667 | AO32: 0.001666666667 | AP32: =$E$32*AP9 -> 0.001666666667 | AQ32: 0.001666666667 | AR32: 0.001666666667 | AS32: 0.001666666667 | AT32: 0.001666666667 | AU32: 0.001666666667 | AV32: 0.001666666667 | AW32: 0.001666666667 | AX32: 0.001666666667 | AY32: 0.001666666667 | AZ32: 0.001666666667 | BA32: 0.001666666667 | BB32: 0.001666666667 | BC32: 0.001666666667 | BD32: 0.001666666667 | BE32: 0.001666666667 | BF32: 0.001666666667 | BG32: 0.001666666667 | BH32: 0.001666666667 | BI32: 0.001666666667 | BJ32: 0.001666666667 | BK32: 0.001666666667 | BL32: 0.001666666667 | BM32: 0.001666666667 | BN32: 0.001666666667 | BO32: 0.001666666667 | BP32: 0.001666666667 | BQ32: 0.001666666667 | BR32: 0.001666666667 | BS32: 0.001666666667 | BT32: 0.001666666667 | BU32: 0.001666666667 | BV32: =$E$32*BV9 -> 0.001666666667 | BW32: 0.001666666667 | BX32: 0.001666666667 | BY32: 0.001666666667 | BZ32: 0.001666666667 | CA32: 0.001666666667 | CB32: 0.001666666667 | CC32: 0.001666666667 | CD32: 0.001666666667 | CE32: 0.001666666667 | CF32: 0.001666666667 | CG32: 0.001666666667 | CH32: 0.001666666667 | CI32: 0.001666666667 | CJ32: 0.001666666667 | CK32: 0.001666666667 | CL32: 0.001666666667 | CM32: 0.001666666667 | CN32: 0.001666666667 | CO32: 0.001666666667 | CP32: 0.001666666667 | CQ32: 0.001666666667 | CR32: 0.001666666667 | CS32: 0.001666666667 | CT32: 0.001666666667 | CU32: 0.001666666667 | CV32: 0.001666666667 | CW32: 0.001666666667 | CX32: 0.001666666667 | CY32: 0.001666666667 | CZ32: 0.001666666667 | DA32: 0.001666666667 | DB32: =$E$32*DB9 -> 0.001666666667 | DC32: 0.001666666667 | DD32: 0.001666666667 | DE32: 0.001666666667 | DF32: 0.001666666667 | DG32: 0.001666666667 | DH32: 0.001666666667 | DI32: 0.001666666667 | DJ32: 0.001666666667 | DK32: 0.001666666667 | DL32: 0.001666666667 | DM32: 0.001666666667 | DN32: 0.001666666667 | DO32: 0.001666666667 | DP32: 0.001666666667 | DQ32: 0.001666666667 | DR32: 0.001666666667 | DS32: 0.001666666667 | DT32: 0.001666666667 | DU32: 0.001666666667 | DV32: 0.001666666667 | DW32: 0.001666666667 | DX32: 0.001666666667 | DY32: 0.001666666667 | DZ32: 0.001666666667 | EA32: 0.001666666667 | EB32: 0.001666666667 | EC32: 0.001666666667 | ED32: 0.001666666667 | EE32: 0.001666666667 | EF32: 0.001666666667 | EG32: 0.001666666667 | EH32: 0.001666666667
C33: O&M escalation rate | D33: rate | J33: =IF(K10=1, 100%-J32,I33*(1+J32)) -> 0 | K33: 0 | L33: 0 | M33: 0 | N33: 0 | O33: 0 | P33: 0 | Q33: 0 | R33: 1 | S33: 1.001666667 | T33: 1.003336111 | U33: 1.005008338 | V33: 1.006683352 | W33: 1.008361157 | X33: 1.010041759 | Y33: 1.011725162 | Z33: 1.013411371 | AA33: 1.01510039 | AB33: 1.016792224 | AC33: 1.018486878 | AD33: 1.020184356 | AE33: 1.021884663 | AF33: 1.023587804 | AG33: 1.025293784 | AH33: 1.027002607 | AI33: 1.028714278 | AJ33: 1.030428801 | AK33: 1.032146183 | AL33: 1.033866426 | AM33: 1.035589537 | AN33: 1.03731552 | AO33: 1.039044379 | AP33: =IF(AQ10=1, 100%-AP32,AO33*(1+AP32)) -> 1.04077612 | AQ33: 1.042510746 | AR33: 1.044248264 | AS33: 1.045988678 | AT33: 1.047731993 | AU33: 1.049478213 | AV33: 1.051227343 | AW33: 1.052979389 | AX33: 1.054734354 | AY33: 1.056492245 | AZ33: 1.058253065 | BA33: 1.06001682 | BB33: 1.061783515 | BC33: 1.063553154 | BD33: 1.065325743 | BE33: 1.067101286 | BF33: 1.068879788 | BG33: 1.070661254 | BH33: 1.07244569 | BI33: 1.074233099 | BJ33: 1.076023488 | BK33: 1.07781686 | BL33: 1.079613221 | BM33: 1.081412577 | BN33: 1.083214931 | BO33: 1.085020289 | BP33: 1.086828656 | BQ33: 1.088640038 | BR33: 1.090454438 | BS33: 1.092271862 | BT33: 1.094092315 | BU33: 1.095915802 | BV33: =IF(BW10=1, 100%-BV32,BU33*(1+BV32)) -> 1.097742328 | BW33: 1.099571899 | BX33: 1.101404519 | BY33: 1.103240193 | BZ33: 1.105078927 | CA33: 1.106920725 | CB33: 1.108765593 | CC33: 1.110613535 | CD33: 1.112464558 | CE33: 1.114318665 | CF33: 1.116175863 | CG33: 1.118036156 | CH33: 1.11989955 | CI33: 1.121766049 | CJ33: 1.123635659 | CK33: 1.125508385 | CL33: 1.127384233 | CM33: 1.129263206 | CN33: 1.131145312 | CO33: 1.133030554 | CP33: 1.134918938 | CQ33: 1.13681047 | CR33: 1.138705154 | CS33: 1.140602996 | CT33: 1.142504001 | CU33: 1.144408174 | CV33: 1.146315521 | CW33: 1.148226047 | CX33: 1.150139757 | CY33: 1.152056657 | CZ33: 1.153976751 | DA33: 1.155900046 | DB33: =IF(DC10=1, 100%-DB32,DA33*(1+DB32)) -> 1.157826546 | DC33: 1.159756257 | DD33: 1.161689184 | DE33: 1.163625332 | DF33: 1.165564708 | DG33: 1.167507316 | DH33: 1.169453161 | DI33: 1.17140225 | DJ33: 1.173354587 | DK33: 1.175310178 | DL33: 1.177269028 | DM33: 1.179231143 | DN33: 1.181196528 | DO33: 1.183165189 | DP33: 1.185137131 | DQ33: 1.18711236 | DR33: 1.18909088 | DS33: 1.191072699 | DT33: 1.19305782 | DU33: 1.195046249 | DV33: 1.197037993 | DW33: 1.199033057 | DX33: 1.201031445 | DY33: 1.203033164 | DZ33: 1.205038219 | EA33: 1.207046616 | EB33: 1.209058361 | EC33: 1.211073458 | ED33: 1.213091914 | EE33: 1.215113734 | EF33: 1.217138923 | EG33: 1.219167488 | EH33: =IF(EI10=1, 100%-EH32,EG33*(1+EH32)) -> 1.221199434
C34: O&M nominal | D34: =curr -> k EUR | G34: =SUM(J34:EH34) -> 664.7042988 | J34: =J33*J31/k -> 0 | K34: 0 | L34: 0 | M34: 0 | N34: 0 | O34: 0 | P34: 0 | Q34: 0 | R34: 0 | S34: 5.008333333 | T34: 5.016680556 | U34: 5.02504169 | V34: 5.033416759 | W34: 5.041805787 | X34: 5.050208797 | Y34: 5.058625812 | Z34: 5.067056855 | AA34: 5.075501949 | AB34: 5.083961119 | AC34: 5.092434388 | AD34: 5.100921778 | AE34: 5.109423315 | AF34: 5.11793902 | AG34: 5.126468919 | AH34: 5.135013033 | AI34: 5.143571389 | AJ34: 5.152144007 | AK34: 5.160730914 | AL34: 5.169332132 | AM34: 5.177947686 | AN34: 5.186577599 | AO34: 5.195221895 | AP34: =AP33*AP31/k -> 5.203880598 | AQ34: 5.212553732 | AR34: 5.221241322 | AS34: 5.229943391 | AT34: 5.238659963 | AU34: 5.247391063 | AV34: 5.256136715 | AW34: 5.264896943 | AX34: 5.273671771 | AY34: 5.282461224 | AZ34: 5.291265326 | BA34: 5.300084101 | BB34: 5.308917575 | BC34: 5.317765771 | BD34: 5.326628714 | BE34: 5.335506428 | BF34: 5.344398939 | BG34: 5.353306271 | BH34: 5.362228448 | BI34: 5.371165495 | BJ34: 5.380117438 | BK34: 5.3890843 | BL34: 5.398066107 | BM34: 5.407062884 | BN34: 5.416074655 | BO34: 5.425101447 | BP34: 5.434143282 | BQ34: 5.443200188 | BR34: 5.452272188 | BS34: 5.461359308 | BT34: 5.470461574 | BU34: 5.47957901 | BV34: =BV33*BV31/k -> 5.488711641 | BW34: 5.497859494 | BX34: 5.507022593 | BY34: 5.516200964 | BZ34: 5.525394633 | CA34: 5.534603624 | CB34: 5.543827963 | CC34: 5.553067676 | CD34: 5.562322789 | CE34: 5.571593327 | CF34: 5.580879316 | CG34: 5.590180782 | CH34: 5.59949775 | CI34: 5.608830246 | CJ34: 5.618178296 | CK34: 5.627541927 | CL34: 5.636921163 | CM34: 5.646316032 | CN34: 5.655726559 | CO34: 5.665152769 | CP34: 5.674594691 | CQ34: 5.684052349 | CR34: 5.693525769 | CS34: 5.703014979 | CT34: 5.712520004 | CU34: 5.72204087 | CV34: 5.731577605 | CW34: 5.741130235 | CX34: 5.750698785 | CY34: 5.760283283 | CZ34: 5.769883755 | DA34: 5.779500228 | DB34: =DB33*DB31/k -> 5.789132728 | DC34: 5.798781283 | DD34: 5.808445918 | DE34: 5.818126662 | DF34: 5.827823539 | DG34: 5.837536579 | DH34: 5.847265806 | DI34: 5.857011249 | DJ34: 5.866772935 | DK34: 5.876550889 | DL34: 5.886345141 | DM34: 5.896155716 | DN34: 5.905982642 | DO34: 5.915825947 | DP34: 5.925685657 | DQ34: 5.935561799 | DR34: 5.945454402 | DS34: 5.955363493 | DT34: 5.965289099 | DU34: 5.975231247 | DV34: 5.985189966 | DW34: 5.995165283 | DX34: 6.005157225 | DY34: 6.01516582 | DZ34: 6.025191097 | EA34: 6.035233082 | EB34: 6.045291804 | EC34: 6.05536729 | ED34: 6.065459569 | EE34: 6.075568668 | EF34: 6.085694616 | EG34: 6.09583744 | EH34: =EH33*EH31/k -> 6.105997169
C35: Land lease per period | D35: =curr -> k EUR | E35: =(ModelingExercise!F66*MWp/k)/12 -> 0.8333333333 | G35: =SUM(J35:EH35) -> 100 | J35: =$E$35*J9 -> 0 | K35: 0 | L35: 0 | M35: 0 | N35: 0 | O35: 0 | P35: 0 | Q35: 0 | R35: 0 | S35: 0.8333333333 | T35: 0.8333333333 | U35: 0.8333333333 | V35: 0.8333333333 | W35: 0.8333333333 | X35: 0.8333333333 | Y35: 0.8333333333 | Z35: 0.8333333333 | AA35: 0.8333333333 | AB35: 0.8333333333 | AC35: 0.8333333333 | AD35: 0.8333333333 | AE35: 0.8333333333 | AF35: 0.8333333333 | AG35: 0.8333333333 | AH35: 0.8333333333 | AI35: 0.8333333333 | AJ35: 0.8333333333 | AK35: 0.8333333333 | AL35: 0.8333333333 | AM35: 0.8333333333 | AN35: 0.8333333333 | AO35: 0.8333333333 | AP35: =$E$35*AP9 -> 0.8333333333 | AQ35: 0.8333333333 | AR35: 0.8333333333 | AS35: 0.8333333333 | AT35: 0.8333333333 | AU35: 0.8333333333 | AV35: 0.8333333333 | AW35: 0.8333333333 | AX35: 0.8333333333 | AY35: 0.8333333333 | AZ35: 0.8333333333 | BA35: 0.8333333333 | BB35: 0.8333333333 | BC35: 0.8333333333 | BD35: 0.8333333333 | BE35: 0.8333333333 | BF35: 0.8333333333 | BG35: 0.8333333333 | BH35: 0.8333333333 | BI35: 0.8333333333 | BJ35: 0.8333333333 | BK35: 0.8333333333 | BL35: 0.8333333333 | BM35: 0.8333333333 | BN35: 0.8333333333 | BO35: 0.8333333333 | BP35: 0.8333333333 | BQ35: 0.8333333333 | BR35: 0.8333333333 | BS35: 0.8333333333 | BT35: 0.8333333333 | BU35: 0.8333333333 | BV35: =$E$35*BV9 -> 0.8333333333 | BW35: 0.8333333333 | BX35: 0.8333333333 | BY35: 0.8333333333 | BZ35: 0.8333333333 | CA35: 0.8333333333 | CB35: 0.8333333333 | CC35: 0.8333333333 | CD35: 0.8333333333 | CE35: 0.8333333333 | CF35: 0.8333333333 | CG35: 0.8333333333 | CH35: 0.8333333333 | CI35: 0.8333333333 | CJ35: 0.8333333333 | CK35: 0.8333333333 | CL35: 0.8333333333 | CM35: 0.8333333333 | CN35: 0.8333333333 | CO35: 0.8333333333 | CP35: 0.8333333333 | CQ35: 0.8333333333 | CR35: 0.8333333333 | CS35: 0.8333333333 | CT35: 0.8333333333 | CU35: 0.8333333333 | CV35: 0.8333333333 | CW35: 0.8333333333 | CX35: 0.8333333333 | CY35: 0.8333333333 | CZ35: 0.8333333333 | DA35: 0.8333333333 | DB35: =$E$35*DB9 -> 0.8333333333 | DC35: 0.8333333333 | DD35: 0.8333333333 | DE35: 0.8333333333 | DF35: 0.8333333333 | DG35: 0.8333333333 | DH35: 0.8333333333 | DI35: 0.8333333333 | DJ35: 0.8333333333 | DK35: 0.8333333333 | DL35: 0.8333333333 | DM35: 0.8333333333 | DN35: 0.8333333333 | DO35: 0.8333333333 | DP35: 0.8333333333 | DQ35: 0.8333333333 | DR35: 0.8333333333 | DS35: 0.8333333333 | DT35: 0.8333333333 | DU35: 0.8333333333 | DV35: 0.8333333333 | DW35: 0.8333333333 | DX35: 0.8333333333 | DY35: 0.8333333333 | DZ35: 0.8333333333 | EA35: 0.8333333333 | EB35: 0.8333333333 | EC35: 0.8333333333 | ED35: 0.8333333333 | EE35: 0.8333333333 | EF35: 0.8333333333 | EG35: 0.8333333333 | EH35: 0.8333333333
C37: Opex POS | D37: =curr -> k EUR | J37: =SUM(J34:J35) -> 0 | K37: =SUM(K34:K35) -> 0 | L37: 0 | M37: 0 | N37: 0 | O37: 0 | P37: 0 | Q37: 0 | R37: 0 | S37: 5.841666667 | T37: 5.850013889 | U37: 5.858375023 | V37: 5.866750093 | W37: 5.875139121 | X37: 5.88354213 | Y37: 5.891959145 | Z37: 5.900390188 | AA37: 5.908835283 | AB37: 5.917294453 | AC37: 5.925767721 | AD37: 5.934255112 | AE37: 5.942756648 | AF37: 5.951272354 | AG37: 5.959802252 | AH37: 5.968346367 | AI37: 5.976904722 | AJ37: 5.985477341 | AK37: 5.994064248 | AL37: 6.002665466 | AM37: 6.011281019 | AN37: 6.019910932 | AO37: 6.028555228 | AP37: 6.037213931 | AQ37: 6.045887066 | AR37: 6.054574655 | AS37: 6.063276724 | AT37: 6.071993296 | AU37: 6.080724396 | AV37: 6.089470048 | AW37: 6.098230276 | AX37: 6.107005104 | AY37: 6.115794557 | AZ37: 6.124598659 | BA37: 6.133417435 | BB37: 6.142250908 | BC37: 6.151099104 | BD37: 6.159962047 | BE37: 6.168839762 | BF37: 6.177732272 | BG37: 6.186639604 | BH37: 6.195561781 | BI37: 6.204498828 | BJ37: 6.213450771 | BK37: 6.222417633 | BL37: 6.23139944 | BM37: 6.240396217 | BN37: 6.249407989 | BO37: 6.25843478 | BP37: 6.267476616 | BQ37: 6.276533521 | BR37: 6.285605521 | BS37: 6.294692642 | BT37: 6.303794907 | BU37: 6.312912343 | BV37: 6.322044975 | BW37: =SUM(BW34:BW35) -> 6.331192828 | BX37: 6.340355927 | BY37: 6.349534298 | BZ37: 6.358727966 | CA37: 6.367936957 | CB37: 6.377161296 | CC37: 6.38640101 | CD37: 6.395656122 | CE37: 6.40492666 | CF37: 6.414212649 | CG37: 6.423514115 | CH37: 6.432831083 | CI37: 6.442163579 | CJ37: 6.451511629 | CK37: 6.46087526 | CL37: 6.470254497 | CM37: 6.479649365 | CN37: 6.489059892 | CO37: 6.498486103 | CP37: 6.507928024 | CQ37: 6.517385682 | CR37: 6.526859102 | CS37: 6.536348312 | CT37: 6.545853337 | CU37: 6.555374204 | CV37: 6.564910939 | CW37: 6.574463568 | CX37: 6.584032118 | CY37: 6.593616616 | CZ37: 6.603217088 | DA37: 6.612833561 | DB37: 6.622466062 | DC37: 6.632114616 | DD37: 6.641779252 | DE37: 6.651459995 | DF37: 6.661156873 | DG37: 6.670869912 | DH37: 6.68059914 | DI37: 6.690344583 | DJ37: 6.700106268 | DK37: 6.709884223 | DL37: 6.719678474 | DM37: 6.72948905 | DN37: 6.739315976 | DO37: 6.74915928 | DP37: 6.75901899 | DQ37: 6.768895133 | DR37: 6.778787736 | DS37: 6.788696826 | DT37: 6.798622432 | DU37: 6.808564581 | DV37: 6.8185233 | DW37: 6.828498616 | DX37: 6.838490558 | DY37: 6.848499154 | DZ37: 6.85852443 | EA37: 6.868566415 | EB37: 6.878625137 | EC37: 6.888700623 | ED37: 6.898792902 | EE37: 6.908902001 | EF37: 6.919027949 | EG37: 6.929170774 | EH37: 6.939330503
C38: Opex expense | D38: =curr -> k EUR | G38: =SUM(J38:EH38) -> -764.7042988 | J38: =J37*-1 -> 0 | K38: =K37*-1 -> 0 | L38: 0 | M38: 0 | N38: 0 | O38: 0 | P38: 0 | Q38: 0 | R38: 0 | S38: -5.841666667 | T38: -5.850013889 | U38: -5.858375023 | V38: -5.866750093 | W38: -5.875139121 | X38: -5.88354213 | Y38: -5.891959145 | Z38: -5.900390188 | AA38: -5.908835283 | AB38: -5.917294453 | AC38: -5.925767721 | AD38: -5.934255112 | AE38: -5.942756648 | AF38: -5.951272354 | AG38: -5.959802252 | AH38: -5.968346367 | AI38: -5.976904722 | AJ38: -5.985477341 | AK38: -5.994064248 | AL38: -6.002665466 | AM38: -6.011281019 | AN38: -6.019910932 | AO38: -6.028555228 | AP38: -6.037213931 | AQ38: -6.045887066 | AR38: -6.054574655 | AS38: -6.063276724 | AT38: -6.071993296 | AU38: -6.080724396 | AV38: -6.089470048 | AW38: -6.098230276 | AX38: -6.107005104 | AY38: -6.115794557 | AZ38: -6.124598659 | BA38: -6.133417435 | BB38: -6.142250908 | BC38: -6.151099104 | BD38: -6.159962047 | BE38: -6.168839762 | BF38: -6.177732272 | BG38: -6.186639604 | BH38: -6.195561781 | BI38: -6.204498828 | BJ38: -6.213450771 | BK38: -6.222417633 | BL38: -6.23139944 | BM38: -6.240396217 | BN38: -6.249407989 | BO38: -6.25843478 | BP38: -6.267476616 | BQ38: -6.276533521 | BR38: -6.285605521 | BS38: -6.294692642 | BT38: -6.303794907 | BU38: -6.312912343 | BV38: -6.322044975 | BW38: =BW37*-1 -> -6.331192828 | BX38: -6.340355927 | BY38: -6.349534298 | BZ38: -6.358727966 | CA38: -6.367936957 | CB38: -6.377161296 | CC38: -6.38640101 | CD38: -6.395656122 | CE38: -6.40492666 | CF38: -6.414212649 | CG38: -6.423514115 | CH38: -6.432831083 | CI38: -6.442163579 | CJ38: -6.451511629 | CK38: -6.46087526 | CL38: -6.470254497 | CM38: -6.479649365 | CN38: -6.489059892 | CO38: -6.498486103 | CP38: -6.507928024 | CQ38: -6.517385682 | CR38: -6.526859102 | CS38: -6.536348312 | CT38: -6.545853337 | CU38: -6.555374204 | CV38: -6.564910939 | CW38: -6.574463568 | CX38: -6.584032118 | CY38: -6.593616616 | CZ38: -6.603217088 | DA38: -6.612833561 | DB38: -6.622466062 | DC38: -6.632114616 | DD38: -6.641779252 | DE38: -6.651459995 | DF38: -6.661156873 | DG38: -6.670869912 | DH38: -6.68059914 | DI38: -6.690344583 | DJ38: -6.700106268 | DK38: -6.709884223 | DL38: -6.719678474 | DM38: -6.72948905 | DN38: -6.739315976 | DO38: -6.74915928 | DP38: -6.75901899 | DQ38: -6.768895133 | DR38: -6.778787736 | DS38: -6.788696826 | DT38: -6.798622432 | DU38: -6.808564581 | DV38: -6.8185233 | DW38: -6.828498616 | DX38: -6.838490558 | DY38: -6.848499154 | DZ38: -6.85852443 | EA38: -6.868566415 | EB38: -6.878625137 | EC38: -6.888700623 | ED38: -6.898792902 | EE38: -6.908902001 | EF38: -6.919027949 | EG38: -6.929170774 | EH38: -6.939330503
C40: Depreciation
C41: depreciation rate per period | D41: % | E41: =1/120 -> 0.008333333333 | J41: =$E$41*J9 -> 0 | K41: 0 | L41: 0 | M41: 0 | N41: 0 | O41: 0 | P41: 0 | Q41: 0 | R41: 0 | S41: 0.008333333333 | T41: 0.008333333333 | U41: 0.008333333333 | V41: 0.008333333333 | W41: 0.008333333333 | X41: 0.008333333333 | Y41: 0.008333333333 | Z41: 0.008333333333 | AA41: 0.008333333333 | AB41: 0.008333333333 | AC41: 0.008333333333 | AD41: 0.008333333333 | AE41: 0.008333333333 | AF41: 0.008333333333 | AG41: 0.008333333333 | AH41: 0.008333333333 | AI41: 0.008333333333 | AJ41: 0.008333333333 | AK41: 0.008333333333 | AL41: 0.008333333333 | AM41: 0.008333333333 | AN41: 0.008333333333 | AO41: 0.008333333333 | AP41: =$E$41*AP9 -> 0.008333333333 | AQ41: 0.008333333333 | AR41: 0.008333333333 | AS41: 0.008333333333 | AT41: 0.008333333333 | AU41: 0.008333333333 | AV41: 0.008333333333 | AW41: 0.008333333333 | AX41: 0.008333333333 | AY41: 0.008333333333 | AZ41: 0.008333333333 | BA41: 0.008333333333 | BB41: 0.008333333333 | BC41: 0.008333333333 | BD41: 0.008333333333 | BE41: 0.008333333333 | BF41: 0.008333333333 | BG41: 0.008333333333 | BH41: 0.008333333333 | BI41: 0.008333333333 | BJ41: 0.008333333333 | BK41: 0.008333333333 | BL41: 0.008333333333 | BM41: 0.008333333333 | BN41: 0.008333333333 | BO41: 0.008333333333 | BP41: 0.008333333333 | BQ41: 0.008333333333 | BR41: 0.008333333333 | BS41: 0.008333333333 | BT41: 0.008333333333 | BU41: 0.008333333333 | BV41: =$E$41*BV9 -> 0.008333333333 | BW41: 0.008333333333 | BX41: 0.008333333333 | BY41: 0.008333333333 | BZ41: 0.008333333333 | CA41: 0.008333333333 | CB41: 0.008333333333 | CC41: 0.008333333333 | CD41: 0.008333333333 | CE41: 0.008333333333 | CF41: 0.008333333333 | CG41: 0.008333333333 | CH41: 0.008333333333 | CI41: 0.008333333333 | CJ41: 0.008333333333 | CK41: 0.008333333333 | CL41: 0.008333333333 | CM41: 0.008333333333 | CN41: 0.008333333333 | CO41: 0.008333333333 | CP41: 0.008333333333 | CQ41: 0.008333333333 | CR41: 0.008333333333 | CS41: 0.008333333333 | CT41: 0.008333333333 | CU41: 0.008333333333 | CV41: 0.008333333333 | CW41: 0.008333333333 | CX41: 0.008333333333 | CY41: 0.008333333333 | CZ41: 0.008333333333 | DA41: 0.008333333333 | DB41: =$E$41*DB9 -> 0.008333333333 | DC41: 0.008333333333 | DD41: 0.008333333333 | DE41: 0.008333333333 | DF41: 0.008333333333 | DG41: 0.008333333333 | DH41: 0.008333333333 | DI41: 0.008333333333 | DJ41: 0.008333333333 | DK41: 0.008333333333 | DL41: 0.008333333333 | DM41: 0.008333333333 | DN41: 0.008333333333 | DO41: 0.008333333333 | DP41: 0.008333333333 | DQ41: 0.008333333333 | DR41: 0.008333333333 | DS41: 0.008333333333 | DT41: 0.008333333333 | DU41: 0.008333333333 | DV41: 0.008333333333 | DW41: 0.008333333333 | DX41: 0.008333333333 | DY41: 0.008333333333 | DZ41: 0.008333333333 | EA41: 0.008333333333 | EB41: 0.008333333333 | EC41: 0.008333333333 | ED41: 0.008333333333 | EE41: 0.008333333333 | EF41: 0.008333333333 | EG41: 0.008333333333 | EH41: 0.008333333333
C42: Total project costs | D42: =curr -> k EUR | E42: =ModelingExercise!$F$48/k -> 4050
C43: asset depreciation in period | D43: =curr -> k EUR | J43: =$E$42*J41 -> 0 | K43: 0 | L43: 0 | M43: 0 | N43: 0 | O43: 0 | P43: 0 | Q43: 0 | R43: 0 | S43: 33.75 | T43: 33.75 | U43: 33.75 | V43: 33.75 | W43: 33.75 | X43: 33.75 | Y43: 33.75 | Z43: 33.75 | AA43: 33.75 | AB43: 33.75 | AC43: 33.75 | AD43: 33.75 | AE43: 33.75 | AF43: 33.75 | AG43: 33.75 | AH43: 33.75 | AI43: 33.75 | AJ43: 33.75 | AK43: 33.75 | AL43: 33.75 | AM43: 33.75 | AN43: 33.75 | AO43: 33.75 | AP43: =$E$42*AP41 -> 33.75 | AQ43: 33.75 | AR43: 33.75 | AS43: 33.75 | AT43: 33.75 | AU43: 33.75 | AV43: 33.75 | AW43: 33.75 | AX43: 33.75 | AY43: 33.75 | AZ43: 33.75 | BA43: 33.75 | BB43: 33.75 | BC43: 33.75 | BD43: 33.75 | BE43: 33.75 | BF43: 33.75 | BG43: 33.75 | BH43: 33.75 | BI43: 33.75 | BJ43: 33.75 | BK43: 33.75 | BL43: 33.75 | BM43: 33.75 | BN43: 33.75 | BO43: 33.75 | BP43: 33.75 | BQ43: 33.75 | BR43: 33.75 | BS43: 33.75 | BT43: 33.75 | BU43: 33.75 | BV43: =$E$42*BV41 -> 33.75 | BW43: 33.75 | BX43: 33.75 | BY43: 33.75 | BZ43: 33.75 | CA43: 33.75 | CB43: 33.75 | CC43: 33.75 | CD43: 33.75 | CE43: 33.75 | CF43: 33.75 | CG43: 33.75 | CH43: 33.75 | CI43: 33.75 | CJ43: 33.75 | CK43: 33.75 | CL43: 33.75 | CM43: 33.75 | CN43: 33.75 | CO43: 33.75 | CP43: 33.75 | CQ43: 33.75 | CR43: 33.75 | CS43: 33.75 | CT43: 33.75 | CU43: 33.75 | CV43: 33.75 | CW43: 33.75 | CX43: 33.75 | CY43: 33.75 | CZ43: 33.75 | DA43: 33.75 | DB43: =$E$42*DB41 -> 33.75 | DC43: 33.75 | DD43: 33.75 | DE43: 33.75 | DF43: 33.75 | DG43: 33.75 | DH43: 33.75 | DI43: 33.75 | DJ43: 33.75 | DK43: 33.75 | DL43: 33.75 | DM43: 33.75 | DN43: 33.75 | DO43: 33.75 | DP43: 33.75 | DQ43: 33.75 | DR43: 33.75 | DS43: 33.75 | DT43: 33.75 | DU43: 33.75 | DV43: 33.75 | DW43: 33.75 | DX43: 33.75 | DY43: 33.75 | DZ43: 33.75 | EA43: 33.75 | EB43: 33.75 | EC43: 33.75 | ED43: 33.75 | EE43: 33.75 | EF43: 33.75 | EG43: 33.75 | EH43: 33.75
C44: asset depreciation balance BEG | D44: =curr -> k EUR | J44: =IF(J10=1,$E$42,I46) -> 0 | K44: 0 | L44: 0 | M44: 0 | N44: 0 | O44: 0 | P44: 0 | Q44: 0 | R44: 0 | S44: 4050 | T44: 4016.25 | U44: 3982.5 | V44: 3948.75 | W44: 3915 | X44: 3881.25 | Y44: 3847.5 | Z44: 3813.75 | AA44: 3780 | AB44: 3746.25 | AC44: 3712.5 | AD44: 3678.75 | AE44: 3645 | AF44: 3611.25 | AG44: 3577.5 | AH44: 3543.75 | AI44: 3510 | AJ44: 3476.25 | AK44: 3442.5 | AL44: 3408.75 | AM44: 3375 | AN44: 3341.25 | AO44: 3307.5 | AP44: =IF(AP10=1,$E$42,AO46) -> 3273.75 | AQ44: 3240 | AR44: 3206.25 | AS44: 3172.5 | AT44: 3138.75 | AU44: 3105 | AV44: 3071.25 | AW44: 3037.5 | AX44: 3003.75 | AY44: 2970 | AZ44: 2936.25 | BA44: 2902.5 | BB44: 2868.75 | BC44: 2835 | BD44: 2801.25 | BE44: 2767.5 | BF44: 2733.75 | BG44: 2700 | BH44: 2666.25 | BI44: 2632.5 | BJ44: 2598.75 | BK44: 2565 | BL44: 2531.25 | BM44: 2497.5 | BN44: 2463.75 | BO44: 2430 | BP44: 2396.25 | BQ44: 2362.5 | BR44: 2328.75 | BS44: 2295 | BT44: 2261.25 | BU44: 2227.5 | BV44: =IF(BV10=1,$E$42,BU46) -> 2193.75 | BW44: 2160 | BX44: 2126.25 | BY44: 2092.5 | BZ44: 2058.75 | CA44: 2025 | CB44: 1991.25 | CC44: 1957.5 | CD44: 1923.75 | CE44: 1890 | CF44: 1856.25 | CG44: 1822.5 | CH44: 1788.75 | CI44: 1755 | CJ44: 1721.25 | CK44: 1687.5 | CL44: 1653.75 | CM44: 1620 | CN44: 1586.25 | CO44: 1552.5 | CP44: 1518.75 | CQ44: 1485 | CR44: 1451.25 | CS44: 1417.5 | CT44: 1383.75 | CU44: 1350 | CV44: 1316.25 | CW44: 1282.5 | CX44: 1248.75 | CY44: 1215 | CZ44: 1181.25 | DA44: 1147.5 | DB44: =IF(DB10=1,$E$42,DA46) -> 1113.75 | DC44: 1080 | DD44: 1046.25 | DE44: 1012.5 | DF44: 978.75 | DG44: 945 | DH44: 911.25 | DI44: 877.5 | DJ44: 843.75 | DK44: 810 | DL44: 776.25 | DM44: 742.5 | DN44: 708.75 | DO44: 675 | DP44: 641.25 | DQ44: 607.5 | DR44: 573.75 | DS44: 540 | DT44: 506.25 | DU44: 472.5 | DV44: 438.75 | DW44: 405 | DX44: 371.25 | DY44: 337.5 | DZ44: 303.75 | EA44: 270 | EB44: 236.25 | EC44: 202.5 | ED44: 168.75 | EE44: 135 | EF44: 101.25 | EG44: 67.5 | EH44: 33.75
C45: =C$43 -> asset depreciation in period | D45: =curr -> k EUR | G45: =SUM(J45:EH45) -> 4050 | J45: =J$43 -> 0 | K45: 0 | L45: 0 | M45: 0 | N45: 0 | O45: 0 | P45: 0 | Q45: 0 | R45: 0 | S45: 33.75 | T45: 33.75 | U45: 33.75 | V45: 33.75 | W45: 33.75 | X45: 33.75 | Y45: 33.75 | Z45: 33.75 | AA45: 33.75 | AB45: 33.75 | AC45: 33.75 | AD45: 33.75 | AE45: 33.75 | AF45: 33.75 | AG45: 33.75 | AH45: 33.75 | AI45: 33.75 | AJ45: 33.75 | AK45: 33.75 | AL45: 33.75 | AM45: 33.75 | AN45: 33.75 | AO45: 33.75 | AP45: =AP$43 -> 33.75 | AQ45: 33.75 | AR45: 33.75 | AS45: 33.75 | AT45: 33.75 | AU45: 33.75 | AV45: 33.75 | AW45: 33.75 | AX45: 33.75 | AY45: 33.75 | AZ45: 33.75 | BA45: 33.75 | BB45: 33.75 | BC45: 33.75 | BD45: 33.75 | BE45: 33.75 | BF45: 33.75 | BG45: 33.75 | BH45: 33.75 | BI45: 33.75 | BJ45: 33.75 | BK45: 33.75 | BL45: 33.75 | BM45: 33.75 | BN45: 33.75 | BO45: 33.75 | BP45: 33.75 | BQ45: 33.75 | BR45: 33.75 | BS45: 33.75 | BT45: 33.75 | BU45: 33.75 | BV45: =BV$43 -> 33.75 | BW45: 33.75 | BX45: 33.75 | BY45: 33.75 | BZ45: 33.75 | CA45: 33.75 | CB45: 33.75 | CC45: 33.75 | CD45: 33.75 | CE45: 33.75 | CF45: 33.75 | CG45: 33.75 | CH45: 33.75 | CI45: 33.75 | CJ45: 33.75 | CK45: 33.75 | CL45: 33.75 | CM45: 33.75 | CN45: 33.75 | CO45: 33.75 | CP45: 33.75 | CQ45: 33.75 | CR45: 33.75 | CS45: 33.75 | CT45: 33.75 | CU45: 33.75 | CV45: 33.75 | CW45: 33.75 | CX45: 33.75 | CY45: 33.75 | CZ45: 33.75 | DA45: 33.75 | DB45: =DB$43 -> 33.75 | DC45: 33.75 | DD45: 33.75 | DE45: 33.75 | DF45: 33.75 | DG45: 33.75 | DH45: 33.75 | DI45: 33.75 | DJ45: 33.75 | DK45: 33.75 | DL45: 33.75 | DM45: 33.75 | DN45: 33.75 | DO45: 33.75 | DP45: 33.75 | DQ45: 33.75 | DR45: 33.75 | DS45: 33.75 | DT45: 33.75 | DU45: 33.75 | DV45: 33.75 | DW45: 33.75 | DX45: 33.75 | DY45: 33.75 | DZ45: 33.75 | EA45: 33.75 | EB45: 33.75 | EC45: 33.75 | ED45: 33.75 | EE45: 33.75 | EF45: 33.75 | EG45: 33.75 | EH45: 33.75
C46: asset depreciation balance | D46: =curr -> k EUR | J46: =J44-J45 -> 0 | K46: 0 | L46: 0 | M46: 0 | N46: 0 | O46: 0 | P46: 0 | Q46: 0 | R46: 0 | S46: 4016.25 | T46: 3982.5 | U46: 3948.75 | V46: 3915 | W46: 3881.25 | X46: 3847.5 | Y46: 3813.75 | Z46: 3780 | AA46: 3746.25 | AB46: 3712.5 | AC46: 3678.75 | AD46: 3645 | AE46: 3611.25 | AF46: 3577.5 | AG46: 3543.75 | AH46: 3510 | AI46: 3476.25 | AJ46: 3442.5 | AK46: 3408.75 | AL46: 3375 | AM46: 3341.25 | AN46: 3307.5 | AO46: 3273.75 | AP46: 3240 | AQ46: 3206.25 | AR46: 3172.5 | AS46: 3138.75 | AT46: 3105 | AU46: 3071.25 | AV46: 3037.5 | AW46: 3003.75 | AX46: 2970 | AY46: 2936.25 | AZ46: 2902.5 | BA46: 2868.75 | BB46: 2835 | BC46: 2801.25 | BD46: 2767.5 | BE46: 2733.75 | BF46: 2700 | BG46: 2666.25 | BH46: 2632.5 | BI46: 2598.75 | BJ46: 2565 | BK46: 2531.25 | BL46: 2497.5 | BM46: 2463.75 | BN46: 2430 | BO46: 2396.25 | BP46: 2362.5 | BQ46: 2328.75 | BR46: 2295 | BS46: 2261.25 | BT46: 2227.5 | BU46: 2193.75 | BV46: 2160 | BW46: =BW44-BW45 -> 2126.25 | BX46: 2092.5 | BY46: 2058.75 | BZ46: 2025 | CA46: 1991.25 | CB46: 1957.5 | CC46: 1923.75 | CD46: 1890 | CE46: 1856.25 | CF46: 1822.5 | CG46: 1788.75 | CH46: 1755 | CI46: 1721.25 | CJ46: 1687.5 | CK46: 1653.75 | CL46: 1620 | CM46: 1586.25 | CN46: 1552.5 | CO46: 1518.75 | CP46: 1485 | CQ46: 1451.25 | CR46: 1417.5 | CS46: 1383.75 | CT46: 1350 | CU46: 1316.25 | CV46: 1282.5 | CW46: 1248.75 | CX46: 1215 | CY46: 1181.25 | CZ46: 1147.5 | DA46: 1113.75 | DB46: 1080 | DC46: 1046.25 | DD46: 1012.5 | DE46: 978.75 | DF46: 945 | DG46: 911.25 | DH46: 877.5 | DI46: 843.75 | DJ46: 810 | DK46: 776.25 | DL46: 742.5 | DM46: 708.75 | DN46: 675 | DO46: 641.25 | DP46: 607.5 | DQ46: 573.75 | DR46: 540 | DS46: 506.25 | DT46: 472.5 | DU46: 438.75 | DV46: 405 | DW46: 371.25 | DX46: 337.5 | DY46: 303.75 | DZ46: 270 | EA46: 236.25 | EB46: 202.5 | EC46: 168.75 | ED46: 135 | EE46: 101.25 | EF46: 67.5 | EG46: 33.75 | EH46: 0
C48: Tax
C49: =C158 -> EBT | D49: =D158 -> k EUR | J49: =J158 -> 0 | K49: -6.103125 | L49: -6.103125 | M49: -5.90625 | N49: -6.103125 | O49: -5.90625 | P49: -6.103125 | Q49: -6.103125 | R49: -5.5125 | S49: -0.2354166667 | T49: 10.37498924 | U49: 10.35413435 | V49: -0.08018837701 | W49: 10.31239212 | X49: 10.29150473 | Y49: 0.08232520279 | Z49: 10.24969727 | AA49: 10.22877715 | AB49: 0.3591742037 | AC49: 10.18690403 | AD49: 10.16595097 | AE49: 0.7392837537 | AF49: 10.12401174 | AG49: 10.10302552 | AH49: 1.01224304 | AI49: =AI158 -> 10.06101975 | AJ49: 10.04000015 | AK49: 1.189125621 | AL49: 9.997927395 | AM49: 9.976874193 | AN49: 1.465575366 | AO49: 9.934734015 | AP49: 9.91364699 | AQ49: 1.91911114 | AR49: 9.871438942 | AS49: 9.850317869 | AT49: 2.103072117 | AU49: 9.808041504 | AV49: 9.78688616 | AW49: 2.294313094 | AX49: 9.744541028 | AY49: 9.723351188 | AZ49: 2.570352925 | BA49: 9.680936837 | BB49: 9.659712275 | BC49: 2.993944838 | BD49: 9.617228252 | BE49: 9.59596874 | BF49: 3.192256121 | BG49: 9.553414588 | BH49: 9.532119897 | BI49: 3.397844679 | BJ49: 9.489495159 | BK49: 9.46816506 | BL49: 3.673463732 | BM49: 9.425469275 | BN49: 9.404103537 | BO49: =BO158 -> 4.067100868 | BP49: 9.361336242 | BQ49: 9.339934633 | BR49: 4.279751485 | BS49: 9.297095364 | BT49: 9.275657651 | BU49: 4.499676602 | BV49: 9.23274594 | BW49: 9.21127189 | BX49: 4.7748638 | BY49: 9.168287268 | BZ49: 9.146776645 | CA49: 5.094238152 | CB49: 9.10371864 | CC49: 9.082171207 | CD49: 5.365513795 | CE49: 9.039039346 | CF49: 9.017454866 | CG49: 5.599764234 | CH49: 8.974248673 | CI49: 8.952626906 | CJ49: 5.874508283 | CK49: 8.909345902 | CL49: 8.88768661 | CM49: 6.208202256 | CN49: 8.844330313 | CO49: 8.822633255 | CP49: 6.449497772 | CQ49: 8.779201183 | CR49: 8.757466116 | CS49: 6.698062075 | CT49: 8.713957783 | CU49: =CU158 -> 8.692184464 | CV49: 6.972351464 | CW49: 8.648599383 | CX49: 8.626787566 | CY49: 7.276056614 | CZ49: 8.583125247 | DA49: 8.561274688 | DB49: 7.531657254 | DC49: 8.517534637 | DD49: 8.495645089 | DE49: 7.79452374 | DF49: 8.451826811 | DG49: 8.429898026 | DH49: 8.068346732 | DI49: 8.386001025 | DJ49: 8.364032753 | DK49: 8.342051263 | DL49: 8.320056528 | DM49: 8.298048519 | DN49: 8.276027208 | DO49: 8.253992568 | DP49: 8.23194457 | DQ49: 8.209883187 | DR49: 8.187808389 | DS49: 8.165720149 | DT49: 8.143618439 | DU49: 8.121503231 | DV49: 8.099374495 | DW49: 8.077232204 | DX49: 8.055076329 | DY49: 8.032906842 | DZ49: 8.010723714 | EA49: =EA158 -> 7.988526917 | EB49: 7.966316422 | EC49: 7.9440922 | ED49: 7.921854223 | EE49: 7.899602462 | EF49: 7.877336888 | EG49: 7.855057472 | EH49: 7.832764186
C50: =ModelingExercise!$C$99 -> Corporate Tax Rate | D50: % | E50: =ModelingExercise!$F$99 -> 0.25
C51: Tax expense | D51: =curr -> k EUR | J51: =-1*MAX(0,$E$50*J49) -> 0 | K51: 0 | L51: 0 | M51: 0 | N51: 0 | O51: 0 | P51: 0 | Q51: 0 | R51: 0 | S51: 0 | T51: -2.593747309 | U51: -2.588533588 | V51: 0 | W51: -2.57809803 | X51: -2.572876182 | Y51: -0.0205813007 | Z51: -2.562424317 | AA51: -2.557194288 | AB51: -0.08979355093 | AC51: -2.546726006 | AD51: -2.541487742 | AE51: -0.1848209384 | AF51: -2.531002934 | AG51: -2.525756379 | AH51: -0.25306076 | AI51: -2.515254937 | AJ51: -2.510000037 | AK51: -0.2972814053 | AL51: -2.499481849 | AM51: -2.494218548 | AN51: -0.3663938416 | AO51: -2.483683504 | AP51: =-1*MAX(0,$E$50*AP49) -> -2.478411747 | AQ51: -0.479777785 | AR51: -2.467859735 | AS51: -2.462579467 | AT51: -0.5257680293 | AU51: -2.452010376 | AV51: -2.44672154 | AW51: -0.5735782734 | AX51: -2.436135257 | AY51: -2.430837797 | AZ51: -0.6425882312 | BA51: -2.420234209 | BB51: -2.414928069 | BC51: -0.7484862096 | BD51: -2.404307063 | BE51: -2.398992185 | BF51: -0.7980640301 | BG51: -2.388353647 | BH51: -2.383029974 | BI51: -0.8494611698 | BJ51: -2.37237379 | BK51: -2.367041265 | BL51: -0.918365933 | BM51: -2.356367319 | BN51: -2.351025884 | BO51: -1.016775217 | BP51: -2.34033406 | BQ51: -2.334983658 | BR51: -1.069937871 | BS51: -2.324273841 | BT51: -2.318914413 | BU51: -1.124919151 | BV51: =-1*MAX(0,$E$50*BV49) -> -2.308186485 | BW51: -2.302817973 | BX51: -1.19371595 | BY51: -2.292071817 | BZ51: -2.286694161 | CA51: -1.273559538 | CB51: -2.27592966 | CC51: -2.270542802 | CD51: -1.341378449 | CE51: -2.259759837 | CF51: -2.254363716 | CG51: -1.399941058 | CH51: -2.243562168 | CI51: -2.238156727 | CJ51: -1.468627071 | CK51: -2.227336475 | CL51: -2.221921652 | CM51: -1.552050564 | CN51: -2.211082578 | CO51: -2.205658314 | CP51: -1.612374443 | CQ51: -2.194800296 | CR51: -2.189366529 | CS51: -1.674515519 | CT51: -2.178489446 | CU51: -2.173046116 | CV51: -1.743087866 | CW51: -2.162149846 | CX51: -2.156696892 | CY51: -1.819014153 | CZ51: -2.145781312 | DA51: -2.140318672 | DB51: =-1*MAX(0,$E$50*DB49) -> -1.882914314 | DC51: -2.129383659 | DD51: -2.123911272 | DE51: -1.948630935 | DF51: -2.112956703 | DG51: -2.107474507 | DH51: -2.017086683 | DI51: -2.096500256 | DJ51: -2.091008188 | DK51: -2.085512816 | DL51: -2.080014132 | DM51: -2.07451213 | DN51: -2.069006802 | DO51: -2.063498142 | DP51: -2.057986143 | DQ51: -2.052470797 | DR51: -2.046952097 | DS51: -2.041430037 | DT51: -2.03590461 | DU51: -2.030375808 | DV51: -2.024843624 | DW51: -2.019308051 | DX51: -2.013769082 | DY51: -2.00822671 | DZ51: -2.002680928 | EA51: -1.997131729 | EB51: -1.991579105 | EC51: -1.98602305 | ED51: -1.980463556 | EE51: -1.974900615 | EF51: -1.969334222 | EG51: -1.963764368 | EH51: -1.958191047
C53: S&U
C54: =ModelingExercise!C46 -> EPC Cost | D54: kEUR/MWp | E54: =ModelingExercise!F46/k -> 400
C55: =ModelingExercise!C47 -> Other Costs | D55: kEUR/MWp | E55: =ModelingExercise!F47/k -> 5
C56: Total project costs | D56: =curr -> k EUR | E56: =SUM(E54:E55)*MWp -> 4050
C58: Capex phasing | D58: % per period | G58: =SUM(J58:EH58) -> 1 | J58: 0.1111111111 | K58: 0.1111111111 | L58: 0.1111111111 | M58: 0.1111111111 | N58: 0.1111111111 | O58: 0.1111111111 | P58: 0.1111111111 | Q58: 0.1111111111 | R58: 0.1111111111 | S58: 0 | T58: 0 | U58: 0 | V58: 0 | W58: 0 | X58: 0 | Y58: 0 | Z58: 0 | AA58: 0 | AB58: 0 | AC58: 0 | AD58: 0 | AE58: 0 | AF58: 0 | AG58: 0 | AH58: 0 | AI58: 0 | AJ58: 0 | AK58: 0 | AL58: 0 | AM58: 0 | AN58: 0 | AO58: 0 | AP58: 0 | AQ58: 0 | AR58: 0 | AS58: 0 | AT58: 0 | AU58: 0 | AV58: 0 | AW58: 0 | AX58: 0 | AY58: 0 | AZ58: 0 | BA58: 0 | BB58: 0 | BC58: 0 | BD58: 0 | BE58: 0 | BF58: 0 | BG58: 0 | BH58: 0 | BI58: 0 | BJ58: 0 | BK58: 0 | BL58: 0 | BM58: 0 | BN58: 0 | BO58: 0 | BP58: 0 | BQ58: 0 | BR58: 0 | BS58: 0 | BT58: 0 | BU58: 0 | BV58: 0 | BW58: 0 | BX58: 0 | BY58: 0 | BZ58: 0 | CA58: 0 | CB58: 0 | CC58: 0 | CD58: 0 | CE58: 0 | CF58: 0 | CG58: 0 | CH58: 0 | CI58: 0 | CJ58: 0 | CK58: 0 | CL58: 0 | CM58: 0 | CN58: 0 | CO58: 0 | CP58: 0 | CQ58: 0 | CR58: 0 | CS58: 0 | CT58: 0 | CU58: 0 | CV58: 0 | CW58: 0 | CX58: 0 | CY58: 0 | CZ58: 0 | DA58: 0 | DB58: 0 | DC58: 0 | DD58: 0 | DE58: 0 | DF58: 0 | DG58: 0 | DH58: 0 | DI58: 0 | DJ58: 0 | DK58: 0 | DL58: 0 | DM58: 0 | DN58: 0 | DO58: 0 | DP58: 0 | DQ58: 0 | DR58: 0 | DS58: 0 | DT58: 0 | DU58: 0 | DV58: 0 | DW58: 0 | DX58: 0 | DY58: 0 | DZ58: 0 | EA58: 0 | EB58: 0 | EC58: 0 | ED58: 0 | EE58: 0 | EF58: 0 | EG58: 0 | EH58: 0
C59: Hard costs | D59: =curr -> k EUR | G59: =SUM(J59:EH59) -> 4050 | J59: =J58*$E$56 -> 450 | K59: 450 | L59: 450 | M59: 450 | N59: 450 | O59: 450 | P59: 450 | Q59: 450 | R59: 450 | S59: 0 | T59: 0 | U59: 0 | V59: 0 | W59: 0 | X59: 0 | Y59: 0 | Z59: 0 | AA59: 0 | AB59: 0 | AC59: 0 | AD59: 0 | AE59: 0 | AF59: 0 | AG59: 0 | AH59: 0 | AI59: 0 | AJ59: 0 | AK59: 0 | AL59: 0 | AM59: 0 | AN59: 0 | AO59: 0 | AP59: =AP58*$E$56 -> 0 | AQ59: 0 | AR59: 0 | AS59: 0 | AT59: 0 | AU59: 0 | AV59: 0 | AW59: 0 | AX59: 0 | AY59: 0 | AZ59: 0 | BA59: 0 | BB59: 0 | BC59: 0 | BD59: 0 | BE59: 0 | BF59: 0 | BG59: 0 | BH59: 0 | BI59: 0 | BJ59: 0 | BK59: 0 | BL59: 0 | BM59: 0 | BN59: 0 | BO59: 0 | BP59: 0 | BQ59: 0 | BR59: 0 | BS59: 0 | BT59: 0 | BU59: 0 | BV59: =BV58*$E$56 -> 0 | BW59: 0 | BX59: 0 | BY59: 0 | BZ59: 0 | CA59: 0 | CB59: 0 | CC59: 0 | CD59: 0 | CE59: 0 | CF59: 0 | CG59: 0 | CH59: 0 | CI59: 0 | CJ59: 0 | CK59: 0 | CL59: 0 | CM59: 0 | CN59: 0 | CO59: 0 | CP59: 0 | CQ59: 0 | CR59: 0 | CS59: 0 | CT59: 0 | CU59: 0 | CV59: 0 | CW59: 0 | CX59: 0 | CY59: 0 | CZ59: 0 | DA59: 0 | DB59: =DB58*$E$56 -> 0 | DC59: 0 | DD59: 0 | DE59: 0 | DF59: 0 | DG59: 0 | DH59: 0 | DI59: 0 | DJ59: 0 | DK59: 0 | DL59: 0 | DM59: 0 | DN59: 0 | DO59: 0 | DP59: 0 | DQ59: 0 | DR59: 0 | DS59: 0 | DT59: 0 | DU59: 0 | DV59: 0 | DW59: 0 | DX59: 0 | DY59: 0 | DZ59: 0 | EA59: 0 | EB59: 0 | EC59: 0 | ED59: 0 | EE59: 0 | EF59: 0 | EG59: 0 | EH59: =EH58*$E$56 -> 0
C60: =C$122 -> IDC | D60: =D$122 -> k EUR | G60: 47.840625
C61: Total uses | D61: =curr -> k EUR | G61: =SUM(J61:EH61) -> 4050 | J61: =J59+J60 -> 450 | K61: 450 | L61: 450 | M61: 450 | N61: 450 | O61: 450 | P61: 450 | Q61: 450 | R61: 450 | S61: 0 | T61: 0 | U61: 0 | V61: 0 | W61: 0 | X61: 0 | Y61: 0 | Z61: 0 | AA61: 0 | AB61: 0 | AC61: 0 | AD61: 0 | AE61: 0 | AF61: 0 | AG61: 0 | AH61: 0 | AI61: 0 | AJ61: 0 | AK61: 0 | AL61: 0 | AM61: 0 | AN61: 0 | AO61: 0 | AP61: =AP59+AP60 -> 0 | AQ61: 0 | AR61: 0 | AS61: 0 | AT61: 0 | AU61: 0 | AV61: 0 | AW61: 0 | AX61: 0 | AY61: 0 | AZ61: 0 | BA61: 0 | BB61: 0 | BC61: 0 | BD61: 0 | BE61: 0 | BF61: 0 | BG61: 0 | BH61: 0 | BI61: 0 | BJ61: 0 | BK61: 0 | BL61: 0 | BM61: 0 | BN61: 0 | BO61: 0 | BP61: 0 | BQ61: 0 | BR61: 0 | BS61: 0 | BT61: 0 | BU61: 0 | BV61: =BV59+BV60 -> 0 | BW61: 0 | BX61: 0 | BY61: 0 | BZ61: 0 | CA61: 0 | CB61: 0 | CC61: 0 | CD61: 0 | CE61: 0 | CF61: 0 | CG61: 0 | CH61: 0 | CI61: 0 | CJ61: 0 | CK61: 0 | CL61: 0 | CM61: 0 | CN61: 0 | CO61: 0 | CP61: 0 | CQ61: 0 | CR61: 0 | CS61: 0 | CT61: 0 | CU61: 0 | CV61: 0 | CW61: 0 | CX61: 0 | CY61: 0 | CZ61: 0 | DA61: 0 | DB61: =DB59+DB60 -> 0 | DC61: 0 | DD61: 0 | DE61: 0 | DF61: 0 | DG61: 0 | DH61: 0 | DI61: 0 | DJ61: 0 | DK61: 0 | DL61: 0 | DM61: 0 | DN61: 0 | DO61: 0 | DP61: 0 | DQ61: 0 | DR61: 0 | DS61: 0 | DT61: 0 | DU61: 0 | DV61: 0 | DW61: 0 | DX61: 0 | DY61: 0 | DZ61: 0 | EA61: 0 | EB61: 0 | EC61: 0 | ED61: 0 | EE61: 0 | EF61: 0 | EG61: 0 | EH61: =EH59+EH60 -> 0
C63: Equity commitment | D63: =curr -> k EUR | E63: =G61*ModelingExercise!$F$69 -> 1215 | J63: =$E$63 -> 1215 | K63: 1215 | L63: 1215 | M63: 1215 | N63: 1215 | O63: 1215 | P63: 1215 | Q63: 1215 | R63: 1215 | S63: 1215 | T63: 1215 | U63: 1215 | V63: 1215 | W63: 1215 | X63: 1215 | Y63: 1215 | Z63: 1215 | AA63: 1215 | AB63: 1215 | AC63: 1215 | AD63: 1215 | AE63: 1215 | AF63: 1215 | AG63: 1215 | AH63: 1215 | AI63: 1215 | AJ63: 1215 | AK63: 1215 | AL63: 1215 | AM63: 1215 | AN63: 1215 | AO63: 1215 | AP63: =$E$63 -> 1215 | AQ63: 1215 | AR63: 1215 | AS63: 1215 | AT63: 1215 | AU63: 1215 | AV63: 1215 | AW63: 1215 | AX63: 1215 | AY63: 1215 | AZ63: 1215 | BA63: 1215 | BB63: 1215 | BC63: 1215 | BD63: 1215 | BE63: 1215 | BF63: 1215 | BG63: 1215 | BH63: 1215 | BI63: 1215 | BJ63: 1215 | BK63: 1215 | BL63: 1215 | BM63: 1215 | BN63: 1215 | BO63: 1215 | BP63: 1215 | BQ63: 1215 | BR63: 1215 | BS63: 1215 | BT63: 1215 | BU63: 1215 | BV63: =$E$63 -> 1215 | BW63: 1215 | BX63: 1215 | BY63: 1215 | BZ63: 1215 | CA63: 1215 | CB63: 1215 | CC63: 1215 | CD63: 1215 | CE63: 1215 | CF63: 1215 | CG63: 1215 | CH63: 1215 | CI63: 1215 | CJ63: 1215 | CK63: 1215 | CL63: 1215 | CM63: 1215 | CN63: 1215 | CO63: 1215 | CP63: 1215 | CQ63: 1215 | CR63: 1215 | CS63: 1215 | CT63: 1215 | CU63: 1215 | CV63: 1215 | CW63: 1215 | CX63: 1215 | CY63: 1215 | CZ63: 1215 | DA63: 1215 | DB63: =$E$63 -> 1215 | DC63: 1215 | DD63: 1215 | DE63: 1215 | DF63: 1215 | DG63: 1215 | DH63: 1215 | DI63: 1215 | DJ63: 1215 | DK63: 1215 | DL63: 1215 | DM63: 1215 | DN63: 1215 | DO63: 1215 | DP63: 1215 | DQ63: 1215 | DR63: 1215 | DS63: 1215 | DT63: 1215 | DU63: 1215 | DV63: 1215 | DW63: 1215 | DX63: 1215 | DY63: 1215 | DZ63: 1215 | EA63: 1215 | EB63: 1215 | EC63: 1215 | ED63: 1215 | EE63: 1215 | EF63: 1215 | EG63: 1215 | EH63: 1215
C64: Equity funded | D64: =curr -> k EUR | J64: =J63-J61 -> 765
C65: Remaining equity to fund | D65: =curr -> k EUR | J65: =J63-J64 -> 450
C67: Opening equity balance | D67: =curr -> k EUR
C68: Equity issued | D68: =curr -> k EUR
C70: Closing balance | D70: =curr -> k EUR
C73: Equity | G73: =SUM(J73:EH73) -> 1215 | J73: =IF(J3=1,$E$111,0) -> 1215 | K73: 0 | L73: 0 | M73: 0 | N73: 0 | O73: 0 | P73: 0 | Q73: 0 | R73: 0 | S73: 0 | T73: 0 | U73: 0 | V73: 0 | W73: 0 | X73: 0 | Y73: 0 | Z73: 0 | AA73: 0 | AB73: 0 | AC73: 0 | AD73: 0 | AE73: 0 | AF73: 0 | AG73: 0 | AH73: 0 | AI73: 0 | AJ73: 0 | AK73: 0 | AL73: 0 | AM73: 0 | AN73: 0 | AO73: 0 | AP73: =IF(AP3=1,$E$111,0) -> 0 | AQ73: 0 | AR73: 0 | AS73: 0 | AT73: 0 | AU73: 0 | AV73: 0 | AW73: 0 | AX73: 0 | AY73: 0 | AZ73: 0 | BA73: 0 | BB73: 0 | BC73: 0 | BD73: 0 | BE73: 0 | BF73: 0 | BG73: 0 | BH73: 0 | BI73: 0 | BJ73: 0 | BK73: 0 | BL73: 0 | BM73: 0 | BN73: 0 | BO73: 0 | BP73: 0 | BQ73: 0 | BR73: 0 | BS73: 0 | BT73: 0 | BU73: 0 | BV73: =IF(BV3=1,$E$111,0) -> 0 | BW73: 0 | BX73: 0 | BY73: 0 | BZ73: 0 | CA73: 0 | CB73: 0 | CC73: 0 | CD73: 0 | CE73: 0 | CF73: 0 | CG73: 0 | CH73: 0 | CI73: 0 | CJ73: 0 | CK73: 0 | CL73: 0 | CM73: 0 | CN73: 0 | CO73: 0 | CP73: 0 | CQ73: 0 | CR73: 0 | CS73: 0 | CT73: 0 | CU73: 0 | CV73: 0 | CW73: 0 | CX73: 0 | CY73: 0 | CZ73: 0 | DA73: 0 | DB73: =IF(DB3=1,$E$111,0) -> 0 | DC73: 0 | DD73: 0 | DE73: 0 | DF73: 0 | DG73: 0 | DH73: 0 | DI73: 0 | DJ73: 0 | DK73: 0 | DL73: 0 | DM73: 0 | DN73: 0 | DO73: 0 | DP73: 0 | DQ73: 0 | DR73: 0 | DS73: 0 | DT73: 0 | DU73: 0 | DV73: 0 | DW73: 0 | DX73: 0 | DY73: 0 | DZ73: 0 | EA73: 0 | EB73: 0 | EC73: 0 | ED73: 0 | EE73: 0 | EF73: 0 | EG73: 0 | EH73: 0
C74: Debt | G74: =SUM(J74:EH74) -> 3600 | J74: =MAX(0,J61-J73) -> 0 | K74: 450 | L74: 450 | M74: 450 | N74: 450 | O74: 450 | P74: 450 | Q74: 450 | R74: 450 | S74: 0 | T74: 0 | U74: 0 | V74: 0 | W74: 0 | X74: 0 | Y74: 0 | Z74: 0 | AA74: 0 | AB74: 0 | AC74: 0 | AD74: 0 | AE74: 0 | AF74: 0 | AG74: 0 | AH74: 0 | AI74: 0 | AJ74: 0 | AK74: 0 | AL74: 0 | AM74: 0 | AN74: 0 | AO74: 0 | AP74: =MAX(0,AP61-AP73) -> 0 | AQ74: 0 | AR74: 0 | AS74: 0 | AT74: 0 | AU74: 0 | AV74: 0 | AW74: 0 | AX74: 0 | AY74: 0 | AZ74: 0 | BA74: 0 | BB74: 0 | BC74: 0 | BD74: 0 | BE74: 0 | BF74: 0 | BG74: 0 | BH74: 0 | BI74: 0 | BJ74: 0 | BK74: 0 | BL74: 0 | BM74: 0 | BN74: 0 | BO74: 0 | BP74: 0 | BQ74: 0 | BR74: 0 | BS74: 0 | BT74: 0 | BU74: 0 | BV74: =MAX(0,BV61-BV73) -> 0 | BW74: 0 | BX74: 0 | BY74: 0 | BZ74: 0 | CA74: 0 | CB74: 0 | CC74: 0 | CD74: 0 | CE74: 0 | CF74: 0 | CG74: 0 | CH74: 0 | CI74: 0 | CJ74: 0 | CK74: 0 | CL74: 0 | CM74: 0 | CN74: 0 | CO74: 0 | CP74: 0 | CQ74: 0 | CR74: 0 | CS74: 0 | CT74: 0 | CU74: 0 | CV74: 0 | CW74: 0 | CX74: 0 | CY74: 0 | CZ74: 0 | DA74: 0 | DB74: =MAX(0,DB61-DB73) -> 0 | DC74: 0 | DD74: 0 | DE74: 0 | DF74: 0 | DG74: 0 | DH74: 0 | DI74: 0 | DJ74: 0 | DK74: 0 | DL74: 0 | DM74: 0 | DN74: 0 | DO74: 0 | DP74: 0 | DQ74: 0 | DR74: 0 | DS74: 0 | DT74: 0 | DU74: 0 | DV74: 0 | DW74: 0 | DX74: 0 | DY74: 0 | DZ74: 0 | EA74: 0 | EB74: 0 | EC74: 0 | ED74: 0 | EE74: 0 | EF74: 0 | EG74: 0 | EH74: =MAX(0,EH61-EH73) -> 0
C76: Total sources
C78: Debt sizing - DSCR
C79: =C173 -> Cashflow available for senior debt | D79: =D173 -> k EUR | J79: =J173 -> 765 | K79: 0 | L79: 0 | M79: 0 | N79: 0 | O79: 0 | P79: 0 | Q79: 0 | R79: 0 | S79: 44.14583333 | T79: 41.53124193 | U79: 41.51560076 | V79: 44.08326865 | W79: 41.48429409 | X79: 41.46862855 | Y79: 44.00002515 | Z79: 41.43727295 | AA79: 41.42158286 | AB79: 43.86805253 | AC79: 41.39017802 | AD79: 41.37446322 | AE79: 43.71016594 | AF79: 41.3430088 | AG79: 41.32726914 | AH79: 43.57896744 | AI79: 41.29576481 | AJ79: 41.28000011 | AK79: 43.47168797 | AL79: 41.24844555 | AM79: 41.23265564 | AN79: 43.3394159 | AO79: 41.20105051 | AP79: =AP173 -> 41.18523524 | AQ79: 43.16277086 | AR79: 41.15357921 | AS79: 41.1377384 | AT79: 43.05341737 | AU79: 41.10603113 | AV79: 41.09016462 | AW79: 42.94214107 | AX79: 41.05840577 | AY79: 41.04251339 | AZ79: 42.80956157 | BA79: 41.01070263 | BB79: 40.99478421 | BC79: 42.63998988 | BD79: 40.96292119 | BE79: 40.94697655 | BF79: 42.5266335 | BG79: 40.91506094 | BH79: 40.89908992 | BI79: 42.41135226 | BJ79: 40.86712137 | BK79: 40.85112379 | BL79: 42.27845717 | BM79: 40.81910196 | BN79: 40.80307765 | BO79: 42.11595065 | BP79: 40.77100218 | BQ79: 40.75495097 | BR79: 41.99858314 | BS79: 40.72282152 | BT79: 40.70674324 | BU79: 41.8792887 | BV79: =BV173 -> 40.67455946 | BW79: 40.65845392 | BX79: 41.74606972 | BY79: 40.62621545 | BZ79: 40.61008248 | CA79: 41.60169424 | CB79: 40.57778898 | CC79: 40.56162841 | CD79: 41.469233 | CE79: 40.52927951 | CF79: 40.51309115 | CG79: 41.34591693 | CH79: 40.4806865 | CI79: 40.46447018 | CJ79: 41.21236559 | CK79: 40.43200943 | CL79: 40.41576496 | CM79: 41.06396419 | CN79: 40.38324774 | CO79: 40.36697494 | CP79: 40.93854911 | CQ79: 40.33440089 | CR79: 40.31809959 | CS79: 40.81120281 | CT79: 40.28546834 | CU79: 40.26913835 | CV79: 40.67731047 | CW79: 40.23644954 | CX79: 40.22009067 | CY79: 40.53594871 | CZ79: 40.18734393 | DA79: 40.17095602 | DB79: =DB173 -> 40.40649685 | DC79: 40.13815098 | DD79: 40.12173382 | DE79: 40.27511155 | DF79: 40.08887011 | DG79: 40.07242352 | DH79: 40.14086942 | DI79: 40.03950077 | DJ79: 40.02302456 | DK79: 40.00653845 | DL79: 39.9900424 | DM79: 39.97353639 | DN79: 39.95702041 | DO79: 39.94049443 | DP79: 39.92395843 | DQ79: 39.90741239 | DR79: 39.89085629 | DS79: 39.87429011 | DT79: 39.85771383 | DU79: 39.84112742 | DV79: 39.82453087 | DW79: 39.80792415 | DX79: 39.79130725 | DY79: 39.77468013 | DZ79: 39.75804279 | EA79: 39.74139519 | EB79: 39.72473732 | EC79: 39.70806915 | ED79: 39.69139067 | EE79: 39.67470185 | EF79: 39.65800267 | EG79: 39.6412931 | EH79: 39.62457314
C80: CFADS over senior debt term | D80: =curr -> k EUR | J80: =J79*J14 -> 0 | K80: 0 | L80: 0 | M80: 0 | N80: 0 | O80: 0 | P80: 0 | Q80: 0 | R80: 0 | S80: 44.14583333 | T80: 41.53124193 | U80: 41.51560076 | V80: 44.08326865 | W80: 41.48429409 | X80: 41.46862855 | Y80: 44.00002515 | Z80: 41.43727295 | AA80: 41.42158286 | AB80: 43.86805253 | AC80: 41.39017802 | AD80: 41.37446322 | AE80: 43.71016594 | AF80: 41.3430088 | AG80: 41.32726914 | AH80: 43.57896744 | AI80: 41.29576481 | AJ80: 41.28000011 | AK80: 43.47168797 | AL80: 41.24844555 | AM80: 41.23265564 | AN80: 43.3394159 | AO80: 41.20105051 | AP80: =AP79*AP14 -> 41.18523524 | AQ80: 43.16277086 | AR80: 41.15357921 | AS80: 41.1377384 | AT80: 43.05341737 | AU80: 41.10603113 | AV80: 41.09016462 | AW80: 42.94214107 | AX80: 41.05840577 | AY80: 41.04251339 | AZ80: 42.80956157 | BA80: 41.01070263 | BB80: 40.99478421 | BC80: 42.63998988 | BD80: 40.96292119 | BE80: 40.94697655 | BF80: 42.5266335 | BG80: 40.91506094 | BH80: 40.89908992 | BI80: 42.41135226 | BJ80: 40.86712137 | BK80: 40.85112379 | BL80: 42.27845717 | BM80: 40.81910196 | BN80: 40.80307765 | BO80: 42.11595065 | BP80: 40.77100218 | BQ80: 40.75495097 | BR80: 41.99858314 | BS80: 40.72282152 | BT80: 40.70674324 | BU80: 41.8792887 | BV80: =BV79*BV14 -> 40.67455946 | BW80: 40.65845392 | BX80: 41.74606972 | BY80: 40.62621545 | BZ80: 40.61008248 | CA80: 41.60169424 | CB80: 40.57778898 | CC80: 40.56162841 | CD80: 41.469233 | CE80: 40.52927951 | CF80: 40.51309115 | CG80: 41.34591693 | CH80: 40.4806865 | CI80: 40.46447018 | CJ80: 41.21236559 | CK80: 40.43200943 | CL80: 40.41576496 | CM80: 41.06396419 | CN80: 40.38324774 | CO80: 40.36697494 | CP80: 40.93854911 | CQ80: 40.33440089 | CR80: 40.31809959 | CS80: 40.81120281 | CT80: 40.28546834 | CU80: 40.26913835 | CV80: 40.67731047 | CW80: 40.23644954 | CX80: 40.22009067 | CY80: 40.53594871 | CZ80: 40.18734393 | DA80: 40.17095602 | DB80: =DB79*DB14 -> 40.40649685 | DC80: 40.13815098 | DD80: 40.12173382 | DE80: 40.27511155 | DF80: 40.08887011 | DG80: 40.07242352 | DH80: 40.14086942 | DI80: 40.03950077 | DJ80: 40.02302456 | DK80: 0 | DL80: 0 | DM80: 0 | DN80: 0 | DO80: 0 | DP80: 0 | DQ80: 0 | DR80: 0 | DS80: 0 | DT80: 0 | DU80: 0 | DV80: 0 | DW80: 0 | DX80: 0 | DY80: 0 | DZ80: 0 | EA80: 0 | EB80: 0 | EC80: 0 | ED80: 0 | EE80: 0 | EF80: 0 | EG80: 0 | EH80: =EH79*EH14 -> 0
C81: DSCR | D81: ratio | E81: 1.2
C82: Debt service at target DSCR | D82: =curr -> k EUR | J82: =IF(J14=1,J80/$E$81,0) -> 0 | K82: 0 | L82: 0 | M82: 0 | N82: 0 | O82: 0 | P82: 0 | Q82: 0 | R82: 0 | S82: 36.78819444 | T82: 34.60936827 | U82: 34.59633397 | V82: 36.73605721 | W82: 34.57024508 | X82: 34.55719046 | Y82: 36.66668763 | Z82: 34.53106079 | AA82: 34.51798572 | AB82: 36.55671044 | AC82: 34.49181502 | AD82: 34.47871935 | AE82: 36.42513828 | AF82: 34.45250734 | AG82: 34.43939095 | AH82: 36.3158062 | AI82: 34.41313734 | AJ82: 34.40000009 | AK82: 36.22640664 | AL82: 34.37370462 | AM82: 34.36054637 | AN82: 36.11617992 | AO82: 34.33420876 | AP82: =IF(AP14=1,AP80/$E$81,0) -> 34.32102937 | AQ82: 35.96897571 | AR82: 34.29464934 | AS82: 34.28144867 | AT82: 35.87784781 | AU82: 34.25502594 | AV82: 34.24180385 | AW82: 35.78511756 | AX82: 34.21533814 | AY82: 34.20209449 | AZ82: 35.67463464 | BA82: 34.17558552 | BB82: 34.16232017 | BC82: 35.5333249 | BD82: 34.13576766 | BE82: 34.12248046 | BF82: 35.43886125 | BG82: 34.09588412 | BH82: 34.08257494 | BI82: 35.34279355 | BJ82: 34.05593447 | BK82: 34.04260316 | BL82: 35.23204765 | BM82: 34.0159183 | BN82: 34.00256471 | BO82: 35.09662554 | BP82: 33.97583515 | BQ82: 33.96245915 | BR82: 34.99881929 | BS82: 33.9356846 | BT82: 33.92228603 | BU82: 34.89940725 | BV82: =IF(BV14=1,BV80/$E$81,0) -> 33.89546621 | BW82: 33.88204493 | BX82: 34.78839144 | BY82: 33.85517954 | BZ82: 33.8417354 | CA82: 34.66807853 | CB82: 33.81482415 | CC82: 33.801357 | CD82: 34.55769417 | CE82: 33.77439959 | CF82: 33.76090929 | CG82: 34.45493077 | CH82: 33.73390542 | CI82: 33.72039182 | CJ82: 34.34363799 | CK82: 33.69334119 | CL82: 33.67980413 | CM82: 34.21997016 | CN82: 33.65270645 | CO82: 33.63914578 | CP82: 34.11545759 | CQ82: 33.61200074 | CR82: 33.59841632 | CS82: 34.00933567 | CT82: 33.57122361 | CU82: 33.55761529 | CV82: 33.89775873 | CW82: 33.53037461 | CX82: 33.51674223 | CY82: 33.77995726 | CZ82: 33.48945328 | DA82: 33.47579668 | DB82: =IF(DB14=1,DB80/$E$81,0) -> 33.67208071 | DC82: 33.44845915 | DD82: 33.43477818 | DE82: 33.56259296 | DF82: 33.40739176 | DG82: 33.39368627 | DH82: 33.45072452 | DI82: 33.36625064 | DJ82: 33.35252047 | DK82: 0 | DL82: 0 | DM82: 0 | DN82: 0 | DO82: 0 | DP82: 0 | DQ82: 0 | DR82: 0 | DS82: 0 | DT82: 0 | DU82: 0 | DV82: 0 | DW82: 0 | DX82: 0 | DY82: 0 | DZ82: 0 | EA82: 0 | EB82: 0 | EC82: 0 | ED82: 0 | EE82: 0 | EF82: 0 | EG82: 0 | EH82: 0
C83: =C120 -> Interest rate during operations applicable in period | D83: =D120 -> % per period | J83: =J120 -> 0 | K83: 0 | L83: 0 | M83: 0 | N83: 0 | O83: 0 | P83: 0 | Q83: 0 | R83: 0 | S83: 0.00375 | T83: 0 | U83: 0 | V83: 0.003791666667 | W83: 0 | X83: 0 | Y83: 0.003833333333 | Z83: 0 | AA83: 0 | AB83: 0.003833333333 | AC83: 0 | AD83: 0 | AE83: 0.003791666667 | AF83: 0 | AG83: 0 | AH83: 0.003791666667 | AI83: 0 | AJ83: 0 | AK83: 0.003833333333 | AL83: 0 | AM83: 0 | AN83: 0.003833333333 | AO83: 0 | AP83: =AP120 -> 0 | AQ83: 0.00375 | AR83: 0 | AS83: 0 | AT83: 0.003791666667 | AU83: 0 | AV83: 0 | AW83: 0.003833333333 | AX83: 0 | AY83: 0 | AZ83: 0.003833333333 | BA83: 0 | BB83: 0 | BC83: 0.00375 | BD83: 0 | BE83: 0 | BF83: 0.003791666667 | BG83: 0 | BH83: 0 | BI83: 0.003833333333 | BJ83: 0 | BK83: 0 | BL83: 0.003833333333 | BM83: 0 | BN83: 0 | BO83: 0.00375 | BP83: 0 | BQ83: 0 | BR83: 0.003791666667 | BS83: 0 | BT83: 0 | BU83: 0.003833333333 | BV83: =BV120 -> 0 | BW83: 0 | BX83: 0.003833333333 | BY83: 0 | BZ83: 0 | CA83: 0.003791666667 | CB83: 0 | CC83: 0 | CD83: 0.003791666667 | CE83: 0 | CF83: 0 | CG83: 0.003833333333 | CH83: 0 | CI83: 0 | CJ83: 0.003833333333 | CK83: 0 | CL83: 0 | CM83: 0.00375 | CN83: 0 | CO83: 0 | CP83: 0.003791666667 | CQ83: 0 | CR83: 0 | CS83: 0.003833333333 | CT83: 0 | CU83: 0 | CV83: 0.003833333333 | CW83: 0 | CX83: 0 | CY83: 0.00375 | CZ83: 0 | DA83: 0 | DB83: =DB120 -> 0.003791666667 | DC83: 0 | DD83: 0 | DE83: 0.003833333333 | DF83: 0 | DG83: 0 | DH83: 0.003833333333 | DI83: 0 | DJ83: 0 | DK83: 0 | DL83: 0 | DM83: 0 | DN83: 0 | DO83: 0 | DP83: 0 | DQ83: 0 | DR83: 0 | DS83: 0 | DT83: 0 | DU83: 0 | DV83: 0 | DW83: 0 | DX83: 0 | DY83: 0 | DZ83: 0 | EA83: 0 | EB83: 0 | EC83: 0 | ED83: 0 | EE83: 0 | EF83: 0 | EG83: 0 | EH83: 0
C84: Senior debt discount factor | D84: factor | J84: =IF(J8=1,1,I84/(1+J83)) -> 0 | K84: 0 | L84: 0 | M84: 0 | N84: 0 | O84: 0 | P84: 0 | Q84: 0 | R84: 1 | S84: 0.99626401 | T84: 0.99626401 | U84: 0.99626401 | V84: 0.9925007778 | W84: 0.9925007778 | X84: 0.9925007778 | Y84: 0.9887107201 | Z84: 0.9887107201 | AA84: 0.9887107201 | AB84: 0.9849351354 | AC84: 0.9849351354 | AD84: 0.9849351354 | AE84: 0.9812146963 | AF84: 0.9812146963 | AG84: 0.9812146963 | AH84: 0.9775083107 | AI84: 0.9775083107 | AJ84: 0.9775083107 | AK84: 0.9737755046 | AL84: 0.9737755046 | AM84: 0.9737755046 | AN84: 0.9700569529 | AO84: 0.9700569529 | AP84: =IF(AP8=1,1,AO84/(1+AP83)) -> 0.9700569529 | AQ84: 0.9664328298 | AR84: 0.9664328298 | AS84: 0.9664328298 | AT84: 0.9627822803 | AU84: 0.9627822803 | AV84: 0.9627822803 | AW84: 0.9591057084 | AX84: 0.9591057084 | AY84: 0.9591057084 | AZ84: 0.9554431763 | BA84: 0.9554431763 | BB84: 0.9554431763 | BC84: 0.9518736501 | BD84: 0.9518736501 | BE84: 0.9518736501 | BF84: 0.9482780956 | BG84: 0.9482780956 | BH84: 0.9482780956 | BI84: 0.9446569108 | BJ84: 0.9446569108 | BK84: 0.9446569108 | BL84: 0.9410495542 | BM84: 0.9410495542 | BN84: 0.9410495542 | BO84: 0.9375338024 | BP84: 0.9375338024 | BQ84: 0.9375338024 | BR84: 0.9339924145 | BS84: 0.9339924145 | BT84: 0.9339924145 | BU84: 0.9304257824 | BV84: =IF(BV8=1,1,BU84/(1+BV83)) -> 0.9304257824 | BW84: 0.9304257824 | BX84: 0.9268727701 | BY84: 0.9268727701 | BZ84: 0.9268727701 | CA84: 0.9233716525 | CB84: 0.9233716525 | CC84: 0.9233716525 | CD84: 0.91988376 | CE84: 0.91988376 | CF84: 0.91988376 | CG84: 0.9163710044 | CH84: 0.9163710044 | CI84: 0.9163710044 | CJ84: 0.9128716631 | CK84: 0.9128716631 | CL84: 0.9128716631 | CM84: 0.9094611836 | CN84: 0.9094611836 | CO84: 0.9094611836 | CP84: 0.9060258357 | CQ84: 0.9060258357 | CR84: 0.9060258357 | CS84: 0.9025659993 | CT84: 0.9025659993 | CU84: 0.9025659993 | CV84: 0.8991193751 | CW84: 0.8991193751 | CX84: 0.8991193751 | CY84: 0.895760274 | CZ84: 0.895760274 | DA84: 0.895760274 | DB84: =IF(DB8=1,1,DA84/(1+DB83)) -> 0.8923766791 | DC84: 0.8923766791 | DD84: 0.8923766791 | DE84: 0.8889689648 | DF84: 0.8889689648 | DG84: 0.8889689648 | DH84: 0.8855742634 | DI84: 0.8855742634 | DJ84: 0.8855742634 | DK84: 0.8855742634 | DL84: 0.8855742634 | DM84: 0.8855742634 | DN84: 0.8855742634 | DO84: 0.8855742634 | DP84: 0.8855742634 | DQ84: 0.8855742634 | DR84: 0.8855742634 | DS84: 0.8855742634 | DT84: 0.8855742634 | DU84: 0.8855742634 | DV84: 0.8855742634 | DW84: 0.8855742634 | DX84: 0.8855742634 | DY84: 0.8855742634 | DZ84: 0.8855742634 | EA84: 0.8855742634 | EB84: 0.8855742634 | EC84: 0.8855742634 | ED84: 0.8855742634 | EE84: 0.8855742634 | EF84: 0.8855742634 | EG84: 0.8855742634 | EH84: =IF(EH8=1,1,EG84/(1+EH83)) -> 0.8855742634
C85: Debt capacity at target DSCR | D85: =curr -> k EUR | E85: =SUMPRODUCT(J82:EH82,J84:EH84) -> 3103.718992
C87: Monthly interest rate | D87: % per period | J87: =ModelingExercise!$F$81/12 -> 0.00125 | K87: =ModelingExercise!$F$81/12 -> 0.00125 | L87: =ModelingExercise!$F$81/12 -> 0.00125 | M87: =ModelingExercise!$F$81/12 -> 0.00125 | N87: =ModelingExercise!$F$81/12 -> 0.00125 | O87: =ModelingExercise!$F$81/12 -> 0.00125 | P87: =ModelingExercise!$F$81/12 -> 0.00125 | Q87: =ModelingExercise!$F$81/12 -> 0.00125 | R87: =ModelingExercise!$F$81/12 -> 0.00125 | S87: =ModelingExercise!$F$81/12 -> 0.00125 | T87: =ModelingExercise!$F$81/12 -> 0.00125 | U87: =ModelingExercise!$F$81/12 -> 0.00125 | V87: =ModelingExercise!$F$81/12 -> 0.00125 | W87: =ModelingExercise!$F$81/12 -> 0.00125 | X87: =ModelingExercise!$F$81/12 -> 0.00125 | Y87: =ModelingExercise!$F$81/12 -> 0.00125 | Z87: =ModelingExercise!$F$81/12 -> 0.00125 | AA87: =ModelingExercise!$F$81/12 -> 0.00125 | AB87: =ModelingExercise!$F$81/12 -> 0.00125 | AC87: =ModelingExercise!$F$81/12 -> 0.00125 | AD87: =ModelingExercise!$F$81/12 -> 0.00125 | AE87: =ModelingExercise!$F$81/12 -> 0.00125 | AF87: =ModelingExercise!$F$81/12 -> 0.00125 | AG87: =ModelingExercise!$F$81/12 -> 0.00125 | AH87: =ModelingExercise!$F$81/12 -> 0.00125 | AI87: =ModelingExercise!$F$81/12 -> 0.00125 | AJ87: =ModelingExercise!$F$81/12 -> 0.00125 | AK87: =ModelingExercise!$F$81/12 -> 0.00125 | AL87: =ModelingExercise!$F$81/12 -> 0.00125 | AM87: =ModelingExercise!$F$81/12 -> 0.00125 | AN87: =ModelingExercise!$F$81/12 -> 0.00125 | AO87: =ModelingExercise!$F$81/12 -> 0.00125 | AP87: =ModelingExercise!$F$81/12 -> 0.00125 | AQ87: =ModelingExercise!$F$81/12 -> 0.00125 | AR87: =ModelingExercise!$F$81/12 -> 0.00125 | AS87: =ModelingExercise!$F$81/12 -> 0.00125 | AT87: =ModelingExercise!$F$81/12 -> 0.00125 | AU87: =ModelingExercise!$F$81/12 -> 0.00125 | AV87: =ModelingExercise!$F$81/12 -> 0.00125 | AW87: =ModelingExercise!$F$81/12 -> 0.00125 | AX87: =ModelingExercise!$F$81/12 -> 0.00125 | AY87: =ModelingExercise!$F$81/12 -> 0.00125 | AZ87: =ModelingExercise!$F$81/12 -> 0.00125 | BA87: =ModelingExercise!$F$81/12 -> 0.00125 | BB87: =ModelingExercise!$F$81/12 -> 0.00125 | BC87: =ModelingExercise!$F$81/12 -> 0.00125 | BD87: =ModelingExercise!$F$81/12 -> 0.00125 | BE87: =ModelingExercise!$F$81/12 -> 0.00125 | BF87: =ModelingExercise!$F$81/12 -> 0.00125 | BG87: =ModelingExercise!$F$81/12 -> 0.00125 | BH87: =ModelingExercise!$F$81/12 -> 0.00125 | BI87: =ModelingExercise!$F$81/12 -> 0.00125 | BJ87: =ModelingExercise!$F$81/12 -> 0.00125 | BK87: =ModelingExercise!$F$81/12 -> 0.00125 | BL87: =ModelingExercise!$F$81/12 -> 0.00125 | BM87: =ModelingExercise!$F$81/12 -> 0.00125 | BN87: =ModelingExercise!$F$81/12 -> 0.00125 | BO87: =ModelingExercise!$F$81/12 -> 0.00125 | BP87: =ModelingExercise!$F$81/12 -> 0.00125 | BQ87: =ModelingExercise!$F$81/12 -> 0.00125 | BR87: =ModelingExercise!$F$81/12 -> 0.00125 | BS87: =ModelingExercise!$F$81/12 -> 0.00125 | BT87: =ModelingExercise!$F$81/12 -> 0.00125 | BU87: =ModelingExercise!$F$81/12 -> 0.00125 | BV87: =ModelingExercise!$F$81/12 -> 0.00125 | BW87: =ModelingExercise!$F$81/12 -> 0.00125 | BX87: =ModelingExercise!$F$81/12 -> 0.00125 | BY87: =ModelingExercise!$F$81/12 -> 0.00125 | BZ87: =ModelingExercise!$F$81/12 -> 0.00125 | CA87: =ModelingExercise!$F$81/12 -> 0.00125 | CB87: =ModelingExercise!$F$81/12 -> 0.00125 | CC87: =ModelingExercise!$F$81/12 -> 0.00125 | CD87: =ModelingExercise!$F$81/12 -> 0.00125 | CE87: =ModelingExercise!$F$81/12 -> 0.00125 | CF87: =ModelingExercise!$F$81/12 -> 0.00125 | CG87: =ModelingExercise!$F$81/12 -> 0.00125 | CH87: =ModelingExercise!$F$81/12 -> 0.00125 | CI87: =ModelingExercise!$F$81/12 -> 0.00125 | CJ87: =ModelingExercise!$F$81/12 -> 0.00125 | CK87: =ModelingExercise!$F$81/12 -> 0.00125 | CL87: =ModelingExercise!$F$81/12 -> 0.00125 | CM87: =ModelingExercise!$F$81/12 -> 0.00125 | CN87: =ModelingExercise!$F$81/12 -> 0.00125 | CO87: =ModelingExercise!$F$81/12 -> 0.00125 | CP87: =ModelingExercise!$F$81/12 -> 0.00125 | CQ87: =ModelingExercise!$F$81/12 -> 0.00125 | CR87: =ModelingExercise!$F$81/12 -> 0.00125 | CS87: =ModelingExercise!$F$81/12 -> 0.00125 | CT87: =ModelingExercise!$F$81/12 -> 0.00125 | CU87: =ModelingExercise!$F$81/12 -> 0.00125 | CV87: =ModelingExercise!$F$81/12 -> 0.00125 | CW87: =ModelingExercise!$F$81/12 -> 0.00125 | CX87: =ModelingExercise!$F$81/12 -> 0.00125 | CY87: =ModelingExercise!$F$81/12 -> 0.00125 | CZ87: =ModelingExercise!$F$81/12 -> 0.00125 | DA87: =ModelingExercise!$F$81/12 -> 0.00125 | DB87: =ModelingExercise!$F$81/12 -> 0.00125 | DC87: =ModelingExercise!$F$81/12 -> 0.00125 | DD87: =ModelingExercise!$F$81/12 -> 0.00125 | DE87: =ModelingExercise!$F$81/12 -> 0.00125 | DF87: =ModelingExercise!$F$81/12 -> 0.00125 | DG87: =ModelingExercise!$F$81/12 -> 0.00125 | DH87: =ModelingExercise!$F$81/12 -> 0.00125 | DI87: =ModelingExercise!$F$81/12 -> 0.00125 | DJ87: =ModelingExercise!$F$81/12 -> 0.00125 | DK87: =ModelingExercise!$F$81/12 -> 0.00125 | DL87: =ModelingExercise!$F$81/12 -> 0.00125 | DM87: =ModelingExercise!$F$81/12 -> 0.00125 | DN87: =ModelingExercise!$F$81/12 -> 0.00125 | DO87: =ModelingExercise!$F$81/12 -> 0.00125 | DP87: =ModelingExercise!$F$81/12 -> 0.00125 | DQ87: =ModelingExercise!$F$81/12 -> 0.00125 | DR87: =ModelingExercise!$F$81/12 -> 0.00125 | DS87: =ModelingExercise!$F$81/12 -> 0.00125 | DT87: =ModelingExercise!$F$81/12 -> 0.00125 | DU87: =ModelingExercise!$F$81/12 -> 0.00125 | DV87: =ModelingExercise!$F$81/12 -> 0.00125 | DW87: =ModelingExercise!$F$81/12 -> 0.00125 | DX87: =ModelingExercise!$F$81/12 -> 0.00125 | DY87: =ModelingExercise!$F$81/12 -> 0.00125 | DZ87: =ModelingExercise!$F$81/12 -> 0.00125 | EA87: =ModelingExercise!$F$81/12 -> 0.00125 | EB87: =ModelingExercise!$F$81/12 -> 0.00125 | EC87: =ModelingExercise!$F$81/12 -> 0.00125 | ED87: =ModelingExercise!$F$81/12 -> 0.00125 | EE87: =ModelingExercise!$F$81/12 -> 0.00125 | EF87: =ModelingExercise!$F$81/12 -> 0.00125 | EG87: =ModelingExercise!$F$81/12 -> 0.00125 | EH87: =ModelingExercise!$F$81/12 -> 0.00125
C88: Quarterly interest rate | D88: % per period | J88: =SUMIF($13:$13,J13,$87:$87)*J12 -> 0 | K88: 0 | L88: 0 | M88: 0 | N88: 0 | O88: 0 | P88: 0 | Q88: 0 | R88: 0 | S88: 0 | T88: 0 | U88: 0.00375 | V88: 0 | W88: 0 | X88: 0.00375 | Y88: 0 | Z88: 0 | AA88: 0.00375 | AB88: 0 | AC88: 0 | AD88: 0.00375 | AE88: 0 | AF88: 0 | AG88: 0.00375 | AH88: 0 | AI88: 0 | AJ88: 0.00375 | AK88: 0 | AL88: 0 | AM88: 0.00375 | AN88: 0 | AO88: 0 | AP88: =SUMIF($13:$13,AP13,$87:$87)*AP12 -> 0.00375 | AQ88: 0 | AR88: 0 | AS88: 0.00375 | AT88: 0 | AU88: 0 | AV88: 0.00375 | AW88: 0 | AX88: 0 | AY88: 0.00375 | AZ88: 0 | BA88: 0 | BB88: 0.00375 | BC88: 0 | BD88: 0 | BE88: 0.00375 | BF88: 0 | BG88: 0 | BH88: 0.00375 | BI88: 0 | BJ88: 0 | BK88: 0.00375 | BL88: 0 | BM88: 0 | BN88: 0.00375 | BO88: 0 | BP88: 0 | BQ88: 0.00375 | BR88: 0 | BS88: 0 | BT88: 0.00375 | BU88: 0 | BV88: =SUMIF($13:$13,BV13,$87:$87)*BV12 -> 0 | BW88: 0.00375 | BX88: 0 | BY88: 0 | BZ88: 0.00375 | CA88: 0 | CB88: 0 | CC88: 0.00375 | CD88: 0 | CE88: 0 | CF88: 0.00375 | CG88: 0 | CH88: 0 | CI88: 0.00375 | CJ88: 0 | CK88: 0 | CL88: 0.00375 | CM88: 0 | CN88: 0 | CO88: 0.00375 | CP88: 0 | CQ88: 0 | CR88: 0.00375 | CS88: 0 | CT88: 0 | CU88: 0.00375 | CV88: 0 | CW88: 0 | CX88: 0.00375 | CY88: 0 | CZ88: 0 | DA88: 0.00375 | DB88: =SUMIF($13:$13,DB13,$87:$87)*DB12 -> 0 | DC88: 0 | DD88: 0.00375 | DE88: 0 | DF88: 0 | DG88: 0.00375 | DH88: 0 | DI88: 0 | DJ88: 0.00375 | DK88: 0 | DL88: 0 | DM88: 0.00375 | DN88: 0 | DO88: 0 | DP88: 0.00375 | DQ88: 0 | DR88: 0 | DS88: 0.00375 | DT88: 0 | DU88: 0 | DV88: 0.00375 | DW88: 0 | DX88: 0 | DY88: 0.00375 | DZ88: 0 | EA88: 0 | EB88: 0.00375 | EC88: 0 | ED88: 0 | EE88: 0.00375 | EF88: 0 | EG88: 0 | EH88: 0.00125
C89: Monthly CFADS | D89: =+curr -> k EUR | J89: =J173*J9 -> 0 | K89: 0 | L89: 0 | M89: 0 | N89: 0 | O89: 0 | P89: 0 | Q89: 0 | R89: 0 | S89: 44.14583333 | T89: 41.53124193 | U89: 41.51560076 | V89: 44.08326865 | W89: 41.48429409 | X89: 41.46862855 | Y89: 44.00002515 | Z89: 41.43727295 | AA89: 41.42158286 | AB89: 43.86805253 | AC89: 41.39017802 | AD89: 41.37446322 | AE89: 43.71016594 | AF89: 41.3430088 | AG89: 41.32726914 | AH89: 43.57896744 | AI89: 41.29576481 | AJ89: 41.28000011 | AK89: 43.47168797 | AL89: 41.24844555 | AM89: 41.23265564 | AN89: 43.3394159 | AO89: 41.20105051 | AP89: =AP173*AP9 -> 41.18523524 | AQ89: 43.16277086 | AR89: 41.15357921 | AS89: 41.1377384 | AT89: 43.05341737 | AU89: 41.10603113 | AV89: 41.09016462 | AW89: 42.94214107 | AX89: 41.05840577 | AY89: 41.04251339 | AZ89: 42.80956157 | BA89: 41.01070263 | BB89: 40.99478421 | BC89: 42.63998988 | BD89: 40.96292119 | BE89: 40.94697655 | BF89: 42.5266335 | BG89: 40.91506094 | BH89: 40.89908992 | BI89: 42.41135226 | BJ89: 40.86712137 | BK89: 40.85112379 | BL89: 42.27845717 | BM89: 40.81910196 | BN89: 40.80307765 | BO89: 42.11595065 | BP89: 40.77100218 | BQ89: 40.75495097 | BR89: 41.99858314 | BS89: 40.72282152 | BT89: 40.70674324 | BU89: 41.8792887 | BV89: =BV173*BV9 -> 40.67455946 | BW89: 40.65845392 | BX89: 41.74606972 | BY89: 40.62621545 | BZ89: 40.61008248 | CA89: 41.60169424 | CB89: 40.57778898 | CC89: 40.56162841 | CD89: 41.469233 | CE89: 40.52927951 | CF89: 40.51309115 | CG89: 41.34591693 | CH89: 40.4806865 | CI89: 40.46447018 | CJ89: 41.21236559 | CK89: 40.43200943 | CL89: 40.41576496 | CM89: 41.06396419 | CN89: 40.38324774 | CO89: 40.36697494 | CP89: 40.93854911 | CQ89: 40.33440089 | CR89: 40.31809959 | CS89: 40.81120281 | CT89: 40.28546834 | CU89: 40.26913835 | CV89: 40.67731047 | CW89: 40.23644954 | CX89: 40.22009067 | CY89: 40.53594871 | CZ89: 40.18734393 | DA89: 40.17095602 | DB89: =DB173*DB9 -> 40.40649685 | DC89: 40.13815098 | DD89: 40.12173382 | DE89: 40.27511155 | DF89: 40.08887011 | DG89: 40.07242352 | DH89: 40.14086942 | DI89: 40.03950077 | DJ89: 40.02302456 | DK89: 40.00653845 | DL89: 39.9900424 | DM89: 39.97353639 | DN89: 39.95702041 | DO89: 39.94049443 | DP89: 39.92395843 | DQ89: 39.90741239 | DR89: 39.89085629 | DS89: 39.87429011 | DT89: 39.85771383 | DU89: 39.84112742 | DV89: 39.82453087 | DW89: 39.80792415 | DX89: 39.79130725 | DY89: 39.77468013 | DZ89: 39.75804279 | EA89: 39.74139519 | EB89: 39.72473732 | EC89: 39.70806915 | ED89: 39.69139067 | EE89: 39.67470185 | EF89: 39.65800267 | EG89: 39.6412931 | EH89: 39.62457314
C90: Quarterly CFADS | D90: =+curr -> k EUR | J90: =SUMIF($13:$13,J13,$89:$89)*J12 -> 0 | K90: 0 | L90: 0 | M90: 0 | N90: 0 | O90: 0 | P90: 0 | Q90: 0 | R90: 0 | S90: 0 | T90: 0 | U90: 127.0831635 | V90: 0 | W90: 0 | X90: 126.9059267 | Y90: 0 | Z90: 0 | AA90: 126.6798134 | AB90: 0 | AC90: 0 | AD90: 126.427638 | AE90: 0 | AF90: 0 | AG90: 126.2020014 | AH90: 0 | AI90: 0 | AJ90: 126.0001336 | AK90: 0 | AL90: 0 | AM90: 125.7731221 | AN90: 0 | AO90: 0 | AP90: =SUMIF($13:$13,AP13,$89:$89)*AP12 -> 125.5015853 | AQ90: 0 | AR90: 0 | AS90: 125.2971869 | AT90: 0 | AU90: 0 | AV90: 125.0907115 | AW90: 0 | AX90: 0 | AY90: 124.8627776 | AZ90: 0 | BA90: 0 | BB90: 124.5976953 | BC90: 0 | BD90: 0 | BE90: 124.388671 | BF90: 0 | BG90: 0 | BH90: 124.1775636 | BI90: 0 | BJ90: 0 | BK90: 123.9486829 | BL90: 0 | BM90: 0 | BN90: 123.6900305 | BO90: 0 | BP90: 0 | BQ90: 123.4763556 | BR90: 0 | BS90: 0 | BT90: 123.2605914 | BU90: 0 | BV90: =SUMIF($13:$13,BV13,$89:$89)*BV12 -> 0 | BW90: 123.0307391 | BX90: 0 | BY90: 0 | BZ90: 122.7895657 | CA90: 0 | CB90: 0 | CC90: 122.5601409 | CD90: 0 | CE90: 0 | CF90: 122.3396946 | CG90: 0 | CH90: 0 | CI90: 122.1088452 | CJ90: 0 | CK90: 0 | CL90: 121.8629769 | CM90: 0 | CN90: 0 | CO90: 121.6399249 | CP90: 0 | CQ90: 0 | CR90: 121.4147707 | CS90: 0 | CT90: 0 | CU90: 121.1828984 | CV90: 0 | CW90: 0 | CX90: 120.9433833 | CY90: 0 | CZ90: 0 | DA90: 120.7156038 | DB90: =SUMIF($13:$13,DB13,$89:$89)*DB12 -> 0 | DC90: 0 | DD90: 120.4857155 | DE90: 0 | DF90: 0 | DG90: 120.2527937 | DH90: 0 | DI90: 0 | DJ90: 120.0196054 | DK90: 0 | DL90: 0 | DM90: 119.8710512 | DN90: 0 | DO90: 0 | DP90: 119.7222271 | DQ90: 0 | DR90: 0 | DS90: 119.5731314 | DT90: 0 | DU90: 0 | DV90: 119.4237623 | DW90: 0 | DX90: 0 | DY90: 119.2741181 | DZ90: 0 | EA90: 0 | EB90: 119.1241971 | EC90: 0 | ED90: 0 | EE90: 118.9739976 | EF90: 0 | EG90: 0 | EH90: 39.62457314 | EI90: 0
C91: Target DSCR | D91: ratio | E91: 1.2 | J91: =$E$91 -> 1.2 | K91: 1.2 | L91: 1.2 | M91: 1.2 | N91: 1.2 | O91: 1.2 | P91: 1.2 | Q91: 1.2 | R91: 1.2 | S91: 1.2 | T91: 1.2 | U91: 1.2 | V91: 1.2 | W91: 1.2 | X91: 1.2 | Y91: 1.2 | Z91: 1.2 | AA91: 1.2 | AB91: 1.2 | AC91: 1.2 | AD91: 1.2 | AE91: 1.2 | AF91: 1.2 | AG91: 1.2 | AH91: 1.2 | AI91: 1.2 | AJ91: 1.2 | AK91: 1.2 | AL91: 1.2 | AM91: 1.2 | AN91: 1.2 | AO91: 1.2 | AP91: =$E$91 -> 1.2 | AQ91: 1.2 | AR91: 1.2 | AS91: 1.2 | AT91: 1.2 | AU91: 1.2 | AV91: 1.2 | AW91: 1.2 | AX91: 1.2 | AY91: 1.2 | AZ91: 1.2 | BA91: 1.2 | BB91: 1.2 | BC91: 1.2 | BD91: 1.2 | BE91: 1.2 | BF91: 1.2 | BG91: 1.2 | BH91: 1.2 | BI91: 1.2 | BJ91: 1.2 | BK91: 1.2 | BL91: 1.2 | BM91: 1.2 | BN91: 1.2 | BO91: 1.2 | BP91: 1.2 | BQ91: 1.2 | BR91: 1.2 | BS91: 1.2 | BT91: 1.2 | BU91: 1.2 | BV91: =$E$91 -> 1.2 | BW91: 1.2 | BX91: 1.2 | BY91: 1.2 | BZ91: 1.2 | CA91: 1.2 | CB91: 1.2 | CC91: 1.2 | CD91: 1.2 | CE91: 1.2 | CF91: 1.2 | CG91: 1.2 | CH91: 1.2 | CI91: 1.2 | CJ91: 1.2 | CK91: 1.2 | CL91: 1.2 | CM91: 1.2 | CN91: 1.2 | CO91: 1.2 | CP91: 1.2 | CQ91: 1.2 | CR91: 1.2 | CS91: 1.2 | CT91: 1.2 | CU91: 1.2 | CV91: 1.2 | CW91: 1.2 | CX91: 1.2 | CY91: 1.2 | CZ91: 1.2 | DA91: 1.2 | DB91: =$E$91 -> 1.2 | DC91: 1.2 | DD91: 1.2 | DE91: 1.2 | DF91: 1.2 | DG91: 1.2 | DH91: 1.2 | DI91: 1.2 | DJ91: 1.2 | DK91: 1.2 | DL91: 1.2 | DM91: 1.2 | DN91: 1.2 | DO91: 1.2 | DP91: 1.2 | DQ91: 1.2 | DR91: 1.2 | DS91: 1.2 | DT91: 1.2 | DU91: 1.2 | DV91: 1.2 | DW91: 1.2 | DX91: 1.2 | DY91: 1.2 | DZ91: 1.2 | EA91: 1.2 | EB91: 1.2 | EC91: 1.2 | ED91: 1.2 | EE91: 1.2 | EF91: 1.2 | EG91: 1.2 | EH91: 1.2 | EI91: 1.2
C92: Target DS | D92: =+curr -> k EUR | J92: =J90/J91 -> 0 | K92: 0 | L92: 0 | M92: 0 | N92: 0 | O92: 0 | P92: 0 | Q92: 0 | R92: 0 | S92: 0 | T92: 0 | U92: 105.9026363 | V92: 0 | W92: 0 | X92: 105.7549389 | Y92: 0 | Z92: 0 | AA92: 105.5665112 | AB92: 0 | AC92: 0 | AD92: 105.356365 | AE92: 0 | AF92: 0 | AG92: 105.1683345 | AH92: 0 | AI92: 0 | AJ92: 105.0001114 | AK92: 0 | AL92: 0 | AM92: 104.810935 | AN92: 0 | AO92: 0 | AP92: =AP90/AP91 -> 104.5846544 | AQ92: 0 | AR92: 0 | AS92: 104.4143224 | AT92: 0 | AU92: 0 | AV92: 104.2422596 | AW92: 0 | AX92: 0 | AY92: 104.0523147 | AZ92: 0 | BA92: 0 | BB92: 103.8314127 | BC92: 0 | BD92: 0 | BE92: 103.6572258 | BF92: 0 | BG92: 0 | BH92: 103.481303 | BI92: 0 | BJ92: 0 | BK92: 103.2905691 | BL92: 0 | BM92: 0 | BN92: 103.0750254 | BO92: 0 | BP92: 0 | BQ92: 102.896963 | BR92: 0 | BS92: 0 | BT92: 102.7171595 | BU92: 0 | BV92: =BV90/BV91 -> 0 | BW92: 102.5256159 | BX92: 0 | BY92: 0 | BZ92: 102.3246381 | CA92: 0 | CB92: 0 | CC92: 102.1334508 | CD92: 0 | CE92: 0 | CF92: 101.9497455 | CG92: 0 | CH92: 0 | CI92: 101.757371 | CJ92: 0 | CK92: 0 | CL92: 101.5524807 | CM92: 0 | CN92: 0 | CO92: 101.3666041 | CP92: 0 | CQ92: 0 | CR92: 101.1789756 | CS92: 0 | CT92: 0 | CU92: 100.9857486 | CV92: 0 | CW92: 0 | CX92: 100.7861528 | CY92: 0 | CZ92: 0 | DA92: 100.5963365 | DB92: =DB90/DB91 -> 0 | DC92: 0 | DD92: 100.4047629 | DE92: 0 | DF92: 0 | DG92: 100.2106614 | DH92: 0 | DI92: 0 | DJ92: 100.0163378 | DK92: 0 | DL92: 0 | DM92: 99.89254268 | DN92: 0 | DO92: 0 | DP92: 99.76852259 | DQ92: 0 | DR92: 0 | DS92: 99.64427614 | DT92: 0 | DU92: 0 | DV92: 99.51980189 | DW92: 0 | DX92: 0 | DY92: 99.39509842 | DZ92: 0 | EA92: 0 | EB92: 99.27016428 | EC92: 0 | ED92: 0 | EE92: 99.14499801 | EF92: 0 | EG92: 0 | EH92: =EH90/EH91 -> 33.02047762 | EI92: 0
C94: Debt opening balance | D94: =+curr -> k EUR | J94: =I97 -> 0 | K94: =J97 -> 0 | L94: 0 | M94: 0 | N94: 0 | O94: 0 | P94: 0 | Q94: 0 | R94: 0 | S94: 3600 | T94: 3600 | U94: 3600 | V94: 3507.597364 | W94: 3507.597364 | X94: 3507.597364 | Y94: 3414.995915 | Z94: 3414.995915 | AA94: 3414.995915 | AB94: 3322.235638 | AC94: 3322.235638 | AD94: 3322.235638 | AE94: 3229.337657 | AF94: 3229.337657 | AG94: 3229.337657 | AH94: 3136.279339 | AI94: 3136.279339 | AJ94: 3136.279339 | AK94: 3043.040275 | AL94: 3043.040275 | AM94: 3043.040275 | AN94: 2949.640741 | AO94: 2949.640741 | AP94: 2949.640741 | AQ94: 2856.117239 | AR94: 2856.117239 | AS94: 2856.117239 | AT94: 2762.413357 | AU94: 2762.413357 | AV94: 2762.413357 | AW94: 2668.530147 | AX94: 2668.530147 | AY94: 2668.530147 | AZ94: 2574.484821 | BA94: 2574.484821 | BB94: 2574.484821 | BC94: 2480.307726 | BD94: 2480.307726 | BE94: 2480.307726 | BF94: 2385.951654 | BG94: 2385.951654 | BH94: 2385.951654 | BI94: 2291.41767 | BJ94: 2291.41767 | BK94: 2291.41767 | BL94: 2196.719917 | BM94: 2196.719917 | BN94: 2196.719917 | BO94: 2101.882591 | BP94: 2101.882591 | BQ94: 2101.882591 | BR94: 2006.867688 | BS94: 2006.867688 | BT94: 2006.867688 | BU94: 1911.676282 | BV94: 1911.676282 | BW94: =BV97 -> 1911.676282 | BX94: 1816.319452 | BY94: 1816.319452 | BZ94: 1816.319452 | CA94: 1720.806012 | CB94: 1720.806012 | CC94: 1720.806012 | CD94: 1625.125584 | CE94: 1625.125584 | CF94: 1625.125584 | CG94: 1529.27006 | CH94: 1529.27006 | CI94: 1529.27006 | CJ94: 1433.247451 | CK94: 1433.247451 | CL94: 1433.247451 | CM94: 1337.069648 | CN94: 1337.069648 | CO94: 1337.069648 | CP94: 1240.717056 | CQ94: 1240.717056 | CR94: 1240.717056 | CS94: 1144.190769 | CT94: 1144.190769 | CU94: 1144.190769 | CV94: 1047.495736 | CW94: 1047.495736 | CX94: 1047.495736 | CY94: 950.6376918 | CZ94: 950.6376918 | DA94: 950.6376918 | DB94: 853.6062467 | DC94: 853.6062467 | DD94: 853.6062467 | DE94: 756.4025072 | DF94: 756.4025072 | DG94: 756.4025072 | DH94: 659.0283552 | DI94: 659.0283552 | DJ94: 659.0283552 | DK94: 561.4833736 | DL94: 561.4833736 | DM94: 561.4833736 | DN94: 463.6963936 | DO94: 463.6963936 | DP94: 463.6963936 | DQ94: 365.6667325 | DR94: 365.6667325 | DS94: 365.6667325 | DT94: 267.3937066 | DU94: 267.3937066 | DV94: 267.3937066 | DW94: 168.8766311 | DX94: 168.8766311 | DY94: 168.8766311 | DZ94: 70.11482006 | EA94: 70.11482006 | EB94: 70.11482006 | EC94: 0 | ED94: 0 | EE94: 0 | EF94: 0 | EG94: 0 | EH94: 0
C95: Drawdown | D95: =+curr -> k EUR | E95: =G74 -> 3600 | J95: =$E$95*J8 -> 0 | K95: 0 | L95: 0 | M95: 0 | N95: 0 | O95: 0 | P95: 0 | Q95: 0 | R95: 3600 | S95: 0 | T95: 0 | U95: 0 | V95: 0 | W95: 0 | X95: 0 | Y95: 0 | Z95: 0 | AA95: 0 | AB95: 0 | AC95: 0 | AD95: 0 | AE95: 0 | AF95: 0 | AG95: 0 | AH95: 0 | AI95: 0 | AJ95: 0 | AK95: 0 | AL95: 0 | AM95: 0 | AN95: 0 | AO95: 0 | AP95: =$E$95*AP8 -> 0 | AQ95: 0 | AR95: 0 | AS95: 0 | AT95: 0 | AU95: 0 | AV95: 0 | AW95: 0 | AX95: 0 | AY95: 0 | AZ95: 0 | BA95: 0 | BB95: 0 | BC95: 0 | BD95: 0 | BE95: 0 | BF95: 0 | BG95: 0 | BH95: 0 | BI95: 0 | BJ95: 0 | BK95: 0 | BL95: 0 | BM95: 0 | BN95: 0 | BO95: 0 | BP95: 0 | BQ95: 0 | BR95: 0 | BS95: 0 | BT95: 0 | BU95: 0 | BV95: =$E$95*BV8 -> 0 | BW95: 0 | BX95: 0 | BY95: 0 | BZ95: 0 | CA95: 0 | CB95: 0 | CC95: 0 | CD95: 0 | CE95: 0 | CF95: 0 | CG95: 0 | CH95: 0 | CI95: 0 | CJ95: 0 | CK95: 0 | CL95: 0 | CM95: 0 | CN95: 0 | CO95: 0 | CP95: 0 | CQ95: 0 | CR95: 0 | CS95: 0 | CT95: 0 | CU95: 0 | CV95: 0 | CW95: 0 | CX95: 0 | CY95: 0 | CZ95: 0 | DA95: 0 | DB95: =$E$95*DB8 -> 0 | DC95: 0 | DD95: 0 | DE95: 0 | DF95: 0 | DG95: 0 | DH95: 0 | DI95: 0 | DJ95: 0 | DK95: 0 | DL95: 0 | DM95: 0 | DN95: 0 | DO95: 0 | DP95: 0 | DQ95: 0 | DR95: 0 | DS95: 0 | DT95: 0 | DU95: 0 | DV95: 0 | DW95: 0 | DX95: 0 | DY95: 0 | DZ95: 0 | EA95: 0 | EB95: 0 | EC95: 0 | ED95: 0 | EE95: 0 | EF95: 0 | EG95: 0 | EH95: 0
C96: Repayment | D96: =+curr -> k EUR | J96: =MIN(J92-J99,J94) -> 0 | K96: 0 | L96: 0 | M96: 0 | N96: 0 | O96: 0 | P96: 0 | Q96: 0 | R96: 0 | S96: 0 | T96: 0 | U96: 92.40263626 | V96: 0 | W96: 0 | X96: 92.60144876 | Y96: 0 | Z96: 0 | AA96: 92.76027649 | AB96: 0 | AC96: 0 | AD96: 92.89798133 | AE96: 0 | AF96: 0 | AG96: 93.05831827 | AH96: 0 | AI96: 0 | AJ96: 93.23906383 | AK96: 0 | AL96: 0 | AM96: 93.39953401 | AN96: 0 | AO96: 0 | AP96: =MIN(AP92-AP99,AP94) -> 93.52350164 | AQ96: 0 | AR96: 0 | AS96: 93.70388277 | AT96: 0 | AU96: 0 | AV96: 93.88320946 | AW96: 0 | AX96: 0 | AY96: 94.0453266 | AZ96: 0 | BA96: 0 | BB96: 94.17709465 | BC96: 0 | BD96: 0 | BE96: 94.35607185 | BF96: 0 | BG96: 0 | BH96: 94.53398426 | BI96: 0 | BJ96: 0 | BK96: 94.69775284 | BL96: 0 | BM96: 0 | BN96: 94.83732572 | BO96: 0 | BP96: 0 | BQ96: 95.01490332 | BR96: 0 | BS96: 0 | BT96: 95.19140567 | BU96: 0 | BV96: =MIN(BV92-BV99,BV94) -> 0 | BW96: 95.35682985 | BX96: 0 | BY96: 0 | BZ96: 95.51344014 | CA96: 0 | CB96: 0 | CC96: 95.68042822 | CD96: 0 | CE96: 0 | CF96: 95.85552454 | CG96: 0 | CH96: 0 | CI96: 96.02260827 | CJ96: 0 | CK96: 0 | CL96: 96.1778028 | CM96: 0 | CN96: 0 | CO96: 96.35259293 | CP96: 0 | CQ96: 0 | CR96: 96.52628665 | CS96: 0 | CT96: 0 | CU96: 96.69503325 | CV96: 0 | CW96: 0 | CX96: 96.85804376 | CY96: 0 | CZ96: 0 | DA96: 97.03144519 | DB96: =MIN(DB92-DB99,DB94) -> 0 | DC96: 0 | DD96: 97.20373948 | DE96: 0 | DF96: 0 | DG96: 97.37415202 | DH96: 0 | DI96: 0 | DJ96: 97.54498151 | DK96: 0 | DL96: 0 | DM96: 97.78698003 | DN96: 0 | DO96: 0 | DP96: 98.02966112 | DQ96: 0 | DR96: 0 | DS96: 98.27302589 | DT96: 0 | DU96: 0 | DV96: 98.51707549 | DW96: 0 | DX96: 0 | DY96: 98.76181105 | DZ96: 0 | EA96: 0 | EB96: 70.11482006 | EC96: 0 | ED96: 0 | EE96: 0 | EF96: 0 | EG96: 0 | EH96: 0 | EI96: 0
C97: Debt closing balance | D97: =+curr -> k EUR | J97: =J94+J95-J96 -> 0 | K97: 0 | L97: 0 | M97: 0 | N97: 0 | O97: 0 | P97: 0 | Q97: 0 | R97: 3600 | S97: 3600 | T97: 3600 | U97: 3507.597364 | V97: 3507.597364 | W97: 3507.597364 | X97: 3414.995915 | Y97: 3414.995915 | Z97: 3414.995915 | AA97: 3322.235638 | AB97: 3322.235638 | AC97: 3322.235638 | AD97: 3229.337657 | AE97: 3229.337657 | AF97: 3229.337657 | AG97: 3136.279339 | AH97: 3136.279339 | AI97: 3136.279339 | AJ97: 3043.040275 | AK97: 3043.040275 | AL97: 3043.040275 | AM97: 2949.640741 | AN97: 2949.640741 | AO97: 2949.640741 | AP97: =AP94+AP95-AP96 -> 2856.117239 | AQ97: 2856.117239 | AR97: 2856.117239 | AS97: 2762.413357 | AT97: 2762.413357 | AU97: 2762.413357 | AV97: 2668.530147 | AW97: 2668.530147 | AX97: 2668.530147 | AY97: 2574.484821 | AZ97: 2574.484821 | BA97: 2574.484821 | BB97: 2480.307726 | BC97: 2480.307726 | BD97: 2480.307726 | BE97: 2385.951654 | BF97: 2385.951654 | BG97: 2385.951654 | BH97: 2291.41767 | BI97: 2291.41767 | BJ97: 2291.41767 | BK97: 2196.719917 | BL97: 2196.719917 | BM97: 2196.719917 | BN97: 2101.882591 | BO97: 2101.882591 | BP97: 2101.882591 | BQ97: 2006.867688 | BR97: 2006.867688 | BS97: 2006.867688 | BT97: 1911.676282 | BU97: 1911.676282 | BV97: =BV94+BV95-BV96 -> 1911.676282 | BW97: 1816.319452 | BX97: 1816.319452 | BY97: 1816.319452 | BZ97: 1720.806012 | CA97: 1720.806012 | CB97: 1720.806012 | CC97: 1625.125584 | CD97: 1625.125584 | CE97: 1625.125584 | CF97: 1529.27006 | CG97: 1529.27006 | CH97: 1529.27006 | CI97: 1433.247451 | CJ97: 1433.247451 | CK97: 1433.247451 | CL97: 1337.069648 | CM97: 1337.069648 | CN97: 1337.069648 | CO97: 1240.717056 | CP97: 1240.717056 | CQ97: 1240.717056 | CR97: 1144.190769 | CS97: 1144.190769 | CT97: 1144.190769 | CU97: 1047.495736 | CV97: 1047.495736 | CW97: 1047.495736 | CX97: 950.6376918 | CY97: 950.6376918 | CZ97: 950.6376918 | DA97: 853.6062467 | DB97: =DB94+DB95-DB96 -> 853.6062467 | DC97: 853.6062467 | DD97: 756.4025072 | DE97: 756.4025072 | DF97: 756.4025072 | DG97: 659.0283552 | DH97: 659.0283552 | DI97: 659.0283552 | DJ97: 561.4833736 | DK97: 561.4833736 | DL97: 561.4833736 | DM97: 463.6963936 | DN97: 463.6963936 | DO97: 463.6963936 | DP97: 365.6667325 | DQ97: 365.6667325 | DR97: 365.6667325 | DS97: 267.3937066 | DT97: 267.3937066 | DU97: 267.3937066 | DV97: 168.8766311 | DW97: 168.8766311 | DX97: 168.8766311 | DY97: 70.11482006 | DZ97: 70.11482006 | EA97: 70.11482006 | EB97: 0 | EC97: 0 | ED97: 0 | EE97: 0 | EF97: 0 | EG97: 0 | EH97: =EH94+EH95-EH96 -> 0
C99: Interest | J99: =J94*J88 -> 0 | K99: 0 | L99: 0 | M99: 0 | N99: 0 | O99: 0 | P99: 0 | Q99: 0 | R99: 0 | S99: 0 | T99: 0 | U99: 13.5 | V99: 0 | W99: 0 | X99: 13.15349011 | Y99: 0 | Z99: 0 | AA99: 12.80623468 | AB99: 0 | AC99: 0 | AD99: 12.45838364 | AE99: 0 | AF99: 0 | AG99: 12.11001621 | AH99: 0 | AI99: 0 | AJ99: 11.76104752 | AK99: 0 | AL99: 0 | AM99: 11.41140103 | AN99: 0 | AO99: 0 | AP99: =AP94*AP88 -> 11.06115278 | AQ99: 0 | AR99: 0 | AS99: 10.71043965 | AT99: 0 | AU99: 0 | AV99: 10.35905009 | AW99: 0 | AX99: 0 | AY99: 10.00698805 | AZ99: 0 | BA99: 0 | BB99: 9.654318077 | BC99: 0 | BD99: 0 | BE99: 9.301153972 | BF99: 0 | BG99: 0 | BH99: 8.947318703 | BI99: 0 | BJ99: 0 | BK99: 8.592816262 | BL99: 0 | BM99: 0 | BN99: 8.237699689 | BO99: 0 | BP99: 0 | BQ99: 7.882059717 | BR99: 0 | BS99: 0 | BT99: 7.52575383 | BU99: 0 | BV99: =BV94*BV88 -> 0 | BW99: 7.168786058 | BX99: 0 | BY99: 0 | BZ99: 6.811197947 | CA99: 0 | CB99: 0 | CC99: 6.453022546 | CD99: 0 | CE99: 0 | CF99: 6.09422094 | CG99: 0 | CH99: 0 | CI99: 5.734762723 | CJ99: 0 | CK99: 0 | CL99: 5.374677942 | CM99: 0 | CN99: 0 | CO99: 5.014011182 | CP99: 0 | CQ99: 0 | CR99: 4.652688958 | CS99: 0 | CT99: 0 | CU99: 4.290715383 | CV99: 0 | CW99: 0 | CX99: 3.928109009 | CY99: 0 | CZ99: 0 | DA99: 3.564891344 | DB99: =DB94*DB88 -> 0 | DC99: 0 | DD99: 3.201023425 | DE99: 0 | DF99: 0 | DG99: 2.836509402 | DH99: 0 | DI99: 0 | DJ99: 2.471356332 | DK99: 0 | DL99: 0 | DM99: 2.105562651 | DN99: 0 | DO99: 0 | DP99: 1.738861476 | DQ99: 0 | DR99: 0 | DS99: 1.371250247 | DT99: 0 | DU99: 0 | DV99: 1.0027264 | DW99: 0 | DX99: 0 | DY99: 0.6332873667 | DZ99: 0 | EA99: 0 | EB99: 0.2629305752 | EC99: 0 | ED99: 0 | EE99: 0 | EF99: 0 | EG99: 0 | EH99: 0 | EI99: 0
C102: Debt
C103: Gearing | D103: % | E103: 0.7
C104: Total project costs | D104: =curr -> k EUR | E104: =G61 -> 4050
C105: Project debt - sizing method | D105: =curr -> k EUR | E105: =E104*E103 -> 2835
C106: =C$85 -> Debt capacity at target DSCR | D106: =D$85 -> k EUR | E106: =E$85 -> 3103.718992
C108: Debt sizing method switch | D108: switch 1 = leverage ; 2 = DSCR | E108: 1
C109: Project debt | D109: =curr -> k EUR | E109: =INDEX(E105:E106,E108) -> 2835
C111: Equity requirement | D111: =curr -> k EUR | E111: =E104-E105 -> 1215
C113: Interest calculation
C114: Days in year convention | D114: days | E114: 360
C115: Days in period | D115: days | J115: =J5-J4+1 -> 30 | K115: 31 | L115: 31 | M115: 30 | N115: 31 | O115: 30 | P115: 31 | Q115: 31 | R115: 28 | S115: 31 | T115: 30 | U115: 31 | V115: 30 | W115: 31 | X115: 31 | Y115: 30 | Z115: 31 | AA115: 30 | AB115: 31 | AC115: 31 | AD115: 29 | AE115: 31 | AF115: 30 | AG115: 31 | AH115: 30 | AI115: 31 | AJ115: 31 | AK115: 30 | AL115: 31 | AM115: 30 | AN115: 31 | AO115: 31 | AP115: =AP5-AP4+1 -> 28 | AQ115: 31 | AR115: 30 | AS115: 31 | AT115: 30 | AU115: 31 | AV115: 31 | AW115: 30 | AX115: 31 | AY115: 30 | AZ115: 31 | BA115: 31 | BB115: 28 | BC115: 31 | BD115: 30 | BE115: 31 | BF115: 30 | BG115: 31 | BH115: 31 | BI115: 30 | BJ115: 31 | BK115: 30 | BL115: 31 | BM115: 31 | BN115: 28 | BO115: 31 | BP115: 30 | BQ115: 31 | BR115: 30 | BS115: 31 | BT115: 31 | BU115: 30 | BV115: =BV5-BV4+1 -> 31 | BW115: 30 | BX115: 31 | BY115: 31 | BZ115: 29 | CA115: 31 | CB115: 30 | CC115: 31 | CD115: 30 | CE115: 31 | CF115: 31 | CG115: 30 | CH115: 31 | CI115: 30 | CJ115: 31 | CK115: 31 | CL115: 28 | CM115: 31 | CN115: 30 | CO115: 31 | CP115: 30 | CQ115: 31 | CR115: 31 | CS115: 30 | CT115: 31 | CU115: 30 | CV115: 31 | CW115: 31 | CX115: 28 | CY115: 31 | CZ115: 30 | DA115: 31 | DB115: =DB5-DB4+1 -> 30 | DC115: 31 | DD115: 31 | DE115: 30 | DF115: 31 | DG115: 30 | DH115: 31 | DI115: 31 | DJ115: 28 | DK115: 31 | DL115: 30 | DM115: 31 | DN115: 30 | DO115: 31 | DP115: 31 | DQ115: 30 | DR115: 31 | DS115: 30 | DT115: 31 | DU115: 31 | DV115: 29 | DW115: 31 | DX115: 30 | DY115: 31 | DZ115: 30 | EA115: 31 | EB115: 31 | EC115: 30 | ED115: 31 | EE115: 30 | EF115: 31 | EG115: 31 | EH115: 28
C116: Interest rate during construction | D116: % p.a. | E116: =ModelingExercise!$F$80 -> 0.025
C117: Interest rate during operations | D117: % p.a. | E117: =ModelingExercise!$F$81 -> 0.015
C119: Interest rate during construction applicable in period | D119: % per period | J119: =J115/$E$114*$E$116*J7 -> 0.002083333333 | K119: 0.002152777778 | L119: 0.002152777778 | M119: 0.002083333333 | N119: 0.002152777778 | O119: 0.002083333333 | P119: 0.002152777778 | Q119: 0.002152777778 | R119: 0.001944444444 | S119: 0 | T119: 0 | U119: 0 | V119: 0 | W119: 0 | X119: 0 | Y119: 0 | Z119: 0 | AA119: 0 | AB119: 0 | AC119: 0 | AD119: 0 | AE119: 0 | AF119: 0 | AG119: 0 | AH119: 0 | AI119: 0 | AJ119: 0 | AK119: 0 | AL119: 0 | AM119: 0 | AN119: 0 | AO119: 0 | AP119: =AP115/$E$114*$E$116*AP7 -> 0 | AQ119: 0 | AR119: 0 | AS119: 0 | AT119: 0 | AU119: 0 | AV119: 0 | AW119: 0 | AX119: 0 | AY119: 0 | AZ119: 0 | BA119: 0 | BB119: 0 | BC119: 0 | BD119: 0 | BE119: 0 | BF119: 0 | BG119: 0 | BH119: 0 | BI119: 0 | BJ119: 0 | BK119: 0 | BL119: 0 | BM119: 0 | BN119: 0 | BO119: 0 | BP119: 0 | BQ119: 0 | BR119: 0 | BS119: 0 | BT119: 0 | BU119: 0 | BV119: =BV115/$E$114*$E$116*BV7 -> 0 | BW119: 0 | BX119: 0 | BY119: 0 | BZ119: 0 | CA119: 0 | CB119: 0 | CC119: 0 | CD119: 0 | CE119: 0 | CF119: 0 | CG119: 0 | CH119: 0 | CI119: 0 | CJ119: 0 | CK119: 0 | CL119: 0 | CM119: 0 | CN119: 0 | CO119: 0 | CP119: 0 | CQ119: 0 | CR119: 0 | CS119: 0 | CT119: 0 | CU119: 0 | CV119: 0 | CW119: 0 | CX119: 0 | CY119: 0 | CZ119: 0 | DA119: 0 | DB119: =DB115/$E$114*$E$116*DB7 -> 0 | DC119: 0 | DD119: 0 | DE119: 0 | DF119: 0 | DG119: 0 | DH119: 0 | DI119: 0 | DJ119: 0 | DK119: 0 | DL119: 0 | DM119: 0 | DN119: 0 | DO119: 0 | DP119: 0 | DQ119: 0 | DR119: 0 | DS119: 0 | DT119: 0 | DU119: 0 | DV119: 0 | DW119: 0 | DX119: 0 | DY119: 0 | DZ119: 0 | EA119: 0 | EB119: 0 | EC119: 0 | ED119: 0 | EE119: 0 | EF119: 0 | EG119: 0 | EH119: 0
C120: Interest rate during operations applicable in period | D120: % per period | J120: =SUM(H115:J115/$E$114*$E$117*J9*J14)*J15 -> 0 | K120: =SUM(I115:K115/$E$114*$E$117*K9*K14)*K15 -> 0 | L120: =SUM(J115:L115/$E$114*$E$117*L9*L14)*L15 -> 0 | M120: =SUM(K115:M115/$E$114*$E$117*M9*M14)*M15 -> 0 | N120: =SUM(L115:N115/$E$114*$E$117*N9*N14)*N15 -> 0 | O120: =SUM(M115:O115/$E$114*$E$117*O9*O14)*O15 -> 0 | P120: =SUM(N115:P115/$E$114*$E$117*P9*P14)*P15 -> 0 | Q120: =SUM(O115:Q115/$E$114*$E$117*Q9*Q14)*Q15 -> 0 | R120: =SUM(P115:R115/$E$114*$E$117*R9*R14)*R15 -> 0 | S120: =SUM(Q115:S115/$E$114*$E$117*S9*S14)*S15 -> 0.00375 | T120: =SUM(R115:T115/$E$114*$E$117*T9*T14)*T15 -> 0 | U120: =SUM(S115:U115/$E$114*$E$117*U9*U14)*U15 -> 0 | V120: =SUM(T115:V115/$E$114*$E$117*V9*V14)*V15 -> 0.003791666667 | W120: =SUM(U115:W115/$E$114*$E$117*W9*W14)*W15 -> 0 | X120: =SUM(V115:X115/$E$114*$E$117*X9*X14)*X15 -> 0 | Y120: =SUM(W115:Y115/$E$114*$E$117*Y9*Y14)*Y15 -> 0.003833333333 | Z120: =SUM(X115:Z115/$E$114*$E$117*Z9*Z14)*Z15 -> 0 | AA120: =SUM(Y115:AA115/$E$114*$E$117*AA9*AA14)*AA15 -> 0 | AB120: =SUM(Z115:AB115/$E$114*$E$117*AB9*AB14)*AB15 -> 0.003833333333 | AC120: =SUM(AA115:AC115/$E$114*$E$117*AC9*AC14)*AC15 -> 0 | AD120: =SUM(AB115:AD115/$E$114*$E$117*AD9*AD14)*AD15 -> 0 | AE120: =SUM(AC115:AE115/$E$114*$E$117*AE9*AE14)*AE15 -> 0.003791666667 | AF120: =SUM(AD115:AF115/$E$114*$E$117*AF9*AF14)*AF15 -> 0 | AG120: =SUM(AE115:AG115/$E$114*$E$117*AG9*AG14)*AG15 -> 0 | AH120: =SUM(AF115:AH115/$E$114*$E$117*AH9*AH14)*AH15 -> 0.003791666667 | AI120: =SUM(AG115:AI115/$E$114*$E$117*AI9*AI14)*AI15 -> 0 | AJ120: =SUM(AH115:AJ115/$E$114*$E$117*AJ9*AJ14)*AJ15 -> 0 | AK120: =SUM(AI115:AK115/$E$114*$E$117*AK9*AK14)*AK15 -> 0.003833333333 | AL120: =SUM(AJ115:AL115/$E$114*$E$117*AL9*AL14)*AL15 -> 0 | AM120: =SUM(AK115:AM115/$E$114*$E$117*AM9*AM14)*AM15 -> 0 | AN120: =SUM(AL115:AN115/$E$114*$E$117*AN9*AN14)*AN15 -> 0.003833333333 | AO120: =SUM(AM115:AO115/$E$114*$E$117*AO9*AO14)*AO15 -> 0 | AP120: =SUM(AN115:AP115/$E$114*$E$117*AP9*AP14)*AP15 -> 0 | AQ120: =SUM(AO115:AQ115/$E$114*$E$117*AQ9*AQ14)*AQ15 -> 0.00375 | AR120: =SUM(AP115:AR115/$E$114*$E$117*AR9*AR14)*AR15 -> 0 | AS120: =SUM(AQ115:AS115/$E$114*$E$117*AS9*AS14)*AS15 -> 0 | AT120: =SUM(AR115:AT115/$E$114*$E$117*AT9*AT14)*AT15 -> 0.003791666667 | AU120: =SUM(AS115:AU115/$E$114*$E$117*AU9*AU14)*AU15 -> 0 | AV120: =SUM(AT115:AV115/$E$114*$E$117*AV9*AV14)*AV15 -> 0 | AW120: =SUM(AU115:AW115/$E$114*$E$117*AW9*AW14)*AW15 -> 0.003833333333 | AX120: =SUM(AV115:AX115/$E$114*$E$117*AX9*AX14)*AX15 -> 0 | AY120: =SUM(AW115:AY115/$E$114*$E$117*AY9*AY14)*AY15 -> 0 | AZ120: =SUM(AX115:AZ115/$E$114*$E$117*AZ9*AZ14)*AZ15 -> 0.003833333333 | BA120: =SUM(AY115:BA115/$E$114*$E$117*BA9*BA14)*BA15 -> 0 | BB120: =SUM(AZ115:BB115/$E$114*$E$117*BB9*BB14)*BB15 -> 0 | BC120: =SUM(BA115:BC115/$E$114*$E$117*BC9*BC14)*BC15 -> 0.00375 | BD120: =SUM(BB115:BD115/$E$114*$E$117*BD9*BD14)*BD15 -> 0 | BE120: =SUM(BC115:BE115/$E$114*$E$117*BE9*BE14)*BE15 -> 0 | BF120: =SUM(BD115:BF115/$E$114*$E$117*BF9*BF14)*BF15 -> 0.003791666667 | BG120: =SUM(BE115:BG115/$E$114*$E$117*BG9*BG14)*BG15 -> 0 | BH120: =SUM(BF115:BH115/$E$114*$E$117*BH9*BH14)*BH15 -> 0 | BI120: =SUM(BG115:BI115/$E$114*$E$117*BI9*BI14)*BI15 -> 0.003833333333 | BJ120: =SUM(BH115:BJ115/$E$114*$E$117*BJ9*BJ14)*BJ15 -> 0 | BK120: =SUM(BI115:BK115/$E$114*$E$117*BK9*BK14)*BK15 -> 0 | BL120: =SUM(BJ115:BL115/$E$114*$E$117*BL9*BL14)*BL15 -> 0.003833333333 | BM120: =SUM(BK115:BM115/$E$114*$E$117*BM9*BM14)*BM15 -> 0 | BN120: =SUM(BL115:BN115/$E$114*$E$117*BN9*BN14)*BN15 -> 0 | BO120: =SUM(BM115:BO115/$E$114*$E$117*BO9*BO14)*BO15 -> 0.00375 | BP120: =SUM(BN115:BP115/$E$114*$E$117*BP9*BP14)*BP15 -> 0 | BQ120: =SUM(BO115:BQ115/$E$114*$E$117*BQ9*BQ14)*BQ15 -> 0 | BR120: =SUM(BP115:BR115/$E$114*$E$117*BR9*BR14)*BR15 -> 0.003791666667 | BS120: =SUM(BQ115:BS115/$E$114*$E$117*BS9*BS14)*BS15 -> 0 | BT120: =SUM(BR115:BT115/$E$114*$E$117*BT9*BT14)*BT15 -> 0 | BU120: =SUM(BS115:BU115/$E$114*$E$117*BU9*BU14)*BU15 -> 0.003833333333 | BV120: =SUM(BT115:BV115/$E$114*$E$117*BV9*BV14)*BV15 -> 0 | BW120: =SUM(BU115:BW115/$E$114*$E$117*BW9*BW14)*BW15 -> 0 | BX120: =SUM(BV115:BX115/$E$114*$E$117*BX9*BX14)*BX15 -> 0.003833333333 | BY120: =SUM(BW115:BY115/$E$114*$E$117*BY9*BY14)*BY15 -> 0 | BZ120: =SUM(BX115:BZ115/$E$114*$E$117*BZ9*BZ14)*BZ15 -> 0 | CA120: =SUM(BY115:CA115/$E$114*$E$117*CA9*CA14)*CA15 -> 0.003791666667 | CB120: =SUM(BZ115:CB115/$E$114*$E$117*CB9*CB14)*CB15 -> 0 | CC120: =SUM(CA115:CC115/$E$114*$E$117*CC9*CC14)*CC15 -> 0 | CD120: =SUM(CB115:CD115/$E$114*$E$117*CD9*CD14)*CD15 -> 0.003791666667 | CE120: =SUM(CC115:CE115/$E$114*$E$117*CE9*CE14)*CE15 -> 0 | CF120: =SUM(CD115:CF115/$E$114*$E$117*CF9*CF14)*CF15 -> 0 | CG120: =SUM(CE115:CG115/$E$114*$E$117*CG9*CG14)*CG15 -> 0.003833333333 | CH120: =SUM(CF115:CH115/$E$114*$E$117*CH9*CH14)*CH15 -> 0 | CI120: =SUM(CG115:CI115/$E$114*$E$117*CI9*CI14)*CI15 -> 0 | CJ120: =SUM(CH115:CJ115/$E$114*$E$117*CJ9*CJ14)*CJ15 -> 0.003833333333 | CK120: =SUM(CI115:CK115/$E$114*$E$117*CK9*CK14)*CK15 -> 0 | CL120: =SUM(CJ115:CL115/$E$114*$E$117*CL9*CL14)*CL15 -> 0 | CM120: =SUM(CK115:CM115/$E$114*$E$117*CM9*CM14)*CM15 -> 0.00375 | CN120: =SUM(CL115:CN115/$E$114*$E$117*CN9*CN14)*CN15 -> 0 | CO120: =SUM(CM115:CO115/$E$114*$E$117*CO9*CO14)*CO15 -> 0 | CP120: =SUM(CN115:CP115/$E$114*$E$117*CP9*CP14)*CP15 -> 0.003791666667 | CQ120: =SUM(CO115:CQ115/$E$114*$E$117*CQ9*CQ14)*CQ15 -> 0 | CR120: =SUM(CP115:CR115/$E$114*$E$117*CR9*CR14)*CR15 -> 0 | CS120: =SUM(CQ115:CS115/$E$114*$E$117*CS9*CS14)*CS15 -> 0.003833333333 | CT120: =SUM(CR115:CT115/$E$114*$E$117*CT9*CT14)*CT15 -> 0 | CU120: =SUM(CS115:CU115/$E$114*$E$117*CU9*CU14)*CU15 -> 0 | CV120: =SUM(CT115:CV115/$E$114*$E$117*CV9*CV14)*CV15 -> 0.003833333333 | CW120: =SUM(CU115:CW115/$E$114*$E$117*CW9*CW14)*CW15 -> 0 | CX120: =SUM(CV115:CX115/$E$114*$E$117*CX9*CX14)*CX15 -> 0 | CY120: =SUM(CW115:CY115/$E$114*$E$117*CY9*CY14)*CY15 -> 0.00375 | CZ120: =SUM(CX115:CZ115/$E$114*$E$117*CZ9*CZ14)*CZ15 -> 0 | DA120: =SUM(CY115:DA115/$E$114*$E$117*DA9*DA14)*DA15 -> 0 | DB120: =SUM(CZ115:DB115/$E$114*$E$117*DB9*DB14)*DB15 -> 0.003791666667 | DC120: =SUM(DA115:DC115/$E$114*$E$117*DC9*DC14)*DC15 -> 0 | DD120: =SUM(DB115:DD115/$E$114*$E$117*DD9*DD14)*DD15 -> 0 | DE120: =SUM(DC115:DE115/$E$114*$E$117*DE9*DE14)*DE15 -> 0.003833333333 | DF120: =SUM(DD115:DF115/$E$114*$E$117*DF9*DF14)*DF15 -> 0 | DG120: =SUM(DE115:DG115/$E$114*$E$117*DG9*DG14)*DG15 -> 0 | DH120: =SUM(DF115:DH115/$E$114*$E$117*DH9*DH14)*DH15 -> 0.003833333333 | DI120: =SUM(DG115:DI115/$E$114*$E$117*DI9*DI14)*DI15 -> 0 | DJ120: =SUM(DH115:DJ115/$E$114*$E$117*DJ9*DJ14)*DJ15 -> 0 | DK120: =SUM(DI115:DK115/$E$114*$E$117*DK9*DK14)*DK15 -> 0 | DL120: =SUM(DJ115:DL115/$E$114*$E$117*DL9*DL14)*DL15 -> 0 | DM120: =SUM(DK115:DM115/$E$114*$E$117*DM9*DM14)*DM15 -> 0 | DN120: =SUM(DL115:DN115/$E$114*$E$117*DN9*DN14)*DN15 -> 0 | DO120: =SUM(DM115:DO115/$E$114*$E$117*DO9*DO14)*DO15 -> 0 | DP120: =SUM(DN115:DP115/$E$114*$E$117*DP9*DP14)*DP15 -> 0 | DQ120: =SUM(DO115:DQ115/$E$114*$E$117*DQ9*DQ14)*DQ15 -> 0 | DR120: =SUM(DP115:DR115/$E$114*$E$117*DR9*DR14)*DR15 -> 0 | DS120: =SUM(DQ115:DS115/$E$114*$E$117*DS9*DS14)*DS15 -> 0 | DT120: =SUM(DR115:DT115/$E$114*$E$117*DT9*DT14)*DT15 -> 0 | DU120: =SUM(DS115:DU115/$E$114*$E$117*DU9*DU14)*DU15 -> 0 | DV120: =SUM(DT115:DV115/$E$114*$E$117*DV9*DV14)*DV15 -> 0 | DW120: =SUM(DU115:DW115/$E$114*$E$117*DW9*DW14)*DW15 -> 0 | DX120: =SUM(DV115:DX115/$E$114*$E$117*DX9*DX14)*DX15 -> 0 | DY120: =SUM(DW115:DY115/$E$114*$E$117*DY9*DY14)*DY15 -> 0 | DZ120: =SUM(DX115:DZ115/$E$114*$E$117*DZ9*DZ14)*DZ15 -> 0 | EA120: =SUM(DY115:EA115/$E$114*$E$117*EA9*EA14)*EA15 -> 0 | EB120: =SUM(DZ115:EB115/$E$114*$E$117*EB9*EB14)*EB15 -> 0 | EC120: =SUM(EA115:EC115/$E$114*$E$117*EC9*EC14)*EC15 -> 0 | ED120: =SUM(EB115:ED115/$E$114*$E$117*ED9*ED14)*ED15 -> 0 | EE120: =SUM(EC115:EE115/$E$114*$E$117*EE9*EE14)*EE15 -> 0 | EF120: =SUM(ED115:EF115/$E$114*$E$117*EF9*EF14)*EF15 -> 0 | EG120: =SUM(EE115:EG115/$E$114*$E$117*EG9*EG14)*EG15 -> 0 | EH120: =SUM(EF115:EH115/$E$114*$E$117*EH9*EH14)*EH15 -> 0
C122: IDC | D122: =curr -> k EUR | G122: =SUM(J122:EH122) -> 47.840625 | J122: =J$146*J119 -> 0 | K122: 6.103125 | L122: 6.103125 | M122: 5.90625 | N122: 6.103125 | O122: 5.90625 | P122: 6.103125 | Q122: 6.103125 | R122: 5.5125 | S122: 0 | T122: 0 | U122: 0 | V122: 0 | W122: 0 | X122: 0 | Y122: 0 | Z122: 0 | AA122: 0 | AB122: 0 | AC122: 0 | AD122: 0 | AE122: 0 | AF122: 0 | AG122: 0 | AH122: 0 | AI122: 0 | AJ122: 0 | AK122: 0 | AL122: 0 | AM122: 0 | AN122: 0 | AO122: 0 | AP122: =AP$146*AP119 -> 0 | AQ122: 0 | AR122: 0 | AS122: 0 | AT122: 0 | AU122: 0 | AV122: 0 | AW122: 0 | AX122: 0 | AY122: 0 | AZ122: 0 | BA122: 0 | BB122: 0 | BC122: 0 | BD122: 0 | BE122: 0 | BF122: 0 | BG122: 0 | BH122: 0 | BI122: 0 | BJ122: 0 | BK122: 0 | BL122: 0 | BM122: 0 | BN122: 0 | BO122: 0 | BP122: 0 | BQ122: 0 | BR122: 0 | BS122: 0 | BT122: 0 | BU122: 0 | BV122: =BV$146*BV119 -> 0 | BW122: 0 | BX122: 0 | BY122: 0 | BZ122: 0 | CA122: 0 | CB122: 0 | CC122: 0 | CD122: 0 | CE122: 0 | CF122: 0 | CG122: 0 | CH122: 0 | CI122: 0 | CJ122: 0 | CK122: 0 | CL122: 0 | CM122: 0 | CN122: 0 | CO122: 0 | CP122: 0 | CQ122: 0 | CR122: 0 | CS122: 0 | CT122: 0 | CU122: 0 | CV122: 0 | CW122: 0 | CX122: 0 | CY122: 0 | CZ122: 0 | DA122: 0 | DB122: =DB$146*DB119 -> 0 | DC122: 0 | DD122: 0 | DE122: 0 | DF122: 0 | DG122: 0 | DH122: 0 | DI122: 0 | DJ122: 0 | DK122: 0 | DL122: 0 | DM122: 0 | DN122: 0 | DO122: 0 | DP122: 0 | DQ122: 0 | DR122: 0 | DS122: 0 | DT122: 0 | DU122: 0 | DV122: 0 | DW122: 0 | DX122: 0 | DY122: 0 | DZ122: 0 | EA122: 0 | EB122: 0 | EC122: 0 | ED122: 0 | EE122: 0 | EF122: 0 | EG122: 0 | EH122: 0
C123: Interest during operations | D123: =curr -> k EUR | J123: =J$146*J120 -> 0 | K123: 0 | L123: 0 | M123: 0 | N123: 0 | O123: 0 | P123: 0 | Q123: 0 | R123: 0 | S123: 10.63125 | T123: 0 | U123: 0 | V123: 10.41345703 | W123: 0 | X123: 0 | Y123: 10.18828125 | Z123: 0 | AA123: 0 | AB123: 9.848671875 | AC123: 0 | AD123: 0 | AE123: 9.405703125 | AF123: 0 | AG123: 0 | AH123: 9.069785156 | AI123: 0 | AJ123: 0 | AK123: 8.82984375 | AL123: 0 | AM123: 0 | AN123: 8.490234375 | AO123: 0 | AP123: =AP$146*AP120 -> 0 | AQ123: 7.9734375 | AR123: 0 | AS123: 0 | AT123: 7.726113281 | AU123: 0 | AV123: 0 | AW123: 7.47140625 | AX123: 0 | AY123: 0 | AZ123: 7.131796875 | BA123: 0 | BB123: 0 | BC123: 6.64453125 | BD123: 0 | BE123: 0 | BF123: 6.382441406 | BG123: 0 | BH123: 0 | BI123: 6.11296875 | BJ123: 0 | BK123: 0 | BL123: 5.773359375 | BM123: 0 | BN123: 0 | BO123: 5.315625 | BP123: 0 | BQ123: 0 | BR123: 5.038769531 | BS123: 0 | BT123: 0 | BU123: 4.75453125 | BV123: =BV$146*BV120 -> 0 | BW123: 0 | BX123: 4.414921875 | BY123: 0 | BZ123: 0 | CA123: 4.031015625 | CB123: 0 | CC123: 0 | CD123: 3.695097656 | CE123: 0 | CF123: 0 | CG123: 3.39609375 | CH123: 0 | CI123: 0 | CJ123: 3.056484375 | CK123: 0 | CL123: 0 | CM123: 2.6578125 | CN123: 0 | CO123: 0 | CP123: 2.351425781 | CQ123: 0 | CR123: 0 | CS123: 2.03765625 | CT123: 0 | CU123: 0 | CV123: 1.698046875 | CW123: 0 | CX123: 0 | CY123: 1.32890625 | CZ123: 0 | DA123: 0 | DB123: =DB$146*DB120 -> 1.007753906 | DC123: 0 | DD123: 0 | DE123: 0.67921875 | DF123: 0 | DG123: 0 | DH123: 0.339609375 | DI123: 0 | DJ123: 0 | DK123: 0 | DL123: 0 | DM123: 0 | DN123: 0 | DO123: 0 | DP123: 0 | DQ123: 0 | DR123: 0 | DS123: 0 | DT123: 0 | DU123: 0 | DV123: 0 | DW123: 0 | DX123: 0 | DY123: 0 | DZ123: 0 | EA123: 0 | EB123: 0 | EC123: 0 | ED123: 0 | EE123: 0 | EF123: 0 | EG123: 0 | EH123: 0
C124: Senior debt interest | D124: =curr -> k EUR | G124: =SUM(J124:EH124) -> 225.736875 | J124: =SUM(J122:J123) -> 0 | K124: =SUM(K122:K123) -> 6.103125 | L124: 6.103125 | M124: 5.90625 | N124: 6.103125 | O124: 5.90625 | P124: 6.103125 | Q124: 6.103125 | R124: 5.5125 | S124: 10.63125 | T124: 0 | U124: 0 | V124: 10.41345703 | W124: 0 | X124: 0 | Y124: 10.18828125 | Z124: 0 | AA124: 0 | AB124: 9.848671875 | AC124: 0 | AD124: 0 | AE124: 9.405703125 | AF124: 0 | AG124: 0 | AH124: 9.069785156 | AI124: 0 | AJ124: 0 | AK124: 8.82984375 | AL124: 0 | AM124: 0 | AN124: 8.490234375 | AO124: 0 | AP124: 0 | AQ124: 7.9734375 | AR124: 0 | AS124: 0 | AT124: 7.726113281 | AU124: 0 | AV124: 0 | AW124: 7.47140625 | AX124: 0 | AY124: 0 | AZ124: 7.131796875 | BA124: 0 | BB124: 0 | BC124: 6.64453125 | BD124: 0 | BE124: 0 | BF124: 6.382441406 | BG124: 0 | BH124: 0 | BI124: 6.11296875 | BJ124: 0 | BK124: 0 | BL124: 5.773359375 | BM124: 0 | BN124: 0 | BO124: 5.315625 | BP124: 0 | BQ124: 0 | BR124: 5.038769531 | BS124: 0 | BT124: 0 | BU124: 4.75453125 | BV124: 0 | BW124: =SUM(BW122:BW123) -> 0 | BX124: 4.414921875 | BY124: 0 | BZ124: 0 | CA124: 4.031015625 | CB124: 0 | CC124: 0 | CD124: 3.695097656 | CE124: 0 | CF124: 0 | CG124: 3.39609375 | CH124: 0 | CI124: 0 | CJ124: 3.056484375 | CK124: 0 | CL124: 0 | CM124: 2.6578125 | CN124: 0 | CO124: 0 | CP124: 2.351425781 | CQ124: 0 | CR124: 0 | CS124: 2.03765625 | CT124: 0 | CU124: 0 | CV124: 1.698046875 | CW124: 0 | CX124: 0 | CY124: 1.32890625 | CZ124: 0 | DA124: 0 | DB124: 1.007753906 | DC124: 0 | DD124: 0 | DE124: 0.67921875 | DF124: 0 | DG124: 0 | DH124: 0.339609375 | DI124: 0 | DJ124: 0 | DK124: 0 | DL124: 0 | DM124: 0 | DN124: 0 | DO124: 0 | DP124: 0 | DQ124: 0 | DR124: 0 | DS124: 0 | DT124: 0 | DU124: 0 | DV124: 0 | DW124: 0 | DX124: 0 | DY124: 0 | DZ124: 0 | EA124: 0 | EB124: 0 | EC124: 0 | ED124: 0 | EE124: 0 | EF124: 0 | EG124: 0 | EH124: 0
C126: Debt repayment - level repayment
C127: Number of periods is which debt is repaid | E127: =$G$15 -> 32
C128: =C$105 -> Project debt - sizing method | D128: =D$105 -> k EUR | E128: =E$105 -> 2835
C129: Amount repaid in one period | D129: =curr -> k EUR | E129: =E128/E127 -> 88.59375
C130: Principal level repayment | D130: =curr -> k EUR | J130: =IF(J15=1,$E$129,0) -> 0 | K130: 0 | L130: 0 | M130: 0 | N130: 0 | O130: 0 | P130: 0 | Q130: 0 | R130: 0 | S130: 88.59375 | T130: 0 | U130: 0 | V130: 88.59375 | W130: 0 | X130: 0 | Y130: 88.59375 | Z130: 0 | AA130: 0 | AB130: 88.59375 | AC130: 0 | AD130: 0 | AE130: 88.59375 | AF130: 0 | AG130: 0 | AH130: 88.59375 | AI130: 0 | AJ130: 0 | AK130: 88.59375 | AL130: 0 | AM130: 0 | AN130: 88.59375 | AO130: 0 | AP130: =IF(AP15=1,$E$129,0) -> 0 | AQ130: 88.59375 | AR130: 0 | AS130: 0 | AT130: 88.59375 | AU130: 0 | AV130: 0 | AW130: 88.59375 | AX130: 0 | AY130: 0 | AZ130: 88.59375 | BA130: 0 | BB130: 0 | BC130: 88.59375 | BD130: 0 | BE130: 0 | BF130: 88.59375 | BG130: 0 | BH130: 0 | BI130: 88.59375 | BJ130: 0 | BK130: 0 | BL130: 88.59375 | BM130: 0 | BN130: 0 | BO130: 88.59375 | BP130: 0 | BQ130: 0 | BR130: 88.59375 | BS130: 0 | BT130: 0 | BU130: 88.59375 | BV130: =IF(BV15=1,$E$129,0) -> 0 | BW130: 0 | BX130: 88.59375 | BY130: 0 | BZ130: 0 | CA130: 88.59375 | CB130: 0 | CC130: 0 | CD130: 88.59375 | CE130: 0 | CF130: 0 | CG130: 88.59375 | CH130: 0 | CI130: 0 | CJ130: 88.59375 | CK130: 0 | CL130: 0 | CM130: 88.59375 | CN130: 0 | CO130: 0 | CP130: 88.59375 | CQ130: 0 | CR130: 0 | CS130: 88.59375 | CT130: 0 | CU130: 0 | CV130: 88.59375 | CW130: 0 | CX130: 0 | CY130: 88.59375 | CZ130: 0 | DA130: 0 | DB130: =IF(DB15=1,$E$129,0) -> 88.59375 | DC130: 0 | DD130: 0 | DE130: 88.59375 | DF130: 0 | DG130: 0 | DH130: 88.59375 | DI130: 0 | DJ130: 0 | DK130: 0 | DL130: 0 | DM130: 0 | DN130: 0 | DO130: 0 | DP130: 0 | DQ130: 0 | DR130: 0 | DS130: 0 | DT130: 0 | DU130: 0 | DV130: 0 | DW130: 0 | DX130: 0 | DY130: 0 | DZ130: 0 | EA130: 0 | EB130: 0 | EC130: 0 | ED130: 0 | EE130: 0 | EF130: 0 | EG130: 0 | EH130: 0
C132: Debt repayment - sculpted repayment
C133: =C82 -> Debt service at target DSCR | D133: =D82 -> k EUR | J133: =J82 -> 0 | K133: 0 | L133: 0 | M133: 0 | N133: 0 | O133: 0 | P133: 0 | Q133: 0 | R133: 0 | S133: 36.78819444 | T133: 34.60936827 | U133: 34.59633397 | V133: 36.73605721 | W133: 34.57024508 | X133: 34.55719046 | Y133: 36.66668763 | Z133: 34.53106079 | AA133: 34.51798572 | AB133: 36.55671044 | AC133: 34.49181502 | AD133: 34.47871935 | AE133: 36.42513828 | AF133: 34.45250734 | AG133: 34.43939095 | AH133: 36.3158062 | AI133: 34.41313734 | AJ133: 34.40000009 | AK133: 36.22640664 | AL133: 34.37370462 | AM133: 34.36054637 | AN133: 36.11617992 | AO133: 34.33420876 | AP133: =AP82 -> 34.32102937 | AQ133: 35.96897571 | AR133: 34.29464934 | AS133: 34.28144867 | AT133: 35.87784781 | AU133: 34.25502594 | AV133: 34.24180385 | AW133: 35.78511756 | AX133: 34.21533814 | AY133: 34.20209449 | AZ133: 35.67463464 | BA133: 34.17558552 | BB133: 34.16232017 | BC133: 35.5333249 | BD133: 34.13576766 | BE133: 34.12248046 | BF133: 35.43886125 | BG133: 34.09588412 | BH133: 34.08257494 | BI133: 35.34279355 | BJ133: 34.05593447 | BK133: 34.04260316 | BL133: 35.23204765 | BM133: 34.0159183 | BN133: 34.00256471 | BO133: 35.09662554 | BP133: 33.97583515 | BQ133: 33.96245915 | BR133: 34.99881929 | BS133: 33.9356846 | BT133: 33.92228603 | BU133: 34.89940725 | BV133: =BV82 -> 33.89546621 | BW133: 33.88204493 | BX133: 34.78839144 | BY133: 33.85517954 | BZ133: 33.8417354 | CA133: 34.66807853 | CB133: 33.81482415 | CC133: 33.801357 | CD133: 34.55769417 | CE133: 33.77439959 | CF133: 33.76090929 | CG133: 34.45493077 | CH133: 33.73390542 | CI133: 33.72039182 | CJ133: 34.34363799 | CK133: 33.69334119 | CL133: 33.67980413 | CM133: 34.21997016 | CN133: 33.65270645 | CO133: 33.63914578 | CP133: 34.11545759 | CQ133: 33.61200074 | CR133: 33.59841632 | CS133: 34.00933567 | CT133: 33.57122361 | CU133: 33.55761529 | CV133: 33.89775873 | CW133: 33.53037461 | CX133: 33.51674223 | CY133: 33.77995726 | CZ133: 33.48945328 | DA133: 33.47579668 | DB133: =DB82 -> 33.67208071 | DC133: 33.44845915 | DD133: 33.43477818 | DE133: 33.56259296 | DF133: 33.40739176 | DG133: 33.39368627 | DH133: 33.45072452 | DI133: 33.36625064 | DJ133: 33.35252047 | DK133: 0 | DL133: 0 | DM133: 0 | DN133: 0 | DO133: 0 | DP133: 0 | DQ133: 0 | DR133: 0 | DS133: 0 | DT133: 0 | DU133: 0 | DV133: 0 | DW133: 0 | DX133: 0 | DY133: 0 | DZ133: 0 | EA133: 0 | EB133: 0 | EC133: 0 | ED133: 0 | EE133: 0 | EF133: 0 | EG133: 0 | EH133: 0
C134: =C123 -> Interest during operations | D134: =D123 -> k EUR | J134: =J123 -> 0 | K134: 0 | L134: 0 | M134: 0 | N134: 0 | O134: 0 | P134: 0 | Q134: 0 | R134: 0 | S134: 10.63125 | T134: 0 | U134: 0 | V134: 10.41345703 | W134: 0 | X134: 0 | Y134: 10.18828125 | Z134: 0 | AA134: 0 | AB134: 9.848671875 | AC134: 0 | AD134: 0 | AE134: 9.405703125 | AF134: 0 | AG134: 0 | AH134: 9.069785156 | AI134: 0 | AJ134: 0 | AK134: 8.82984375 | AL134: 0 | AM134: 0 | AN134: 8.490234375 | AO134: 0 | AP134: =AP123 -> 0 | AQ134: 7.9734375 | AR134: 0 | AS134: 0 | AT134: 7.726113281 | AU134: 0 | AV134: 0 | AW134: 7.47140625 | AX134: 0 | AY134: 0 | AZ134: 7.131796875 | BA134: 0 | BB134: 0 | BC134: 6.64453125 | BD134: 0 | BE134: 0 | BF134: 6.382441406 | BG134: 0 | BH134: 0 | BI134: 6.11296875 | BJ134: 0 | BK134: 0 | BL134: 5.773359375 | BM134: 0 | BN134: 0 | BO134: 5.315625 | BP134: 0 | BQ134: 0 | BR134: 5.038769531 | BS134: 0 | BT134: 0 | BU134: 4.75453125 | BV134: =BV123 -> 0 | BW134: 0 | BX134: 4.414921875 | BY134: 0 | BZ134: 0 | CA134: 4.031015625 | CB134: 0 | CC134: 0 | CD134: 3.695097656 | CE134: 0 | CF134: 0 | CG134: 3.39609375 | CH134: 0 | CI134: 0 | CJ134: 3.056484375 | CK134: 0 | CL134: 0 | CM134: 2.6578125 | CN134: 0 | CO134: 0 | CP134: 2.351425781 | CQ134: 0 | CR134: 0 | CS134: 2.03765625 | CT134: 0 | CU134: 0 | CV134: 1.698046875 | CW134: 0 | CX134: 0 | CY134: 1.32890625 | CZ134: 0 | DA134: 0 | DB134: =DB123 -> 1.007753906 | DC134: 0 | DD134: 0 | DE134: 0.67921875 | DF134: 0 | DG134: 0 | DH134: 0.339609375 | DI134: 0 | DJ134: 0 | DK134: 0 | DL134: 0 | DM134: 0 | DN134: 0 | DO134: 0 | DP134: 0 | DQ134: 0 | DR134: 0 | DS134: 0 | DT134: 0 | DU134: 0 | DV134: 0 | DW134: 0 | DX134: 0 | DY134: 0 | DZ134: 0 | EA134: 0 | EB134: 0 | EC134: 0 | ED134: 0 | EE134: 0 | EF134: 0 | EG134: 0 | EH134: 0
D135: =C3 -> Counter | J135: =J3 -> 1 | K135: 2 | L135: 3 | M135: 4 | N135: 5 | O135: 6 | P135: 7 | Q135: 8 | R135: 9 | S135: 10 | T135: 11 | U135: 12 | V135: 13 | W135: 14 | X135: 15 | Y135: 16 | Z135: 17 | AA135: 18 | AB135: 19 | AC135: 20 | AD135: 21 | AE135: 22 | AF135: 23 | AG135: 24 | AH135: 25 | AI135: 26 | AJ135: 27 | AK135: 28 | AL135: 29 | AM135: 30 | AN135: 31 | AO135: 32 | AP135: =AP3 -> 33 | AQ135: 34 | AR135: 35 | AS135: 36 | AT135: 37 | AU135: 38 | AV135: 39 | AW135: 40 | AX135: 41 | AY135: 42 | AZ135: 43 | BA135: 44 | BB135: 45 | BC135: 46 | BD135: 47 | BE135: 48 | BF135: 49 | BG135: 50 | BH135: 51 | BI135: 52 | BJ135: 53 | BK135: 54 | BL135: 55 | BM135: 56 | BN135: 57 | BO135: 58 | BP135: 59 | BQ135: 60 | BR135: 61 | BS135: 62 | BT135: 63 | BU135: 64 | BV135: =BV3 -> 65 | BW135: 66 | BX135: 67 | BY135: 68 | BZ135: 69 | CA135: 70 | CB135: 71 | CC135: 72 | CD135: 73 | CE135: 74 | CF135: 75 | CG135: 76 | CH135: 77 | CI135: 78 | CJ135: 79 | CK135: 80 | CL135: 81 | CM135: 82 | CN135: 83 | CO135: 84 | CP135: 85 | CQ135: 86 | CR135: 87 | CS135: 88 | CT135: 89 | CU135: 90 | CV135: 91 | CW135: 92 | CX135: 93 | CY135: 94 | CZ135: 95 | DA135: 96 | DB135: =DB3 -> 97 | DC135: 98 | DD135: 99 | DE135: 100 | DF135: 101 | DG135: 102 | DH135: 103 | DI135: 104 | DJ135: 105 | DK135: 106 | DL135: 107 | DM135: 108 | DN135: 109 | DO135: 110 | DP135: 111 | DQ135: 112 | DR135: 113 | DS135: 114 | DT135: 115 | DU135: 116 | DV135: 117 | DW135: 118 | DX135: 119 | DY135: 120 | DZ135: 121 | EA135: 122 | EB135: 123 | EC135: 124 | ED135: 125 | EE135: 126 | EF135: 127 | EG135: 128 | EH135: 129
C136: Quarterly Debt service at target DSCR | D136: =curr -> k EUR | J136: =IF(J10=1,J133,SUMIFS($J$133:$EH$133,$J$135:$EH$135,">"&J135,$J$135:$EH$135,"<="&J135+3)*J9)*J15 -> 0 | K136: 0 | L136: 0 | M136: 0 | N136: 0 | O136: 0 | P136: 0 | Q136: 0 | R136: 0 | S136: 36.78819444 | T136: 0 | U136: 0 | V136: 105.7941232 | W136: 0 | X136: 0 | Y136: 105.605757 | Z136: 0 | AA136: 0 | AB136: 105.3956727 | AC136: 0 | AD136: 0 | AE136: 105.2077045 | AF136: 0 | AG136: 0 | AH136: 105.0395441 | AI136: 0 | AJ136: 0 | AK136: 104.8504309 | AL136: 0 | AM136: 0 | AN136: 104.6242138 | AO136: 0 | AP136: =IF(AP10=1,AP133,SUMIFS($J$133:$EH$133,$J$135:$EH$135,">"&AP135,$J$135:$EH$135,"<="&AP135+3)*AP9)*AP15 -> 0 | AQ136: 104.4539458 | AR136: 0 | AS136: 0 | AT136: 104.2819473 | AU136: 0 | AV136: 0 | AW136: 104.0920673 | AX136: 0 | AY136: 0 | AZ136: 103.8712306 | BA136: 0 | BB136: 0 | BC136: 103.6971094 | BD136: 0 | BE136: 0 | BF136: 103.5212526 | BG136: 0 | BH136: 0 | BI136: 103.3305853 | BJ136: 0 | BK136: 0 | BL136: 103.1151085 | BM136: 0 | BN136: 0 | BO136: 102.9371136 | BP136: 0 | BQ136: 0 | BR136: 102.7573779 | BS136: 0 | BT136: 0 | BU136: 102.5659026 | BV136: =IF(BV10=1,BV133,SUMIFS($J$133:$EH$133,$J$135:$EH$135,">"&BV135,$J$135:$EH$135,"<="&BV135+3)*BV9)*BV15 -> 0 | BW136: 0 | BX136: 102.3649935 | BY136: 0 | BZ136: 0 | CA136: 102.1738753 | CB136: 0 | CC136: 0 | CD136: 101.9902397 | CE136: 0 | CF136: 0 | CG136: 101.7979352 | CH136: 0 | CI136: 0 | CJ136: 101.5931155 | CK136: 0 | CL136: 0 | CM136: 101.4073098 | CN136: 0 | CO136: 0 | CP136: 101.2197527 | CQ136: 0 | CR136: 0 | CS136: 101.0265976 | CT136: 0 | CU136: 0 | CV136: 100.8270741 | CW136: 0 | CX136: 0 | CY136: 100.6373307 | CZ136: 0 | DA136: 0 | DB136: =IF(DB10=1,DB133,SUMIFS($J$133:$EH$133,$J$135:$EH$135,">"&DB135,$J$135:$EH$135,"<="&DB135+3)*DB9)*DB15 -> 100.4458303 | DC136: 0 | DD136: 0 | DE136: 100.2518025 | DF136: 0 | DG136: 0 | DH136: 66.71877111 | DI136: 0 | DJ136: 0 | DK136: 0 | DL136: 0 | DM136: 0 | DN136: 0 | DO136: 0 | DP136: 0 | DQ136: 0 | DR136: 0 | DS136: 0 | DT136: 0 | DU136: 0 | DV136: 0 | DW136: 0 | DX136: 0 | DY136: 0 | DZ136: 0 | EA136: 0 | EB136: 0 | EC136: 0 | ED136: 0 | EE136: 0 | EF136: 0 | EG136: 0 | EH136: =IF(EH10=1,EH133,SUMIFS($J$133:$EH$133,$J$135:$EH$135,">"&EH135,$J$135:$EH$135,"<="&EH135+3)*EH9)*EH15 -> 0
C137: Debt sculpted principal repayment | D137: =curr -> k EUR | J137: =(J136-J134)*J15 -> 0 | K137: 0 | L137: 0 | M137: 0 | N137: 0 | O137: 0 | P137: 0 | Q137: 0 | R137: 0 | S137: 26.15694444 | T137: 0 | U137: 0 | V137: 95.38066613 | W137: 0 | X137: 0 | Y137: 95.4174757 | Z137: 0 | AA137: 0 | AB137: 95.54700078 | AC137: 0 | AD137: 0 | AE137: 95.80200136 | AF137: 0 | AG137: 0 | AH137: 95.96975892 | AI137: 0 | AJ137: 0 | AK137: 96.02058716 | AL137: 0 | AM137: 0 | AN137: 96.13397947 | AO137: 0 | AP137: =(AP136-AP134)*AP15 -> 0 | AQ137: 96.48050831 | AR137: 0 | AS137: 0 | AT137: 96.55583407 | AU137: 0 | AV137: 0 | AW137: 96.62066103 | AX137: 0 | AY137: 0 | AZ137: 96.73943372 | BA137: 0 | BB137: 0 | BC137: 97.05257812 | BD137: 0 | BE137: 0 | BF137: 97.1388112 | BG137: 0 | BH137: 0 | BI137: 97.21761653 | BJ137: 0 | BK137: 0 | BL137: 97.34174917 | BM137: 0 | BN137: 0 | BO137: 97.62148858 | BP137: 0 | BQ137: 0 | BR137: 97.71860835 | BS137: 0 | BT137: 0 | BU137: 97.81137133 | BV137: =(BV136-BV134)*BV15 -> 0 | BW137: 0 | BX137: 97.9500716 | BY137: 0 | BZ137: 0 | CA137: 98.1428597 | CB137: 0 | CC137: 0 | CD137: 98.295142 | CE137: 0 | CF137: 0 | CG137: 98.40184148 | CH137: 0 | CI137: 0 | CJ137: 98.5366311 | CK137: 0 | CL137: 0 | CM137: 98.74949732 | CN137: 0 | CO137: 0 | CP137: 98.86832695 | CQ137: 0 | CR137: 0 | CS137: 98.98894138 | CT137: 0 | CU137: 0 | CV137: 99.12902723 | CW137: 0 | CX137: 0 | CY137: 99.30842442 | CZ137: 0 | DA137: 0 | DB137: =(DB136-DB134)*DB15 -> 99.43807638 | DC137: 0 | DD137: 0 | DE137: 99.57258379 | DF137: 0 | DG137: 0 | DH137: 66.37916174 | DI137: 0 | DJ137: 0 | DK137: 0 | DL137: 0 | DM137: 0 | DN137: 0 | DO137: 0 | DP137: 0 | DQ137: 0 | DR137: 0 | DS137: 0 | DT137: 0 | DU137: 0 | DV137: 0 | DW137: 0 | DX137: 0 | DY137: 0 | DZ137: 0 | EA137: 0 | EB137: 0 | EC137: 0 | ED137: 0 | EE137: 0 | EF137: 0 | EG137: 0 | EH137: =(EH136-EH134)*EH15 -> 0
C140: Debt repayment switch | D140: switch, 1 = level ; 2 = sculpted | E140: 1
C141: =C130 -> Principal level repayment | D141: =D130 -> k EUR | J141: =J130 -> 0 | K141: 0 | L141: 0 | M141: 0 | N141: 0 | O141: 0 | P141: 0 | Q141: 0 | R141: 0 | S141: 88.59375 | T141: 0 | U141: 0 | V141: 88.59375 | W141: 0 | X141: 0 | Y141: 88.59375 | Z141: 0 | AA141: 0 | AB141: 88.59375 | AC141: 0 | AD141: 0 | AE141: 88.59375 | AF141: 0 | AG141: 0 | AH141: 88.59375 | AI141: 0 | AJ141: 0 | AK141: 88.59375 | AL141: 0 | AM141: 0 | AN141: 88.59375 | AO141: 0 | AP141: =AP130 -> 0 | AQ141: 88.59375 | AR141: 0 | AS141: 0 | AT141: 88.59375 | AU141: 0 | AV141: 0 | AW141: 88.59375 | AX141: 0 | AY141: 0 | AZ141: 88.59375 | BA141: 0 | BB141: 0 | BC141: 88.59375 | BD141: 0 | BE141: 0 | BF141: 88.59375 | BG141: 0 | BH141: 0 | BI141: 88.59375 | BJ141: 0 | BK141: 0 | BL141: 88.59375 | BM141: 0 | BN141: 0 | BO141: 88.59375 | BP141: 0 | BQ141: 0 | BR141: 88.59375 | BS141: 0 | BT141: 0 | BU141: 88.59375 | BV141: =BV130 -> 0 | BW141: 0 | BX141: 88.59375 | BY141: 0 | BZ141: 0 | CA141: 88.59375 | CB141: 0 | CC141: 0 | CD141: 88.59375 | CE141: 0 | CF141: 0 | CG141: 88.59375 | CH141: 0 | CI141: 0 | CJ141: 88.59375 | CK141: 0 | CL141: 0 | CM141: 88.59375 | CN141: 0 | CO141: 0 | CP141: 88.59375 | CQ141: 0 | CR141: 0 | CS141: 88.59375 | CT141: 0 | CU141: 0 | CV141: 88.59375 | CW141: 0 | CX141: 0 | CY141: 88.59375 | CZ141: 0 | DA141: 0 | DB141: =DB130 -> 88.59375 | DC141: 0 | DD141: 0 | DE141: 88.59375 | DF141: 0 | DG141: 0 | DH141: 88.59375 | DI141: 0 | DJ141: 0 | DK141: 0 | DL141: 0 | DM141: 0 | DN141: 0 | DO141: 0 | DP141: 0 | DQ141: 0 | DR141: 0 | DS141: 0 | DT141: 0 | DU141: 0 | DV141: 0 | DW141: 0 | DX141: 0 | DY141: 0 | DZ141: 0 | EA141: 0 | EB141: 0 | EC141: 0 | ED141: 0 | EE141: 0 | EF141: 0 | EG141: 0 | EH141: 0
C142: =C137 -> Debt sculpted principal repayment | D142: k EUR | J142: 0 | K142: 0 | L142: 0 | M142: 0 | N142: 0 | O142: 0 | P142: 0 | Q142: 0 | R142: 0 | S142: 26.15694444 | T142: 0 | U142: 0 | V142: 95.38066613 | W142: 0 | X142: 0 | Y142: 95.4174757 | Z142: 0 | AA142: 0 | AB142: 95.54700078 | AC142: 0 | AD142: 0 | AE142: 95.80200136 | AF142: 0 | AG142: 0 | AH142: 95.96975892 | AI142: =AI137 -> 0 | AJ142: 0 | AK142: 96.02058716 | AL142: 0 | AM142: 0 | AN142: 96.13397947 | AO142: 0 | AP142: 0 | AQ142: 96.48050831 | AR142: 0 | AS142: 0 | AT142: 96.55583407 | AU142: 0 | AV142: 0 | AW142: 96.62066103 | AX142: 0 | AY142: 0 | AZ142: 96.73943372 | BA142: 0 | BB142: 0 | BC142: 97.05257812 | BD142: 0 | BE142: 0 | BF142: 97.1388112 | BG142: 0 | BH142: 0 | BI142: 97.21761653 | BJ142: 0 | BK142: 0 | BL142: 97.34174917 | BM142: 0 | BN142: 0 | BO142: =BO137 -> 97.62148858 | BP142: 0 | BQ142: 0 | BR142: 97.71860835 | BS142: 0 | BT142: 0 | BU142: 97.81137133 | BV142: 0 | BW142: 0 | BX142: 97.9500716 | BY142: 0 | BZ142: 0 | CA142: 98.1428597 | CB142: 0 | CC142: 0 | CD142: 98.295142 | CE142: 0 | CF142: 0 | CG142: 98.40184148 | CH142: 0 | CI142: 0 | CJ142: 98.5366311 | CK142: 0 | CL142: 0 | CM142: 98.74949732 | CN142: 0 | CO142: 0 | CP142: 98.86832695 | CQ142: 0 | CR142: 0 | CS142: 98.98894138 | CT142: 0 | CU142: =CU137 -> 0 | CV142: 99.12902723 | CW142: 0 | CX142: 0 | CY142: 99.30842442 | CZ142: 0 | DA142: 0 | DB142: 99.43807638 | DC142: 0 | DD142: 0 | DE142: 99.57258379 | DF142: 0 | DG142: 0 | DH142: 66.37916174 | DI142: 0 | DJ142: 0 | DK142: 0 | DL142: 0 | DM142: 0 | DN142: 0 | DO142: 0 | DP142: 0 | DQ142: 0 | DR142: 0 | DS142: 0 | DT142: 0 | DU142: 0 | DV142: 0 | DW142: 0 | DX142: 0 | DY142: 0 | DZ142: 0 | EA142: =EA137 -> 0 | EB142: 0 | EC142: 0 | ED142: 0 | EE142: 0 | EF142: 0 | EG142: 0 | EH142: 0
C143: Senior debt principal repayment | D143: =curr -> k EUR | J143: =INDEX(J141:J142,$E$140) -> 0 | K143: =INDEX(K141:K142,$E$140) -> 0 | L143: =INDEX(L141:L142,$E$140) -> 0 | M143: =INDEX(M141:M142,$E$140) -> 0 | N143: =INDEX(N141:N142,$E$140) -> 0 | O143: =INDEX(O141:O142,$E$140) -> 0 | P143: =INDEX(P141:P142,$E$140) -> 0 | Q143: =INDEX(Q141:Q142,$E$140) -> 0 | R143: =INDEX(R141:R142,$E$140) -> 0 | S143: =INDEX(S141:S142,$E$140) -> 88.59375 | T143: =INDEX(T141:T142,$E$140) -> 0 | U143: =INDEX(U141:U142,$E$140) -> 0 | V143: =INDEX(V141:V142,$E$140) -> 88.59375 | W143: =INDEX(W141:W142,$E$140) -> 0 | X143: =INDEX(X141:X142,$E$140) -> 0 | Y143: =INDEX(Y141:Y142,$E$140) -> 88.59375 | Z143: =INDEX(Z141:Z142,$E$140) -> 0 | AA143: =INDEX(AA141:AA142,$E$140) -> 0 | AB143: =INDEX(AB141:AB142,$E$140) -> 88.59375 | AC143: =INDEX(AC141:AC142,$E$140) -> 0 | AD143: =INDEX(AD141:AD142,$E$140) -> 0 | AE143: =INDEX(AE141:AE142,$E$140) -> 88.59375 | AF143: =INDEX(AF141:AF142,$E$140) -> 0 | AG143: =INDEX(AG141:AG142,$E$140) -> 0 | AH143: =INDEX(AH141:AH142,$E$140) -> 88.59375 | AI143: =INDEX(AI141:AI142,$E$140) -> 0 | AJ143: =INDEX(AJ141:AJ142,$E$140) -> 0 | AK143: =INDEX(AK141:AK142,$E$140) -> 88.59375 | AL143: =INDEX(AL141:AL142,$E$140) -> 0 | AM143: =INDEX(AM141:AM142,$E$140) -> 0 | AN143: =INDEX(AN141:AN142,$E$140) -> 88.59375 | AO143: =INDEX(AO141:AO142,$E$140) -> 0 | AP143: =INDEX(AP141:AP142,$E$140) -> 0 | AQ143: =INDEX(AQ141:AQ142,$E$140) -> 88.59375 | AR143: =INDEX(AR141:AR142,$E$140) -> 0 | AS143: =INDEX(AS141:AS142,$E$140) -> 0 | AT143: =INDEX(AT141:AT142,$E$140) -> 88.59375 | AU143: =INDEX(AU141:AU142,$E$140) -> 0 | AV143: =INDEX(AV141:AV142,$E$140) -> 0 | AW143: =INDEX(AW141:AW142,$E$140) -> 88.59375 | AX143: =INDEX(AX141:AX142,$E$140) -> 0 | AY143: =INDEX(AY141:AY142,$E$140) -> 0 | AZ143: =INDEX(AZ141:AZ142,$E$140) -> 88.59375 | BA143: =INDEX(BA141:BA142,$E$140) -> 0 | BB143: =INDEX(BB141:BB142,$E$140) -> 0 | BC143: =INDEX(BC141:BC142,$E$140) -> 88.59375 | BD143: =INDEX(BD141:BD142,$E$140) -> 0 | BE143: =INDEX(BE141:BE142,$E$140) -> 0 | BF143: =INDEX(BF141:BF142,$E$140) -> 88.59375 | BG143: =INDEX(BG141:BG142,$E$140) -> 0 | BH143: =INDEX(BH141:BH142,$E$140) -> 0 | BI143: =INDEX(BI141:BI142,$E$140) -> 88.59375 | BJ143: =INDEX(BJ141:BJ142,$E$140) -> 0 | BK143: =INDEX(BK141:BK142,$E$140) -> 0 | BL143: =INDEX(BL141:BL142,$E$140) -> 88.59375 | BM143: =INDEX(BM141:BM142,$E$140) -> 0 | BN143: =INDEX(BN141:BN142,$E$140) -> 0 | BO143: =INDEX(BO141:BO142,$E$140) -> 88.59375 | BP143: =INDEX(BP141:BP142,$E$140) -> 0 | BQ143: =INDEX(BQ141:BQ142,$E$140) -> 0 | BR143: =INDEX(BR141:BR142,$E$140) -> 88.59375 | BS143: =INDEX(BS141:BS142,$E$140) -> 0 | BT143: =INDEX(BT141:BT142,$E$140) -> 0 | BU143: =INDEX(BU141:BU142,$E$140) -> 88.59375 | BV143: =INDEX(BV141:BV142,$E$140) -> 0 | BW143: =INDEX(BW141:BW142,$E$140) -> 0 | BX143: =INDEX(BX141:BX142,$E$140) -> 88.59375 | BY143: =INDEX(BY141:BY142,$E$140) -> 0 | BZ143: =INDEX(BZ141:BZ142,$E$140) -> 0 | CA143: =INDEX(CA141:CA142,$E$140) -> 88.59375 | CB143: =INDEX(CB141:CB142,$E$140) -> 0 | CC143: =INDEX(CC141:CC142,$E$140) -> 0 | CD143: =INDEX(CD141:CD142,$E$140) -> 88.59375 | CE143: =INDEX(CE141:CE142,$E$140) -> 0 | CF143: =INDEX(CF141:CF142,$E$140) -> 0 | CG143: =INDEX(CG141:CG142,$E$140) -> 88.59375 | CH143: =INDEX(CH141:CH142,$E$140) -> 0 | CI143: =INDEX(CI141:CI142,$E$140) -> 0 | CJ143: =INDEX(CJ141:CJ142,$E$140) -> 88.59375 | CK143: =INDEX(CK141:CK142,$E$140) -> 0 | CL143: =INDEX(CL141:CL142,$E$140) -> 0 | CM143: =INDEX(CM141:CM142,$E$140) -> 88.59375 | CN143: =INDEX(CN141:CN142,$E$140) -> 0 | CO143: =INDEX(CO141:CO142,$E$140) -> 0 | CP143: =INDEX(CP141:CP142,$E$140) -> 88.59375 | CQ143: =INDEX(CQ141:CQ142,$E$140) -> 0 | CR143: =INDEX(CR141:CR142,$E$140) -> 0 | CS143: =INDEX(CS141:CS142,$E$140) -> 88.59375 | CT143: =INDEX(CT141:CT142,$E$140) -> 0 | CU143: =INDEX(CU141:CU142,$E$140) -> 0 | CV143: =INDEX(CV141:CV142,$E$140) -> 88.59375 | CW143: =INDEX(CW141:CW142,$E$140) -> 0 | CX143: =INDEX(CX141:CX142,$E$140) -> 0 | CY143: =INDEX(CY141:CY142,$E$140) -> 88.59375 | CZ143: =INDEX(CZ141:CZ142,$E$140) -> 0 | DA143: =INDEX(DA141:DA142,$E$140) -> 0 | DB143: =INDEX(DB141:DB142,$E$140) -> 88.59375 | DC143: =INDEX(DC141:DC142,$E$140) -> 0 | DD143: =INDEX(DD141:DD142,$E$140) -> 0 | DE143: =INDEX(DE141:DE142,$E$140) -> 88.59375 | DF143: =INDEX(DF141:DF142,$E$140) -> 0 | DG143: =INDEX(DG141:DG142,$E$140) -> 0 | DH143: =INDEX(DH141:DH142,$E$140) -> 88.59375 | DI143: =INDEX(DI141:DI142,$E$140) -> 0 | DJ143: =INDEX(DJ141:DJ142,$E$140) -> 0 | DK143: =INDEX(DK141:DK142,$E$140) -> 0 | DL143: =INDEX(DL141:DL142,$E$140) -> 0 | DM143: =INDEX(DM141:DM142,$E$140) -> 0 | DN143: =INDEX(DN141:DN142,$E$140) -> 0 | DO143: =INDEX(DO141:DO142,$E$140) -> 0 | DP143: =INDEX(DP141:DP142,$E$140) -> 0 | DQ143: =INDEX(DQ141:DQ142,$E$140) -> 0 | DR143: =INDEX(DR141:DR142,$E$140) -> 0 | DS143: =INDEX(DS141:DS142,$E$140) -> 0 | DT143: =INDEX(DT141:DT142,$E$140) -> 0 | DU143: =INDEX(DU141:DU142,$E$140) -> 0 | DV143: =INDEX(DV141:DV142,$E$140) -> 0 | DW143: =INDEX(DW141:DW142,$E$140) -> 0 | DX143: =INDEX(DX141:DX142,$E$140) -> 0 | DY143: =INDEX(DY141:DY142,$E$140) -> 0 | DZ143: =INDEX(DZ141:DZ142,$E$140) -> 0 | EA143: =INDEX(EA141:EA142,$E$140) -> 0 | EB143: =INDEX(EB141:EB142,$E$140) -> 0 | EC143: =INDEX(EC141:EC142,$E$140) -> 0 | ED143: =INDEX(ED141:ED142,$E$140) -> 0 | EE143: =INDEX(EE141:EE142,$E$140) -> 0 | EF143: =INDEX(EF141:EF142,$E$140) -> 0 | EG143: =INDEX(EG141:EG142,$E$140) -> 0 | EH143: =INDEX(EH141:EH142,$E$140) -> 0
C145: Senior debt balance
C146: BOP | D146: =D$105 -> k EUR | J146: =IF(J$3=2,$E$109,I148) -> 0 | K146: 2835 | L146: 2835 | M146: 2835 | N146: 2835 | O146: 2835 | P146: 2835 | Q146: 2835 | R146: 2835 | S146: 2835 | T146: 2746.40625 | U146: 2746.40625 | V146: 2746.40625 | W146: 2657.8125 | X146: 2657.8125 | Y146: 2657.8125 | Z146: 2569.21875 | AA146: 2569.21875 | AB146: 2569.21875 | AC146: 2480.625 | AD146: 2480.625 | AE146: 2480.625 | AF146: 2392.03125 | AG146: 2392.03125 | AH146: 2392.03125 | AI146: 2303.4375 | AJ146: 2303.4375 | AK146: 2303.4375 | AL146: 2214.84375 | AM146: 2214.84375 | AN146: 2214.84375 | AO146: 2126.25 | AP146: =IF(AP$3=2,$E$109,AO148) -> 2126.25 | AQ146: 2126.25 | AR146: 2037.65625 | AS146: 2037.65625 | AT146: 2037.65625 | AU146: 1949.0625 | AV146: 1949.0625 | AW146: 1949.0625 | AX146: 1860.46875 | AY146: 1860.46875 | AZ146: 1860.46875 | BA146: 1771.875 | BB146: 1771.875 | BC146: 1771.875 | BD146: 1683.28125 | BE146: 1683.28125 | BF146: 1683.28125 | BG146: 1594.6875 | BH146: 1594.6875 | BI146: 1594.6875 | BJ146: 1506.09375 | BK146: 1506.09375 | BL146: 1506.09375 | BM146: 1417.5 | BN146: 1417.5 | BO146: 1417.5 | BP146: 1328.90625 | BQ146: 1328.90625 | BR146: 1328.90625 | BS146: 1240.3125 | BT146: 1240.3125 | BU146: 1240.3125 | BV146: =IF(BV$3=2,$E$109,BU148) -> 1151.71875 | BW146: 1151.71875 | BX146: 1151.71875 | BY146: 1063.125 | BZ146: 1063.125 | CA146: 1063.125 | CB146: 974.53125 | CC146: 974.53125 | CD146: 974.53125 | CE146: 885.9375 | CF146: 885.9375 | CG146: 885.9375 | CH146: 797.34375 | CI146: 797.34375 | CJ146: 797.34375 | CK146: 708.75 | CL146: 708.75 | CM146: 708.75 | CN146: 620.15625 | CO146: 620.15625 | CP146: 620.15625 | CQ146: 531.5625 | CR146: 531.5625 | CS146: 531.5625 | CT146: 442.96875 | CU146: 442.96875 | CV146: 442.96875 | CW146: 354.375 | CX146: 354.375 | CY146: 354.375 | CZ146: 265.78125 | DA146: 265.78125 | DB146: =IF(DB$3=2,$E$109,DA148) -> 265.78125 | DC146: 177.1875 | DD146: 177.1875 | DE146: 177.1875 | DF146: 88.59375 | DG146: 88.59375 | DH146: 88.59375 | DI146: 0 | DJ146: 0 | DK146: 0 | DL146: 0 | DM146: 0 | DN146: 0 | DO146: 0 | DP146: 0 | DQ146: 0 | DR146: 0 | DS146: 0 | DT146: 0 | DU146: 0 | DV146: 0 | DW146: 0 | DX146: 0 | DY146: 0 | DZ146: 0 | EA146: 0 | EB146: 0 | EC146: 0 | ED146: 0 | EE146: 0 | EF146: 0 | EG146: 0 | EH146: 0
C147: =C143 -> Senior debt principal repayment | D147: k EUR | J147: 0 | K147: 0 | L147: 0 | M147: 0 | N147: 0 | O147: 0 | P147: 0 | Q147: 0 | R147: 0 | S147: 88.59375 | T147: 0 | U147: 0 | V147: 88.59375 | W147: 0 | X147: 0 | Y147: 88.59375 | Z147: 0 | AA147: 0 | AB147: 88.59375 | AC147: 0 | AD147: 0 | AE147: 88.59375 | AF147: 0 | AG147: 0 | AH147: 88.59375 | AI147: =AI143 -> 0 | AJ147: 0 | AK147: 88.59375 | AL147: 0 | AM147: 0 | AN147: 88.59375 | AO147: 0 | AP147: 0 | AQ147: 88.59375 | AR147: 0 | AS147: 0 | AT147: 88.59375 | AU147: 0 | AV147: 0 | AW147: 88.59375 | AX147: 0 | AY147: 0 | AZ147: 88.59375 | BA147: 0 | BB147: 0 | BC147: 88.59375 | BD147: 0 | BE147: 0 | BF147: 88.59375 | BG147: 0 | BH147: 0 | BI147: 88.59375 | BJ147: 0 | BK147: 0 | BL147: 88.59375 | BM147: 0 | BN147: 0 | BO147: =BO143 -> 88.59375 | BP147: 0 | BQ147: 0 | BR147: 88.59375 | BS147: 0 | BT147: 0 | BU147: 88.59375 | BV147: 0 | BW147: 0 | BX147: 88.59375 | BY147: 0 | BZ147: 0 | CA147: 88.59375 | CB147: 0 | CC147: 0 | CD147: 88.59375 | CE147: 0 | CF147: 0 | CG147: 88.59375 | CH147: 0 | CI147: 0 | CJ147: 88.59375 | CK147: 0 | CL147: 0 | CM147: 88.59375 | CN147: 0 | CO147: 0 | CP147: 88.59375 | CQ147: 0 | CR147: 0 | CS147: 88.59375 | CT147: 0 | CU147: =CU143 -> 0 | CV147: 88.59375 | CW147: 0 | CX147: 0 | CY147: 88.59375 | CZ147: 0 | DA147: 0 | DB147: 88.59375 | DC147: 0 | DD147: 0 | DE147: 88.59375 | DF147: 0 | DG147: 0 | DH147: 88.59375 | DI147: 0 | DJ147: 0 | DK147: 0 | DL147: 0 | DM147: 0 | DN147: 0 | DO147: 0 | DP147: 0 | DQ147: 0 | DR147: 0 | DS147: 0 | DT147: 0 | DU147: 0 | DV147: 0 | DW147: 0 | DX147: 0 | DY147: 0 | DZ147: 0 | EA147: =EA143 -> 0 | EB147: 0 | EC147: 0 | ED147: 0 | EE147: 0 | EF147: 0 | EG147: 0 | EH147: 0
C148: EOP | D148: =D$105 -> k EUR | J148: =J146-J147 -> 0 | K148: =K146-K147 -> 2835 | L148: 2835 | M148: 2835 | N148: 2835 | O148: 2835 | P148: 2835 | Q148: 2835 | R148: 2835 | S148: 2746.40625 | T148: 2746.40625 | U148: 2746.40625 | V148: 2657.8125 | W148: 2657.8125 | X148: 2657.8125 | Y148: 2569.21875 | Z148: 2569.21875 | AA148: 2569.21875 | AB148: 2480.625 | AC148: 2480.625 | AD148: 2480.625 | AE148: 2392.03125 | AF148: 2392.03125 | AG148: 2392.03125 | AH148: 2303.4375 | AI148: 2303.4375 | AJ148: 2303.4375 | AK148: 2214.84375 | AL148: 2214.84375 | AM148: 2214.84375 | AN148: 2126.25 | AO148: 2126.25 | AP148: 2126.25 | AQ148: 2037.65625 | AR148: 2037.65625 | AS148: 2037.65625 | AT148: 1949.0625 | AU148: 1949.0625 | AV148: 1949.0625 | AW148: 1860.46875 | AX148: 1860.46875 | AY148: 1860.46875 | AZ148: 1771.875 | BA148: 1771.875 | BB148: 1771.875 | BC148: 1683.28125 | BD148: 1683.28125 | BE148: 1683.28125 | BF148: 1594.6875 | BG148: 1594.6875 | BH148: 1594.6875 | BI148: 1506.09375 | BJ148: 1506.09375 | BK148: 1506.09375 | BL148: 1417.5 | BM148: 1417.5 | BN148: 1417.5 | BO148: 1328.90625 | BP148: 1328.90625 | BQ148: 1328.90625 | BR148: 1240.3125 | BS148: 1240.3125 | BT148: 1240.3125 | BU148: 1151.71875 | BV148: 1151.71875 | BW148: =BW146-BW147 -> 1151.71875 | BX148: 1063.125 | BY148: 1063.125 | BZ148: 1063.125 | CA148: 974.53125 | CB148: 974.53125 | CC148: 974.53125 | CD148: 885.9375 | CE148: 885.9375 | CF148: 885.9375 | CG148: 797.34375 | CH148: 797.34375 | CI148: 797.34375 | CJ148: 708.75 | CK148: 708.75 | CL148: 708.75 | CM148: 620.15625 | CN148: 620.15625 | CO148: 620.15625 | CP148: 531.5625 | CQ148: 531.5625 | CR148: 531.5625 | CS148: 442.96875 | CT148: 442.96875 | CU148: 442.96875 | CV148: 354.375 | CW148: 354.375 | CX148: 354.375 | CY148: 265.78125 | CZ148: 265.78125 | DA148: 265.78125 | DB148: 177.1875 | DC148: 177.1875 | DD148: 177.1875 | DE148: 88.59375 | DF148: 88.59375 | DG148: 88.59375 | DH148: 0 | DI148: 0 | DJ148: 0 | DK148: 0 | DL148: 0 | DM148: 0 | DN148: 0 | DO148: 0 | DP148: 0 | DQ148: 0 | DR148: 0 | DS148: 0 | DT148: 0 | DU148: 0 | DV148: 0 | DW148: 0 | DX148: 0 | DY148: 0 | DZ148: 0 | EA148: 0 | EB148: 0 | EC148: 0 | ED148: 0 | EE148: 0 | EF148: 0 | EG148: 0 | EH148: 0
C150: INCOME STATEMENT
C152: =C$27 -> Revenues | D152: =D$27 -> k EUR | G152: =G$27 -> 5910.143339 | J152: =J$27 -> 0 | K152: 0 | L152: 0 | M152: 0 | N152: 0 | O152: 0 | P152: 0 | Q152: 0 | R152: 0 | S152: 49.9875 | T152: 49.97500313 | U152: 49.96250937 | V152: 49.95001875 | W152: 49.93753124 | X152: 49.92504686 | Y152: 49.9125656 | Z152: 49.90008746 | AA152: 49.88761243 | AB152: 49.87514053 | AC152: 49.86267175 | AD152: 49.85020608 | AE152: 49.83774353 | AF152: 49.82528409 | AG152: 49.81282777 | AH152: 49.80037456 | AI152: 49.78792447 | AJ152: 49.77547749 | AK152: 49.76303362 | AL152: 49.75059286 | AM152: 49.73815521 | AN152: 49.72572067 | AO152: 49.71328924 | AP152: =AP$27 -> 49.70086092 | AQ152: 49.68843571 | AR152: 49.6760136 | AS152: 49.66359459 | AT152: 49.65117869 | AU152: 49.6387659 | AV152: 49.62635621 | AW152: 49.61394962 | AX152: 49.60154613 | AY152: 49.58914575 | AZ152: 49.57674846 | BA152: 49.56435427 | BB152: 49.55196318 | BC152: 49.53957519 | BD152: 49.5271903 | BE152: 49.5148085 | BF152: 49.5024298 | BG152: 49.49005419 | BH152: 49.47768168 | BI152: 49.46531226 | BJ152: 49.45294593 | BK152: 49.44058269 | BL152: 49.42822255 | BM152: 49.41586549 | BN152: 49.40351153 | BO152: 49.39116065 | BP152: 49.37881286 | BQ152: 49.36646815 | BR152: 49.35412654 | BS152: 49.34178801 | BT152: 49.32945256 | BU152: 49.3171202 | BV152: =BV$27 -> 49.30479092 | BW152: 49.29246472 | BX152: 49.2801416 | BY152: 49.26782157 | BZ152: 49.25550461 | CA152: 49.24319073 | CB152: 49.23087994 | CC152: 49.21857222 | CD152: 49.20626757 | CE152: 49.19396601 | CF152: 49.18166752 | CG152: 49.1693721 | CH152: 49.15707976 | CI152: 49.14479049 | CJ152: 49.13250429 | CK152: 49.12022116 | CL152: 49.10794111 | CM152: 49.09566412 | CN152: 49.08339021 | CO152: 49.07111936 | CP152: 49.05885158 | CQ152: 49.04658686 | CR152: 49.03432522 | CS152: 49.02206664 | CT152: 49.00981112 | CU152: 48.99755867 | CV152: 48.98530928 | CW152: 48.97306295 | CX152: 48.96081968 | CY152: 48.94857948 | CZ152: 48.93634233 | DA152: 48.92410825 | DB152: =DB$27 -> 48.91187722 | DC152: 48.89964925 | DD152: 48.88742434 | DE152: 48.87520248 | DF152: 48.86298368 | DG152: 48.85076794 | DH152: 48.83855525 | DI152: 48.82634561 | DJ152: 48.81413902 | DK152: 48.80193549 | DL152: 48.789735 | DM152: 48.77753757 | DN152: 48.76534318 | DO152: 48.75315185 | DP152: 48.74096356 | DQ152: 48.72877832 | DR152: 48.71659612 | DS152: 48.70441698 | DT152: 48.69224087 | DU152: 48.68006781 | DV152: 48.66789779 | DW152: 48.65573082 | DX152: 48.64356689 | DY152: 48.631406 | DZ152: 48.61924814 | EA152: 48.60709333 | EB152: 48.59494156 | EC152: 48.58279282 | ED152: 48.57064713 | EE152: 48.55850446 | EF152: 48.54636484 | EG152: 48.53422825 | EH152: 48.52209469
C153: =C$38 -> Opex expense | D153: =D$38 -> k EUR | G153: =G$38 -> -764.7042988 | J153: =J$38 -> 0 | K153: 0 | L153: 0 | M153: 0 | N153: 0 | O153: 0 | P153: 0 | Q153: 0 | R153: 0 | S153: -5.841666667 | T153: -5.850013889 | U153: -5.858375023 | V153: -5.866750093 | W153: -5.875139121 | X153: -5.88354213 | Y153: -5.891959145 | Z153: -5.900390188 | AA153: -5.908835283 | AB153: -5.917294453 | AC153: -5.925767721 | AD153: -5.934255112 | AE153: -5.942756648 | AF153: -5.951272354 | AG153: -5.959802252 | AH153: -5.968346367 | AI153: -5.976904722 | AJ153: -5.985477341 | AK153: -5.994064248 | AL153: -6.002665466 | AM153: -6.011281019 | AN153: -6.019910932 | AO153: -6.028555228 | AP153: =AP$38 -> -6.037213931 | AQ153: -6.045887066 | AR153: -6.054574655 | AS153: -6.063276724 | AT153: -6.071993296 | AU153: -6.080724396 | AV153: -6.089470048 | AW153: -6.098230276 | AX153: -6.107005104 | AY153: -6.115794557 | AZ153: -6.124598659 | BA153: -6.133417435 | BB153: -6.142250908 | BC153: -6.151099104 | BD153: -6.159962047 | BE153: -6.168839762 | BF153: -6.177732272 | BG153: -6.186639604 | BH153: -6.195561781 | BI153: -6.204498828 | BJ153: -6.213450771 | BK153: -6.222417633 | BL153: -6.23139944 | BM153: -6.240396217 | BN153: -6.249407989 | BO153: -6.25843478 | BP153: -6.267476616 | BQ153: -6.276533521 | BR153: -6.285605521 | BS153: -6.294692642 | BT153: -6.303794907 | BU153: -6.312912343 | BV153: =BV$38 -> -6.322044975 | BW153: -6.331192828 | BX153: -6.340355927 | BY153: -6.349534298 | BZ153: -6.358727966 | CA153: -6.367936957 | CB153: -6.377161296 | CC153: -6.38640101 | CD153: -6.395656122 | CE153: -6.40492666 | CF153: -6.414212649 | CG153: -6.423514115 | CH153: -6.432831083 | CI153: -6.442163579 | CJ153: -6.451511629 | CK153: -6.46087526 | CL153: -6.470254497 | CM153: -6.479649365 | CN153: -6.489059892 | CO153: -6.498486103 | CP153: -6.507928024 | CQ153: -6.517385682 | CR153: -6.526859102 | CS153: -6.536348312 | CT153: -6.545853337 | CU153: -6.555374204 | CV153: -6.564910939 | CW153: -6.574463568 | CX153: -6.584032118 | CY153: -6.593616616 | CZ153: -6.603217088 | DA153: -6.612833561 | DB153: =DB$38 -> -6.622466062 | DC153: -6.632114616 | DD153: -6.641779252 | DE153: -6.651459995 | DF153: -6.661156873 | DG153: -6.670869912 | DH153: -6.68059914 | DI153: -6.690344583 | DJ153: -6.700106268 | DK153: -6.709884223 | DL153: -6.719678474 | DM153: -6.72948905 | DN153: -6.739315976 | DO153: -6.74915928 | DP153: -6.75901899 | DQ153: -6.768895133 | DR153: -6.778787736 | DS153: -6.788696826 | DT153: -6.798622432 | DU153: -6.808564581 | DV153: -6.8185233 | DW153: -6.828498616 | DX153: -6.838490558 | DY153: -6.848499154 | DZ153: -6.85852443 | EA153: -6.868566415 | EB153: -6.878625137 | EC153: -6.888700623 | ED153: -6.898792902 | EE153: -6.908902001 | EF153: -6.919027949 | EG153: -6.929170774 | EH153: -6.939330503
C154: EBITDA | D154: =curr -> k EUR | G154: =SUM(J154:EH154) -> 5145.43904 | J154: =J152+J153 -> 0 | K154: 0 | L154: 0 | M154: 0 | N154: 0 | O154: 0 | P154: 0 | Q154: 0 | R154: 0 | S154: 44.14583333 | T154: 44.12498924 | U154: 44.10413435 | V154: 44.08326865 | W154: 44.06239212 | X154: 44.04150473 | Y154: 44.02060645 | Z154: 43.99969727 | AA154: 43.97877715 | AB154: 43.95784608 | AC154: 43.93690403 | AD154: 43.91595097 | AE154: 43.89498688 | AF154: 43.87401174 | AG154: 43.85302552 | AH154: 43.8320282 | AI154: 43.81101975 | AJ154: 43.79000015 | AK154: 43.76896937 | AL154: 43.74792739 | AM154: 43.72687419 | AN154: 43.70580974 | AO154: 43.68473402 | AP154: =AP152+AP153 -> 43.66364699 | AQ154: 43.64254864 | AR154: 43.62143894 | AS154: 43.60031787 | AT154: 43.5791854 | AU154: 43.5580415 | AV154: 43.53688616 | AW154: 43.51571934 | AX154: 43.49454103 | AY154: 43.47335119 | AZ154: 43.4521498 | BA154: 43.43093684 | BB154: 43.40971228 | BC154: 43.38847609 | BD154: 43.36722825 | BE154: 43.34596874 | BF154: 43.32469753 | BG154: 43.30341459 | BH154: 43.2821199 | BI154: 43.26081343 | BJ154: 43.23949516 | BK154: 43.21816506 | BL154: 43.19682311 | BM154: 43.17546927 | BN154: 43.15410354 | BO154: 43.13272587 | BP154: 43.11133624 | BQ154: 43.08993463 | BR154: 43.06852102 | BS154: 43.04709536 | BT154: 43.02565765 | BU154: 43.00420785 | BV154: =BV152+BV153 -> 42.98274594 | BW154: 42.96127189 | BX154: 42.93978567 | BY154: 42.91828727 | BZ154: 42.89677664 | CA154: 42.87525378 | CB154: 42.85371864 | CC154: 42.83217121 | CD154: 42.81061145 | CE154: 42.78903935 | CF154: 42.76745487 | CG154: 42.74585798 | CH154: 42.72424867 | CI154: 42.70262691 | CJ154: 42.68099266 | CK154: 42.6593459 | CL154: 42.63768661 | CM154: 42.61601476 | CN154: 42.59433031 | CO154: 42.57263325 | CP154: 42.55092355 | CQ154: 42.52920118 | CR154: 42.50746612 | CS154: 42.48571832 | CT154: 42.46395778 | CU154: 42.44218446 | CV154: 42.42039834 | CW154: 42.39859938 | CX154: 42.37678757 | CY154: 42.35496286 | CZ154: 42.33312525 | DA154: 42.31127469 | DB154: =DB152+DB153 -> 42.28941116 | DC154: 42.26753464 | DD154: 42.24564509 | DE154: 42.22374249 | DF154: 42.20182681 | DG154: 42.17989803 | DH154: 42.15795611 | DI154: 42.13600102 | DJ154: 42.11403275 | DK154: 42.09205126 | DL154: 42.07005653 | DM154: 42.04804852 | DN154: 42.02602721 | DO154: 42.00399257 | DP154: 41.98194457 | DQ154: 41.95988319 | DR154: 41.93780839 | DS154: 41.91572015 | DT154: 41.89361844 | DU154: 41.87150323 | DV154: 41.84937449 | DW154: 41.8272322 | DX154: 41.80507633 | DY154: 41.78290684 | DZ154: 41.76072371 | EA154: 41.73852692 | EB154: 41.71631642 | EC154: 41.6940922 | ED154: 41.67185422 | EE154: 41.64960246 | EF154: 41.62733689 | EG154: 41.60505747 | EH154: =EH152+EH153 -> 41.58276419
C155: =C$45 -> asset depreciation in period | D155: =D$45 -> k EUR | G155: =SUM(J155:EH155) -> 4050 | J155: =J$45 -> 0 | K155: 0 | L155: 0 | M155: 0 | N155: 0 | O155: 0 | P155: 0 | Q155: 0 | R155: 0 | S155: 33.75 | T155: 33.75 | U155: 33.75 | V155: 33.75 | W155: 33.75 | X155: 33.75 | Y155: 33.75 | Z155: 33.75 | AA155: 33.75 | AB155: 33.75 | AC155: 33.75 | AD155: 33.75 | AE155: 33.75 | AF155: 33.75 | AG155: 33.75 | AH155: 33.75 | AI155: 33.75 | AJ155: 33.75 | AK155: 33.75 | AL155: 33.75 | AM155: 33.75 | AN155: 33.75 | AO155: 33.75 | AP155: =AP$45 -> 33.75 | AQ155: 33.75 | AR155: 33.75 | AS155: 33.75 | AT155: 33.75 | AU155: 33.75 | AV155: 33.75 | AW155: 33.75 | AX155: 33.75 | AY155: 33.75 | AZ155: 33.75 | BA155: 33.75 | BB155: 33.75 | BC155: 33.75 | BD155: 33.75 | BE155: 33.75 | BF155: 33.75 | BG155: 33.75 | BH155: 33.75 | BI155: 33.75 | BJ155: 33.75 | BK155: 33.75 | BL155: 33.75 | BM155: 33.75 | BN155: 33.75 | BO155: 33.75 | BP155: 33.75 | BQ155: 33.75 | BR155: 33.75 | BS155: 33.75 | BT155: 33.75 | BU155: 33.75 | BV155: =BV$45 -> 33.75 | BW155: 33.75 | BX155: 33.75 | BY155: 33.75 | BZ155: 33.75 | CA155: 33.75 | CB155: 33.75 | CC155: 33.75 | CD155: 33.75 | CE155: 33.75 | CF155: 33.75 | CG155: 33.75 | CH155: 33.75 | CI155: 33.75 | CJ155: 33.75 | CK155: 33.75 | CL155: 33.75 | CM155: 33.75 | CN155: 33.75 | CO155: 33.75 | CP155: 33.75 | CQ155: 33.75 | CR155: 33.75 | CS155: 33.75 | CT155: 33.75 | CU155: 33.75 | CV155: 33.75 | CW155: 33.75 | CX155: 33.75 | CY155: 33.75 | CZ155: 33.75 | DA155: 33.75 | DB155: =DB$45 -> 33.75 | DC155: 33.75 | DD155: 33.75 | DE155: 33.75 | DF155: 33.75 | DG155: 33.75 | DH155: 33.75 | DI155: 33.75 | DJ155: 33.75 | DK155: 33.75 | DL155: 33.75 | DM155: 33.75 | DN155: 33.75 | DO155: 33.75 | DP155: 33.75 | DQ155: 33.75 | DR155: 33.75 | DS155: 33.75 | DT155: 33.75 | DU155: 33.75 | DV155: 33.75 | DW155: 33.75 | DX155: 33.75 | DY155: 33.75 | DZ155: 33.75 | EA155: 33.75 | EB155: 33.75 | EC155: 33.75 | ED155: 33.75 | EE155: 33.75 | EF155: 33.75 | EG155: 33.75 | EH155: 33.75
C156: EBIT | D156: =curr -> k EUR | G156: =SUM(J156:EH156) -> 1095.43904 | J156: =J154-J155 -> 0 | K156: =K154-K155 -> 0 | L156: 0 | M156: 0 | N156: 0 | O156: 0 | P156: 0 | Q156: 0 | R156: 0 | S156: 10.39583333 | T156: 10.37498924 | U156: 10.35413435 | V156: 10.33326865 | W156: 10.31239212 | X156: 10.29150473 | Y156: 10.27060645 | Z156: 10.24969727 | AA156: 10.22877715 | AB156: 10.20784608 | AC156: 10.18690403 | AD156: 10.16595097 | AE156: 10.14498688 | AF156: 10.12401174 | AG156: 10.10302552 | AH156: 10.0820282 | AI156: 10.06101975 | AJ156: 10.04000015 | AK156: 10.01896937 | AL156: 9.997927395 | AM156: 9.976874193 | AN156: 9.955809741 | AO156: 9.934734015 | AP156: 9.91364699 | AQ156: 9.89254864 | AR156: 9.871438942 | AS156: 9.850317869 | AT156: 9.829185398 | AU156: 9.808041504 | AV156: 9.78688616 | AW156: 9.765719344 | AX156: 9.744541028 | AY156: 9.723351188 | AZ156: 9.7021498 | BA156: 9.680936837 | BB156: 9.659712275 | BC156: 9.638476088 | BD156: 9.617228252 | BE156: 9.59596874 | BF156: 9.574697527 | BG156: 9.553414588 | BH156: 9.532119897 | BI156: 9.510813429 | BJ156: 9.489495159 | BK156: 9.46816506 | BL156: 9.446823107 | BM156: 9.425469275 | BN156: 9.404103537 | BO156: 9.382725868 | BP156: 9.361336242 | BQ156: 9.339934633 | BR156: 9.318521016 | BS156: 9.297095364 | BT156: 9.275657651 | BU156: 9.254207852 | BV156: 9.23274594 | BW156: =BW154-BW155 -> 9.21127189 | BX156: 9.189785675 | BY156: 9.168287268 | BZ156: 9.146776645 | CA156: 9.125253777 | CB156: 9.10371864 | CC156: 9.082171207 | CD156: 9.060611451 | CE156: 9.039039346 | CF156: 9.017454866 | CG156: 8.995857984 | CH156: 8.974248673 | CI156: 8.952626906 | CJ156: 8.930992658 | CK156: 8.909345902 | CL156: 8.88768661 | CM156: 8.866014756 | CN156: 8.844330313 | CO156: 8.822633255 | CP156: 8.800923554 | CQ156: 8.779201183 | CR156: 8.757466116 | CS156: 8.735718325 | CT156: 8.713957783 | CU156: 8.692184464 | CV156: 8.670398339 | CW156: 8.648599383 | CX156: 8.626787566 | CY156: 8.604962864 | CZ156: 8.583125247 | DA156: 8.561274688 | DB156: 8.539411161 | DC156: 8.517534637 | DD156: 8.495645089 | DE156: 8.47374249 | DF156: 8.451826811 | DG156: 8.429898026 | DH156: 8.407956107 | DI156: 8.386001025 | DJ156: 8.364032753 | DK156: 8.342051263 | DL156: 8.320056528 | DM156: 8.298048519 | DN156: 8.276027208 | DO156: 8.253992568 | DP156: 8.23194457 | DQ156: 8.209883187 | DR156: 8.187808389 | DS156: 8.165720149 | DT156: 8.143618439 | DU156: 8.121503231 | DV156: 8.099374495 | DW156: 8.077232204 | DX156: 8.055076329 | DY156: 8.032906842 | DZ156: 8.010723714 | EA156: 7.988526917 | EB156: 7.966316422 | EC156: 7.9440922 | ED156: 7.921854223 | EE156: 7.899602462 | EF156: 7.877336888 | EG156: 7.855057472 | EH156: 7.832764186
C157: =C$124 -> Senior debt interest | D157: k EUR | G157: 225.736875 | J157: 0 | K157: 6.103125 | L157: 6.103125 | M157: 5.90625 | N157: 6.103125 | O157: 5.90625 | P157: 6.103125 | Q157: 6.103125 | R157: 5.5125 | S157: 10.63125 | T157: 0 | U157: 0 | V157: 10.41345703 | W157: 0 | X157: 0 | Y157: 10.18828125 | Z157: 0 | AA157: 0 | AB157: 9.848671875 | AC157: 0 | AD157: 0 | AE157: 9.405703125 | AF157: 0 | AG157: 0 | AH157: 9.069785156 | AI157: 0 | AJ157: 0 | AK157: 8.82984375 | AL157: 0 | AM157: 0 | AN157: 8.490234375 | AO157: 0 | AP157: 0 | AQ157: 7.9734375 | AR157: 0 | AS157: 0 | AT157: 7.726113281 | AU157: 0 | AV157: 0 | AW157: 7.47140625 | AX157: 0 | AY157: 0 | AZ157: 7.131796875 | BA157: 0 | BB157: 0 | BC157: 6.64453125 | BD157: 0 | BE157: 0 | BF157: 6.382441406 | BG157: 0 | BH157: 0 | BI157: 6.11296875 | BJ157: 0 | BK157: 0 | BL157: 5.773359375 | BM157: 0 | BN157: 0 | BO157: 5.315625 | BP157: =BP$124 -> 0 | BQ157: 0 | BR157: 5.038769531 | BS157: 0 | BT157: 0 | BU157: 4.75453125 | BV157: 0 | BW157: 0 | BX157: 4.414921875 | BY157: 0 | BZ157: 0 | CA157: 4.031015625 | CB157: 0 | CC157: 0 | CD157: 3.695097656 | CE157: 0 | CF157: 0 | CG157: 3.39609375 | CH157: 0 | CI157: 0 | CJ157: 3.056484375 | CK157: 0 | CL157: 0 | CM157: 2.6578125 | CN157: 0 | CO157: 0 | CP157: 2.351425781 | CQ157: 0 | CR157: 0 | CS157: 2.03765625 | CT157: 0 | CU157: 0 | CV157: 1.698046875 | CW157: 0 | CX157: 0 | CY157: 1.32890625 | CZ157: 0 | DA157: 0 | DB157: 1.007753906 | DC157: 0 | DD157: 0 | DE157: 0.67921875 | DF157: 0 | DG157: 0 | DH157: 0.339609375 | DI157: 0 | DJ157: 0 | DK157: 0 | DL157: 0 | DM157: 0 | DN157: 0 | DO157: 0 | DP157: 0 | DQ157: 0 | DR157: 0 | DS157: 0 | DT157: 0 | DU157: 0 | DV157: 0 | DW157: 0 | DX157: 0 | DY157: 0 | DZ157: 0 | EA157: 0 | EB157: =EB$124 -> 0 | EC157: 0 | ED157: 0 | EE157: 0 | EF157: 0 | EG157: 0 | EH157: 0
C158: EBT | D158: =curr -> k EUR | J158: =J156-J157 -> 0 | K158: =K156-K157 -> -6.103125 | L158: -6.103125 | M158: -5.90625 | N158: -6.103125 | O158: -5.90625 | P158: -6.103125 | Q158: -6.103125 | R158: -5.5125 | S158: -0.2354166667 | T158: 10.37498924 | U158: 10.35413435 | V158: -0.08018837701 | W158: 10.31239212 | X158: 10.29150473 | Y158: 0.08232520279 | Z158: 10.24969727 | AA158: 10.22877715 | AB158: 0.3591742037 | AC158: 10.18690403 | AD158: 10.16595097 | AE158: 0.7392837537 | AF158: 10.12401174 | AG158: 10.10302552 | AH158: 1.01224304 | AI158: 10.06101975 | AJ158: 10.04000015 | AK158: 1.189125621 | AL158: 9.997927395 | AM158: 9.976874193 | AN158: 1.465575366 | AO158: 9.934734015 | AP158: 9.91364699 | AQ158: 1.91911114 | AR158: 9.871438942 | AS158: 9.850317869 | AT158: 2.103072117 | AU158: 9.808041504 | AV158: 9.78688616 | AW158: 2.294313094 | AX158: 9.744541028 | AY158: 9.723351188 | AZ158: 2.570352925 | BA158: 9.680936837 | BB158: 9.659712275 | BC158: 2.993944838 | BD158: 9.617228252 | BE158: 9.59596874 | BF158: 3.192256121 | BG158: 9.553414588 | BH158: 9.532119897 | BI158: 3.397844679 | BJ158: 9.489495159 | BK158: 9.46816506 | BL158: 3.673463732 | BM158: 9.425469275 | BN158: 9.404103537 | BO158: 4.067100868 | BP158: 9.361336242 | BQ158: 9.339934633 | BR158: 4.279751485 | BS158: 9.297095364 | BT158: 9.275657651 | BU158: 4.499676602 | BV158: 9.23274594 | BW158: =BW156-BW157 -> 9.21127189 | BX158: 4.7748638 | BY158: 9.168287268 | BZ158: 9.146776645 | CA158: 5.094238152 | CB158: 9.10371864 | CC158: 9.082171207 | CD158: 5.365513795 | CE158: 9.039039346 | CF158: 9.017454866 | CG158: 5.599764234 | CH158: 8.974248673 | CI158: 8.952626906 | CJ158: 5.874508283 | CK158: 8.909345902 | CL158: 8.88768661 | CM158: 6.208202256 | CN158: 8.844330313 | CO158: 8.822633255 | CP158: 6.449497772 | CQ158: 8.779201183 | CR158: 8.757466116 | CS158: 6.698062075 | CT158: 8.713957783 | CU158: 8.692184464 | CV158: 6.972351464 | CW158: 8.648599383 | CX158: 8.626787566 | CY158: 7.276056614 | CZ158: 8.583125247 | DA158: 8.561274688 | DB158: 7.531657254 | DC158: 8.517534637 | DD158: 8.495645089 | DE158: 7.79452374 | DF158: 8.451826811 | DG158: 8.429898026 | DH158: 8.068346732 | DI158: 8.386001025 | DJ158: 8.364032753 | DK158: 8.342051263 | DL158: 8.320056528 | DM158: 8.298048519 | DN158: 8.276027208 | DO158: 8.253992568 | DP158: 8.23194457 | DQ158: 8.209883187 | DR158: 8.187808389 | DS158: 8.165720149 | DT158: 8.143618439 | DU158: 8.121503231 | DV158: 8.099374495 | DW158: 8.077232204 | DX158: 8.055076329 | DY158: 8.032906842 | DZ158: 8.010723714 | EA158: 7.988526917 | EB158: 7.966316422 | EC158: 7.9440922 | ED158: 7.921854223 | EE158: 7.899602462 | EF158: 7.877336888 | EG158: 7.855057472 | EH158: 7.832764186
C159: =C51 -> Tax expense | D159: =D51 -> k EUR | G159: =SUM(J159:EH159) -> -229.4645988 | J159: =J51 -> 0 | K159: 0 | L159: 0 | M159: 0 | N159: 0 | O159: 0 | P159: 0 | Q159: 0 | R159: 0 | S159: 0 | T159: -2.593747309 | U159: -2.588533588 | V159: 0 | W159: -2.57809803 | X159: -2.572876182 | Y159: -0.0205813007 | Z159: -2.562424317 | AA159: -2.557194288 | AB159: -0.08979355093 | AC159: -2.546726006 | AD159: -2.541487742 | AE159: -0.1848209384 | AF159: -2.531002934 | AG159: -2.525756379 | AH159: -0.25306076 | AI159: -2.515254937 | AJ159: -2.510000037 | AK159: -0.2972814053 | AL159: -2.499481849 | AM159: -2.494218548 | AN159: -0.3663938416 | AO159: -2.483683504 | AP159: =AP51 -> -2.478411747 | AQ159: -0.479777785 | AR159: -2.467859735 | AS159: -2.462579467 | AT159: -0.5257680293 | AU159: -2.452010376 | AV159: -2.44672154 | AW159: -0.5735782734 | AX159: -2.436135257 | AY159: -2.430837797 | AZ159: -0.6425882312 | BA159: -2.420234209 | BB159: -2.414928069 | BC159: -0.7484862096 | BD159: -2.404307063 | BE159: -2.398992185 | BF159: -0.7980640301 | BG159: -2.388353647 | BH159: -2.383029974 | BI159: -0.8494611698 | BJ159: -2.37237379 | BK159: -2.367041265 | BL159: -0.918365933 | BM159: -2.356367319 | BN159: -2.351025884 | BO159: -1.016775217 | BP159: -2.34033406 | BQ159: -2.334983658 | BR159: -1.069937871 | BS159: -2.324273841 | BT159: -2.318914413 | BU159: -1.124919151 | BV159: =BV51 -> -2.308186485 | BW159: -2.302817973 | BX159: -1.19371595 | BY159: -2.292071817 | BZ159: -2.286694161 | CA159: -1.273559538 | CB159: -2.27592966 | CC159: -2.270542802 | CD159: -1.341378449 | CE159: -2.259759837 | CF159: -2.254363716 | CG159: -1.399941058 | CH159: -2.243562168 | CI159: -2.238156727 | CJ159: -1.468627071 | CK159: -2.227336475 | CL159: -2.221921652 | CM159: -1.552050564 | CN159: -2.211082578 | CO159: -2.205658314 | CP159: -1.612374443 | CQ159: -2.194800296 | CR159: -2.189366529 | CS159: -1.674515519 | CT159: -2.178489446 | CU159: -2.173046116 | CV159: -1.743087866 | CW159: -2.162149846 | CX159: -2.156696892 | CY159: -1.819014153 | CZ159: -2.145781312 | DA159: -2.140318672 | DB159: =DB51 -> -1.882914314 | DC159: -2.129383659 | DD159: -2.123911272 | DE159: -1.948630935 | DF159: -2.112956703 | DG159: -2.107474507 | DH159: -2.017086683 | DI159: -2.096500256 | DJ159: -2.091008188 | DK159: -2.085512816 | DL159: -2.080014132 | DM159: -2.07451213 | DN159: -2.069006802 | DO159: -2.063498142 | DP159: -2.057986143 | DQ159: -2.052470797 | DR159: -2.046952097 | DS159: -2.041430037 | DT159: -2.03590461 | DU159: -2.030375808 | DV159: -2.024843624 | DW159: -2.019308051 | DX159: -2.013769082 | DY159: -2.00822671 | DZ159: -2.002680928 | EA159: -1.997131729 | EB159: -1.991579105 | EC159: -1.98602305 | ED159: -1.980463556 | EE159: -1.974900615 | EF159: -1.969334222 | EG159: -1.963764368 | EH159: -1.958191047
C160: NPAT | D160: =curr -> k EUR | G160: =SUM(J160:EH160) -> 640.2375665 | J160: =J158+J159 -> 0 | K160: -6.103125 | L160: -6.103125 | M160: -5.90625 | N160: -6.103125 | O160: -5.90625 | P160: -6.103125 | Q160: -6.103125 | R160: -5.5125 | S160: =S158+S159 -> -0.2354166667 | T160: =T158+T159 -> 7.781241927 | U160: 7.765600763 | V160: -0.08018837701 | W160: 7.734294091 | X160: 7.718628547 | Y160: 0.06174390209 | Z160: 7.687272951 | AA160: 7.671582864 | AB160: 0.2693806528 | AC160: 7.640178019 | AD160: 7.624463225 | AE160: 0.5544628152 | AF160: 7.593008803 | AG160: 7.577269138 | AH160: 0.7591822799 | AI160: 7.545764811 | AJ160: 7.53000011 | AK160: 0.8918442159 | AL160: 7.498445546 | AM160: 7.482655645 | AN160: 1.099181525 | AO160: 7.451050511 | AP160: 7.435235242 | AQ160: 1.439333355 | AR160: 7.403579206 | AS160: 7.387738402 | AT160: 1.577304088 | AU160: 7.356031128 | AV160: 7.34016462 | AW160: 1.72073482 | AX160: 7.308405771 | AY160: 7.292513391 | AZ160: 1.927764694 | BA160: 7.260702628 | BB160: 7.244784206 | BC160: 2.245458629 | BD160: 7.212921189 | BE160: 7.196976555 | BF160: 2.39419209 | BG160: 7.165060941 | BH160: 7.149089923 | BI160: 2.548383509 | BJ160: 7.117121369 | BK160: 7.101123795 | BL160: 2.755097799 | BM160: 7.069101956 | BN160: 7.053077653 | BO160: 3.050325651 | BP160: 7.021002181 | BQ160: 7.004950975 | BR160: 3.209813613 | BS160: 6.972821523 | BT160: 6.956743238 | BU160: 3.374757452 | BV160: 6.924559455 | BW160: 6.908453918 | BX160: 3.58114785 | BY160: 6.876215451 | BZ160: 6.860082483 | CA160: 3.820678614 | CB160: 6.82778898 | CC160: 6.811628405 | CD160: 4.024135346 | CE160: 6.77927951 | CF160: =CF158+CF159 -> 6.763091149 | CG160: 4.199823175 | CH160: 6.730686504 | CI160: 6.71447018 | CJ160: 4.405881213 | CK160: 6.682009426 | CL160: 6.665764957 | CM160: 4.656151692 | CN160: 6.633247735 | CO160: 6.616974941 | CP160: 4.837123329 | CQ160: 6.584400887 | CR160: 6.568099587 | CS160: 5.023546556 | CT160: 6.535468337 | CU160: 6.519138348 | CV160: 5.229263598 | CW160: 6.486449537 | CX160: 6.470090675 | CY160: 5.45704246 | CZ160: 6.437343935 | DA160: 6.420956016 | DB160: 5.648742941 | DC160: 6.388150978 | DD160: 6.371733817 | DE160: 5.845892805 | DF160: 6.338870108 | DG160: 6.32242352 | DH160: 6.051260049 | DI160: 6.289500769 | DJ160: 6.273024565 | DK160: 6.256538447 | DL160: 6.240042396 | DM160: 6.223536389 | DN160: 6.207020406 | DO160: 6.190494426 | DP160: 6.173958428 | DQ160: 6.15741239 | DR160: 6.140856292 | DS160: 6.124290112 | DT160: 6.107713829 | DU160: 6.091127423 | DV160: 6.074530871 | DW160: 6.057924153 | DX160: 6.041307247 | DY160: 6.024680131 | DZ160: 6.008042785 | EA160: 5.991395188 | EB160: 5.974737316 | EC160: 5.95806915 | ED160: 5.941390667 | EE160: 5.924701846 | EF160: 5.908002666 | EG160: 5.891293104 | EH160: 5.87457314
C163: CASHFLOW STATEMENT
C165: =C152 -> Revenues | D165: k EUR | G165: 5910.143339 | J165: 0 | K165: 0 | L165: 0 | M165: 0 | N165: 0 | O165: 0 | P165: 0 | Q165: 0 | R165: 0 | S165: 49.9875 | T165: 49.97500313 | U165: 49.96250937 | V165: 49.95001875 | W165: 49.93753124 | X165: 49.92504686 | Y165: 49.9125656 | Z165: 49.90008746 | AA165: 49.88761243 | AB165: 49.87514053 | AC165: 49.86267175 | AD165: 49.85020608 | AE165: 49.83774353 | AF165: 49.82528409 | AG165: 49.81282777 | AH165: 49.80037456 | AI165: =AI152 -> 49.78792447 | AJ165: 49.77547749 | AK165: 49.76303362 | AL165: 49.75059286 | AM165: 49.73815521 | AN165: 49.72572067 | AO165: 49.71328924 | AP165: 49.70086092 | AQ165: 49.68843571 | AR165: 49.6760136 | AS165: 49.66359459 | AT165: 49.65117869 | AU165: 49.6387659 | AV165: 49.62635621 | AW165: 49.61394962 | AX165: 49.60154613 | AY165: 49.58914575 | AZ165: 49.57674846 | BA165: 49.56435427 | BB165: 49.55196318 | BC165: 49.53957519 | BD165: 49.5271903 | BE165: 49.5148085 | BF165: 49.5024298 | BG165: 49.49005419 | BH165: 49.47768168 | BI165: 49.46531226 | BJ165: 49.45294593 | BK165: 49.44058269 | BL165: 49.42822255 | BM165: 49.41586549 | BN165: 49.40351153 | BO165: =BO152 -> 49.39116065 | BP165: 49.37881286 | BQ165: 49.36646815 | BR165: 49.35412654 | BS165: 49.34178801 | BT165: 49.32945256 | BU165: 49.3171202 | BV165: 49.30479092 | BW165: 49.29246472 | BX165: 49.2801416 | BY165: 49.26782157 | BZ165: 49.25550461 | CA165: 49.24319073 | CB165: 49.23087994 | CC165: 49.21857222 | CD165: 49.20626757 | CE165: 49.19396601 | CF165: 49.18166752 | CG165: 49.1693721 | CH165: 49.15707976 | CI165: 49.14479049 | CJ165: 49.13250429 | CK165: 49.12022116 | CL165: 49.10794111 | CM165: 49.09566412 | CN165: 49.08339021 | CO165: 49.07111936 | CP165: 49.05885158 | CQ165: 49.04658686 | CR165: 49.03432522 | CS165: 49.02206664 | CT165: 49.00981112 | CU165: =CU152 -> 48.99755867 | CV165: 48.98530928 | CW165: 48.97306295 | CX165: 48.96081968 | CY165: 48.94857948 | CZ165: 48.93634233 | DA165: 48.92410825 | DB165: 48.91187722 | DC165: 48.89964925 | DD165: 48.88742434 | DE165: 48.87520248 | DF165: 48.86298368 | DG165: 48.85076794 | DH165: 48.83855525 | DI165: 48.82634561 | DJ165: 48.81413902 | DK165: 48.80193549 | DL165: 48.789735 | DM165: 48.77753757 | DN165: 48.76534318 | DO165: 48.75315185 | DP165: 48.74096356 | DQ165: 48.72877832 | DR165: 48.71659612 | DS165: 48.70441698 | DT165: 48.69224087 | DU165: 48.68006781 | DV165: 48.66789779 | DW165: 48.65573082 | DX165: 48.64356689 | DY165: 48.631406 | DZ165: 48.61924814 | EA165: =EA152 -> 48.60709333 | EB165: 48.59494156 | EC165: 48.58279282 | ED165: 48.57064713 | EE165: 48.55850446 | EF165: 48.54636484 | EG165: 48.53422825 | EH165: 48.52209469
C166: =C153 -> Opex expense | D166: k EUR | G166: -764.7042988 | J166: 0 | K166: 0 | L166: 0 | M166: 0 | N166: 0 | O166: 0 | P166: 0 | Q166: 0 | R166: 0 | S166: -5.841666667 | T166: -5.850013889 | U166: -5.858375023 | V166: -5.866750093 | W166: -5.875139121 | X166: -5.88354213 | Y166: -5.891959145 | Z166: -5.900390188 | AA166: -5.908835283 | AB166: -5.917294453 | AC166: -5.925767721 | AD166: -5.934255112 | AE166: -5.942756648 | AF166: -5.951272354 | AG166: -5.959802252 | AH166: -5.968346367 | AI166: =AI153 -> -5.976904722 | AJ166: -5.985477341 | AK166: -5.994064248 | AL166: -6.002665466 | AM166: -6.011281019 | AN166: -6.019910932 | AO166: -6.028555228 | AP166: -6.037213931 | AQ166: -6.045887066 | AR166: -6.054574655 | AS166: -6.063276724 | AT166: -6.071993296 | AU166: -6.080724396 | AV166: -6.089470048 | AW166: -6.098230276 | AX166: -6.107005104 | AY166: -6.115794557 | AZ166: -6.124598659 | BA166: -6.133417435 | BB166: -6.142250908 | BC166: -6.151099104 | BD166: -6.159962047 | BE166: -6.168839762 | BF166: -6.177732272 | BG166: -6.186639604 | BH166: -6.195561781 | BI166: -6.204498828 | BJ166: -6.213450771 | BK166: -6.222417633 | BL166: -6.23139944 | BM166: -6.240396217 | BN166: -6.249407989 | BO166: =BO153 -> -6.25843478 | BP166: -6.267476616 | BQ166: -6.276533521 | BR166: -6.285605521 | BS166: -6.294692642 | BT166: -6.303794907 | BU166: -6.312912343 | BV166: -6.322044975 | BW166: -6.331192828 | BX166: -6.340355927 | BY166: -6.349534298 | BZ166: -6.358727966 | CA166: -6.367936957 | CB166: -6.377161296 | CC166: -6.38640101 | CD166: -6.395656122 | CE166: -6.40492666 | CF166: -6.414212649 | CG166: -6.423514115 | CH166: -6.432831083 | CI166: -6.442163579 | CJ166: -6.451511629 | CK166: -6.46087526 | CL166: -6.470254497 | CM166: -6.479649365 | CN166: -6.489059892 | CO166: -6.498486103 | CP166: -6.507928024 | CQ166: -6.517385682 | CR166: -6.526859102 | CS166: -6.536348312 | CT166: -6.545853337 | CU166: =CU153 -> -6.555374204 | CV166: -6.564910939 | CW166: -6.574463568 | CX166: -6.584032118 | CY166: -6.593616616 | CZ166: -6.603217088 | DA166: -6.612833561 | DB166: -6.622466062 | DC166: -6.632114616 | DD166: -6.641779252 | DE166: -6.651459995 | DF166: -6.661156873 | DG166: -6.670869912 | DH166: -6.68059914 | DI166: -6.690344583 | DJ166: -6.700106268 | DK166: -6.709884223 | DL166: -6.719678474 | DM166: -6.72948905 | DN166: -6.739315976 | DO166: -6.74915928 | DP166: -6.75901899 | DQ166: -6.768895133 | DR166: -6.778787736 | DS166: -6.788696826 | DT166: -6.798622432 | DU166: -6.808564581 | DV166: -6.8185233 | DW166: -6.828498616 | DX166: -6.838490558 | DY166: -6.848499154 | DZ166: -6.85852443 | EA166: =EA153 -> -6.868566415 | EB166: -6.878625137 | EC166: -6.888700623 | ED166: -6.898792902 | EE166: -6.908902001 | EF166: -6.919027949 | EG166: -6.929170774 | EH166: -6.939330503
C167: =C159 -> Tax expense | D167: k EUR | G167: -229.4645988 | J167: 0 | K167: 0 | L167: 0 | M167: 0 | N167: 0 | O167: 0 | P167: 0 | Q167: 0 | R167: 0 | S167: 0 | T167: -2.593747309 | U167: -2.588533588 | V167: 0 | W167: -2.57809803 | X167: -2.572876182 | Y167: -0.0205813007 | Z167: -2.562424317 | AA167: -2.557194288 | AB167: -0.08979355093 | AC167: -2.546726006 | AD167: -2.541487742 | AE167: -0.1848209384 | AF167: -2.531002934 | AG167: -2.525756379 | AH167: -0.25306076 | AI167: =AI159 -> -2.515254937 | AJ167: -2.510000037 | AK167: -0.2972814053 | AL167: -2.499481849 | AM167: -2.494218548 | AN167: -0.3663938416 | AO167: -2.483683504 | AP167: -2.478411747 | AQ167: -0.479777785 | AR167: -2.467859735 | AS167: -2.462579467 | AT167: -0.5257680293 | AU167: -2.452010376 | AV167: -2.44672154 | AW167: -0.5735782734 | AX167: -2.436135257 | AY167: -2.430837797 | AZ167: -0.6425882312 | BA167: -2.420234209 | BB167: -2.414928069 | BC167: -0.7484862096 | BD167: -2.404307063 | BE167: -2.398992185 | BF167: -0.7980640301 | BG167: -2.388353647 | BH167: -2.383029974 | BI167: -0.8494611698 | BJ167: -2.37237379 | BK167: -2.367041265 | BL167: -0.918365933 | BM167: -2.356367319 | BN167: -2.351025884 | BO167: =BO159 -> -1.016775217 | BP167: -2.34033406 | BQ167: -2.334983658 | BR167: -1.069937871 | BS167: -2.324273841 | BT167: -2.318914413 | BU167: -1.124919151 | BV167: -2.308186485 | BW167: -2.302817973 | BX167: -1.19371595 | BY167: -2.292071817 | BZ167: -2.286694161 | CA167: -1.273559538 | CB167: -2.27592966 | CC167: -2.270542802 | CD167: -1.341378449 | CE167: -2.259759837 | CF167: -2.254363716 | CG167: -1.399941058 | CH167: -2.243562168 | CI167: -2.238156727 | CJ167: -1.468627071 | CK167: -2.227336475 | CL167: -2.221921652 | CM167: -1.552050564 | CN167: -2.211082578 | CO167: -2.205658314 | CP167: -1.612374443 | CQ167: -2.194800296 | CR167: -2.189366529 | CS167: -1.674515519 | CT167: -2.178489446 | CU167: =CU159 -> -2.173046116 | CV167: -1.743087866 | CW167: -2.162149846 | CX167: -2.156696892 | CY167: -1.819014153 | CZ167: -2.145781312 | DA167: -2.140318672 | DB167: -1.882914314 | DC167: -2.129383659 | DD167: -2.123911272 | DE167: -1.948630935 | DF167: -2.112956703 | DG167: -2.107474507 | DH167: -2.017086683 | DI167: -2.096500256 | DJ167: -2.091008188 | DK167: -2.085512816 | DL167: -2.080014132 | DM167: -2.07451213 | DN167: -2.069006802 | DO167: -2.063498142 | DP167: -2.057986143 | DQ167: -2.052470797 | DR167: -2.046952097 | DS167: -2.041430037 | DT167: -2.03590461 | DU167: -2.030375808 | DV167: -2.024843624 | DW167: -2.019308051 | DX167: -2.013769082 | DY167: -2.00822671 | DZ167: -2.002680928 | EA167: =EA159 -> -1.997131729 | EB167: -1.991579105 | EC167: -1.98602305 | ED167: -1.980463556 | EE167: -1.974900615 | EF167: -1.969334222 | EG167: -1.963764368 | EH167: -1.958191047
C168: Operating cashflow | D168: =curr -> k EUR | G168: =SUM(J168:EI168) -> 4915.974441 | J168: =SUM(J165:J167) -> 0 | K168: 0 | L168: 0 | M168: 0 | N168: 0 | O168: 0 | P168: 0 | Q168: 0 | R168: 0 | S168: 44.14583333 | T168: 41.53124193 | U168: 41.51560076 | V168: 44.08326865 | W168: 41.48429409 | X168: 41.46862855 | Y168: 44.00002515 | Z168: 41.43727295 | AA168: 41.42158286 | AB168: 43.86805253 | AC168: 41.39017802 | AD168: 41.37446322 | AE168: 43.71016594 | AF168: 41.3430088 | AG168: 41.32726914 | AH168: 43.57896744 | AI168: 41.29576481 | AJ168: 41.28000011 | AK168: 43.47168797 | AL168: 41.24844555 | AM168: 41.23265564 | AN168: 43.3394159 | AO168: 41.20105051 | AP168: =SUM(AP165:AP167) -> 41.18523524 | AQ168: 43.16277086 | AR168: 41.15357921 | AS168: 41.1377384 | AT168: 43.05341737 | AU168: 41.10603113 | AV168: 41.09016462 | AW168: 42.94214107 | AX168: 41.05840577 | AY168: 41.04251339 | AZ168: 42.80956157 | BA168: 41.01070263 | BB168: 40.99478421 | BC168: 42.63998988 | BD168: 40.96292119 | BE168: 40.94697655 | BF168: 42.5266335 | BG168: 40.91506094 | BH168: 40.89908992 | BI168: 42.41135226 | BJ168: 40.86712137 | BK168: 40.85112379 | BL168: 42.27845717 | BM168: 40.81910196 | BN168: 40.80307765 | BO168: 42.11595065 | BP168: 40.77100218 | BQ168: 40.75495097 | BR168: 41.99858314 | BS168: 40.72282152 | BT168: 40.70674324 | BU168: 41.8792887 | BV168: =SUM(BV165:BV167) -> 40.67455946 | BW168: 40.65845392 | BX168: 41.74606972 | BY168: 40.62621545 | BZ168: 40.61008248 | CA168: 41.60169424 | CB168: 40.57778898 | CC168: 40.56162841 | CD168: 41.469233 | CE168: 40.52927951 | CF168: 40.51309115 | CG168: 41.34591693 | CH168: 40.4806865 | CI168: 40.46447018 | CJ168: 41.21236559 | CK168: 40.43200943 | CL168: 40.41576496 | CM168: 41.06396419 | CN168: 40.38324774 | CO168: 40.36697494 | CP168: 40.93854911 | CQ168: 40.33440089 | CR168: 40.31809959 | CS168: 40.81120281 | CT168: 40.28546834 | CU168: 40.26913835 | CV168: 40.67731047 | CW168: 40.23644954 | CX168: 40.22009067 | CY168: 40.53594871 | CZ168: 40.18734393 | DA168: 40.17095602 | DB168: =SUM(DB165:DB167) -> 40.40649685 | DC168: 40.13815098 | DD168: 40.12173382 | DE168: 40.27511155 | DF168: 40.08887011 | DG168: 40.07242352 | DH168: 40.14086942 | DI168: 40.03950077 | DJ168: 40.02302456 | DK168: 40.00653845 | DL168: 39.9900424 | DM168: 39.97353639 | DN168: 39.95702041 | DO168: 39.94049443 | DP168: 39.92395843 | DQ168: 39.90741239 | DR168: 39.89085629 | DS168: 39.87429011 | DT168: 39.85771383 | DU168: 39.84112742 | DV168: 39.82453087 | DW168: 39.80792415 | DX168: 39.79130725 | DY168: 39.77468013 | DZ168: 39.75804279 | EA168: 39.74139519 | EB168: 39.72473732 | EC168: 39.70806915 | ED168: 39.69139067 | EE168: 39.67470185 | EF168: 39.65800267 | EG168: 39.6412931 | EH168: =SUM(EH165:EH167) -> 39.62457314
C170: Construction costs | D170: =curr -> k EUR | J170: =J61*-1 -> -450 | K170: -450 | L170: -450 | M170: -450 | N170: -450 | O170: -450 | P170: -450 | Q170: -450 | R170: -450 | S170: 0 | T170: 0 | U170: 0 | V170: 0 | W170: 0 | X170: 0 | Y170: 0 | Z170: 0 | AA170: 0 | AB170: 0 | AC170: 0 | AD170: 0 | AE170: 0 | AF170: 0 | AG170: 0 | AH170: 0 | AI170: 0 | AJ170: 0 | AK170: 0 | AL170: 0 | AM170: 0 | AN170: 0 | AO170: 0 | AP170: =AP61*-1 -> 0 | AQ170: 0 | AR170: 0 | AS170: 0 | AT170: 0 | AU170: 0 | AV170: 0 | AW170: 0 | AX170: 0 | AY170: 0 | AZ170: 0 | BA170: 0 | BB170: 0 | BC170: 0 | BD170: 0 | BE170: 0 | BF170: 0 | BG170: 0 | BH170: 0 | BI170: 0 | BJ170: 0 | BK170: 0 | BL170: 0 | BM170: 0 | BN170: 0 | BO170: 0 | BP170: 0 | BQ170: 0 | BR170: 0 | BS170: 0 | BT170: 0 | BU170: 0 | BV170: =BV61*-1 -> 0 | BW170: 0 | BX170: 0 | BY170: 0 | BZ170: 0 | CA170: 0 | CB170: 0 | CC170: 0 | CD170: 0 | CE170: 0 | CF170: 0 | CG170: 0 | CH170: 0 | CI170: 0 | CJ170: 0 | CK170: 0 | CL170: 0 | CM170: 0 | CN170: 0 | CO170: 0 | CP170: 0 | CQ170: 0 | CR170: 0 | CS170: 0 | CT170: 0 | CU170: 0 | CV170: 0 | CW170: 0 | CX170: 0 | CY170: 0 | CZ170: 0 | DA170: 0 | DB170: =DB61*-1 -> 0 | DC170: 0 | DD170: 0 | DE170: 0 | DF170: 0 | DG170: 0 | DH170: 0 | DI170: 0 | DJ170: 0 | DK170: 0 | DL170: 0 | DM170: 0 | DN170: 0 | DO170: 0 | DP170: 0 | DQ170: 0 | DR170: 0 | DS170: 0 | DT170: 0 | DU170: 0 | DV170: 0 | DW170: 0 | DX170: 0 | DY170: 0 | DZ170: 0 | EA170: 0 | EB170: 0 | EC170: 0 | ED170: 0 | EE170: 0 | EF170: 0 | EG170: 0 | EH170: 0
C171: =C73 -> Equity | D171: =curr -> k EUR | G171: =G73 -> 1215 | J171: =J73 -> 1215 | K171: 0 | L171: 0 | M171: 0 | N171: 0 | O171: 0 | P171: 0 | Q171: 0 | R171: 0 | S171: 0 | T171: 0 | U171: 0 | V171: 0 | W171: 0 | X171: 0 | Y171: 0 | Z171: 0 | AA171: 0 | AB171: 0 | AC171: 0 | AD171: 0 | AE171: 0 | AF171: 0 | AG171: 0 | AH171: 0 | AI171: 0 | AJ171: 0 | AK171: 0 | AL171: 0 | AM171: 0 | AN171: 0 | AO171: 0 | AP171: =AP73 -> 0 | AQ171: 0 | AR171: 0 | AS171: 0 | AT171: 0 | AU171: 0 | AV171: 0 | AW171: 0 | AX171: 0 | AY171: 0 | AZ171: 0 | BA171: 0 | BB171: 0 | BC171: 0 | BD171: 0 | BE171: 0 | BF171: 0 | BG171: 0 | BH171: 0 | BI171: 0 | BJ171: 0 | BK171: 0 | BL171: 0 | BM171: 0 | BN171: 0 | BO171: 0 | BP171: 0 | BQ171: 0 | BR171: 0 | BS171: 0 | BT171: 0 | BU171: 0 | BV171: =BV73 -> 0 | BW171: 0 | BX171: 0 | BY171: 0 | BZ171: 0 | CA171: 0 | CB171: 0 | CC171: 0 | CD171: 0 | CE171: 0 | CF171: 0 | CG171: 0 | CH171: 0 | CI171: 0 | CJ171: 0 | CK171: 0 | CL171: 0 | CM171: 0 | CN171: 0 | CO171: 0 | CP171: 0 | CQ171: 0 | CR171: 0 | CS171: 0 | CT171: 0 | CU171: 0 | CV171: 0 | CW171: 0 | CX171: 0 | CY171: 0 | CZ171: 0 | DA171: 0 | DB171: =DB73 -> 0 | DC171: 0 | DD171: 0 | DE171: 0 | DF171: 0 | DG171: 0 | DH171: 0 | DI171: 0 | DJ171: 0 | DK171: 0 | DL171: 0 | DM171: 0 | DN171: 0 | DO171: 0 | DP171: 0 | DQ171: 0 | DR171: 0 | DS171: 0 | DT171: 0 | DU171: 0 | DV171: 0 | DW171: 0 | DX171: 0 | DY171: 0 | DZ171: 0 | EA171: 0 | EB171: 0 | EC171: 0 | ED171: 0 | EE171: 0 | EF171: 0 | EG171: 0 | EH171: 0
C172: Construction debt drawdown | D172: =curr -> k EUR | J172: =J74 -> 0 | K172: 450 | L172: 450 | M172: 450 | N172: 450 | O172: 450 | P172: 450 | Q172: 450 | R172: 450 | S172: 0 | T172: 0 | U172: 0 | V172: 0 | W172: 0 | X172: 0 | Y172: 0 | Z172: 0 | AA172: 0 | AB172: 0 | AC172: 0 | AD172: 0 | AE172: 0 | AF172: 0 | AG172: 0 | AH172: 0 | AI172: 0 | AJ172: 0 | AK172: 0 | AL172: 0 | AM172: 0 | AN172: 0 | AO172: 0 | AP172: =AP74 -> 0 | AQ172: 0 | AR172: 0 | AS172: 0 | AT172: 0 | AU172: 0 | AV172: 0 | AW172: 0 | AX172: 0 | AY172: 0 | AZ172: 0 | BA172: 0 | BB172: 0 | BC172: 0 | BD172: 0 | BE172: 0 | BF172: 0 | BG172: 0 | BH172: 0 | BI172: 0 | BJ172: 0 | BK172: 0 | BL172: 0 | BM172: 0 | BN172: 0 | BO172: 0 | BP172: 0 | BQ172: 0 | BR172: 0 | BS172: 0 | BT172: 0 | BU172: 0 | BV172: =BV74 -> 0 | BW172: 0 | BX172: 0 | BY172: 0 | BZ172: 0 | CA172: 0 | CB172: 0 | CC172: 0 | CD172: 0 | CE172: 0 | CF172: 0 | CG172: 0 | CH172: 0 | CI172: 0 | CJ172: 0 | CK172: 0 | CL172: 0 | CM172: 0 | CN172: 0 | CO172: 0 | CP172: 0 | CQ172: 0 | CR172: 0 | CS172: 0 | CT172: 0 | CU172: 0 | CV172: 0 | CW172: 0 | CX172: 0 | CY172: 0 | CZ172: 0 | DA172: 0 | DB172: =DB74 -> 0 | DC172: 0 | DD172: 0 | DE172: 0 | DF172: 0 | DG172: 0 | DH172: 0 | DI172: 0 | DJ172: 0 | DK172: 0 | DL172: 0 | DM172: 0 | DN172: 0 | DO172: 0 | DP172: 0 | DQ172: 0 | DR172: 0 | DS172: 0 | DT172: 0 | DU172: 0 | DV172: 0 | DW172: 0 | DX172: 0 | DY172: 0 | DZ172: 0 | EA172: 0 | EB172: 0 | EC172: 0 | ED172: 0 | EE172: 0 | EF172: 0 | EG172: 0 | EH172: 0
C173: Cashflow available for senior debt | D173: =curr -> k EUR | J173: =J168+SUM(J170:J172) -> 765 | K173: =K168+SUM(K170:K172) -> 0 | L173: 0 | M173: 0 | N173: 0 | O173: 0 | P173: 0 | Q173: 0 | R173: 0 | S173: 44.14583333 | T173: 41.53124193 | U173: 41.51560076 | V173: 44.08326865 | W173: 41.48429409 | X173: 41.46862855 | Y173: 44.00002515 | Z173: 41.43727295 | AA173: 41.42158286 | AB173: 43.86805253 | AC173: 41.39017802 | AD173: 41.37446322 | AE173: 43.71016594 | AF173: 41.3430088 | AG173: 41.32726914 | AH173: 43.57896744 | AI173: 41.29576481 | AJ173: 41.28000011 | AK173: 43.47168797 | AL173: 41.24844555 | AM173: 41.23265564 | AN173: 43.3394159 | AO173: 41.20105051 | AP173: 41.18523524 | AQ173: 43.16277086 | AR173: 41.15357921 | AS173: 41.1377384 | AT173: 43.05341737 | AU173: 41.10603113 | AV173: 41.09016462 | AW173: 42.94214107 | AX173: 41.05840577 | AY173: 41.04251339 | AZ173: 42.80956157 | BA173: 41.01070263 | BB173: 40.99478421 | BC173: 42.63998988 | BD173: 40.96292119 | BE173: 40.94697655 | BF173: 42.5266335 | BG173: 40.91506094 | BH173: 40.89908992 | BI173: 42.41135226 | BJ173: 40.86712137 | BK173: 40.85112379 | BL173: 42.27845717 | BM173: 40.81910196 | BN173: 40.80307765 | BO173: 42.11595065 | BP173: 40.77100218 | BQ173: 40.75495097 | BR173: 41.99858314 | BS173: 40.72282152 | BT173: 40.70674324 | BU173: 41.8792887 | BV173: 40.67455946 | BW173: =BW168+SUM(BW170:BW172) -> 40.65845392 | BX173: 41.74606972 | BY173: 40.62621545 | BZ173: 40.61008248 | CA173: 41.60169424 | CB173: 40.57778898 | CC173: 40.56162841 | CD173: 41.469233 | CE173: 40.52927951 | CF173: 40.51309115 | CG173: 41.34591693 | CH173: 40.4806865 | CI173: 40.46447018 | CJ173: 41.21236559 | CK173: 40.43200943 | CL173: 40.41576496 | CM173: 41.06396419 | CN173: 40.38324774 | CO173: 40.36697494 | CP173: 40.93854911 | CQ173: 40.33440089 | CR173: 40.31809959 | CS173: 40.81120281 | CT173: 40.28546834 | CU173: 40.26913835 | CV173: 40.67731047 | CW173: 40.23644954 | CX173: 40.22009067 | CY173: 40.53594871 | CZ173: 40.18734393 | DA173: 40.17095602 | DB173: 40.40649685 | DC173: 40.13815098 | DD173: 40.12173382 | DE173: 40.27511155 | DF173: 40.08887011 | DG173: 40.07242352 | DH173: 40.14086942 | DI173: 40.03950077 | DJ173: 40.02302456 | DK173: 40.00653845 | DL173: 39.9900424 | DM173: 39.97353639 | DN173: 39.95702041 | DO173: 39.94049443 | DP173: 39.92395843 | DQ173: 39.90741239 | DR173: 39.89085629 | DS173: 39.87429011 | DT173: 39.85771383 | DU173: 39.84112742 | DV173: 39.82453087 | DW173: 39.80792415 | DX173: 39.79130725 | DY173: 39.77468013 | DZ173: 39.75804279 | EA173: 39.74139519 | EB173: 39.72473732 | EC173: 39.70806915 | ED173: 39.69139067 | EE173: 39.67470185 | EF173: 39.65800267 | EG173: 39.6412931 | EH173: 39.62457314
C175: =C$123 -> Interest during operations | D175: =D$124 -> k EUR | G175: =SUM(J175:EH175) -> -225.736875 | J175: =J$124*-1 -> 0 | K175: =K$124*-1 -> -6.103125 | L175: -6.103125 | M175: -5.90625 | N175: -6.103125 | O175: -5.90625 | P175: -6.103125 | Q175: -6.103125 | R175: -5.5125 | S175: -10.63125 | T175: 0 | U175: 0 | V175: -10.41345703 | W175: 0 | X175: 0 | Y175: -10.18828125 | Z175: 0 | AA175: 0 | AB175: -9.848671875 | AC175: 0 | AD175: 0 | AE175: -9.405703125 | AF175: 0 | AG175: 0 | AH175: -9.069785156 | AI175: 0 | AJ175: 0 | AK175: -8.82984375 | AL175: 0 | AM175: 0 | AN175: -8.490234375 | AO175: 0 | AP175: 0 | AQ175: -7.9734375 | AR175: 0 | AS175: 0 | AT175: -7.726113281 | AU175: 0 | AV175: 0 | AW175: -7.47140625 | AX175: 0 | AY175: 0 | AZ175: -7.131796875 | BA175: 0 | BB175: 0 | BC175: -6.64453125 | BD175: 0 | BE175: 0 | BF175: -6.382441406 | BG175: 0 | BH175: 0 | BI175: -6.11296875 | BJ175: 0 | BK175: 0 | BL175: -5.773359375 | BM175: 0 | BN175: 0 | BO175: -5.315625 | BP175: 0 | BQ175: 0 | BR175: -5.038769531 | BS175: 0 | BT175: 0 | BU175: -4.75453125 | BV175: 0 | BW175: =BW$124*-1 -> 0 | BX175: -4.414921875 | BY175: 0 | BZ175: 0 | CA175: -4.031015625 | CB175: 0 | CC175: 0 | CD175: -3.695097656 | CE175: 0 | CF175: 0 | CG175: -3.39609375 | CH175: 0 | CI175: 0 | CJ175: -3.056484375 | CK175: 0 | CL175: 0 | CM175: -2.6578125 | CN175: 0 | CO175: 0 | CP175: -2.351425781 | CQ175: 0 | CR175: 0 | CS175: -2.03765625 | CT175: 0 | CU175: 0 | CV175: -1.698046875 | CW175: 0 | CX175: 0 | CY175: -1.32890625 | CZ175: 0 | DA175: 0 | DB175: -1.007753906 | DC175: 0 | DD175: 0 | DE175: -0.67921875 | DF175: 0 | DG175: 0 | DH175: -0.339609375 | DI175: 0 | DJ175: 0 | DK175: 0 | DL175: 0 | DM175: 0 | DN175: 0 | DO175: 0 | DP175: 0 | DQ175: 0 | DR175: 0 | DS175: 0 | DT175: 0 | DU175: 0 | DV175: 0 | DW175: 0 | DX175: 0 | DY175: 0 | DZ175: 0 | EA175: 0 | EB175: 0 | EC175: 0 | ED175: 0 | EE175: 0 | EF175: 0 | EG175: 0 | EH175: 0
C176: =C$147 -> Senior debt principal repayment | D176: =D$147 -> k EUR | G176: =SUM(J176:EH176) -> -2835 | J176: =J$147*-1 -> 0 | K176: =K$147*-1 -> 0 | L176: 0 | M176: 0 | N176: 0 | O176: 0 | P176: 0 | Q176: 0 | R176: 0 | S176: -88.59375 | T176: 0 | U176: 0 | V176: -88.59375 | W176: 0 | X176: 0 | Y176: -88.59375 | Z176: 0 | AA176: 0 | AB176: -88.59375 | AC176: 0 | AD176: 0 | AE176: -88.59375 | AF176: 0 | AG176: 0 | AH176: -88.59375 | AI176: 0 | AJ176: 0 | AK176: -88.59375 | AL176: 0 | AM176: 0 | AN176: -88.59375 | AO176: 0 | AP176: 0 | AQ176: -88.59375 | AR176: 0 | AS176: 0 | AT176: -88.59375 | AU176: 0 | AV176: 0 | AW176: -88.59375 | AX176: 0 | AY176: 0 | AZ176: -88.59375 | BA176: 0 | BB176: 0 | BC176: -88.59375 | BD176: 0 | BE176: 0 | BF176: -88.59375 | BG176: 0 | BH176: 0 | BI176: -88.59375 | BJ176: 0 | BK176: 0 | BL176: -88.59375 | BM176: 0 | BN176: 0 | BO176: -88.59375 | BP176: 0 | BQ176: 0 | BR176: -88.59375 | BS176: 0 | BT176: 0 | BU176: -88.59375 | BV176: 0 | BW176: =BW$147*-1 -> 0 | BX176: -88.59375 | BY176: 0 | BZ176: 0 | CA176: -88.59375 | CB176: 0 | CC176: 0 | CD176: -88.59375 | CE176: 0 | CF176: 0 | CG176: -88.59375 | CH176: 0 | CI176: 0 | CJ176: -88.59375 | CK176: 0 | CL176: 0 | CM176: -88.59375 | CN176: 0 | CO176: 0 | CP176: -88.59375 | CQ176: 0 | CR176: 0 | CS176: -88.59375 | CT176: 0 | CU176: 0 | CV176: -88.59375 | CW176: 0 | CX176: 0 | CY176: -88.59375 | CZ176: 0 | DA176: 0 | DB176: -88.59375 | DC176: 0 | DD176: 0 | DE176: -88.59375 | DF176: 0 | DG176: 0 | DH176: -88.59375 | DI176: 0 | DJ176: 0 | DK176: 0 | DL176: 0 | DM176: 0 | DN176: 0 | DO176: 0 | DP176: 0 | DQ176: 0 | DR176: 0 | DS176: 0 | DT176: 0 | DU176: 0 | DV176: 0 | DW176: 0 | DX176: 0 | DY176: 0 | DZ176: 0 | EA176: 0 | EB176: 0 | EC176: 0 | ED176: 0 | EE176: 0 | EF176: 0 | EG176: 0 | EH176: 0
C178: Cashflow available for share capital redemption | J178: =SUM(J175:J176) + J173 -> 765 | K178: =SUM(K175:K176) + K173 -> -6.103125 | L178: -6.103125 | M178: -5.90625 | N178: =SUM(N175:N176) + N173 -> -6.103125 | O178: -5.90625 | P178: -6.103125 | Q178: -6.103125 | R178: -5.5125 | S178: -55.07916667 | T178: 41.53124193 | U178: 41.51560076 | V178: -54.92393838 | W178: 41.48429409 | X178: 41.46862855 | Y178: -54.7820061 | Z178: 41.43727295 | AA178: 41.42158286 | AB178: -54.57436935 | AC178: 41.39017802 | AD178: 41.37446322 | AE178: -54.28928718 | AF178: 41.3430088 | AG178: 41.32726914 | AH178: -54.08456772 | AI178: 41.29576481 | AJ178: 41.28000011 | AK178: -53.95190578 | AL178: 41.24844555 | AM178: 41.23265564 | AN178: -53.74456848 | AO178: 41.20105051 | AP178: 41.18523524 | AQ178: -53.40441664 | AR178: 41.15357921 | AS178: 41.1377384 | AT178: -53.26644591 | AU178: 41.10603113 | AV178: 41.09016462 | AW178: -53.12301518 | AX178: 41.05840577 | AY178: 41.04251339 | AZ178: -52.91598531 | BA178: 41.01070263 | BB178: 40.99478421 | BC178: -52.59829137 | BD178: 40.96292119 | BE178: 40.94697655 | BF178: -52.44955791 | BG178: 40.91506094 | BH178: 40.89908992 | BI178: -52.29536649 | BJ178: 40.86712137 | BK178: 40.85112379 | BL178: -52.0886522 | BM178: 40.81910196 | BN178: 40.80307765 | BO178: -51.79342435 | BP178: 40.77100218 | BQ178: 40.75495097 | BR178: -51.63393639 | BS178: 40.72282152 | BT178: 40.70674324 | BU178: -51.46899255 | BV178: 40.67455946 | BW178: =SUM(BW175:BW176) + BW173 -> 40.65845392 | BX178: -51.26260215 | BY178: 40.62621545 | BZ178: 40.61008248 | CA178: -51.02307139 | CB178: 40.57778898 | CC178: 40.56162841 | CD178: -50.81961465 | CE178: 40.52927951 | CF178: 40.51309115 | CG178: -50.64392682 | CH178: 40.4806865 | CI178: 40.46447018 | CJ178: -50.43786879 | CK178: 40.43200943 | CL178: 40.41576496 | CM178: -50.18759831 | CN178: 40.38324774 | CO178: 40.36697494 | CP178: -50.00662667 | CQ178: 40.33440089 | CR178: 40.31809959 | CS178: -49.82020344 | CT178: 40.28546834 | CU178: 40.26913835 | CV178: -49.6144864 | CW178: 40.23644954 | CX178: 40.22009067 | CY178: -49.38670754 | CZ178: 40.18734393 | DA178: 40.17095602 | DB178: -49.19500706 | DC178: 40.13815098 | DD178: 40.12173382 | DE178: -48.9978572 | DF178: 40.08887011 | DG178: 40.07242352 | DH178: -48.79248995 | DI178: 40.03950077 | DJ178: 40.02302456 | DK178: 40.00653845 | DL178: 39.9900424 | DM178: 39.97353639 | DN178: 39.95702041 | DO178: 39.94049443 | DP178: 39.92395843 | DQ178: 39.90741239 | DR178: 39.89085629 | DS178: 39.87429011 | DT178: 39.85771383 | DU178: 39.84112742 | DV178: 39.82453087 | DW178: 39.80792415 | DX178: 39.79130725 | DY178: 39.77468013 | DZ178: 39.75804279 | EA178: 39.74139519 | EB178: 39.72473732 | EC178: 39.70806915 | ED178: 39.69139067 | EE178: 39.67470185 | EF178: 39.65800267 | EG178: 39.6412931 | EH178: 39.62457314
C180: Share capital redemption
C181: Cash flow available for dividends
C183: Dividends paid
C184: Net cash flow
C187: BALANCE SHEET

Sheet Revised Model
B2: Time Line | E2: Driver Units | F2: Driver 1 | G2: Driver 2 | H2: Model Units | J2: Sum | K2: Start
C3: Time Period | L3: 1 | M3: 2 | N3: 3 | O3: 4 | P3: 5 | Q3: 6 | R3: 7 | S3: 8 | T3: 9 | U3: 10 | V3: 11 | W3: 12 | X3: 13 | Y3: 14 | Z3: 15 | AA3: 16 | AB3: 17 | AC3: 18 | AD3: 19 | AE3: 20 | AF3: 21 | AG3: 22 | AH3: 23 | AI3: 24 | AJ3: 25 | AK3: 26 | AL3: 27 | AM3: 28 | AN3: 29 | AO3: 30 | AP3: 31 | AQ3: 32 | AR3: 33 | AS3: 34 | AT3: 35 | AU3: 36 | AV3: 37 | AW3: 38 | AX3: 39 | AY3: 40 | AZ3: 41 | BA3: 42 | BB3: 43 | BC3: 44 | BD3: 45 | BE3: 46 | BF3: 47 | BG3: 48 | BH3: 49 | BI3: 50 | BJ3: 51 | BK3: 52 | BL3: 53 | BM3: 54 | BN3: 55 | BO3: 56 | BP3: 57 | BQ3: 58 | BR3: 59 | BS3: 60 | BT3: 61 | BU3: 62 | BV3: 63 | BW3: 64 | BX3: 65 | BY3: 66 | BZ3: 67 | CA3: 68 | CB3: 69 | CC3: 70 | CD3: 71 | CE3: 72 | CF3: 73 | CG3: 74 | CH3: 75 | CI3: 76 | CJ3: 77 | CK3: 78 | CL3: 79 | CM3: 80 | CN3: 81 | CO3: 82 | CP3: 83 | CQ3: 84 | CR3: 85 | CS3: 86 | CT3: 87 | CU3: 88 | CV3: 89 | CW3: 90 | CX3: 91 | CY3: 92 | CZ3: 93 | DA3: 94 | DB3: 95 | DC3: 96 | DD3: 97 | DE3: 98 | DF3: 99 | DG3: 100 | DH3: 101 | DI3: 102 | DJ3: 103 | DK3: 104 | DL3: 105 | DM3: 106 | DN3: 107 | DO3: 108 | DP3: 109 | DQ3: 110 | DR3: 111 | DS3: 112 | DT3: 113 | DU3: 114 | DV3: 115 | DW3: 116 | DX3: 117 | DY3: 118 | DZ3: 119 | EA3: 120 | EB3: 121 | EC3: 122 | ED3: 123 | EE3: 124 | EF3: 125 | EG3: 126 | EH3: 127 | EI3: 128 | EJ3: 129 | EK3: 130 | EL3: 131 | EM3: 132 | EN3: 133 | EO3: 134 | EP3: 135 | EQ3: 136 | ER3: 137 | ES3: 138 | ET3: 139 | EU3: 140 | EV3: 141 | EW3: 142 | EX3: 143 | EY3: 144 | EZ3: 145 | FA3: 146 | FB3: 147 | FC3: 148 | FD3: 149 | FE3: 150
C4: Month | E4: date | F4: =Input!F6 -> 2022-06-01 | G4: =EDATE(F4,-1) -> 2022-05-01 | H4: Date | K4: =G4 -> 2022-05-01 | L4: =EDATE(K4,1) -> 2022-06-01 | M4: =EDATE(L4,1) -> 2022-07-01 | N4: 2022-08-01 | O4: 2022-09-01 | P4: 2022-10-01 | Q4: 2022-11-01 | R4: 2022-12-01 | S4: 2023-01-01 | T4: 2023-02-01 | U4: 2023-03-01 | V4: 2023-04-01 | W4: 2023-05-01 | X4: 2023-06-01 | Y4: 2023-07-01 | Z4: 2023-08-01 | AA4: 2023-09-01 | AB4: 2023-10-01 | AC4: 2023-11-01 | AD4: 2023-12-01 | AE4: 2024-01-01 | AF4: 2024-02-01 | AG4: 2024-03-01 | AH4: 2024-04-01 | AI4: 2024-05-01 | AJ4: 2024-06-01 | AK4: 2024-07-01 | AL4: 2024-08-01 | AM4: 2024-09-01 | AN4: 2024-10-01 | AO4: 2024-11-01 | AP4: 2024-12-01 | AQ4: 2025-01-01 | AR4: 2025-02-01 | AS4: 2025-03-01 | AT4: 2025-04-01 | AU4: 2025-05-01 | AV4: 2025-06-01 | AW4: 2025-07-01 | AX4: 2025-08-01 | AY4: 2025-09-01 | AZ4: 2025-10-01 | BA4: 2025-11-01 | BB4: 2025-12-01 | BC4: 2026-01-01 | BD4: 2026-02-01 | BE4: 2026-03-01 | BF4: 2026-04-01 | BG4: 2026-05-01 | BH4: 2026-06-01 | BI4: 2026-07-01 | BJ4: 2026-08-01 | BK4: 2026-09-01 | BL4: 2026-10-01 | BM4: 2026-11-01 | BN4: 2026-12-01 | BO4: 2027-01-01 | BP4: 2027-02-01 | BQ4: 2027-03-01 | BR4: 2027-04-01 | BS4: 2027-05-01 | BT4: 2027-06-01 | BU4: 2027-07-01 | BV4: 2027-08-01 | BW4: 2027-09-01 | BX4: 2027-10-01 | BY4: =EDATE(BX4,1) -> 2027-11-01 | BZ4: 2027-12-01 | CA4: 2028-01-01 | CB4: 2028-02-01 | CC4: 2028-03-01 | CD4: 2028-04-01 | CE4: 2028-05-01 | CF4: 2028-06-01 | CG4: 2028-07-01 | CH4: 2028-08-01 | CI4: 2028-09-01 | CJ4: 2028-10-01 | CK4: 2028-11-01 | CL4: 2028-12-01 | CM4: 2029-01-01 | CN4: 2029-02-01 | CO4: 2029-03-01 | CP4: 2029-04-01 | CQ4: 2029-05-01 | CR4: 2029-06-01 | CS4: 2029-07-01 | CT4: 2029-08-01 | CU4: 2029-09-01 | CV4: 2029-10-01 | CW4: 2029-11-01 | CX4: 2029-12-01 | CY4: 2030-01-01 | CZ4: 2030-02-01 | DA4: 2030-03-01 | DB4: 2030-04-01 | DC4: 2030-05-01 | DD4: 2030-06-01 | DE4: 2030-07-01 | DF4: 2030-08-01 | DG4: 2030-09-01 | DH4: 2030-10-01 | DI4: 2030-11-01 | DJ4: 2030-12-01 | DK4: 2031-01-01 | DL4: 2031-02-01 | DM4: 2031-03-01 | DN4: 2031-04-01 | DO4: 2031-05-01 | DP4: 2031-06-01 | DQ4: 2031-07-01 | DR4: 2031-08-01 | DS4: 2031-09-01 | DT4: 2031-10-01 | DU4: 2031-11-01 | DV4: 2031-12-01 | DW4: 2032-01-01 | DX4: 2032-02-01 | DY4: 2032-03-01 | DZ4: 2032-04-01 | EA4: 2032-05-01 | EB4: 2032-06-01 | EC4: 2032-07-01 | ED4: 2032-08-01 | EE4: 2032-09-01 | EF4: 2032-10-01 | EG4: 2032-11-01 | EH4: 2032-12-01 | EI4: 2033-01-01 | EJ4: 2033-02-01 | EK4: =EDATE(EJ4,1) -> 2033-03-01 | EL4: 2033-04-01 | EM4: 2033-05-01 | EN4: 2033-06-01 | EO4: 2033-07-01 | EP4: 2033-08-01 | EQ4: 2033-09-01 | ER4: 2033-10-01 | ES4: 2033-11-01 | ET4: 2033-12-01 | EU4: 2034-01-01 | EV4: 2034-02-01 | EW4: 2034-03-01 | EX4: 2034-04-01 | EY4: 2034-05-01 | EZ4: 2034-06-01 | FA4: 2034-07-01 | FB4: 2034-08-01 | FC4: 2034-09-01 | FD4: 2034-10-01 | FE4: 2034-11-01
C5: Month Number | H5: Month | L5: =MONTH(L4) -> 6 | M5: =MONTH(M4) -> 7 | N5: 8 | O5: 9 | P5: 10 | Q5: 11 | R5: 12 | S5: 1 | T5: 2 | U5: 3 | V5: 4 | W5: 5 | X5: 6 | Y5: 7 | Z5: 8 | AA5: 9 | AB5: 10 | AC5: 11 | AD5: 12 | AE5: 1 | AF5: 2 | AG5: 3 | AH5: 4 | AI5: 5 | AJ5: 6 | AK5: 7 | AL5: 8 | AM5: 9 | AN5: 10 | AO5: 11 | AP5: 12 | AQ5: 1 | AR5: 2 | AS5: 3 | AT5: 4 | AU5: 5 | AV5: 6 | AW5: 7 | AX5: 8 | AY5: 9 | AZ5: 10 | BA5: 11 | BB5: 12 | BC5: 1 | BD5: 2 | BE5: 3 | BF5: 4 | BG5: 5 | BH5: 6 | BI5: 7 | BJ5: 8 | BK5: 9 | BL5: 10 | BM5: 11 | BN5: 12 | BO5: 1 | BP5: 2 | BQ5: 3 | BR5: 4 | BS5: 5 | BT5: 6 | BU5: 7 | BV5: 8 | BW5: 9 | BX5: 10 | BY5: =MONTH(BY4) -> 11 | BZ5: 12 | CA5: 1 | CB5: 2 | CC5: 3 | CD5: 4 | CE5: 5 | CF5: 6 | CG5: 7 | CH5: 8 | CI5: 9 | CJ5: 10 | CK5: 11 | CL5: 12 | CM5: 1 | CN5: 2 | CO5: 3 | CP5: 4 | CQ5: 5 | CR5: 6 | CS5: 7 | CT5: 8 | CU5: 9 | CV5: 10 | CW5: 11 | CX5: 12 | CY5: 1 | CZ5: 2 | DA5: 3 | DB5: 4 | DC5: 5 | DD5: 6 | DE5: 7 | DF5: 8 | DG5: 9 | DH5: 10 | DI5: 11 | DJ5: 12 | DK5: 1 | DL5: 2 | DM5: 3 | DN5: 4 | DO5: 5 | DP5: 6 | DQ5: 7 | DR5: 8 | DS5: 9 | DT5: 10 | DU5: 11 | DV5: 12 | DW5: 1 | DX5: 2 | DY5: 3 | DZ5: 4 | EA5: 5 | EB5: 6 | EC5: 7 | ED5: 8 | EE5: 9 | EF5: 10 | EG5: 11 | EH5: 12 | EI5: 1 | EJ5: 2 | EK5: =MONTH(EK4) -> 3 | EL5: 4 | EM5: 5 | EN5: 6 | EO5: 7 | EP5: 8 | EQ5: 9 | ER5: 10 | ES5: 11 | ET5: 12 | EU5: 1 | EV5: 2 | EW5: 3 | EX5: 4 | EY5: 5 | EZ5: 6 | FA5: 7 | FB5: 8 | FC5: 9 | FD5: 10 | FE5: 11
C6: Construction | E6: date | F6: =Input!F11 -> 2023-02-28 | H6: Flag | J6: =SUM(L6:XFD6) -> 9 | L6: =(L4<=$F$6)*1 -> 1 | M6: =(M4<=$F$6)*1 -> 1 | N6: 1 | O6: 1 | P6: 1 | Q6: 1 | R6: 1 | S6: 1 | T6: 1 | U6: 0 | V6: 0 | W6: 0 | X6: 0 | Y6: 0 | Z6: 0 | AA6: 0 | AB6: 0 | AC6: 0 | AD6: 0 | AE6: 0 | AF6: 0 | AG6: 0 | AH6: 0 | AI6: 0 | AJ6: 0 | AK6: 0 | AL6: 0 | AM6: 0 | AN6: 0 | AO6: 0 | AP6: 0 | AQ6: 0 | AR6: 0 | AS6: 0 | AT6: 0 | AU6: 0 | AV6: 0 | AW6: 0 | AX6: 0 | AY6: 0 | AZ6: 0 | BA6: 0 | BB6: 0 | BC6: 0 | BD6: 0 | BE6: 0 | BF6: 0 | BG6: 0 | BH6: 0 | BI6: 0 | BJ6: 0 | BK6: 0 | BL6: 0 | BM6: 0 | BN6: 0 | BO6: 0 | BP6: 0 | BQ6: 0 | BR6: 0 | BS6: 0 | BT6: 0 | BU6: 0 | BV6: 0 | BW6: 0 | BX6: 0 | BY6: =(BY4<=$F$6)*1 -> 0 | BZ6: 0 | CA6: 0 | CB6: 0 | CC6: 0 | CD6: 0 | CE6: 0 | CF6: 0 | CG6: 0 | CH6: 0 | CI6: 0 | CJ6: 0 | CK6: 0 | CL6: 0 | CM6: 0 | CN6: 0 | CO6: 0 | CP6: 0 | CQ6: 0 | CR6: 0 | CS6: 0 | CT6: 0 | CU6: 0 | CV6: 0 | CW6: 0 | CX6: 0 | CY6: 0 | CZ6: 0 | DA6: 0 | DB6: 0 | DC6: 0 | DD6: 0 | DE6: 0 | DF6: 0 | DG6: 0 | DH6: 0 | DI6: 0 | DJ6: 0 | DK6: 0 | DL6: 0 | DM6: 0 | DN6: 0 | DO6: 0 | DP6: 0 | DQ6: 0 | DR6: 0 | DS6: 0 | DT6: 0 | DU6: 0 | DV6: 0 | DW6: 0 | DX6: 0 | DY6: 0 | DZ6: 0 | EA6: 0 | EB6: 0 | EC6: 0 | ED6: 0 | EE6: 0 | EF6: 0 | EG6: 0 | EH6: 0 | EI6: 0 | EJ6: 0 | EK6: =(EK4<=$F$6)*1 -> 0 | EL6: 0 | EM6: 0 | EN6: 0 | EO6: 0 | EP6: 0 | EQ6: 0 | ER6: 0 | ES6: 0 | ET6: 0 | EU6: 0 | EV6: 0 | EW6: 0 | EX6: 0 | EY6: 0 | EZ6: 0 | FA6: 0 | FB6: 0 | FC6: 0 | FD6: 0 | FE6: 0
C7: Operation | E7: date | F7: =Input!F7 -> 2023-03-01 | G7: =Input!F9 -> 2033-02-28 | H7: Flag | J7: =SUM(L7:XFD7) -> 120 | L7: =(AND(L4>=$F$7,L4<$G$7))*1 -> 0 | M7: =(AND(M4>=$F$7,M4<$G$7))*1 -> 0 | N7: 0 | O7: 0 | P7: 0 | Q7: 0 | R7: 0 | S7: 0 | T7: 0 | U7: 1 | V7: 1 | W7: 1 | X7: 1 | Y7: 1 | Z7: 1 | AA7: 1 | AB7: 1 | AC7: 1 | AD7: 1 | AE7: 1 | AF7: 1 | AG7: 1 | AH7: 1 | AI7: 1 | AJ7: 1 | AK7: 1 | AL7: 1 | AM7: 1 | AN7: 1 | AO7: 1 | AP7: 1 | AQ7: 1 | AR7: 1 | AS7: 1 | AT7: 1 | AU7: 1 | AV7: 1 | AW7: 1 | AX7: 1 | AY7: 1 | AZ7: 1 | BA7: 1 | BB7: 1 | BC7: 1 | BD7: 1 | BE7: 1 | BF7: 1 | BG7: 1 | BH7: 1 | BI7: 1 | BJ7: 1 | BK7: 1 | BL7: 1 | BM7: 1 | BN7: 1 | BO7: 1 | BP7: 1 | BQ7: 1 | BR7: 1 | BS7: 1 | BT7: 1 | BU7: 1 | BV7: 1 | BW7: 1 | BX7: 1 | BY7: =(AND(BY4>=$F$7,BY4<$G$7))*1 -> 1 | BZ7: 1 | CA7: 1 | CB7: 1 | CC7: 1 | CD7: 1 | CE7: 1 | CF7: 1 | CG7: 1 | CH7: 1 | CI7: 1 | CJ7: 1 | CK7: 1 | CL7: 1 | CM7: 1 | CN7: 1 | CO7: 1 | CP7: 1 | CQ7: 1 | CR7: 1 | CS7: 1 | CT7: 1 | CU7: 1 | CV7: 1 | CW7: 1 | CX7: 1 | CY7: 1 | CZ7: 1 | DA7: 1 | DB7: 1 | DC7: 1 | DD7: 1 | DE7: 1 | DF7: 1 | DG7: 1 | DH7: 1 | DI7: 1 | DJ7: 1 | DK7: 1 | DL7: 1 | DM7: 1 | DN7: 1 | DO7: 1 | DP7: 1 | DQ7: 1 | DR7: 1 | DS7: 1 | DT7: 1 | DU7: 1 | DV7: 1 | DW7: 1 | DX7: 1 | DY7: 1 | DZ7: 1 | EA7: 1 | EB7: 1 | EC7: 1 | ED7: 1 | EE7: 1 | EF7: 1 | EG7: 1 | EH7: 1 | EI7: 1 | EJ7: 1 | EK7: =(AND(EK4>=$F$7,EK4<$G$7))*1 -> 0 | EL7: 0 | EM7: 0 | EN7: 0 | EO7: 0 | EP7: 0 | EQ7: 0 | ER7: 0 | ES7: 0 | ET7: 0 | EU7: 0 | EV7: 0 | EW7: 0 | EX7: 0 | EY7: 0 | EZ7: 0 | FA7: 0 | FB7: 0 | FC7: 0 | FD7: 0 | FE7: 0
C8: Quarter | E8: Quarter | F8: =Input!F67 -> 3 | H8: Flag | L8: =(MOD(MONTH(L4),$F$8)=0)*1 -> 1 | M8: =(MOD(MONTH(M4),$F$8)=0)*1 -> 0 | N8: 0 | O8: 1 | P8: 0 | Q8: 0 | R8: 1 | S8: 0 | T8: 0 | U8: 1 | V8: 0 | W8: 0 | X8: 1 | Y8: 0 | Z8: 0 | AA8: 1 | AB8: 0 | AC8: 0 | AD8: 1 | AE8: 0 | AF8: 0 | AG8: 1 | AH8: 0 | AI8: 0 | AJ8: 1 | AK8: 0 | AL8: 0 | AM8: 1 | AN8: 0 | AO8: 0 | AP8: 1 | AQ8: 0 | AR8: 0 | AS8: 1 | AT8: 0 | AU8: 0 | AV8: 1 | AW8: 0 | AX8: 0 | AY8: 1 | AZ8: 0 | BA8: 0 | BB8: 1 | BC8: 0 | BD8: 0 | BE8: 1 | BF8: 0 | BG8: 0 | BH8: 1 | BI8: 0 | BJ8: 0 | BK8: 1 | BL8: 0 | BM8: 0 | BN8: 1 | BO8: 0 | BP8: 0 | BQ8: 1 | BR8: 0 | BS8: 0 | BT8: 1 | BU8: 0 | BV8: 0 | BW8: 1 | BX8: 0 | BY8: =(MOD(MONTH(BY4),$F$8)=0)*1 -> 0 | BZ8: 1 | CA8: 0 | CB8: 0 | CC8: 1 | CD8: 0 | CE8: 0 | CF8: 1 | CG8: 0 | CH8: 0 | CI8: 1 | CJ8: 0 | CK8: 0 | CL8: 1 | CM8: 0 | CN8: 0 | CO8: 1 | CP8: 0 | CQ8: 0 | CR8: 1 | CS8: 0 | CT8: 0 | CU8: 1 | CV8: 0 | CW8: 0 | CX8: 1 | CY8: 0 | CZ8: 0 | DA8: 1 | DB8: 0 | DC8: 0 | DD8: 1 | DE8: 0 | DF8: 0 | DG8: 1 | DH8: 0 | DI8: 0 | DJ8: 1 | DK8: 0 | DL8: 0 | DM8: 1 | DN8: 0 | DO8: 0 | DP8: 1 | DQ8: 0 | DR8: 0 | DS8: 1 | DT8: 0 | DU8: 0 | DV8: 1 | DW8: 0 | DX8: 0 | DY8: 1 | DZ8: 0 | EA8: 0 | EB8: 1 | EC8: 0 | ED8: 0 | EE8: 1 | EF8: 0 | EG8: 0 | EH8: 1 | EI8: 0 | EJ8: 0 | EK8: =(MOD(MONTH(EK4),$F$8)=0)*1 -> 1 | EL8: 0 | EM8: 0 | EN8: 1 | EO8: 0 | EP8: 0 | EQ8: 1 | ER8: 0 | ES8: 0 | ET8: 1 | EU8: 0 | EV8: 0 | EW8: 1 | EX8: 0 | EY8: 0 | EZ8: 1 | FA8: 0 | FB8: 0 | FC8: 1 | FD8: 0 | FE8: 0
C9: Post Operation | E9: Date | F9: =F7 -> 2023-03-01 | H9: Flag | L9: =(L4>$F$9)*1 -> 0 | M9: =(M4>$F$9)*1 -> 0 | N9: 0 | O9: 0 | P9: 0 | Q9: 0 | R9: 0 | S9: 0 | T9: 0 | U9: 0 | V9: 1 | W9: 1 | X9: 1 | Y9: 1 | Z9: 1 | AA9: 1 | AB9: 1 | AC9: 1 | AD9: 1 | AE9: 1 | AF9: 1 | AG9: 1 | AH9: 1 | AI9: 1 | AJ9: 1 | AK9: 1 | AL9: 1 | AM9: 1 | AN9: 1 | AO9: 1 | AP9: 1 | AQ9: 1 | AR9: 1 | AS9: 1 | AT9: 1 | AU9: 1 | AV9: 1 | AW9: 1 | AX9: 1 | AY9: 1 | AZ9: 1 | BA9: 1 | BB9: 1 | BC9: 1 | BD9: 1 | BE9: 1 | BF9: 1 | BG9: 1 | BH9: 1 | BI9: 1 | BJ9: 1 | BK9: 1 | BL9: 1 | BM9: 1 | BN9: 1 | BO9: 1 | BP9: 1 | BQ9: 1 | BR9: 1 | BS9: 1 | BT9: 1 | BU9: 1 | BV9: 1 | BW9: 1 | BX9: 1 | BY9: =(BY4>$F$9)*1 -> 1 | BZ9: 1 | CA9: 1 | CB9: 1 | CC9: 1 | CD9: 1 | CE9: 1 | CF9: 1 | CG9: 1 | CH9: 1 | CI9: 1 | CJ9: 1 | CK9: 1 | CL9: 1 | CM9: 1 | CN9: 1 | CO9: 1 | CP9: 1 | CQ9: 1 | CR9: 1 | CS9: 1 | CT9: 1 | CU9: 1 | CV9: 1 | CW9: 1 | CX9: 1 | CY9: 1 | CZ9: 1 | DA9: 1 | DB9: 1 | DC9: 1 | DD9: 1 | DE9: 1 | DF9: 1 | DG9: 1 | DH9: 1 | DI9: 1 | DJ9: 1 | DK9: 1 | DL9: 1 | DM9: 1 | DN9: 1 | DO9: 1 | DP9: 1 | DQ9: 1 | DR9: 1 | DS9: 1 | DT9: 1 | DU9: 1 | DV9: 1 | DW9: 1 | DX9: 1 | DY9: 1 | DZ9: 1 | EA9: 1 | EB9: 1 | EC9: 1 | ED9: 1 | EE9: 1 | EF9: 1 | EG9: 1 | EH9: 1 | EI9: 1 | EJ9: 1 | EK9: =(EK4>$F$9)*1 -> 1 | EL9: 1 | EM9: 1 | EN9: 1 | EO9: 1 | EP9: 1 | EQ9: 1 | ER9: 1 | ES9: 1 | ET9: 1 | EU9: 1 | EV9: 1 | EW9: 1 | EX9: 1 | EY9: 1 | EZ9: 1 | FA9: 1 | FB9: 1 | FC9: 1 | FD9: 1 | FE9: 1
C10: Repayment | H10: Flag | L10: =(AND(L9,L8))*1 -> 0 | M10: =(AND(M9,M8))*1 -> 0 | N10: 0 | O10: 0 | P10: 0 | Q10: 0 | R10: 0 | S10: 0 | T10: 0 | U10: 0 | V10: 0 | W10: 0 | X10: 1 | Y10: 0 | Z10: 0 | AA10: 1 | AB10: 0 | AC10: 0 | AD10: 1 | AE10: 0 | AF10: 0 | AG10: 1 | AH10: 0 | AI10: 0 | AJ10: 1 | AK10: 0 | AL10: 0 | AM10: 1 | AN10: 0 | AO10: 0 | AP10: 1 | AQ10: 0 | AR10: 0 | AS10: 1 | AT10: 0 | AU10: 0 | AV10: 1 | AW10: 0 | AX10: 0 | AY10: 1 | AZ10: 0 | BA10: 0 | BB10: 1 | BC10: 0 | BD10: 0 | BE10: 1 | BF10: 0 | BG10: 0 | BH10: 1 | BI10: 0 | BJ10: 0 | BK10: 1 | BL10: 0 | BM10: 0 | BN10: 1 | BO10: 0 | BP10: 0 | BQ10: 1 | BR10: 0 | BS10: 0 | BT10: 1 | BU10: 0 | BV10: 0 | BW10: 1 | BX10: 0 | BY10: =(AND(BY9,BY8))*1 -> 0 | BZ10: 1 | CA10: 0 | CB10: 0 | CC10: 1 | CD10: 0 | CE10: 0 | CF10: 1 | CG10: 0 | CH10: 0 | CI10: 1 | CJ10: 0 | CK10: 0 | CL10: 1 | CM10: 0 | CN10: 0 | CO10: 1 | CP10: 0 | CQ10: 0 | CR10: 1 | CS10: 0 | CT10: 0 | CU10: 1 | CV10: 0 | CW10: 0 | CX10: 1 | CY10: 0 | CZ10: 0 | DA10: 1 | DB10: 0 | DC10: 0 | DD10: 1 | DE10: 0 | DF10: 0 | DG10: 1 | DH10: 0 | DI10: 0 | DJ10: 1 | DK10: 0 | DL10: 0 | DM10: 1 | DN10: 0 | DO10: 0 | DP10: 1 | DQ10: 0 | DR10: 0 | DS10: 1 | DT10: 0 | DU10: 0 | DV10: 1 | DW10: 0 | DX10: 0 | DY10: 1 | DZ10: 0 | EA10: 0 | EB10: 1 | EC10: 0 | ED10: 0 | EE10: 1 | EF10: 0 | EG10: 0 | EH10: 1 | EI10: 0 | EJ10: 0 | EK10: =(AND(EK9,EK8))*1 -> 1 | EL10: 0 | EM10: 0 | EN10: 1 | EO10: 0 | EP10: 0 | EQ10: 1 | ER10: 0 | ES10: 0 | ET10: 1 | EU10: 0 | EV10: 0 | EW10: 1 | EX10: 0 | EY10: 0 | EZ10: 1 | FA10: 0 | FB10: 0 | FC10: 1 | FD10: 0 | FE10: 0
B12: Operations
C13: Capacity | E13: MW | F13: =Input!F15 -> 10 | H13: MW | L13: =$F$13*L7 -> 0 | M13: =$F$13*M7 -> 0 | N13: 0 | O13: 0 | P13: 0 | Q13: 0 | R13: 0 | S13: 0 | T13: 0 | U13: 10 | V13: 10 | W13: 10 | X13: 10 | Y13: 10 | Z13: 10 | AA13: 10 | AB13: 10 | AC13: 10 | AD13: 10 | AE13: 10 | AF13: 10 | AG13: 10 | AH13: 10 | AI13: 10 | AJ13: 10 | AK13: 10 | AL13: 10 | AM13: 10 | AN13: 10 | AO13: 10 | AP13: 10 | AQ13: 10 | AR13: 10 | AS13: 10 | AT13: 10 | AU13: 10 | AV13: 10 | AW13: 10 | AX13: 10 | AY13: 10 | AZ13: 10 | BA13: 10 | BB13: 10 | BC13: 10 | BD13: 10 | BE13: 10 | BF13: 10 | BG13: 10 | BH13: 10 | BI13: 10 | BJ13: 10 | BK13: 10 | BL13: 10 | BM13: 10 | BN13: 10 | BO13: 10 | BP13: 10 | BQ13: 10 | BR13: 10 | BS13: 10 | BT13: 10 | BU13: 10 | BV13: 10 | BW13: 10 | BX13: 10 | BY13: =$F$13*BY7 -> 10 | BZ13: 10 | CA13: 10 | CB13: 10 | CC13: 10 | CD13: 10 | CE13: 10 | CF13: 10 | CG13: 10 | CH13: 10 | CI13: 10 | CJ13: 10 | CK13: 10 | CL13: 10 | CM13: 10 | CN13: 10 | CO13: 10 | CP13: 10 | CQ13: 10 | CR13: 10 | CS13: 10 | CT13: 10 | CU13: 10 | CV13: 10 | CW13: 10 | CX13: 10 | CY13: 10 | CZ13: 10 | DA13: 10 | DB13: 10 | DC13: 10 | DD13: 10 | DE13: 10 | DF13: 10 | DG13: 10 | DH13: 10 | DI13: 10 | DJ13: 10 | DK13: 10 | DL13: 10 | DM13: 10 | DN13: 10 | DO13: 10 | DP13: 10 | DQ13: 10 | DR13: 10 | DS13: 10 | DT13: 10 | DU13: 10 | DV13: 10 | DW13: 10 | DX13: 10 | DY13: 10 | DZ13: 10 | EA13: 10 | EB13: 10 | EC13: 10 | ED13: 10 | EE13: 10 | EF13: 10 | EG13: 10 | EH13: 10 | EI13: 10 | EJ13: 10 | EK13: =$F$13*EK7 -> 0 | EL13: 0 | EM13: 0 | EN13: 0 | EO13: 0 | EP13: 0 | EQ13: 0 | ER13: 0 | ES13: 0 | ET13: 0 | EU13: 0 | EV13: 0 | EW13: 0 | EX13: 0 | EY13: 0 | EZ13: 0 | FA13: 0 | FB13: 0 | FC13: 0 | FD13: 0 | FE13: 0
C14: Yield | E14: MWH/MWp | F14: =Input!F16 -> 1000 | H14: Hrs | L14: =$F$14*L7 -> 0 | M14: =$F$14*M7 -> 0 | N14: 0 | O14: 0 | P14: 0 | Q14: 0 | R14: 0 | S14: 0 | T14: 0 | U14: 1000 | V14: 1000 | W14: 1000 | X14: 1000 | Y14: 1000 | Z14: 1000 | AA14: 1000 | AB14: 1000 | AC14: 1000 | AD14: 1000 | AE14: 1000 | AF14: 1000 | AG14: 1000 | AH14: 1000 | AI14: 1000 | AJ14: 1000 | AK14: 1000 | AL14: 1000 | AM14: 1000 | AN14: 1000 | AO14: 1000 | AP14: 1000 | AQ14: 1000 | AR14: 1000 | AS14: 1000 | AT14: 1000 | AU14: 1000 | AV14: 1000 | AW14: 1000 | AX14: 1000 | AY14: 1000 | AZ14: 1000 | BA14: 1000 | BB14: 1000 | BC14: 1000 | BD14: 1000 | BE14: 1000 | BF14: 1000 | BG14: 1000 | BH14: 1000 | BI14: 1000 | BJ14: 1000 | BK14: 1000 | BL14: 1000 | BM14: 1000 | BN14: 1000 | BO14: 1000 | BP14: 1000 | BQ14: 1000 | BR14: 1000 | BS14: 1000 | BT14: 1000 | BU14: 1000 | BV14: 1000 | BW14: 1000 | BX14: 1000 | BY14: =$F$14*BY7 -> 1000 | BZ14: 1000 | CA14: 1000 | CB14: 1000 | CC14: 1000 | CD14: 1000 | CE14: 1000 | CF14: 1000 | CG14: 1000 | CH14: 1000 | CI14: 1000 | CJ14: 1000 | CK14: 1000 | CL14: 1000 | CM14: 1000 | CN14: 1000 | CO14: 1000 | CP14: 1000 | CQ14: 1000 | CR14: 1000 | CS14: 1000 | CT14: 1000 | CU14: 1000 | CV14: 1000 | CW14: 1000 | CX14: 1000 | CY14: 1000 | CZ14: 1000 | DA14: 1000 | DB14: 1000 | DC14: 1000 | DD14: 1000 | DE14: 1000 | DF14: 1000 | DG14: 1000 | DH14: 1000 | DI14: 1000 | DJ14: 1000 | DK14: 1000 | DL14: 1000 | DM14: 1000 | DN14: 1000 | DO14: 1000 | DP14: 1000 | DQ14: 1000 | DR14: 1000 | DS14: 1000 | DT14: 1000 | DU14: 1000 | DV14: 1000 | DW14: 1000 | DX14: 1000 | DY14: 1000 | DZ14: 1000 | EA14: 1000 | EB14: 1000 | EC14: 1000 | ED14: 1000 | EE14: 1000 | EF14: 1000 | EG14: 1000 | EH14: 1000 | EI14: 1000 | EJ14: 1000 | EK14: =$F$14*EK7 -> 0 | EL14: 0 | EM14: 0 | EN14: 0 | EO14: 0 | EP14: 0 | EQ14: 0 | ER14: 0 | ES14: 0 | ET14: 0 | EU14: 0 | EV14: 0 | EW14: 0 | EX14: 0 | EY14: 0 | EZ14: 0 | FA14: 0 | FB14: 0 | FC14: 0 | FD14: 0 | FE14: 0
C15: Annual Production b/4 Degradation | H15: MWH | L15: =L14*L13 -> 0 | M15: =M14*M13 -> 0 | N15: 0 | O15: 0 | P15: 0 | Q15: 0 | R15: 0 | S15: 0 | T15: 0 | U15: 10000 | V15: 10000 | W15: 10000 | X15: 10000 | Y15: 10000 | Z15: 10000 | AA15: 10000 | AB15: 10000 | AC15: 10000 | AD15: 10000 | AE15: 10000 | AF15: 10000 | AG15: 10000 | AH15: 10000 | AI15: 10000 | AJ15: 10000 | AK15: 10000 | AL15: 10000 | AM15: 10000 | AN15: 10000 | AO15: 10000 | AP15: 10000 | AQ15: 10000 | AR15: 10000 | AS15: 10000 | AT15: 10000 | AU15: 10000 | AV15: 10000 | AW15: 10000 | AX15: 10000 | AY15: 10000 | AZ15: 10000 | BA15: 10000 | BB15: 10000 | BC15: 10000 | BD15: 10000 | BE15: 10000 | BF15: 10000 | BG15: 10000 | BH15: 10000 | BI15: 10000 | BJ15: 10000 | BK15: 10000 | BL15: 10000 | BM15: 10000 | BN15: 10000 | BO15: 10000 | BP15: 10000 | BQ15: 10000 | BR15: 10000 | BS15: 10000 | BT15: 10000 | BU15: 10000 | BV15: 10000 | BW15: 10000 | BX15: 10000 | BY15: =BY14*BY13 -> 10000 | BZ15: 10000 | CA15: 10000 | CB15: 10000 | CC15: 10000 | CD15: 10000 | CE15: 10000 | CF15: 10000 | CG15: 10000 | CH15: 10000 | CI15: 10000 | CJ15: 10000 | CK15: 10000 | CL15: 10000 | CM15: 10000 | CN15: 10000 | CO15: 10000 | CP15: 10000 | CQ15: 10000 | CR15: 10000 | CS15: 10000 | CT15: 10000 | CU15: 10000 | CV15: 10000 | CW15: 10000 | CX15: 10000 | CY15: 10000 | CZ15: 10000 | DA15: 10000 | DB15: 10000 | DC15: 10000 | DD15: 10000 | DE15: 10000 | DF15: 10000 | DG15: 10000 | DH15: 10000 | DI15: 10000 | DJ15: 10000 | DK15: 10000 | DL15: 10000 | DM15: 10000 | DN15: 10000 | DO15: 10000 | DP15: 10000 | DQ15: 10000 | DR15: 10000 | DS15: 10000 | DT15: 10000 | DU15: 10000 | DV15: 10000 | DW15: 10000 | DX15: 10000 | DY15: 10000 | DZ15: 10000 | EA15: 10000 | EB15: 10000 | EC15: 10000 | ED15: 10000 | EE15: 10000 | EF15: 10000 | EG15: 10000 | EH15: 10000 | EI15: 10000 | EJ15: 10000 | EK15: =EK14*EK13 -> 0 | EL15: 0 | EM15: 0 | EN15: 0 | EO15: 0 | EP15: 0 | EQ15: 0 | ER15: 0 | ES15: 0 | ET15: 0 | EU15: 0 | EV15: 0 | EW15: 0 | EX15: 0 | EY15: 0 | EZ15: 0 | FA15: 0 | FB15: 0 | FC15: 0 | FD15: 0 | FE15: 0
C16: Monthly Production b/4 Degradation | E16: Month | F16: 12 | H16: MWH | L16: =L15/$F$16 -> 0 | M16: =M15/$F$16 -> 0 | N16: 0 | O16: 0 | P16: 0 | Q16: 0 | R16: 0 | S16: 0 | T16: 0 | U16: 833.3333333 | V16: 833.3333333 | W16: 833.3333333 | X16: 833.3333333 | Y16: 833.3333333 | Z16: 833.3333333 | AA16: 833.3333333 | AB16: 833.3333333 | AC16: 833.3333333 | AD16: 833.3333333 | AE16: 833.3333333 | AF16: 833.3333333 | AG16: 833.3333333 | AH16: 833.3333333 | AI16: 833.3333333 | AJ16: 833.3333333 | AK16: 833.3333333 | AL16: 833.3333333 | AM16: 833.3333333 | AN16: 833.3333333 | AO16: 833.3333333 | AP16: 833.3333333 | AQ16: 833.3333333 | AR16: 833.3333333 | AS16: 833.3333333 | AT16: 833.3333333 | AU16: 833.3333333 | AV16: 833.3333333 | AW16: 833.3333333 | AX16: 833.3333333 | AY16: 833.3333333 | AZ16: 833.3333333 | BA16: 833.3333333 | BB16: 833.3333333 | BC16: 833.3333333 | BD16: 833.3333333 | BE16: 833.3333333 | BF16: 833.3333333 | BG16: 833.3333333 | BH16: 833.3333333 | BI16: 833.3333333 | BJ16: 833.3333333 | BK16: 833.3333333 | BL16: 833.3333333 | BM16: 833.3333333 | BN16: 833.3333333 | BO16: 833.3333333 | BP16: 833.3333333 | BQ16: 833.3333333 | BR16: 833.3333333 | BS16: 833.3333333 | BT16: 833.3333333 | BU16: 833.3333333 | BV16: 833.3333333 | BW16: 833.3333333 | BX16: 833.3333333 | BY16: =BY15/$F$16 -> 833.3333333 | BZ16: 833.3333333 | CA16: 833.3333333 | CB16: 833.3333333 | CC16: 833.3333333 | CD16: 833.3333333 | CE16: 833.3333333 | CF16: 833.3333333 | CG16: 833.3333333 | CH16: 833.3333333 | CI16: 833.3333333 | CJ16: 833.3333333 | CK16: 833.3333333 | CL16: 833.3333333 | CM16: 833.3333333 | CN16: 833.3333333 | CO16: 833.3333333 | CP16: 833.3333333 | CQ16: 833.3333333 | CR16: 833.3333333 | CS16: 833.3333333 | CT16: 833.3333333 | CU16: 833.3333333 | CV16: 833.3333333 | CW16: 833.3333333 | CX16: 833.3333333 | CY16: 833.3333333 | CZ16: 833.3333333 | DA16: 833.3333333 | DB16: 833.3333333 | DC16: 833.3333333 | DD16: 833.3333333 | DE16: 833.3333333 | DF16: 833.3333333 | DG16: 833.3333333 | DH16: 833.3333333 | DI16: 833.3333333 | DJ16: 833.3333333 | DK16: 833.3333333 | DL16: 833.3333333 | DM16: 833.3333333 | DN16: 833.3333333 | DO16: 833.3333333 | DP16: 833.3333333 | DQ16: 833.3333333 | DR16: 833.3333333 | DS16: 833.3333333 | DT16: 833.3333333 | DU16: 833.3333333 | DV16: 833.3333333 | DW16: 833.3333333 | DX16: 833.3333333 | DY16: 833.3333333 | DZ16: 833.3333333 | EA16: 833.3333333 | EB16: 833.3333333 | EC16: 833.3333333 | ED16: 833.3333333 | EE16: 833.3333333 | EF16: 833.3333333 | EG16: 833.3333333 | EH16: 833.3333333 | EI16: 833.3333333 | EJ16: 833.3333333 | EK16: =EK15/$F$16 -> 0 | EL16: 0 | EM16: 0 | EN16: 0 | EO16: 0 | EP16: 0 | EQ16: 0 | ER16: 0 | ES16: 0 | ET16: 0 | EU16: 0 | EV16: 0 | EW16: 0 | EX16: 0 | EY16: 0 | EZ16: 0 | FA16: 0 | FB16: 0 | FC16: 0 | FD16: 0 | FE16: 0
C17: Degradation Index | E17: % p.m. | F17: =Input!F19 -> 0.0002496569074 | H17: Index | K17: 1 | L17: =K17*(1-$F$17*L7) -> 1 | M17: =L17*(1-$F$17*M7) -> 1 | N17: 1 | O17: 1 | P17: 1 | Q17: 1 | R17: 1 | S17: 1 | T17: 1 | U17: 0.9997503431 | V17: 0.9995007485 | W17: 0.9992512162 | X17: 0.9990017463 | Y17: 0.9987523386 | Z17: 0.9985029932 | AA17: 0.99825371 | AB17: 0.9980044891 | AC17: 0.9977553304 | AD17: 0.9975062338 | AE17: 0.9972571995 | AF17: 0.9970082274 | AG17: 0.9967593174 | AH17: 0.9965104695 | AI17: 0.9962616838 | AJ17: 0.9960129602 | AK17: 0.9957642987 | AL17: 0.9955156993 | AM17: 0.9952671619 | AN17: 0.9950186866 | AO17: 0.9947702733 | AP17: 0.994521922 | AQ17: 0.9942736327 | AR17: 0.9940254055 | AS17: 0.9937772401 | AT17: 0.9935291368 | AU17: 0.9932810954 | AV17: 0.9930331159 | AW17: 0.9927851983 | AX17: 0.9925373426 | AY17: 0.9922895488 | AZ17: 0.9920418169 | BA17: 0.9917941468 | BB17: 0.9915465385 | BC17: 0.9912989921 | BD17: 0.9910515075 | BE17: 0.9908040846 | BF17: 0.9905567235 | BG17: 0.9903094242 | BH17: 0.9900621866 | BI17: 0.9898150107 | BJ17: 0.9895678966 | BK17: 0.9893208441 | BL17: 0.9890738533 | BM17: 0.9888269242 | BN17: 0.9885800568 | BO17: 0.9883332509 | BP17: 0.9880865067 | BQ17: 0.9878398241 | BR17: 0.987593203 | BS17: 0.9873466436 | BT17: 0.9871001457 | BU17: 0.9868537093 | BV17: 0.9866073344 | BW17: 0.9863610211 | BX17: 0.9861147693 | BY17: =BX17*(1-$F$17*BY7) -> 0.9858685789 | BZ17: 0.98562245 | CA17: 0.9853763825 | CB17: 0.9851303765 | CC17: 0.9848844319 | CD17: 0.9846385487 | CE17: 0.9843927269 | CF17: 0.9841469665 | CG17: 0.9839012674 | CH17: 0.9836556296 | CI17: 0.9834100532 | CJ17: 0.9831645381 | CK17: 0.9829190843 | CL17: 0.9826736917 | CM17: 0.9824283605 | CN17: 0.9821830904 | CO17: 0.9819378816 | CP17: 0.9816927341 | CQ17: 0.9814476477 | CR17: 0.9812026225 | CS17: 0.9809576585 | CT17: 0.9807127556 | CU17: 0.9804679139 | CV17: 0.9802231333 | CW17: 0.9799784139 | CX17: 0.9797337555 | CY17: 0.9794891582 | CZ17: 0.979244622 | DA17: 0.9790001468 | DB17: 0.9787557326 | DC17: 0.9785113795 | DD17: 0.9782670874 | DE17: 0.9780228562 | DF17: 0.9777786861 | DG17: 0.9775345769 | DH17: 0.9772905286 | DI17: 0.9770465413 | DJ17: 0.9768026149 | DK17: 0.9765587493 | DL17: 0.9763149447 | DM17: 0.9760712009 | DN17: 0.975827518 | DO17: 0.9755838959 | DP17: 0.9753403347 | DQ17: 0.9750968342 | DR17: 0.9748533946 | DS17: 0.9746100157 | DT17: 0.9743666976 | DU17: 0.9741234402 | DV17: 0.9738802435 | DW17: 0.9736371076 | DX17: 0.9733940324 | DY17: 0.9731510178 | DZ17: 0.972908064 | EA17: 0.9726651707 | EB17: 0.9724223382 | EC17: 0.9721795662 | ED17: 0.9719368549 | EE17: 0.9716942041 | EF17: 0.9714516139 | EG17: 0.9712090843 | EH17: 0.9709666153 | EI17: 0.9707242068 | EJ17: 0.9704818588 | EK17: =EJ17*(1-$F$17*EK7) -> 0.9704818588 | EL17: 0.9704818588 | EM17: 0.9704818588 | EN17: 0.9704818588 | EO17: 0.9704818588 | EP17: 0.9704818588 | EQ17: 0.9704818588 | ER17: 0.9704818588 | ES17: 0.9704818588 | ET17: 0.9704818588 | EU17: 0.9704818588 | EV17: 0.9704818588 | EW17: 0.9704818588 | EX17: 0.9704818588 | EY17: 0.9704818588 | EZ17: 0.9704818588 | FA17: 0.9704818588 | FB17: 0.9704818588 | FC17: 0.9704818588 | FD17: 0.9704818588 | FE17: 0.9704818588
C18: Generation After Degradation | H18: MWH | J18: =SUM(L18:XFD18) -> 98504.42401 | L18: =L16*L17 -> 0 | M18: =M16*M17 -> 0 | N18: 0 | O18: 0 | P18: 0 | Q18: 0 | R18: 0 | S18: 0 | T18: 0 | U18: 833.1252859 | V18: 832.9172904 | W18: 832.7093469 | X18: 832.5014552 | Y18: 832.2936155 | Z18: 832.0858276 | AA18: 831.8780917 | AB18: 831.6704076 | AC18: 831.4627753 | AD18: 831.2551949 | AE18: 831.0476663 | AF18: 830.8401895 | AG18: 830.6327645 | AH18: 830.4253913 | AI18: 830.2180698 | AJ18: 830.0108002 | AK18: 829.8035822 | AL18: 829.596416 | AM18: 829.3893016 | AN18: 829.1822388 | AO18: 828.9752277 | AP18: 828.7682683 | AQ18: 828.5613606 | AR18: 828.3545045 | AS18: 828.1477001 | AT18: 827.9409473 | AU18: 827.7342462 | AV18: 827.5275966 | AW18: 827.3209986 | AX18: 827.1144522 | AY18: 826.9079574 | AZ18: 826.7015141 | BA18: 826.4951223 | BB18: 826.2887821 | BC18: 826.0824934 | BD18: 825.8762562 | BE18: 825.6700705 | BF18: 825.4639363 | BG18: 825.2578535 | BH18: 825.0518222 | BI18: 824.8458423 | BJ18: 824.6399138 | BK18: 824.4340368 | BL18: 824.2282111 | BM18: 824.0224369 | BN18: 823.816714 | BO18: 823.6110424 | BP18: 823.4054222 | BQ18: 823.1998534 | BR18: 822.9943359 | BS18: 822.7888696 | BT18: 822.5834547 | BU18: 822.3780911 | BV18: 822.1727787 | BW18: 821.9675176 | BX18: 821.7623077 | BY18: =BY16*BY17 -> 821.5571491 | BZ18: 821.3520417 | CA18: 821.1469855 | CB18: 820.9419804 | CC18: 820.7370266 | CD18: 820.5321239 | CE18: 820.3272724 | CF18: 820.1224721 | CG18: 819.9177228 | CH18: 819.7130247 | CI18: 819.5083777 | CJ18: 819.3037817 | CK18: 819.0992369 | CL18: 818.8947431 | CM18: 818.6903004 | CN18: 818.4859087 | CO18: 818.281568 | CP18: 818.0772784 | CQ18: 817.8730397 | CR18: 817.6688521 | CS18: 817.4647154 | CT18: 817.2606297 | CU18: 817.0565949 | CV18: 816.8526111 | CW18: 816.6486782 | CX18: 816.4447962 | CY18: 816.2409652 | CZ18: 816.037185 | DA18: 815.8334556 | DB18: 815.6297772 | DC18: 815.4261496 | DD18: 815.2225728 | DE18: 815.0190469 | DF18: 814.8155717 | DG18: 814.6121474 | DH18: 814.4087738 | DI18: 814.2054511 | DJ18: 814.002179 | DK18: 813.7989578 | DL18: 813.5957872 | DM18: 813.3926674 | DN18: 813.1895983 | DO18: 812.9865799 | DP18: 812.7836122 | DQ18: 812.5806952 | DR18: 812.3778288 | DS18: 812.1750131 | DT18: 811.972248 | DU18: 811.7695335 | DV18: 811.5668696 | DW18: 811.3642563 | DX18: 811.1616936 | DY18: 810.9591815 | DZ18: 810.75672 | EA18: 810.5543089 | EB18: 810.3519485 | EC18: 810.1496385 | ED18: 809.9473791 | EE18: 809.7451701 | EF18: 809.5430116 | EG18: 809.3409036 | EH18: 809.1388461 | EI18: 808.936839 | EJ18: 808.7348823 | EK18: =EK16*EK17 -> 0 | EL18: 0 | EM18: 0 | EN18: 0 | EO18: 0 | EP18: 0 | EQ18: 0 | ER18: 0 | ES18: 0 | ET18: 0 | EU18: 0 | EV18: 0 | EW18: 0 | EX18: 0 | EY18: 0 | EZ18: 0 | FA18: 0 | FB18: 0 | FC18: 0 | FD18: 0 | FE18: 0
B20: Cash Flow
C21: Capital Expenditures
D22: Total Cost | E22: [EUR/MWp] | F22: =Input!F30 -> 4050000 | G22: =F22 -> 4050000 | H22: EUR | J22: =SUM(L22:XFD22) -> 36450000 | L22: =$G$22*L6 -> 4050000 | M22: =$G$22*M6 -> 4050000 | N22: 4050000 | O22: 4050000 | P22: 4050000 | Q22: 4050000 | R22: 4050000 | S22: 4050000 | T22: 4050000 | U22: 0 | V22: 0 | W22: 0 | X22: 0 | Y22: 0 | Z22: 0 | AA22: 0 | AB22: 0 | AC22: 0 | AD22: 0 | AE22: 0 | AF22: 0 | AG22: 0 | AH22: 0 | AI22: 0 | AJ22: 0 | AK22: 0 | AL22: 0 | AM22: 0 | AN22: 0 | AO22: 0 | AP22: 0 | AQ22: 0 | AR22: 0 | AS22: 0 | AT22: 0 | AU22: 0 | AV22: 0 | AW22: 0 | AX22: 0 | AY22: 0 | AZ22: 0 | BA22: 0 | BB22: 0 | BC22: 0 | BD22: 0 | BE22: 0 | BF22: 0 | BG22: 0 | BH22: 0 | BI22: 0 | BJ22: 0 | BK22: 0 | BL22: 0 | BM22: 0 | BN22: 0 | BO22: 0 | BP22: 0 | BQ22: 0 | BR22: 0 | BS22: 0 | BT22: 0 | BU22: 0 | BV22: 0 | BW22: 0 | BX22: 0 | BY22: =$G$22*BY6 -> 0 | BZ22: 0 | CA22: 0 | CB22: 0 | CC22: 0 | CD22: 0 | CE22: 0 | CF22: 0 | CG22: 0 | CH22: 0 | CI22: 0 | CJ22: 0 | CK22: 0 | CL22: 0 | CM22: 0 | CN22: 0 | CO22: 0 | CP22: 0 | CQ22: 0 | CR22: 0 | CS22: 0 | CT22: 0 | CU22: 0 | CV22: 0 | CW22: 0 | CX22: 0 | CY22: 0 | CZ22: 0 | DA22: 0 | DB22: 0 | DC22: 0 | DD22: 0 | DE22: 0 | DF22: 0 | DG22: 0 | DH22: 0 | DI22: 0 | DJ22: 0 | DK22: 0 | DL22: 0 | DM22: 0 | DN22: 0 | DO22: 0 | DP22: 0 | DQ22: 0 | DR22: 0 | DS22: 0 | DT22: 0 | DU22: 0 | DV22: 0 | DW22: 0 | DX22: 0 | DY22: 0 | DZ22: 0 | EA22: 0 | EB22: 0 | EC22: 0 | ED22: 0 | EE22: 0 | EF22: 0 | EG22: 0 | EH22: 0 | EI22: 0 | EJ22: 0 | EK22: =$G$22*EK6 -> 0 | EL22: 0 | EM22: 0 | EN22: 0 | EO22: 0 | EP22: 0 | EQ22: 0 | ER22: 0 | ES22: 0 | ET22: 0 | EU22: 0 | EV22: 0 | EW22: 0 | EX22: 0 | EY22: 0 | EZ22: 0 | FA22: 0 | FB22: 0 | FC22: 0 | FD22: 0 | FE22: 0
D23: S-Curve | E23: % | H23: % | J23: =SUM(L23:XFD23) -> 1 | L23: =Input!F81 -> 0.1111111111 | M23: =Input!G81 -> 0.1111111111 | N23: =Input!H81 -> 0.1111111111 | O23: =Input!I81 -> 0.1111111111 | P23: =Input!J81 -> 0.1111111111 | Q23: =Input!K81 -> 0.1111111111 | R23: =Input!L81 -> 0.1111111111 | S23: =Input!M81 -> 0.1111111111 | T23: =Input!N81 -> 0.1111111111 | U23: =Input!O81 -> 0 | V23: =Input!P81 -> 0 | W23: =Input!Q81 -> 0 | X23: =Input!R81 -> 0 | Y23: =Input!S81 -> 0 | Z23: =Input!T81 -> 0 | AA23: =Input!U81 -> 0 | AB23: =Input!V81 -> 0 | AC23: =Input!W81 -> 0 | AD23: =Input!X81 -> 0 | AE23: =Input!Y81 -> 0 | AF23: =Input!Z81 -> 0 | AG23: =Input!AA81 -> 0 | AH23: =Input!AB81 -> 0 | AI23: =Input!AC81 -> 0 | AJ23: =Input!AD81 -> 0 | AK23: =Input!AE81 -> 0 | AL23: =Input!AF81 -> 0 | AM23: =Input!AG81 -> 0 | AN23: =Input!AH81 -> 0 | AO23: =Input!AI81 -> 0 | AP23: =Input!AJ81 -> 0 | AQ23: =Input!AK81 -> 0 | AR23: =Input!AL81 -> 0 | AS23: =Input!AM81 -> 0 | AT23: =Input!AN81 -> 0 | AU23: =Input!AO81 -> 0 | AV23: =Input!AP81 -> 0 | AW23: =Input!AQ81 -> 0 | AX23: =Input!AR81 -> 0 | AY23: =Input!AS81 -> 0 | AZ23: =Input!AT81 -> 0 | BA23: =Input!AU81 -> 0 | BB23: =Input!AV81 -> 0 | BC23: =Input!AW81 -> 0 | BD23: =Input!AX81 -> 0 | BE23: =Input!AY81 -> 0 | BF23: =Input!AZ81 -> 0 | BG23: =Input!BA81 -> 0 | BH23: =Input!BB81 -> 0 | BI23: =Input!BC81 -> 0 | BJ23: =Input!BD81 -> 0 | BK23: =Input!BE81 -> 0 | BL23: =Input!BF81 -> 0 | BM23: =Input!BG81 -> 0 | BN23: =Input!BH81 -> 0 | BO23: =Input!BI81 -> 0 | BP23: =Input!BJ81 -> 0 | BQ23: =Input!BK81 -> 0 | BR23: =Input!BL81 -> 0 | BS23: =Input!BM81 -> 0 | BT23: =Input!BN81 -> 0 | BU23: =Input!BO81 -> 0 | BV23: =Input!BP81 -> 0 | BW23: =Input!BQ81 -> 0 | BX23: =Input!BR81 -> 0 | BY23: =Input!BS81 -> 0 | BZ23: =Input!BT81 -> 0 | CA23: =Input!BU81 -> 0 | CB23: =Input!BV81 -> 0 | CC23: =Input!BW81 -> 0 | CD23: =Input!BX81 -> 0 | CE23: =Input!BY81 -> 0 | CF23: =Input!BZ81 -> 0 | CG23: =Input!CA81 -> 0 | CH23: =Input!CB81 -> 0 | CI23: =Input!CC81 -> 0 | CJ23: =Input!CD81 -> 0 | CK23: =Input!CE81 -> 0 | CL23: =Input!CF81 -> 0 | CM23: =Input!CG81 -> 0 | CN23: =Input!CH81 -> 0 | CO23: =Input!CI81 -> 0 | CP23: =Input!CJ81 -> 0 | CQ23: =Input!CK81 -> 0 | CR23: =Input!CL81 -> 0 | CS23: =Input!CM81 -> 0 | CT23: =Input!CN81 -> 0 | CU23: =Input!CO81 -> 0 | CV23: =Input!CP81 -> 0 | CW23: =Input!CQ81 -> 0 | CX23: =Input!CR81 -> 0 | CY23: =Input!CS81 -> 0 | CZ23: =Input!CT81 -> 0 | DA23: =Input!CU81 -> 0 | DB23: =Input!CV81 -> 0 | DC23: =Input!CW81 -> 0 | DD23: =Input!CX81 -> 0 | DE23: =Input!CY81 -> 0 | DF23: =Input!CZ81 -> 0 | DG23: =Input!DA81 -> 0 | DH23: =Input!DB81 -> 0 | DI23: =Input!DC81 -> 0 | DJ23: =Input!DD81 -> 0 | DK23: =Input!DE81 -> 0 | DL23: =Input!DF81 -> 0 | DM23: =Input!DG81 -> 0 | DN23: =Input!DH81 -> 0 | DO23: =Input!DI81 -> 0 | DP23: =Input!DJ81 -> 0 | DQ23: =Input!DK81 -> 0 | DR23: =Input!DL81 -> 0 | DS23: =Input!DM81 -> 0 | DT23: =Input!DN81 -> 0 | DU23: =Input!DO81 -> 0 | DV23: =Input!DP81 -> 0 | DW23: =Input!DQ81 -> 0 | DX23: =Input!DR81 -> 0 | DY23: =Input!DS81 -> 0 | DZ23: =Input!DT81 -> 0 | EA23: =Input!DU81 -> 0 | EB23: =Input!DV81 -> 0 | EC23: =Input!DW81 -> 0 | ED23: =Input!DX81 -> 0 | EE23: =Input!DY81 -> 0 | EF23: =Input!DZ81 -> 0 | EG23: =Input!EA81 -> 0 | EH23: =Input!EB81 -> 0 | EI23: =Input!EC81 -> 0 | EJ23: =Input!ED81 -> 0 | EK23: =Input!EE81 -> 0 | EL23: =Input!EF81 -> 0 | EM23: =Input!EG81 -> 0 | EN23: =Input!EH81 -> 0 | EO23: =Input!EI81 -> 0 | EP23: =Input!EJ81 -> 0 | EQ23: =Input!EK81 -> 0 | ER23: =Input!EL81 -> 0 | ES23: =Input!EM81 -> 0 | ET23: =Input!EN81 -> 0 | EU23: =Input!EO81 -> 0 | EV23: =Input!EP81 -> 0 | EW23: =Input!EQ81 -> 0 | EX23: =Input!ER81 -> 0 | EY23: =Input!ES81 -> 0 | EZ23: =Input!ET81 -> 0 | FA23: =Input!EU81 -> 0 | FB23: =Input!EV81 -> 0 | FC23: =Input!EW81 -> 0 | FD23: =Input!EX81 -> 0 | FE23: =Input!EY81 -> 0
D25: Capital Expenditure | E25: EUR | H25: EUR | J25: =SUM(L25:XFD25) -> 4050000 | L25: =L22*L23 -> 450000 | M25: =M22*M23 -> 450000 | N25: 450000 | O25: 450000 | P25: 450000 | Q25: 450000 | R25: 450000 | S25: 450000 | T25: 450000 | U25: 0 | V25: 0 | W25: 0 | X25: 0 | Y25: 0 | Z25: 0 | AA25: 0 | AB25: 0 | AC25: 0 | AD25: 0 | AE25: 0 | AF25: 0 | AG25: 0 | AH25: 0 | AI25: 0 | AJ25: 0 | AK25: 0 | AL25: 0 | AM25: 0 | AN25: 0 | AO25: 0 | AP25: 0 | AQ25: 0 | AR25: 0 | AS25: 0 | AT25: 0 | AU25: 0 | AV25: 0 | AW25: 0 | AX25: 0 | AY25: 0 | AZ25: 0 | BA25: 0 | BB25: 0 | BC25: 0 | BD25: 0 | BE25: 0 | BF25: 0 | BG25: 0 | BH25: 0 | BI25: 0 | BJ25: 0 | BK25: 0 | BL25: 0 | BM25: 0 | BN25: 0 | BO25: 0 | BP25: 0 | BQ25: 0 | BR25: 0 | BS25: 0 | BT25: 0 | BU25: 0 | BV25: 0 | BW25: 0 | BX25: 0 | BY25: =BY22*BY23 -> 0 | BZ25: 0 | CA25: 0 | CB25: 0 | CC25: 0 | CD25: 0 | CE25: 0 | CF25: 0 | CG25: 0 | CH25: 0 | CI25: 0 | CJ25: 0 | CK25: 0 | CL25: 0 | CM25: 0 | CN25: 0 | CO25: 0 | CP25: 0 | CQ25: 0 | CR25: 0 | CS25: 0 | CT25: 0 | CU25: 0 | CV25: 0 | CW25: 0 | CX25: 0 | CY25: 0 | CZ25: 0 | DA25: 0 | DB25: 0 | DC25: 0 | DD25: 0 | DE25: 0 | DF25: 0 | DG25: 0 | DH25: 0 | DI25: 0 | DJ25: 0 | DK25: 0 | DL25: 0 | DM25: 0 | DN25: 0 | DO25: 0 | DP25: 0 | DQ25: 0 | DR25: 0 | DS25: 0 | DT25: 0 | DU25: 0 | DV25: 0 | DW25: 0 | DX25: 0 | DY25: 0 | DZ25: 0 | EA25: 0 | EB25: 0 | EC25: 0 | ED25: 0 | EE25: 0 | EF25: 0 | EG25: 0 | EH25: 0 | EI25: 0 | EJ25: 0 | EK25: =EK22*EK23 -> 0 | EL25: 0 | EM25: 0 | EN25: 0 | EO25: 0 | EP25: 0 | EQ25: 0 | ER25: 0 | ES25: 0 | ET25: 0 | EU25: 0 | EV25: 0 | EW25: 0 | EX25: 0 | EY25: 0 | EZ25: 0 | FA25: 0 | FB25: 0 | FC25: 0 | FD25: 0 | FE25: 0
C27: Revenues
D28: Inflation Rate | E28: % p.a. | F28: =Input!F25 -> 0 | H28: % p.a. | L28: =$F$28 -> 0 | M28: =$F$28 -> 0 | N28: 0 | O28: 0 | P28: 0 | Q28: 0 | R28: 0 | S28: 0 | T28: 0 | U28: 0 | V28: 0 | W28: 0 | X28: 0 | Y28: 0 | Z28: 0 | AA28: 0 | AB28: 0 | AC28: 0 | AD28: 0 | AE28: 0 | AF28: 0 | AG28: 0 | AH28: 0 | AI28: 0 | AJ28: 0 | AK28: 0 | AL28: 0 | AM28: 0 | AN28: 0 | AO28: 0 | AP28: 0 | AQ28: 0 | AR28: 0 | AS28: 0 | AT28: 0 | AU28: 0 | AV28: 0 | AW28: 0 | AX28: 0 | AY28: 0 | AZ28: 0 | BA28: 0 | BB28: 0 | BC28: 0 | BD28: 0 | BE28: 0 | BF28: 0 | BG28: 0 | BH28: 0 | BI28: 0 | BJ28: 0 | BK28: 0 | BL28: 0 | BM28: 0 | BN28: 0 | BO28: 0 | BP28: 0 | BQ28: 0 | BR28: 0 | BS28: 0 | BT28: 0 | BU28: 0 | BV28: 0 | BW28: 0 | BX28: 0 | BY28: =$F$28 -> 0 | BZ28: 0 | CA28: 0 | CB28: 0 | CC28: 0 | CD28: 0 | CE28: 0 | CF28: 0 | CG28: 0 | CH28: 0 | CI28: 0 | CJ28: 0 | CK28: 0 | CL28: 0 | CM28: 0 | CN28: 0 | CO28: 0 | CP28: 0 | CQ28: 0 | CR28: 0 | CS28: 0 | CT28: 0 | CU28: 0 | CV28: 0 | CW28: 0 | CX28: 0 | CY28: 0 | CZ28: 0 | DA28: 0 | DB28: 0 | DC28: 0 | DD28: 0 | DE28: 0 | DF28: 0 | DG28: 0 | DH28: 0 | DI28: 0 | DJ28: 0 | DK28: 0 | DL28: 0 | DM28: 0 | DN28: 0 | DO28: 0 | DP28: 0 | DQ28: 0 | DR28: 0 | DS28: 0 | DT28: 0 | DU28: 0 | DV28: 0 | DW28: 0 | DX28: 0 | DY28: 0 | DZ28: 0 | EA28: 0 | EB28: 0 | EC28: 0 | ED28: 0 | EE28: 0 | EF28: 0 | EG28: 0 | EH28: 0 | EI28: 0 | EJ28: 0 | EK28: =$F$28 -> 0 | EL28: 0 | EM28: 0 | EN28: 0 | EO28: 0 | EP28: 0 | EQ28: 0 | ER28: 0 | ES28: 0 | ET28: 0 | EU28: 0 | EV28: 0 | EW28: 0 | EX28: 0 | EY28: 0 | EZ28: 0 | FA28: 0 | FB28: 0 | FC28: 0 | FD28: 0 | FE28: 0
D29: Inflation Period | E29: Month | H29: Flag | L29: =(AND(L5=1,L9))*1 -> 0 | M29: =(AND(M5=1,M9))*1 -> 0 | N29: 0 | O29: 0 | P29: 0 | Q29: 0 | R29: 0 | S29: 0 | T29: 0 | U29: 0 | V29: 0 | W29: 0 | X29: 0 | Y29: 0 | Z29: 0 | AA29: 0 | AB29: 0 | AC29: 0 | AD29: 0 | AE29: 1 | AF29: 0 | AG29: 0 | AH29: 0 | AI29: 0 | AJ29: 0 | AK29: 0 | AL29: 0 | AM29: 0 | AN29: 0 | AO29: 0 | AP29: 0 | AQ29: 1 | AR29: 0 | AS29: 0 | AT29: 0 | AU29: 0 | AV29: 0 | AW29: 0 | AX29: 0 | AY29: 0 | AZ29: 0 | BA29: 0 | BB29: 0 | BC29: 1 | BD29: 0 | BE29: 0 | BF29: 0 | BG29: 0 | BH29: 0 | BI29: 0 | BJ29: 0 | BK29: 0 | BL29: 0 | BM29: 0 | BN29: 0 | BO29: 1 | BP29: 0 | BQ29: 0 | BR29: 0 | BS29: 0 | BT29: 0 | BU29: 0 | BV29: 0 | BW29: 0 | BX29: 0 | BY29: =(AND(BY5=1,BY9))*1 -> 0 | BZ29: 0 | CA29: 1 | CB29: 0 | CC29: 0 | CD29: 0 | CE29: 0 | CF29: 0 | CG29: 0 | CH29: 0 | CI29: 0 | CJ29: 0 | CK29: 0 | CL29: 0 | CM29: 1 | CN29: 0 | CO29: 0 | CP29: 0 | CQ29: 0 | CR29: 0 | CS29: 0 | CT29: 0 | CU29: 0 | CV29: 0 | CW29: 0 | CX29: 0 | CY29: 1 | CZ29: 0 | DA29: 0 | DB29: 0 | DC29: 0 | DD29: 0 | DE29: 0 | DF29: 0 | DG29: 0 | DH29: 0 | DI29: 0 | DJ29: 0 | DK29: 1 | DL29: 0 | DM29: 0 | DN29: 0 | DO29: 0 | DP29: 0 | DQ29: 0 | DR29: 0 | DS29: 0 | DT29: 0 | DU29: 0 | DV29: 0 | DW29: 1 | DX29: 0 | DY29: 0 | DZ29: 0 | EA29: 0 | EB29: 0 | EC29: 0 | ED29: 0 | EE29: 0 | EF29: 0 | EG29: 0 | EH29: 0 | EI29: 1 | EJ29: 0 | EK29: =(AND(EK5=1,EK9))*1 -> 0 | EL29: 0 | EM29: 0 | EN29: 0 | EO29: 0 | EP29: 0 | EQ29: 0 | ER29: 0 | ES29: 0 | ET29: 0 | EU29: 1 | EV29: 0 | EW29: 0 | EX29: 0 | EY29: 0 | EZ29: 0 | FA29: 0 | FB29: 0 | FC29: 0 | FD29: 0 | FE29: 0
D30: Inflation Index | H30: Index | K30: 1 | L30: =K30*(1+L28*L29) -> 1 | M30: =L30*(1+M28*M29) -> 1 | N30: 1 | O30: 1 | P30: 1 | Q30: 1 | R30: 1 | S30: 1 | T30: 1 | U30: 1 | V30: 1 | W30: 1 | X30: 1 | Y30: 1 | Z30: 1 | AA30: 1 | AB30: 1 | AC30: 1 | AD30: 1 | AE30: 1 | AF30: 1 | AG30: 1 | AH30: 1 | AI30: 1 | AJ30: 1 | AK30: 1 | AL30: 1 | AM30: 1 | AN30: 1 | AO30: 1 | AP30: 1 | AQ30: 1 | AR30: 1 | AS30: 1 | AT30: 1 | AU30: 1 | AV30: 1 | AW30: 1 | AX30: 1 | AY30: 1 | AZ30: 1 | BA30: 1 | BB30: 1 | BC30: 1 | BD30: 1 | BE30: 1 | BF30: 1 | BG30: 1 | BH30: 1 | BI30: 1 | BJ30: 1 | BK30: 1 | BL30: 1 | BM30: 1 | BN30: 1 | BO30: 1 | BP30: 1 | BQ30: 1 | BR30: 1 | BS30: 1 | BT30: 1 | BU30: 1 | BV30: 1 | BW30: 1 | BX30: 1 | BY30: =BX30*(1+BY28*BY29) -> 1 | BZ30: 1 | CA30: 1 | CB30: 1 | CC30: 1 | CD30: 1 | CE30: 1 | CF30: 1 | CG30: 1 | CH30: 1 | CI30: 1 | CJ30: 1 | CK30: 1 | CL30: 1 | CM30: 1 | CN30: 1 | CO30: 1 | CP30: 1 | CQ30: 1 | CR30: 1 | CS30: 1 | CT30: 1 | CU30: 1 | CV30: 1 | CW30: 1 | CX30: 1 | CY30: 1 | CZ30: 1 | DA30: 1 | DB30: 1 | DC30: 1 | DD30: 1 | DE30: 1 | DF30: 1 | DG30: 1 | DH30: 1 | DI30: 1 | DJ30: 1 | DK30: 1 | DL30: 1 | DM30: 1 | DN30: 1 | DO30: 1 | DP30: 1 | DQ30: 1 | DR30: 1 | DS30: 1 | DT30: 1 | DU30: 1 | DV30: 1 | DW30: 1 | DX30: 1 | DY30: 1 | DZ30: 1 | EA30: 1 | EB30: 1 | EC30: 1 | ED30: 1 | EE30: 1 | EF30: 1 | EG30: 1 | EH30: 1 | EI30: 1 | EJ30: 1 | EK30: =EJ30*(1+EK28*EK29) -> 1 | EL30: 1 | EM30: 1 | EN30: 1 | EO30: 1 | EP30: 1 | EQ30: 1 | ER30: 1 | ES30: 1 | ET30: 1 | EU30: 1 | EV30: 1 | EW30: 1 | EX30: 1 | EY30: 1 | EZ30: 1 | FA30: 1 | FB30: 1 | FC30: 1 | FD30: 1 | FE30: 1
D31: Base Tariff | E31: EUR/MWH | F31: =Input!F23 -> 60 | H31: EUR/MWH | L31: =$F$31 -> 60 | M31: =$F$31 -> 60 | N31: 60 | O31: 60 | P31: 60 | Q31: 60 | R31: 60 | S31: 60 | T31: 60 | U31: 60 | V31: 60 | W31: 60 | X31: 60 | Y31: 60 | Z31: 60 | AA31: 60 | AB31: 60 | AC31: 60 | AD31: 60 | AE31: 60 | AF31: 60 | AG31: 60 | AH31: 60 | AI31: 60 | AJ31: 60 | AK31: 60 | AL31: 60 | AM31: 60 | AN31: 60 | AO31: 60 | AP31: 60 | AQ31: 60 | AR31: 60 | AS31: 60 | AT31: 60 | AU31: 60 | AV31: 60 | AW31: 60 | AX31: 60 | AY31: 60 | AZ31: 60 | BA31: 60 | BB31: 60 | BC31: 60 | BD31: 60 | BE31: 60 | BF31: 60 | BG31: 60 | BH31: 60 | BI31: 60 | BJ31: 60 | BK31: 60 | BL31: 60 | BM31: 60 | BN31: 60 | BO31: 60 | BP31: 60 | BQ31: 60 | BR31: 60 | BS31: 60 | BT31: 60 | BU31: 60 | BV31: 60 | BW31: 60 | BX31: 60 | BY31: =$F$31 -> 60 | BZ31: 60 | CA31: 60 | CB31: 60 | CC31: 60 | CD31: 60 | CE31: 60 | CF31: 60 | CG31: 60 | CH31: 60 | CI31: 60 | CJ31: 60 | CK31: 60 | CL31: 60 | CM31: 60 | CN31: 60 | CO31: 60 | CP31: 60 | CQ31: 60 | CR31: 60 | CS31: 60 | CT31: 60 | CU31: 60 | CV31: 60 | CW31: 60 | CX31: 60 | CY31: 60 | CZ31: 60 | DA31: 60 | DB31: 60 | DC31: 60 | DD31: 60 | DE31: 60 | DF31: 60 | DG31: 60 | DH31: 60 | DI31: 60 | DJ31: 60 | DK31: 60 | DL31: 60 | DM31: 60 | DN31: 60 | DO31: 60 | DP31: 60 | DQ31: 60 | DR31: 60 | DS31: 60 | DT31: 60 | DU31: 60 | DV31: 60 | DW31: 60 | DX31: 60 | DY31: 60 | DZ31: 60 | EA31: 60 | EB31: 60 | EC31: 60 | ED31: 60 | EE31: 60 | EF31: 60 | EG31: 60 | EH31: 60 | EI31: 60 | EJ31: 60 | EK31: =$F$31 -> 60 | EL31: 60 | EM31: 60 | EN31: 60 | EO31: 60 | EP31: 60 | EQ31: 60 | ER31: 60 | ES31: 60 | ET31: 60 | EU31: 60 | EV31: 60 | EW31: 60 | EX31: 60 | EY31: 60 | EZ31: 60 | FA31: 60 | FB31: 60 | FC31: 60 | FD31: 60 | FE31: 60
D32: Inflated Tariff | E32: EUR/MWH | H32: EUR/MWH | L32: =L31*L30 -> 60 | M32: =M31*M30 -> 60 | N32: 60 | O32: 60 | P32: 60 | Q32: 60 | R32: 60 | S32: 60 | T32: 60 | U32: 60 | V32: 60 | W32: 60 | X32: 60 | Y32: 60 | Z32: 60 | AA32: 60 | AB32: 60 | AC32: 60 | AD32: 60 | AE32: 60 | AF32: 60 | AG32: 60 | AH32: 60 | AI32: 60 | AJ32: 60 | AK32: 60 | AL32: 60 | AM32: 60 | AN32: 60 | AO32: 60 | AP32: 60 | AQ32: 60 | AR32: 60 | AS32: 60 | AT32: 60 | AU32: 60 | AV32: 60 | AW32: 60 | AX32: 60 | AY32: 60 | AZ32: 60 | BA32: 60 | BB32: 60 | BC32: 60 | BD32: 60 | BE32: 60 | BF32: 60 | BG32: 60 | BH32: 60 | BI32: 60 | BJ32: 60 | BK32: 60 | BL32: 60 | BM32: 60 | BN32: 60 | BO32: 60 | BP32: 60 | BQ32: 60 | BR32: 60 | BS32: 60 | BT32: 60 | BU32: 60 | BV32: 60 | BW32: 60 | BX32: 60 | BY32: =BY31*BY30 -> 60 | BZ32: 60 | CA32: 60 | CB32: 60 | CC32: 60 | CD32: 60 | CE32: 60 | CF32: 60 | CG32: 60 | CH32: 60 | CI32: 60 | CJ32: 60 | CK32: 60 | CL32: 60 | CM32: 60 | CN32: 60 | CO32: 60 | CP32: 60 | CQ32: 60 | CR32: 60 | CS32: 60 | CT32: 60 | CU32: 60 | CV32: 60 | CW32: 60 | CX32: 60 | CY32: 60 | CZ32: 60 | DA32: 60 | DB32: 60 | DC32: 60 | DD32: 60 | DE32: 60 | DF32: 60 | DG32: 60 | DH32: 60 | DI32: 60 | DJ32: 60 | DK32: 60 | DL32: 60 | DM32: 60 | DN32: 60 | DO32: 60 | DP32: 60 | DQ32: 60 | DR32: 60 | DS32: 60 | DT32: 60 | DU32: 60 | DV32: 60 | DW32: 60 | DX32: 60 | DY32: 60 | DZ32: 60 | EA32: 60 | EB32: 60 | EC32: 60 | ED32: 60 | EE32: 60 | EF32: 60 | EG32: 60 | EH32: 60 | EI32: 60 | EJ32: 60 | EK32: =EK31*EK30 -> 60 | EL32: 60 | EM32: 60 | EN32: 60 | EO32: 60 | EP32: 60 | EQ32: 60 | ER32: 60 | ES32: 60 | ET32: 60 | EU32: 60 | EV32: 60 | EW32: 60 | EX32: 60 | EY32: 60 | EZ32: 60 | FA32: 60 | FB32: 60 | FC32: 60 | FD32: 60 | FE32: 60
